Workbook

Sheet Control
A1: Sheets | B1: Text File Names | C1: Description | E1: Notes: 50 sheets maximum
A2: North | B2: North_Saturation.txt | C2: Saturation in the North Beach and Dam | E2: Referenced text files must be in same root folder as this spreadsheet
A3: East | B3: East_Saturation.txt | C3: Saturation in the East Beach and Dam
A4: South | B4: South_Saturation.txt | C4: Saturation in the South Beach and Dam
A5: Closure | B5: Closure_Saturation.txt | C5: Saturation in the Closure Beach

Sheet PlotControl
A2: Model Name: | B2: Plant Site Version 6.0
A4: Plot: | B4: Annual Max | C4: =B2 & " Model " & IF(B4="Annual Max", "Annual Maximum", B4) & " Result Statistics " & "Saturation in the " & B8 -> Plant Site Version 6.0 Model Annual Maximum Result Statistics Saturation in the North Dam | V4: Directory to save PDFs to: | W4: P:\Mpls\23 MN\69\2369862\WorkFiles\APA\Support Docs\Surface WQ\Workfiles\Models\GoldSim\Tailings Basin\2012 MODEL\Base Model\Output_Data\FTB\Unsat_Zones\plots
C5: =B2 & " Model Monthly " & B6 & " Concentration at " & B8 -> Plant Site Version 6.0 Model Monthly Concentration at North Dam | V5: Starting figure caption | W5: Figure A-1-0001
V7: Note: This loops through the plot and location drop down menus.
A8: Location to Plot (dropdown): | B8: North Dam | C8: =MATCH(B8,$A$15:$A$21,0) -> 2
A10: Initial Time for Monthly Plot (yr): | B10: 0
B11: =B10+20 -> 20
A14: Locations
A15: North Beach
A16: North Dam
A17: East Beach
A18: East Dam
A19: South Beach
A20: South Dam
A21: Closure Beach
A23: Plot | I23: Annual Project Results | L23: Annual No Action Results
A24: Annnual Average | H24: Time | I24: P10 | J24: P50 | K24: P90 | L24: P10 | M24: P50 | N24: P90
A25: Annual Max | H25: 0 | I25: =VLOOKUP($H25,TLNGS_All!$A$5:$V$205,3*($C$8-1)+2) * 100 -> 48 | J25: =VLOOKUP($H25,TLNGS_All!$A$5:$V$205,3*($C$8-1)+3) * 100 -> 48.407 | K25: =VLOOKUP($H25,TLNGS_All!$A$5:$V$205,3*($C$8-1)+4) * 100 -> 52.414 | L25: =VLOOKUP($H25,BNT_All!$A$5:$V$205,3*($C$8-1)+2) * 100 -> 95.544 | M25: =VLOOKUP($H25,BNT_All!$A$5:$V$205,3*($C$8-1)+3) * 100 -> 95.589 | N25: =VLOOKUP($H25,BNT_All!$A$5:$V$205,3*($C$8-1)+4) * 100 -> 96.004
H26: 1 | I26: =VLOOKUP($H26,TLNGS_All!$A$5:$V$205,3*($C$8-1)+2) * 100 -> 43.503 | J26: =VLOOKUP($H26,TLNGS_All!$A$5:$V$205,3*($C$8-1)+3) * 100 -> 48.456 | K26: =VLOOKUP($H26,TLNGS_All!$A$5:$V$205,3*($C$8-1)+4) * 100 -> 52.816 | L26: =VLOOKUP($H26,BNT_All!$A$5:$V$205,3*($C$8-1)+2) * 100 -> 95.004 | M26: =VLOOKUP($H26,BNT_All!$A$5:$V$205,3*($C$8-1)+3) * 100 -> 95.595 | N26: =VLOOKUP($H26,BNT_All!$A$5:$V$205,3*($C$8-1)+4) * 100 -> 96.042
H27: 2 | I27: =VLOOKUP($H27,TLNGS_All!$A$5:$V$205,3*($C$8-1)+2) * 100 -> 43.276 | J27: =VLOOKUP($H27,TLNGS_All!$A$5:$V$205,3*($C$8-1)+3) * 100 -> 48.488 | K27: =VLOOKUP($H27,TLNGS_All!$A$5:$V$205,3*($C$8-1)+4) * 100 -> 53.298 | L27: =VLOOKUP($H27,BNT_All!$A$5:$V$205,3*($C$8-1)+2) * 100 -> 94.974 | M27: =VLOOKUP($H27,BNT_All!$A$5:$V$205,3*($C$8-1)+3) * 100 -> 95.598 | N27: =VLOOKUP($H27,BNT_All!$A$5:$V$205,3*($C$8-1)+4) * 100 -> 96.089
H28: 3 | I28: =VLOOKUP($H28,TLNGS_All!$A$5:$V$205,3*($C$8-1)+2) * 100 -> 43.063 | J28: =VLOOKUP($H28,TLNGS_All!$A$5:$V$205,3*($C$8-1)+3) * 100 -> 48.359 | K28: =VLOOKUP($H28,TLNGS_All!$A$5:$V$205,3*($C$8-1)+4) * 100 -> 52.569 | L28: =VLOOKUP($H28,BNT_All!$A$5:$V$205,3*($C$8-1)+2) * 100 -> 94.946 | M28: =VLOOKUP($H28,BNT_All!$A$5:$V$205,3*($C$8-1)+3) * 100 -> 95.584 | N28: =VLOOKUP($H28,BNT_All!$A$5:$V$205,3*($C$8-1)+4) * 100 -> 96.019
H29: 4 | I29: =VLOOKUP($H29,TLNGS_All!$A$5:$V$205,3*($C$8-1)+2) * 100 -> 43.738 | J29: =VLOOKUP($H29,TLNGS_All!$A$5:$V$205,3*($C$8-1)+3) * 100 -> 48.615 | K29: =VLOOKUP($H29,TLNGS_All!$A$5:$V$205,3*($C$8-1)+4) * 100 -> 52.85 | L29: =VLOOKUP($H29,BNT_All!$A$5:$V$205,3*($C$8-1)+2) * 100 -> 95.034 | M29: =VLOOKUP($H29,BNT_All!$A$5:$V$205,3*($C$8-1)+3) * 100 -> 95.612 | N29: =VLOOKUP($H29,BNT_All!$A$5:$V$205,3*($C$8-1)+4) * 100 -> 96.046
H30: 5 | I30: =VLOOKUP($H30,TLNGS_All!$A$5:$V$205,3*($C$8-1)+2) * 100 -> 44.048 | J30: =VLOOKUP($H30,TLNGS_All!$A$5:$V$205,3*($C$8-1)+3) * 100 -> 48.849 | K30: =VLOOKUP($H30,TLNGS_All!$A$5:$V$205,3*($C$8-1)+4) * 100 -> 52.964 | L30: =VLOOKUP($H30,BNT_All!$A$5:$V$205,3*($C$8-1)+2) * 100 -> 95.074 | M30: =VLOOKUP($H30,BNT_All!$A$5:$V$205,3*($C$8-1)+3) * 100 -> 95.637 | N30: =VLOOKUP($H30,BNT_All!$A$5:$V$205,3*($C$8-1)+4) * 100 -> 96.057
H31: 6 | I31: =VLOOKUP($H31,TLNGS_All!$A$5:$V$205,3*($C$8-1)+2) * 100 -> 43.607 | J31: =VLOOKUP($H31,TLNGS_All!$A$5:$V$205,3*($C$8-1)+3) * 100 -> 48.555 | K31: =VLOOKUP($H31,TLNGS_All!$A$5:$V$205,3*($C$8-1)+4) * 100 -> 53.021 | L31: =VLOOKUP($H31,BNT_All!$A$5:$V$205,3*($C$8-1)+2) * 100 -> 95.017 | M31: =VLOOKUP($H31,BNT_All!$A$5:$V$205,3*($C$8-1)+3) * 100 -> 95.605 | N31: =VLOOKUP($H31,BNT_All!$A$5:$V$205,3*($C$8-1)+4) * 100 -> 96.062
H32: 7 | I32: =VLOOKUP($H32,TLNGS_All!$A$5:$V$205,3*($C$8-1)+2) * 100 -> 43.599 | J32: =VLOOKUP($H32,TLNGS_All!$A$5:$V$205,3*($C$8-1)+3) * 100 -> 48.419 | K32: =VLOOKUP($H32,TLNGS_All!$A$5:$V$205,3*($C$8-1)+4) * 100 -> 52.713 | L32: =VLOOKUP($H32,BNT_All!$A$5:$V$205,3*($C$8-1)+2) * 100 -> 95.016 | M32: =VLOOKUP($H32,BNT_All!$A$5:$V$205,3*($C$8-1)+3) * 100 -> 95.59 | N32: =VLOOKUP($H32,BNT_All!$A$5:$V$205,3*($C$8-1)+4) * 100 -> 96.033
H33: 8 | I33: =VLOOKUP($H33,TLNGS_All!$A$5:$V$205,3*($C$8-1)+2) * 100 -> 43.743 | J33: =VLOOKUP($H33,TLNGS_All!$A$5:$V$205,3*($C$8-1)+3) * 100 -> 48.56 | K33: =VLOOKUP($H33,TLNGS_All!$A$5:$V$205,3*($C$8-1)+4) * 100 -> 53.028 | L33: =VLOOKUP($H33,BNT_All!$A$5:$V$205,3*($C$8-1)+2) * 100 -> 95.035 | M33: =VLOOKUP($H33,BNT_All!$A$5:$V$205,3*($C$8-1)+3) * 100 -> 95.606 | N33: =VLOOKUP($H33,BNT_All!$A$5:$V$205,3*($C$8-1)+4) * 100 -> 96.063
H34: 9 | I34: =VLOOKUP($H34,TLNGS_All!$A$5:$V$205,3*($C$8-1)+2) * 100 -> 43.832 | J34: =VLOOKUP($H34,TLNGS_All!$A$5:$V$205,3*($C$8-1)+3) * 100 -> 48.707 | K34: =VLOOKUP($H34,TLNGS_All!$A$5:$V$205,3*($C$8-1)+4) * 100 -> 52.686 | L34: =VLOOKUP($H34,BNT_All!$A$5:$V$205,3*($C$8-1)+2) * 100 -> 95.046 | M34: =VLOOKUP($H34,BNT_All!$A$5:$V$205,3*($C$8-1)+3) * 100 -> 95.622 | N34: =VLOOKUP($H34,BNT_All!$A$5:$V$205,3*($C$8-1)+4) * 100 -> 96.03
H35: 10 | I35: =VLOOKUP($H35,TLNGS_All!$A$5:$V$205,3*($C$8-1)+2) * 100 -> 43.542 | J35: =VLOOKUP($H35,TLNGS_All!$A$5:$V$205,3*($C$8-1)+3) * 100 -> 48.887 | K35: =VLOOKUP($H35,TLNGS_All!$A$5:$V$205,3*($C$8-1)+4) * 100 -> 52.876 | L35: =VLOOKUP($H35,BNT_All!$A$5:$V$205,3*($C$8-1)+2) * 100 -> 95.009 | M35: =VLOOKUP($H35,BNT_All!$A$5:$V$205,3*($C$8-1)+3) * 100 -> 95.641 | N35: =VLOOKUP($H35,BNT_All!$A$5:$V$205,3*($C$8-1)+4) * 100 -> 96.048
H36: 11 | I36: =VLOOKUP($H36,TLNGS_All!$A$5:$V$205,3*($C$8-1)+2) * 100 -> 43.236 | J36: =VLOOKUP($H36,TLNGS_All!$A$5:$V$205,3*($C$8-1)+3) * 100 -> 48.442 | K36: =VLOOKUP($H36,TLNGS_All!$A$5:$V$205,3*($C$8-1)+4) * 100 -> 52.736 | L36: =VLOOKUP($H36,BNT_All!$A$5:$V$205,3*($C$8-1)+2) * 100 -> 94.969 | M36: =VLOOKUP($H36,BNT_All!$A$5:$V$205,3*($C$8-1)+3) * 100 -> 95.593 | N36: =VLOOKUP($H36,BNT_All!$A$5:$V$205,3*($C$8-1)+4) * 100 -> 96.035
H37: 12 | I37: =VLOOKUP($H37,TLNGS_All!$A$5:$V$205,3*($C$8-1)+2) * 100 -> 43.59 | J37: =VLOOKUP($H37,TLNGS_All!$A$5:$V$205,3*($C$8-1)+3) * 100 -> 48.524 | K37: =VLOOKUP($H37,TLNGS_All!$A$5:$V$205,3*($C$8-1)+4) * 100 -> 52.514 | L37: =VLOOKUP($H37,BNT_All!$A$5:$V$205,3*($C$8-1)+2) * 100 -> 95.015 | M37: =VLOOKUP($H37,BNT_All!$A$5:$V$205,3*($C$8-1)+3) * 100 -> 95.602 | N37: =VLOOKUP($H37,BNT_All!$A$5:$V$205,3*($C$8-1)+4) * 100 -> 96.013
H38: 13 | I38: =VLOOKUP($H38,TLNGS_All!$A$5:$V$205,3*($C$8-1)+2) * 100 -> 43.833 | J38: =VLOOKUP($H38,TLNGS_All!$A$5:$V$205,3*($C$8-1)+3) * 100 -> 48.707 | K38: =VLOOKUP($H38,TLNGS_All!$A$5:$V$205,3*($C$8-1)+4) * 100 -> 52.951 | L38: =VLOOKUP($H38,BNT_All!$A$5:$V$205,3*($C$8-1)+2) * 100 -> 95.047 | M38: =VLOOKUP($H38,BNT_All!$A$5:$V$205,3*($C$8-1)+3) * 100 -> 95.622 | N38: =VLOOKUP($H38,BNT_All!$A$5:$V$205,3*($C$8-1)+4) * 100 -> 96.056
H39: 14 | I39: =VLOOKUP($H39,TLNGS_All!$A$5:$V$205,3*($C$8-1)+2) * 100 -> 43.494 | J39: =VLOOKUP($H39,TLNGS_All!$A$5:$V$205,3*($C$8-1)+3) * 100 -> 48.775 | K39: =VLOOKUP($H39,TLNGS_All!$A$5:$V$205,3*($C$8-1)+4) * 100 -> 52.675 | L39: =VLOOKUP($H39,BNT_All!$A$5:$V$205,3*($C$8-1)+2) * 100 -> 95.003 | M39: =VLOOKUP($H39,BNT_All!$A$5:$V$205,3*($C$8-1)+3) * 100 -> 95.629 | N39: =VLOOKUP($H39,BNT_All!$A$5:$V$205,3*($C$8-1)+4) * 100 -> 96.029
H40: 15 | I40: =VLOOKUP($H40,TLNGS_All!$A$5:$V$205,3*($C$8-1)+2) * 100 -> 43.412 | J40: =VLOOKUP($H40,TLNGS_All!$A$5:$V$205,3*($C$8-1)+3) * 100 -> 48.547 | K40: =VLOOKUP($H40,TLNGS_All!$A$5:$V$205,3*($C$8-1)+4) * 100 -> 53.111 | L40: =VLOOKUP($H40,BNT_All!$A$5:$V$205,3*($C$8-1)+2) * 100 -> 94.992 | M40: =VLOOKUP($H40,BNT_All!$A$5:$V$205,3*($C$8-1)+3) * 100 -> 95.604 | N40: =VLOOKUP($H40,BNT_All!$A$5:$V$205,3*($C$8-1)+4) * 100 -> 96.071
H41: 16 | I41: =VLOOKUP($H41,TLNGS_All!$A$5:$V$205,3*($C$8-1)+2) * 100 -> 44.357 | J41: =VLOOKUP($H41,TLNGS_All!$A$5:$V$205,3*($C$8-1)+3) * 100 -> 48.893 | K41: =VLOOKUP($H41,TLNGS_All!$A$5:$V$205,3*($C$8-1)+4) * 100 -> 52.681 | L41: =VLOOKUP($H41,BNT_All!$A$5:$V$205,3*($C$8-1)+2) * 100 -> 95.113 | M41: =VLOOKUP($H41,BNT_All!$A$5:$V$205,3*($C$8-1)+3) * 100 -> 95.642 | N41: =VLOOKUP($H41,BNT_All!$A$5:$V$205,3*($C$8-1)+4) * 100 -> 96.029
H42: 17 | I42: =VLOOKUP($H42,TLNGS_All!$A$5:$V$205,3*($C$8-1)+2) * 100 -> 44.174 | J42: =VLOOKUP($H42,TLNGS_All!$A$5:$V$205,3*($C$8-1)+3) * 100 -> 48.964 | K42: =VLOOKUP($H42,TLNGS_All!$A$5:$V$205,3*($C$8-1)+4) * 100 -> 53.151 | L42: =VLOOKUP($H42,BNT_All!$A$5:$V$205,3*($C$8-1)+2) * 100 -> 95.09 | M42: =VLOOKUP($H42,BNT_All!$A$5:$V$205,3*($C$8-1)+3) * 100 -> 95.65 | N42: =VLOOKUP($H42,BNT_All!$A$5:$V$205,3*($C$8-1)+4) * 100 -> 96.075
H43: 18 | I43: =VLOOKUP($H43,TLNGS_All!$A$5:$V$205,3*($C$8-1)+2) * 100 -> 43.345 | J43: =VLOOKUP($H43,TLNGS_All!$A$5:$V$205,3*($C$8-1)+3) * 100 -> 48.715 | K43: =VLOOKUP($H43,TLNGS_All!$A$5:$V$205,3*($C$8-1)+4) * 100 -> 52.557 | L43: =VLOOKUP($H43,BNT_All!$A$5:$V$205,3*($C$8-1)+2) * 100 -> 94.983 | M43: =VLOOKUP($H43,BNT_All!$A$5:$V$205,3*($C$8-1)+3) * 100 -> 95.623 | N43: =VLOOKUP($H43,BNT_All!$A$5:$V$205,3*($C$8-1)+4) * 100 -> 96.017
H44: 19 | I44: =VLOOKUP($H44,TLNGS_All!$A$5:$V$205,3*($C$8-1)+2) * 100 -> 43.276 | J44: =VLOOKUP($H44,TLNGS_All!$A$5:$V$205,3*($C$8-1)+3) * 100 -> 48.715 | K44: =VLOOKUP($H44,TLNGS_All!$A$5:$V$205,3*($C$8-1)+4) * 100 -> 52.777 | L44: =VLOOKUP($H44,BNT_All!$A$5:$V$205,3*($C$8-1)+2) * 100 -> 94.974 | M44: =VLOOKUP($H44,BNT_All!$A$5:$V$205,3*($C$8-1)+3) * 100 -> 95.623 | N44: =VLOOKUP($H44,BNT_All!$A$5:$V$205,3*($C$8-1)+4) * 100 -> 96.039
H45: 20 | I45: =VLOOKUP($H45,TLNGS_All!$A$5:$V$205,3*($C$8-1)+2) * 100 -> 43.048 | J45: =VLOOKUP($H45,TLNGS_All!$A$5:$V$205,3*($C$8-1)+3) * 100 -> 48.635 | K45: =VLOOKUP($H45,TLNGS_All!$A$5:$V$205,3*($C$8-1)+4) * 100 -> 52.984 | L45: =VLOOKUP($H45,BNT_All!$A$5:$V$205,3*($C$8-1)+2) * 100 -> 94.944 | M45: =VLOOKUP($H45,BNT_All!$A$5:$V$205,3*($C$8-1)+3) * 100 -> 95.614 | N45: =VLOOKUP($H45,BNT_All!$A$5:$V$205,3*($C$8-1)+4) * 100 -> 96.059
H46: 21 | I46: =VLOOKUP($H46,TLNGS_All!$A$5:$V$205,3*($C$8-1)+2) * 100 -> 43.905 | J46: =VLOOKUP($H46,TLNGS_All!$A$5:$V$205,3*($C$8-1)+3) * 100 -> 48.669 | K46: =VLOOKUP($H46,TLNGS_All!$A$5:$V$205,3*($C$8-1)+4) * 100 -> 52.851 | L46: =VLOOKUP($H46,BNT_All!$A$5:$V$205,3*($C$8-1)+2) * 100 -> 95.056 | M46: =VLOOKUP($H46,BNT_All!$A$5:$V$205,3*($C$8-1)+3) * 100 -> 95.618 | N46: =VLOOKUP($H46,BNT_All!$A$5:$V$205,3*($C$8-1)+4) * 100 -> 96.046
H47: 22 | I47: =VLOOKUP($H47,TLNGS_All!$A$5:$V$205,3*($C$8-1)+2) * 100 -> 43.878 | J47: =VLOOKUP($H47,TLNGS_All!$A$5:$V$205,3*($C$8-1)+3) * 100 -> 48.853 | K47: =VLOOKUP($H47,TLNGS_All!$A$5:$V$205,3*($C$8-1)+4) * 100 -> 52.967 | L47: =VLOOKUP($H47,BNT_All!$A$5:$V$205,3*($C$8-1)+2) * 100 -> 95.052 | M47: =VLOOKUP($H47,BNT_All!$A$5:$V$205,3*($C$8-1)+3) * 100 -> 95.638 | N47: =VLOOKUP($H47,BNT_All!$A$5:$V$205,3*($C$8-1)+4) * 100 -> 96.057
H48: 23 | I48: =VLOOKUP($H48,TLNGS_All!$A$5:$V$205,3*($C$8-1)+2) * 100 -> 43.404 | J48: =VLOOKUP($H48,TLNGS_All!$A$5:$V$205,3*($C$8-1)+3) * 100 -> 48.596 | K48: =VLOOKUP($H48,TLNGS_All!$A$5:$V$205,3*($C$8-1)+4) * 100 -> 52.788 | L48: =VLOOKUP($H48,BNT_All!$A$5:$V$205,3*($C$8-1)+2) * 100 -> 94.991 | M48: =VLOOKUP($H48,BNT_All!$A$5:$V$205,3*($C$8-1)+3) * 100 -> 95.61 | N48: =VLOOKUP($H48,BNT_All!$A$5:$V$205,3*($C$8-1)+4) * 100 -> 96.04
H49: 24 | I49: =VLOOKUP($H49,TLNGS_All!$A$5:$V$205,3*($C$8-1)+2) * 100 -> 43.136 | J49: =VLOOKUP($H49,TLNGS_All!$A$5:$V$205,3*($C$8-1)+3) * 100 -> 48.601 | K49: =VLOOKUP($H49,TLNGS_All!$A$5:$V$205,3*($C$8-1)+4) * 100 -> 52.984 | L49: =VLOOKUP($H49,BNT_All!$A$5:$V$205,3*($C$8-1)+2) * 100 -> 94.956 | M49: =VLOOKUP($H49,BNT_All!$A$5:$V$205,3*($C$8-1)+3) * 100 -> 95.61 | N49: =VLOOKUP($H49,BNT_All!$A$5:$V$205,3*($C$8-1)+4) * 100 -> 96.059
H50: 25 | I50: =VLOOKUP($H50,TLNGS_All!$A$5:$V$205,3*($C$8-1)+2) * 100 -> 43.327 | J50: =VLOOKUP($H50,TLNGS_All!$A$5:$V$205,3*($C$8-1)+3) * 100 -> 48.65 | K50: =VLOOKUP($H50,TLNGS_All!$A$5:$V$205,3*($C$8-1)+4) * 100 -> 52.863 | L50: =VLOOKUP($H50,BNT_All!$A$5:$V$205,3*($C$8-1)+2) * 100 -> 94.981 | M50: =VLOOKUP($H50,BNT_All!$A$5:$V$205,3*($C$8-1)+3) * 100 -> 95.616 | N50: =VLOOKUP($H50,BNT_All!$A$5:$V$205,3*($C$8-1)+4) * 100 -> 96.047
H51: 26 | I51: =VLOOKUP($H51,TLNGS_All!$A$5:$V$205,3*($C$8-1)+2) * 100 -> 43.357 | J51: =VLOOKUP($H51,TLNGS_All!$A$5:$V$205,3*($C$8-1)+3) * 100 -> 48.637 | K51: =VLOOKUP($H51,TLNGS_All!$A$5:$V$205,3*($C$8-1)+4) * 100 -> 52.741 | L51: =VLOOKUP($H51,BNT_All!$A$5:$V$205,3*($C$8-1)+2) * 100 -> 94.985 | M51: =VLOOKUP($H51,BNT_All!$A$5:$V$205,3*($C$8-1)+3) * 100 -> 95.614 | N51: =VLOOKUP($H51,BNT_All!$A$5:$V$205,3*($C$8-1)+4) * 100 -> 96.035
H52: 27 | I52: =VLOOKUP($H52,TLNGS_All!$A$5:$V$205,3*($C$8-1)+2) * 100 -> 43.602 | J52: =VLOOKUP($H52,TLNGS_All!$A$5:$V$205,3*($C$8-1)+3) * 100 -> 48.81 | K52: =VLOOKUP($H52,TLNGS_All!$A$5:$V$205,3*($C$8-1)+4) * 100 -> 52.777 | L52: =VLOOKUP($H52,BNT_All!$A$5:$V$205,3*($C$8-1)+2) * 100 -> 95.017 | M52: =VLOOKUP($H52,BNT_All!$A$5:$V$205,3*($C$8-1)+3) * 100 -> 95.633 | N52: =VLOOKUP($H52,BNT_All!$A$5:$V$205,3*($C$8-1)+4) * 100 -> 96.039
H53: 28 | I53: =VLOOKUP($H53,TLNGS_All!$A$5:$V$205,3*($C$8-1)+2) * 100 -> 42.985 | J53: =VLOOKUP($H53,TLNGS_All!$A$5:$V$205,3*($C$8-1)+3) * 100 -> 48.857 | K53: =VLOOKUP($H53,TLNGS_All!$A$5:$V$205,3*($C$8-1)+4) * 100 -> 52.892 | L53: =VLOOKUP($H53,BNT_All!$A$5:$V$205,3*($C$8-1)+2) * 100 -> 94.936 | M53: =VLOOKUP($H53,BNT_All!$A$5:$V$205,3*($C$8-1)+3) * 100 -> 95.638 | N53: =VLOOKUP($H53,BNT_All!$A$5:$V$205,3*($C$8-1)+4) * 100 -> 96.05
H54: 29 | I54: =VLOOKUP($H54,TLNGS_All!$A$5:$V$205,3*($C$8-1)+2) * 100 -> 43.427 | J54: =VLOOKUP($H54,TLNGS_All!$A$5:$V$205,3*($C$8-1)+3) * 100 -> 48.896 | K54: =VLOOKUP($H54,TLNGS_All!$A$5:$V$205,3*($C$8-1)+4) * 100 -> 52.82 | L54: =VLOOKUP($H54,BNT_All!$A$5:$V$205,3*($C$8-1)+2) * 100 -> 94.994 | M54: =VLOOKUP($H54,BNT_All!$A$5:$V$205,3*($C$8-1)+3) * 100 -> 95.642 | N54: =VLOOKUP($H54,BNT_All!$A$5:$V$205,3*($C$8-1)+4) * 100 -> 96.043
H55: 30 | I55: =VLOOKUP($H55,TLNGS_All!$A$5:$V$205,3*($C$8-1)+2) * 100 -> 43.046 | J55: =VLOOKUP($H55,TLNGS_All!$A$5:$V$205,3*($C$8-1)+3) * 100 -> 48.609 | K55: =VLOOKUP($H55,TLNGS_All!$A$5:$V$205,3*($C$8-1)+4) * 100 -> 52.83 | L55: =VLOOKUP($H55,BNT_All!$A$5:$V$205,3*($C$8-1)+2) * 100 -> 94.944 | M55: =VLOOKUP($H55,BNT_All!$A$5:$V$205,3*($C$8-1)+3) * 100 -> 95.611 | N55: =VLOOKUP($H55,BNT_All!$A$5:$V$205,3*($C$8-1)+4) * 100 -> 96.044
H56: 31 | I56: =VLOOKUP($H56,TLNGS_All!$A$5:$V$205,3*($C$8-1)+2) * 100 -> 43.987 | J56: =VLOOKUP($H56,TLNGS_All!$A$5:$V$205,3*($C$8-1)+3) * 100 -> 48.74 | K56: =VLOOKUP($H56,TLNGS_All!$A$5:$V$205,3*($C$8-1)+4) * 100 -> 52.568 | L56: =VLOOKUP($H56,BNT_All!$A$5:$V$205,3*($C$8-1)+2) * 100 -> 95.066 | M56: =VLOOKUP($H56,BNT_All!$A$5:$V$205,3*($C$8-1)+3) * 100 -> 95.625 | N56: =VLOOKUP($H56,BNT_All!$A$5:$V$205,3*($C$8-1)+4) * 100 -> 96.018
H57: 32 | I57: =VLOOKUP($H57,TLNGS_All!$A$5:$V$205,3*($C$8-1)+2) * 100 -> 43.411 | J57: =VLOOKUP($H57,TLNGS_All!$A$5:$V$205,3*($C$8-1)+3) * 100 -> 48.284 | K57: =VLOOKUP($H57,TLNGS_All!$A$5:$V$205,3*($C$8-1)+4) * 100 -> 52.858 | L57: =VLOOKUP($H57,BNT_All!$A$5:$V$205,3*($C$8-1)+2) * 100 -> 94.992 | M57: =VLOOKUP($H57,BNT_All!$A$5:$V$205,3*($C$8-1)+3) * 100 -> 95.576 | N57: =VLOOKUP($H57,BNT_All!$A$5:$V$205,3*($C$8-1)+4) * 100 -> 96.047
H58: 33 | I58: =VLOOKUP($H58,TLNGS_All!$A$5:$V$205,3*($C$8-1)+2) * 100 -> 43.364 | J58: =VLOOKUP($H58,TLNGS_All!$A$5:$V$205,3*($C$8-1)+3) * 100 -> 48.238 | K58: =VLOOKUP($H58,TLNGS_All!$A$5:$V$205,3*($C$8-1)+4) * 100 -> 52.71 | L58: =VLOOKUP($H58,BNT_All!$A$5:$V$205,3*($C$8-1)+2) * 100 -> 94.986 | M58: =VLOOKUP($H58,BNT_All!$A$5:$V$205,3*($C$8-1)+3) * 100 -> 95.571 | N58: =VLOOKUP($H58,BNT_All!$A$5:$V$205,3*($C$8-1)+4) * 100 -> 96.032
H59: 34 | I59: =VLOOKUP($H59,TLNGS_All!$A$5:$V$205,3*($C$8-1)+2) * 100 -> 43.33 | J59: =VLOOKUP($H59,TLNGS_All!$A$5:$V$205,3*($C$8-1)+3) * 100 -> 48.555 | K59: =VLOOKUP($H59,TLNGS_All!$A$5:$V$205,3*($C$8-1)+4) * 100 -> 52.616 | L59: =VLOOKUP($H59,BNT_All!$A$5:$V$205,3*($C$8-1)+2) * 100 -> 94.981 | M59: =VLOOKUP($H59,BNT_All!$A$5:$V$205,3*($C$8-1)+3) * 100 -> 95.605 | N59: =VLOOKUP($H59,BNT_All!$A$5:$V$205,3*($C$8-1)+4) * 100 -> 96.023
H60: 35 | I60: =VLOOKUP($H60,TLNGS_All!$A$5:$V$205,3*($C$8-1)+2) * 100 -> 43.482 | J60: =VLOOKUP($H60,TLNGS_All!$A$5:$V$205,3*($C$8-1)+3) * 100 -> 48.748 | K60: =VLOOKUP($H60,TLNGS_All!$A$5:$V$205,3*($C$8-1)+4) * 100 -> 52.805 | L60: =VLOOKUP($H60,BNT_All!$A$5:$V$205,3*($C$8-1)+2) * 100 -> 95.001 | M60: =VLOOKUP($H60,BNT_All!$A$5:$V$205,3*($C$8-1)+3) * 100 -> 95.626 | N60: =VLOOKUP($H60,BNT_All!$A$5:$V$205,3*($C$8-1)+4) * 100 -> 96.041
H61: 36 | I61: =VLOOKUP($H61,TLNGS_All!$A$5:$V$205,3*($C$8-1)+2) * 100 -> 43.678 | J61: =VLOOKUP($H61,TLNGS_All!$A$5:$V$205,3*($C$8-1)+3) * 100 -> 48.672 | K61: =VLOOKUP($H61,TLNGS_All!$A$5:$V$205,3*($C$8-1)+4) * 100 -> 53.173 | L61: =VLOOKUP($H61,BNT_All!$A$5:$V$205,3*($C$8-1)+2) * 100 -> 95.027 | M61: =VLOOKUP($H61,BNT_All!$A$5:$V$205,3*($C$8-1)+3) * 100 -> 95.618 | N61: =VLOOKUP($H61,BNT_All!$A$5:$V$205,3*($C$8-1)+4) * 100 -> 96.077
H62: 37 | I62: =VLOOKUP($H62,TLNGS_All!$A$5:$V$205,3*($C$8-1)+2) * 100 -> 44.03 | J62: =VLOOKUP($H62,TLNGS_All!$A$5:$V$205,3*($C$8-1)+3) * 100 -> 48.575 | K62: =VLOOKUP($H62,TLNGS_All!$A$5:$V$205,3*($C$8-1)+4) * 100 -> 53.005 | L62: =VLOOKUP($H62,BNT_All!$A$5:$V$205,3*($C$8-1)+2) * 100 -> 95.072 | M62: =VLOOKUP($H62,BNT_All!$A$5:$V$205,3*($C$8-1)+3) * 100 -> 95.608 | N62: =VLOOKUP($H62,BNT_All!$A$5:$V$205,3*($C$8-1)+4) * 100 -> 96.061
H63: 38 | I63: =VLOOKUP($H63,TLNGS_All!$A$5:$V$205,3*($C$8-1)+2) * 100 -> 44.064 | J63: =VLOOKUP($H63,TLNGS_All!$A$5:$V$205,3*($C$8-1)+3) * 100 -> 48.525 | K63: =VLOOKUP($H63,TLNGS_All!$A$5:$V$205,3*($C$8-1)+4) * 100 -> 52.833 | L63: =VLOOKUP($H63,BNT_All!$A$5:$V$205,3*($C$8-1)+2) * 100 -> 95.076 | M63: =VLOOKUP($H63,BNT_All!$A$5:$V$205,3*($C$8-1)+3) * 100 -> 95.602 | N63: =VLOOKUP($H63,BNT_All!$A$5:$V$205,3*($C$8-1)+4) * 100 -> 96.044
H64: 39 | I64: =VLOOKUP($H64,TLNGS_All!$A$5:$V$205,3*($C$8-1)+2) * 100 -> 42.672 | J64: =VLOOKUP($H64,TLNGS_All!$A$5:$V$205,3*($C$8-1)+3) * 100 -> 48.562 | K64: =VLOOKUP($H64,TLNGS_All!$A$5:$V$205,3*($C$8-1)+4) * 100 -> 53.083 | L64: =VLOOKUP($H64,BNT_All!$A$5:$V$205,3*($C$8-1)+2) * 100 -> 94.894 | M64: =VLOOKUP($H64,BNT_All!$A$5:$V$205,3*($C$8-1)+3) * 100 -> 95.606 | N64: =VLOOKUP($H64,BNT_All!$A$5:$V$205,3*($C$8-1)+4) * 100 -> 96.068
H65: 40 | I65: =VLOOKUP($H65,TLNGS_All!$A$5:$V$205,3*($C$8-1)+2) * 100 -> 42.763 | J65: =VLOOKUP($H65,TLNGS_All!$A$5:$V$205,3*($C$8-1)+3) * 100 -> 48.763 | K65: =VLOOKUP($H65,TLNGS_All!$A$5:$V$205,3*($C$8-1)+4) * 100 -> 52.686 | L65: =VLOOKUP($H65,BNT_All!$A$5:$V$205,3*($C$8-1)+2) * 100 -> 94.907 | M65: =VLOOKUP($H65,BNT_All!$A$5:$V$205,3*($C$8-1)+3) * 100 -> 95.628 | N65: =VLOOKUP($H65,BNT_All!$A$5:$V$205,3*($C$8-1)+4) * 100 -> 96.03
H66: 41 | I66: =VLOOKUP($H66,TLNGS_All!$A$5:$V$205,3*($C$8-1)+2) * 100 -> 43.439 | J66: =VLOOKUP($H66,TLNGS_All!$A$5:$V$205,3*($C$8-1)+3) * 100 -> 48.986 | K66: =VLOOKUP($H66,TLNGS_All!$A$5:$V$205,3*($C$8-1)+4) * 100 -> 53.192 | L66: =VLOOKUP($H66,BNT_All!$A$5:$V$205,3*($C$8-1)+2) * 100 -> 94.996 | M66: =VLOOKUP($H66,BNT_All!$A$5:$V$205,3*($C$8-1)+3) * 100 -> 95.652 | N66: =VLOOKUP($H66,BNT_All!$A$5:$V$205,3*($C$8-1)+4) * 100 -> 96.079
H67: 42 | I67: =VLOOKUP($H67,TLNGS_All!$A$5:$V$205,3*($C$8-1)+2) * 100 -> 43.412 | J67: =VLOOKUP($H67,TLNGS_All!$A$5:$V$205,3*($C$8-1)+3) * 100 -> 48.66 | K67: =VLOOKUP($H67,TLNGS_All!$A$5:$V$205,3*($C$8-1)+4) * 100 -> 53.078 | L67: =VLOOKUP($H67,BNT_All!$A$5:$V$205,3*($C$8-1)+2) * 100 -> 94.992 | M67: =VLOOKUP($H67,BNT_All!$A$5:$V$205,3*($C$8-1)+3) * 100 -> 95.617 | N67: =VLOOKUP($H67,BNT_All!$A$5:$V$205,3*($C$8-1)+4) * 100 -> 96.068
H68: 43 | I68: =VLOOKUP($H68,TLNGS_All!$A$5:$V$205,3*($C$8-1)+2) * 100 -> 43.458 | J68: =VLOOKUP($H68,TLNGS_All!$A$5:$V$205,3*($C$8-1)+3) * 100 -> 48.845 | K68: =VLOOKUP($H68,TLNGS_All!$A$5:$V$205,3*($C$8-1)+4) * 100 -> 52.65 | L68: =VLOOKUP($H68,BNT_All!$A$5:$V$205,3*($C$8-1)+2) * 100 -> 94.998 | M68: =VLOOKUP($H68,BNT_All!$A$5:$V$205,3*($C$8-1)+3) * 100 -> 95.637 | N68: =VLOOKUP($H68,BNT_All!$A$5:$V$205,3*($C$8-1)+4) * 100 -> 96.026
H69: 44 | I69: =VLOOKUP($H69,TLNGS_All!$A$5:$V$205,3*($C$8-1)+2) * 100 -> 43.872 | J69: =VLOOKUP($H69,TLNGS_All!$A$5:$V$205,3*($C$8-1)+3) * 100 -> 48.863 | K69: =VLOOKUP($H69,TLNGS_All!$A$5:$V$205,3*($C$8-1)+4) * 100 -> 52.769 | L69: =VLOOKUP($H69,BNT_All!$A$5:$V$205,3*($C$8-1)+2) * 100 -> 95.052 | M69: =VLOOKUP($H69,BNT_All!$A$5:$V$205,3*($C$8-1)+3) * 100 -> 95.639 | N69: =VLOOKUP($H69,BNT_All!$A$5:$V$205,3*($C$8-1)+4) * 100 -> 96.038
H70: 45 | I70: =VLOOKUP($H70,TLNGS_All!$A$5:$V$205,3*($C$8-1)+2) * 100 -> 43.974 | J70: =VLOOKUP($H70,TLNGS_All!$A$5:$V$205,3*($C$8-1)+3) * 100 -> 48.681 | K70: =VLOOKUP($H70,TLNGS_All!$A$5:$V$205,3*($C$8-1)+4) * 100 -> 52.505 | L70: =VLOOKUP($H70,BNT_All!$A$5:$V$205,3*($C$8-1)+2) * 100 -> 95.065 | M70: =VLOOKUP($H70,BNT_All!$A$5:$V$205,3*($C$8-1)+3) * 100 -> 95.619 | N70: =VLOOKUP($H70,BNT_All!$A$5:$V$205,3*($C$8-1)+4) * 100 -> 96.012
H71: 46 | I71: =VLOOKUP($H71,TLNGS_All!$A$5:$V$205,3*($C$8-1)+2) * 100 -> 44.066 | J71: =VLOOKUP($H71,TLNGS_All!$A$5:$V$205,3*($C$8-1)+3) * 100 -> 48.758 | K71: =VLOOKUP($H71,TLNGS_All!$A$5:$V$205,3*($C$8-1)+4) * 100 -> 52.888 | L71: =VLOOKUP($H71,BNT_All!$A$5:$V$205,3*($C$8-1)+2) * 100 -> 95.076 | M71: =VLOOKUP($H71,BNT_All!$A$5:$V$205,3*($C$8-1)+3) * 100 -> 95.627 | N71: =VLOOKUP($H71,BNT_All!$A$5:$V$205,3*($C$8-1)+4) * 100 -> 96.05
H72: 47 | I72: =VLOOKUP($H72,TLNGS_All!$A$5:$V$205,3*($C$8-1)+2) * 100 -> 44.003 | J72: =VLOOKUP($H72,TLNGS_All!$A$5:$V$205,3*($C$8-1)+3) * 100 -> 48.593 | K72: =VLOOKUP($H72,TLNGS_All!$A$5:$V$205,3*($C$8-1)+4) * 100 -> 53.3 | L72: =VLOOKUP($H72,BNT_All!$A$5:$V$205,3*($C$8-1)+2) * 100 -> 95.068 | M72: =VLOOKUP($H72,BNT_All!$A$5:$V$205,3*($C$8-1)+3) * 100 -> 95.609 | N72: =VLOOKUP($H72,BNT_All!$A$5:$V$205,3*($C$8-1)+4) * 100 -> 96.089
H73: 48 | I73: =VLOOKUP($H73,TLNGS_All!$A$5:$V$205,3*($C$8-1)+2) * 100 -> 43.524 | J73: =VLOOKUP($H73,TLNGS_All!$A$5:$V$205,3*($C$8-1)+3) * 100 -> 48.72 | K73: =VLOOKUP($H73,TLNGS_All!$A$5:$V$205,3*($C$8-1)+4) * 100 -> 53.017 | L73: =VLOOKUP($H73,BNT_All!$A$5:$V$205,3*($C$8-1)+2) * 100 -> 95.007 | M73: =VLOOKUP($H73,BNT_All!$A$5:$V$205,3*($C$8-1)+3) * 100 -> 95.623 | N73: =VLOOKUP($H73,BNT_All!$A$5:$V$205,3*($C$8-1)+4) * 100 -> 96.062
H74: 49 | I74: =VLOOKUP($H74,TLNGS_All!$A$5:$V$205,3*($C$8-1)+2) * 100 -> 43.589 | J74: =VLOOKUP($H74,TLNGS_All!$A$5:$V$205,3*($C$8-1)+3) * 100 -> 48.761 | K74: =VLOOKUP($H74,TLNGS_All!$A$5:$V$205,3*($C$8-1)+4) * 100 -> 53.253 | L74: =VLOOKUP($H74,BNT_All!$A$5:$V$205,3*($C$8-1)+2) * 100 -> 95.015 | M74: =VLOOKUP($H74,BNT_All!$A$5:$V$205,3*($C$8-1)+3) * 100 -> 95.628 | N74: =VLOOKUP($H74,BNT_All!$A$5:$V$205,3*($C$8-1)+4) * 100 -> 96.084
H75: 50 | I75: =VLOOKUP($H75,TLNGS_All!$A$5:$V$205,3*($C$8-1)+2) * 100 -> 43.515 | J75: =VLOOKUP($H75,TLNGS_All!$A$5:$V$205,3*($C$8-1)+3) * 100 -> 48.691 | K75: =VLOOKUP($H75,TLNGS_All!$A$5:$V$205,3*($C$8-1)+4) * 100 -> 53.038 | L75: =VLOOKUP($H75,BNT_All!$A$5:$V$205,3*($C$8-1)+2) * 100 -> 95.006 | M75: =VLOOKUP($H75,BNT_All!$A$5:$V$205,3*($C$8-1)+3) * 100 -> 95.62 | N75: =VLOOKUP($H75,BNT_All!$A$5:$V$205,3*($C$8-1)+4) * 100 -> 96.064
H76: 51 | I76: =VLOOKUP($H76,TLNGS_All!$A$5:$V$205,3*($C$8-1)+2) * 100 -> 43.197 | J76: =VLOOKUP($H76,TLNGS_All!$A$5:$V$205,3*($C$8-1)+3) * 100 -> 48.653 | K76: =VLOOKUP($H76,TLNGS_All!$A$5:$V$205,3*($C$8-1)+4) * 100 -> 52.985 | L76: =VLOOKUP($H76,BNT_All!$A$5:$V$205,3*($C$8-1)+2) * 100 -> 94.964 | M76: =VLOOKUP($H76,BNT_All!$A$5:$V$205,3*($C$8-1)+3) * 100 -> 95.616 | N76: =VLOOKUP($H76,BNT_All!$A$5:$V$205,3*($C$8-1)+4) * 100 -> 96.059
H77: 52 | I77: =VLOOKUP($H77,TLNGS_All!$A$5:$V$205,3*($C$8-1)+2) * 100 -> 43.511 | J77: =VLOOKUP($H77,TLNGS_All!$A$5:$V$205,3*($C$8-1)+3) * 100 -> 48.649 | K77: =VLOOKUP($H77,TLNGS_All!$A$5:$V$205,3*($C$8-1)+4) * 100 -> 52.488 | L77: =VLOOKUP($H77,BNT_All!$A$5:$V$205,3*($C$8-1)+2) * 100 -> 95.005 | M77: =VLOOKUP($H77,BNT_All!$A$5:$V$205,3*($C$8-1)+3) * 100 -> 95.616 | N77: =VLOOKUP($H77,BNT_All!$A$5:$V$205,3*($C$8-1)+4) * 100 -> 96.011
H78: 53 | I78: =VLOOKUP($H78,TLNGS_All!$A$5:$V$205,3*($C$8-1)+2) * 100 -> 43.976 | J78: =VLOOKUP($H78,TLNGS_All!$A$5:$V$205,3*($C$8-1)+3) * 100 -> 48.725 | K78: =VLOOKUP($H78,TLNGS_All!$A$5:$V$205,3*($C$8-1)+4) * 100 -> 52.733 | L78: =VLOOKUP($H78,BNT_All!$A$5:$V$205,3*($C$8-1)+2) * 100 -> 95.065 | M78: =VLOOKUP($H78,BNT_All!$A$5:$V$205,3*($C$8-1)+3) * 100 -> 95.624 | N78: =VLOOKUP($H78,BNT_All!$A$5:$V$205,3*($C$8-1)+4) * 100 -> 96.035
H79: 54 | I79: =VLOOKUP($H79,TLNGS_All!$A$5:$V$205,3*($C$8-1)+2) * 100 -> 43.855 | J79: =VLOOKUP($H79,TLNGS_All!$A$5:$V$205,3*($C$8-1)+3) * 100 -> 48.828 | K79: =VLOOKUP($H79,TLNGS_All!$A$5:$V$205,3*($C$8-1)+4) * 100 -> 52.888 | L79: =VLOOKUP($H79,BNT_All!$A$5:$V$205,3*($C$8-1)+2) * 100 -> 95.049 | M79: =VLOOKUP($H79,BNT_All!$A$5:$V$205,3*($C$8-1)+3) * 100 -> 95.635 | N79: =VLOOKUP($H79,BNT_All!$A$5:$V$205,3*($C$8-1)+4) * 100 -> 96.049
H80: 55 | I80: =VLOOKUP($H80,TLNGS_All!$A$5:$V$205,3*($C$8-1)+2) * 100 -> 42.913 | J80: =VLOOKUP($H80,TLNGS_All!$A$5:$V$205,3*($C$8-1)+3) * 100 -> 48.369 | K80: =VLOOKUP($H80,TLNGS_All!$A$5:$V$205,3*($C$8-1)+4) * 100 -> 52.707 | L80: =VLOOKUP($H80,BNT_All!$A$5:$V$205,3*($C$8-1)+2) * 100 -> 94.926 | M80: =VLOOKUP($H80,BNT_All!$A$5:$V$205,3*($C$8-1)+3) * 100 -> 95.585 | N80: =VLOOKUP($H80,BNT_All!$A$5:$V$205,3*($C$8-1)+4) * 100 -> 96.032
H81: 56 | I81: =VLOOKUP($H81,TLNGS_All!$A$5:$V$205,3*($C$8-1)+2) * 100 -> 42.893 | J81: =VLOOKUP($H81,TLNGS_All!$A$5:$V$205,3*($C$8-1)+3) * 100 -> 48.555 | K81: =VLOOKUP($H81,TLNGS_All!$A$5:$V$205,3*($C$8-1)+4) * 100 -> 52.56 | L81: =VLOOKUP($H81,BNT_All!$A$5:$V$205,3*($C$8-1)+2) * 100 -> 94.924 | M81: =VLOOKUP($H81,BNT_All!$A$5:$V$205,3*($C$8-1)+3) * 100 -> 95.605 | N81: =VLOOKUP($H81,BNT_All!$A$5:$V$205,3*($C$8-1)+4) * 100 -> 96.018
H82: 57 | I82: =VLOOKUP($H82,TLNGS_All!$A$5:$V$205,3*($C$8-1)+2) * 100 -> 43.218 | J82: =VLOOKUP($H82,TLNGS_All!$A$5:$V$205,3*($C$8-1)+3) * 100 -> 48.699 | K82: =VLOOKUP($H82,TLNGS_All!$A$5:$V$205,3*($C$8-1)+4) * 100 -> 53.005 | L82: =VLOOKUP($H82,BNT_All!$A$5:$V$205,3*($C$8-1)+2) * 100 -> 94.967 | M82: =VLOOKUP($H82,BNT_All!$A$5:$V$205,3*($C$8-1)+3) * 100 -> 95.621 | N82: =VLOOKUP($H82,BNT_All!$A$5:$V$205,3*($C$8-1)+4) * 100 -> 96.061
H83: 58 | I83: =VLOOKUP($H83,TLNGS_All!$A$5:$V$205,3*($C$8-1)+2) * 100 -> 42.963 | J83: =VLOOKUP($H83,TLNGS_All!$A$5:$V$205,3*($C$8-1)+3) * 100 -> 48.934 | K83: =VLOOKUP($H83,TLNGS_All!$A$5:$V$205,3*($C$8-1)+4) * 100 -> 53.049 | L83: =VLOOKUP($H83,BNT_All!$A$5:$V$205,3*($C$8-1)+2) * 100 -> 94.933 | M83: =VLOOKUP($H83,BNT_All!$A$5:$V$205,3*($C$8-1)+3) * 100 -> 95.646 | N83: =VLOOKUP($H83,BNT_All!$A$5:$V$205,3*($C$8-1)+4) * 100 -> 96.065
H84: 59 | I84: =VLOOKUP($H84,TLNGS_All!$A$5:$V$205,3*($C$8-1)+2) * 100 -> 43 | J84: =VLOOKUP($H84,TLNGS_All!$A$5:$V$205,3*($C$8-1)+3) * 100 -> 48.762 | K84: =VLOOKUP($H84,TLNGS_All!$A$5:$V$205,3*($C$8-1)+4) * 100 -> 52.869 | L84: =VLOOKUP($H84,BNT_All!$A$5:$V$205,3*($C$8-1)+2) * 100 -> 94.938 | M84: =VLOOKUP($H84,BNT_All!$A$5:$V$205,3*($C$8-1)+3) * 100 -> 95.628 | N84: =VLOOKUP($H84,BNT_All!$A$5:$V$205,3*($C$8-1)+4) * 100 -> 96.048
H85: 60 | I85: =VLOOKUP($H85,TLNGS_All!$A$5:$V$205,3*($C$8-1)+2) * 100 -> 43.31 | J85: =VLOOKUP($H85,TLNGS_All!$A$5:$V$205,3*($C$8-1)+3) * 100 -> 48.682 | K85: =VLOOKUP($H85,TLNGS_All!$A$5:$V$205,3*($C$8-1)+4) * 100 -> 52.676 | L85: =VLOOKUP($H85,BNT_All!$A$5:$V$205,3*($C$8-1)+2) * 100 -> 94.979 | M85: =VLOOKUP($H85,BNT_All!$A$5:$V$205,3*($C$8-1)+3) * 100 -> 95.619 | N85: =VLOOKUP($H85,BNT_All!$A$5:$V$205,3*($C$8-1)+4) * 100 -> 96.029
H86: 61 | I86: =VLOOKUP($H86,TLNGS_All!$A$5:$V$205,3*($C$8-1)+2) * 100 -> 43.417 | J86: =VLOOKUP($H86,TLNGS_All!$A$5:$V$205,3*($C$8-1)+3) * 100 -> 48.771 | K86: =VLOOKUP($H86,TLNGS_All!$A$5:$V$205,3*($C$8-1)+4) * 100 -> 52.661 | L86: =VLOOKUP($H86,BNT_All!$A$5:$V$205,3*($C$8-1)+2) * 100 -> 94.993 | M86: =VLOOKUP($H86,BNT_All!$A$5:$V$205,3*($C$8-1)+3) * 100 -> 95.629 | N86: =VLOOKUP($H86,BNT_All!$A$5:$V$205,3*($C$8-1)+4) * 100 -> 96.028
H87: 62 | I87: =VLOOKUP($H87,TLNGS_All!$A$5:$V$205,3*($C$8-1)+2) * 100 -> 44.03 | J87: =VLOOKUP($H87,TLNGS_All!$A$5:$V$205,3*($C$8-1)+3) * 100 -> 48.771 | K87: =VLOOKUP($H87,TLNGS_All!$A$5:$V$205,3*($C$8-1)+4) * 100 -> 52.904 | L87: =VLOOKUP($H87,BNT_All!$A$5:$V$205,3*($C$8-1)+2) * 100 -> 95.072 | M87: =VLOOKUP($H87,BNT_All!$A$5:$V$205,3*($C$8-1)+3) * 100 -> 95.629 | N87: =VLOOKUP($H87,BNT_All!$A$5:$V$205,3*($C$8-1)+4) * 100 -> 96.051
H88: 63 | I88: =VLOOKUP($H88,TLNGS_All!$A$5:$V$205,3*($C$8-1)+2) * 100 -> 43.587 | J88: =VLOOKUP($H88,TLNGS_All!$A$5:$V$205,3*($C$8-1)+3) * 100 -> 48.902 | K88: =VLOOKUP($H88,TLNGS_All!$A$5:$V$205,3*($C$8-1)+4) * 100 -> 52.814 | L88: =VLOOKUP($H88,BNT_All!$A$5:$V$205,3*($C$8-1)+2) * 100 -> 95.015 | M88: =VLOOKUP($H88,BNT_All!$A$5:$V$205,3*($C$8-1)+3) * 100 -> 95.643 | N88: =VLOOKUP($H88,BNT_All!$A$5:$V$205,3*($C$8-1)+4) * 100 -> 96.042
H89: 64 | I89: =VLOOKUP($H89,TLNGS_All!$A$5:$V$205,3*($C$8-1)+2) * 100 -> 43.814 | J89: =VLOOKUP($H89,TLNGS_All!$A$5:$V$205,3*($C$8-1)+3) * 100 -> 48.872 | K89: =VLOOKUP($H89,TLNGS_All!$A$5:$V$205,3*($C$8-1)+4) * 100 -> 53.057 | L89: =VLOOKUP($H89,BNT_All!$A$5:$V$205,3*($C$8-1)+2) * 100 -> 95.044 | M89: =VLOOKUP($H89,BNT_All!$A$5:$V$205,3*($C$8-1)+3) * 100 -> 95.64 | N89: =VLOOKUP($H89,BNT_All!$A$5:$V$205,3*($C$8-1)+4) * 100 -> 96.066
H90: 65 | I90: =VLOOKUP($H90,TLNGS_All!$A$5:$V$205,3*($C$8-1)+2) * 100 -> 44.308 | J90: =VLOOKUP($H90,TLNGS_All!$A$5:$V$205,3*($C$8-1)+3) * 100 -> 48.59 | K90: =VLOOKUP($H90,TLNGS_All!$A$5:$V$205,3*($C$8-1)+4) * 100 -> 53.077 | L90: =VLOOKUP($H90,BNT_All!$A$5:$V$205,3*($C$8-1)+2) * 100 -> 95.107 | M90: =VLOOKUP($H90,BNT_All!$A$5:$V$205,3*($C$8-1)+3) * 100 -> 95.609 | N90: =VLOOKUP($H90,BNT_All!$A$5:$V$205,3*($C$8-1)+4) * 100 -> 96.068
H91: 66 | I91: =VLOOKUP($H91,TLNGS_All!$A$5:$V$205,3*($C$8-1)+2) * 100 -> 43.624 | J91: =VLOOKUP($H91,TLNGS_All!$A$5:$V$205,3*($C$8-1)+3) * 100 -> 48.542 | K91: =VLOOKUP($H91,TLNGS_All!$A$5:$V$205,3*($C$8-1)+4) * 100 -> 52.947 | L91: =VLOOKUP($H91,BNT_All!$A$5:$V$205,3*($C$8-1)+2) * 100 -> 95.02 | M91: =VLOOKUP($H91,BNT_All!$A$5:$V$205,3*($C$8-1)+3) * 100 -> 95.604 | N91: =VLOOKUP($H91,BNT_All!$A$5:$V$205,3*($C$8-1)+4) * 100 -> 96.055
H92: 67 | I92: =VLOOKUP($H92,TLNGS_All!$A$5:$V$205,3*($C$8-1)+2) * 100 -> 43.183 | J92: =VLOOKUP($H92,TLNGS_All!$A$5:$V$205,3*($C$8-1)+3) * 100 -> 48.762 | K92: =VLOOKUP($H92,TLNGS_All!$A$5:$V$205,3*($C$8-1)+4) * 100 -> 52.772 | L92: =VLOOKUP($H92,BNT_All!$A$5:$V$205,3*($C$8-1)+2) * 100 -> 94.962 | M92: =VLOOKUP($H92,BNT_All!$A$5:$V$205,3*($C$8-1)+3) * 100 -> 95.628 | N92: =VLOOKUP($H92,BNT_All!$A$5:$V$205,3*($C$8-1)+4) * 100 -> 96.038
H93: 68 | I93: =VLOOKUP($H93,TLNGS_All!$A$5:$V$205,3*($C$8-1)+2) * 100 -> 43.501 | J93: =VLOOKUP($H93,TLNGS_All!$A$5:$V$205,3*($C$8-1)+3) * 100 -> 48.884 | K93: =VLOOKUP($H93,TLNGS_All!$A$5:$V$205,3*($C$8-1)+4) * 100 -> 52.821 | L93: =VLOOKUP($H93,BNT_All!$A$5:$V$205,3*($C$8-1)+2) * 100 -> 95.004 | M93: =VLOOKUP($H93,BNT_All!$A$5:$V$205,3*($C$8-1)+3) * 100 -> 95.641 | N93: =VLOOKUP($H93,BNT_All!$A$5:$V$205,3*($C$8-1)+4) * 100 -> 96.043
H94: 69 | I94: =VLOOKUP($H94,TLNGS_All!$A$5:$V$205,3*($C$8-1)+2) * 100 -> 43.457 | J94: =VLOOKUP($H94,TLNGS_All!$A$5:$V$205,3*($C$8-1)+3) * 100 -> 48.784 | K94: =VLOOKUP($H94,TLNGS_All!$A$5:$V$205,3*($C$8-1)+4) * 100 -> 52.347 | L94: =VLOOKUP($H94,BNT_All!$A$5:$V$205,3*($C$8-1)+2) * 100 -> 94.998 | M94: =VLOOKUP($H94,BNT_All!$A$5:$V$205,3*($C$8-1)+3) * 100 -> 95.63 | N94: =VLOOKUP($H94,BNT_All!$A$5:$V$205,3*($C$8-1)+4) * 100 -> 95.997
H95: 70 | I95: =VLOOKUP($H95,TLNGS_All!$A$5:$V$205,3*($C$8-1)+2) * 100 -> 43.793 | J95: =VLOOKUP($H95,TLNGS_All!$A$5:$V$205,3*($C$8-1)+3) * 100 -> 48.852 | K95: =VLOOKUP($H95,TLNGS_All!$A$5:$V$205,3*($C$8-1)+4) * 100 -> 52.903 | L95: =VLOOKUP($H95,BNT_All!$A$5:$V$205,3*($C$8-1)+2) * 100 -> 95.041 | M95: =VLOOKUP($H95,BNT_All!$A$5:$V$205,3*($C$8-1)+3) * 100 -> 95.638 | N95: =VLOOKUP($H95,BNT_All!$A$5:$V$205,3*($C$8-1)+4) * 100 -> 96.051
H96: 71 | I96: =VLOOKUP($H96,TLNGS_All!$A$5:$V$205,3*($C$8-1)+2) * 100 -> 43.846 | J96: =VLOOKUP($H96,TLNGS_All!$A$5:$V$205,3*($C$8-1)+3) * 100 -> 48.874 | K96: =VLOOKUP($H96,TLNGS_All!$A$5:$V$205,3*($C$8-1)+4) * 100 -> 52.796 | L96: =VLOOKUP($H96,BNT_All!$A$5:$V$205,3*($C$8-1)+2) * 100 -> 95.048 | M96: =VLOOKUP($H96,BNT_All!$A$5:$V$205,3*($C$8-1)+3) * 100 -> 95.64 | N96: =VLOOKUP($H96,BNT_All!$A$5:$V$205,3*($C$8-1)+4) * 100 -> 96.041
H97: 72 | I97: =VLOOKUP($H97,TLNGS_All!$A$5:$V$205,3*($C$8-1)+2) * 100 -> 43.2 | J97: =VLOOKUP($H97,TLNGS_All!$A$5:$V$205,3*($C$8-1)+3) * 100 -> 48.88 | K97: =VLOOKUP($H97,TLNGS_All!$A$5:$V$205,3*($C$8-1)+4) * 100 -> 52.952 | L97: =VLOOKUP($H97,BNT_All!$A$5:$V$205,3*($C$8-1)+2) * 100 -> 94.964 | M97: =VLOOKUP($H97,BNT_All!$A$5:$V$205,3*($C$8-1)+3) * 100 -> 95.641 | N97: =VLOOKUP($H97,BNT_All!$A$5:$V$205,3*($C$8-1)+4) * 100 -> 96.056
H98: 73 | I98: =VLOOKUP($H98,TLNGS_All!$A$5:$V$205,3*($C$8-1)+2) * 100 -> 43.031 | J98: =VLOOKUP($H98,TLNGS_All!$A$5:$V$205,3*($C$8-1)+3) * 100 -> 48.713 | K98: =VLOOKUP($H98,TLNGS_All!$A$5:$V$205,3*($C$8-1)+4) * 100 -> 52.69 | L98: =VLOOKUP($H98,BNT_All!$A$5:$V$205,3*($C$8-1)+2) * 100 -> 94.942 | M98: =VLOOKUP($H98,BNT_All!$A$5:$V$205,3*($C$8-1)+3) * 100 -> 95.623 | N98: =VLOOKUP($H98,BNT_All!$A$5:$V$205,3*($C$8-1)+4) * 100 -> 96.03
H99: 74 | I99: =VLOOKUP($H99,TLNGS_All!$A$5:$V$205,3*($C$8-1)+2) * 100 -> 43.447 | J99: =VLOOKUP($H99,TLNGS_All!$A$5:$V$205,3*($C$8-1)+3) * 100 -> 48.69 | K99: =VLOOKUP($H99,TLNGS_All!$A$5:$V$205,3*($C$8-1)+4) * 100 -> 52.652 | L99: =VLOOKUP($H99,BNT_All!$A$5:$V$205,3*($C$8-1)+2) * 100 -> 94.997 | M99: =VLOOKUP($H99,BNT_All!$A$5:$V$205,3*($C$8-1)+3) * 100 -> 95.62 | N99: =VLOOKUP($H99,BNT_All!$A$5:$V$205,3*($C$8-1)+4) * 100 -> 96.027
H100: 75 | I100: =VLOOKUP($H100,TLNGS_All!$A$5:$V$205,3*($C$8-1)+2) * 100 -> 44.08 | J100: =VLOOKUP($H100,TLNGS_All!$A$5:$V$205,3*($C$8-1)+3) * 100 -> 48.716 | K100: =VLOOKUP($H100,TLNGS_All!$A$5:$V$205,3*($C$8-1)+4) * 100 -> 52.872 | L100: =VLOOKUP($H100,BNT_All!$A$5:$V$205,3*($C$8-1)+2) * 100 -> 95.078 | M100: =VLOOKUP($H100,BNT_All!$A$5:$V$205,3*($C$8-1)+3) * 100 -> 95.623 | N100: =VLOOKUP($H100,BNT_All!$A$5:$V$205,3*($C$8-1)+4) * 100 -> 96.048
H101: 76 | I101: =VLOOKUP($H101,TLNGS_All!$A$5:$V$205,3*($C$8-1)+2) * 100 -> 44.301 | J101: =VLOOKUP($H101,TLNGS_All!$A$5:$V$205,3*($C$8-1)+3) * 100 -> 48.761 | K101: =VLOOKUP($H101,TLNGS_All!$A$5:$V$205,3*($C$8-1)+4) * 100 -> 52.774 | L101: =VLOOKUP($H101,BNT_All!$A$5:$V$205,3*($C$8-1)+2) * 100 -> 95.106 | M101: =VLOOKUP($H101,BNT_All!$A$5:$V$205,3*($C$8-1)+3) * 100 -> 95.628 | N101: =VLOOKUP($H101,BNT_All!$A$5:$V$205,3*($C$8-1)+4) * 100 -> 96.039
H102: 77 | I102: =VLOOKUP($H102,TLNGS_All!$A$5:$V$205,3*($C$8-1)+2) * 100 -> 43.371 | J102: =VLOOKUP($H102,TLNGS_All!$A$5:$V$205,3*($C$8-1)+3) * 100 -> 48.654 | K102: =VLOOKUP($H102,TLNGS_All!$A$5:$V$205,3*($C$8-1)+4) * 100 -> 52.884 | L102: =VLOOKUP($H102,BNT_All!$A$5:$V$205,3*($C$8-1)+2) * 100 -> 94.987 | M102: =VLOOKUP($H102,BNT_All!$A$5:$V$205,3*($C$8-1)+3) * 100 -> 95.616 | N102: =VLOOKUP($H102,BNT_All!$A$5:$V$205,3*($C$8-1)+4) * 100 -> 96.049
H103: 78 | I103: =VLOOKUP($H103,TLNGS_All!$A$5:$V$205,3*($C$8-1)+2) * 100 -> 43.28 | J103: =VLOOKUP($H103,TLNGS_All!$A$5:$V$205,3*($C$8-1)+3) * 100 -> 48.545 | K103: =VLOOKUP($H103,TLNGS_All!$A$5:$V$205,3*($C$8-1)+4) * 100 -> 52.794 | L103: =VLOOKUP($H103,BNT_All!$A$5:$V$205,3*($C$8-1)+2) * 100 -> 94.975 | M103: =VLOOKUP($H103,BNT_All!$A$5:$V$205,3*($C$8-1)+3) * 100 -> 95.604 | N103: =VLOOKUP($H103,BNT_All!$A$5:$V$205,3*($C$8-1)+4) * 100 -> 96.04
H104: 79 | I104: =VLOOKUP($H104,TLNGS_All!$A$5:$V$205,3*($C$8-1)+2) * 100 -> 44.135 | J104: =VLOOKUP($H104,TLNGS_All!$A$5:$V$205,3*($C$8-1)+3) * 100 -> 48.636 | K104: =VLOOKUP($H104,TLNGS_All!$A$5:$V$205,3*($C$8-1)+4) * 100 -> 52.645 | L104: =VLOOKUP($H104,BNT_All!$A$5:$V$205,3*($C$8-1)+2) * 100 -> 95.085 | M104: =VLOOKUP($H104,BNT_All!$A$5:$V$205,3*($C$8-1)+3) * 100 -> 95.614 | N104: =VLOOKUP($H104,BNT_All!$A$5:$V$205,3*($C$8-1)+4) * 100 -> 96.026
H105: 80 | I105: =VLOOKUP($H105,TLNGS_All!$A$5:$V$205,3*($C$8-1)+2) * 100 -> 44.394 | J105: =VLOOKUP($H105,TLNGS_All!$A$5:$V$205,3*($C$8-1)+3) * 100 -> 48.764 | K105: =VLOOKUP($H105,TLNGS_All!$A$5:$V$205,3*($C$8-1)+4) * 100 -> 52.96 | L105: =VLOOKUP($H105,BNT_All!$A$5:$V$205,3*($C$8-1)+2) * 100 -> 95.118 | M105: =VLOOKUP($H105,BNT_All!$A$5:$V$205,3*($C$8-1)+3) * 100 -> 95.628 | N105: =VLOOKUP($H105,BNT_All!$A$5:$V$205,3*($C$8-1)+4) * 100 -> 96.056
H106: 81 | I106: =VLOOKUP($H106,TLNGS_All!$A$5:$V$205,3*($C$8-1)+2) * 100 -> 43.864 | J106: =VLOOKUP($H106,TLNGS_All!$A$5:$V$205,3*($C$8-1)+3) * 100 -> 48.72 | K106: =VLOOKUP($H106,TLNGS_All!$A$5:$V$205,3*($C$8-1)+4) * 100 -> 53.006 | L106: =VLOOKUP($H106,BNT_All!$A$5:$V$205,3*($C$8-1)+2) * 100 -> 95.051 | M106: =VLOOKUP($H106,BNT_All!$A$5:$V$205,3*($C$8-1)+3) * 100 -> 95.623 | N106: =VLOOKUP($H106,BNT_All!$A$5:$V$205,3*($C$8-1)+4) * 100 -> 96.061
H107: 82 | I107: =VLOOKUP($H107,TLNGS_All!$A$5:$V$205,3*($C$8-1)+2) * 100 -> 43.493 | J107: =VLOOKUP($H107,TLNGS_All!$A$5:$V$205,3*($C$8-1)+3) * 100 -> 48.789 | K107: =VLOOKUP($H107,TLNGS_All!$A$5:$V$205,3*($C$8-1)+4) * 100 -> 52.644 | L107: =VLOOKUP($H107,BNT_All!$A$5:$V$205,3*($C$8-1)+2) * 100 -> 95.003 | M107: =VLOOKUP($H107,BNT_All!$A$5:$V$205,3*($C$8-1)+3) * 100 -> 95.631 | N107: =VLOOKUP($H107,BNT_All!$A$5:$V$205,3*($C$8-1)+4) * 100 -> 96.026
H108: 83 | I108: =VLOOKUP($H108,TLNGS_All!$A$5:$V$205,3*($C$8-1)+2) * 100 -> 43.986 | J108: =VLOOKUP($H108,TLNGS_All!$A$5:$V$205,3*($C$8-1)+3) * 100 -> 48.815 | K108: =VLOOKUP($H108,TLNGS_All!$A$5:$V$205,3*($C$8-1)+4) * 100 -> 53.08 | L108: =VLOOKUP($H108,BNT_All!$A$5:$V$205,3*($C$8-1)+2) * 100 -> 95.066 | M108: =VLOOKUP($H108,BNT_All!$A$5:$V$205,3*($C$8-1)+3) * 100 -> 95.634 | N108: =VLOOKUP($H108,BNT_All!$A$5:$V$205,3*($C$8-1)+4) * 100 -> 96.068
H109: 84 | I109: =VLOOKUP($H109,TLNGS_All!$A$5:$V$205,3*($C$8-1)+2) * 100 -> 43.761 | J109: =VLOOKUP($H109,TLNGS_All!$A$5:$V$205,3*($C$8-1)+3) * 100 -> 48.901 | K109: =VLOOKUP($H109,TLNGS_All!$A$5:$V$205,3*($C$8-1)+4) * 100 -> 53.147 | L109: =VLOOKUP($H109,BNT_All!$A$5:$V$205,3*($C$8-1)+2) * 100 -> 95.037 | M109: =VLOOKUP($H109,BNT_All!$A$5:$V$205,3*($C$8-1)+3) * 100 -> 95.643 | N109: =VLOOKUP($H109,BNT_All!$A$5:$V$205,3*($C$8-1)+4) * 100 -> 96.074
H110: 85 | I110: =VLOOKUP($H110,TLNGS_All!$A$5:$V$205,3*($C$8-1)+2) * 100 -> 43.383 | J110: =VLOOKUP($H110,TLNGS_All!$A$5:$V$205,3*($C$8-1)+3) * 100 -> 48.962 | K110: =VLOOKUP($H110,TLNGS_All!$A$5:$V$205,3*($C$8-1)+4) * 100 -> 53.12 | L110: =VLOOKUP($H110,BNT_All!$A$5:$V$205,3*($C$8-1)+2) * 100 -> 94.988 | M110: =VLOOKUP($H110,BNT_All!$A$5:$V$205,3*($C$8-1)+3) * 100 -> 95.65 | N110: =VLOOKUP($H110,BNT_All!$A$5:$V$205,3*($C$8-1)+4) * 100 -> 96.072
H111: 86 | I111: =VLOOKUP($H111,TLNGS_All!$A$5:$V$205,3*($C$8-1)+2) * 100 -> 43.932 | J111: =VLOOKUP($H111,TLNGS_All!$A$5:$V$205,3*($C$8-1)+3) * 100 -> 48.55 | K111: =VLOOKUP($H111,TLNGS_All!$A$5:$V$205,3*($C$8-1)+4) * 100 -> 52.903 | L111: =VLOOKUP($H111,BNT_All!$A$5:$V$205,3*($C$8-1)+2) * 100 -> 95.059 | M111: =VLOOKUP($H111,BNT_All!$A$5:$V$205,3*($C$8-1)+3) * 100 -> 95.605 | N111: =VLOOKUP($H111,BNT_All!$A$5:$V$205,3*($C$8-1)+4) * 100 -> 96.051
H112: 87 | I112: =VLOOKUP($H112,TLNGS_All!$A$5:$V$205,3*($C$8-1)+2) * 100 -> 42.927 | J112: =VLOOKUP($H112,TLNGS_All!$A$5:$V$205,3*($C$8-1)+3) * 100 -> 48.612 | K112: =VLOOKUP($H112,TLNGS_All!$A$5:$V$205,3*($C$8-1)+4) * 100 -> 52.777 | L112: =VLOOKUP($H112,BNT_All!$A$5:$V$205,3*($C$8-1)+2) * 100 -> 94.928 | M112: =VLOOKUP($H112,BNT_All!$A$5:$V$205,3*($C$8-1)+3) * 100 -> 95.612 | N112: =VLOOKUP($H112,BNT_All!$A$5:$V$205,3*($C$8-1)+4) * 100 -> 96.039
H113: 88 | I113: =VLOOKUP($H113,TLNGS_All!$A$5:$V$205,3*($C$8-1)+2) * 100 -> 43.044 | J113: =VLOOKUP($H113,TLNGS_All!$A$5:$V$205,3*($C$8-1)+3) * 100 -> 48.67 | K113: =VLOOKUP($H113,TLNGS_All!$A$5:$V$205,3*($C$8-1)+4) * 100 -> 52.919 | L113: =VLOOKUP($H113,BNT_All!$A$5:$V$205,3*($C$8-1)+2) * 100 -> 94.944 | M113: =VLOOKUP($H113,BNT_All!$A$5:$V$205,3*($C$8-1)+3) * 100 -> 95.618 | N113: =VLOOKUP($H113,BNT_All!$A$5:$V$205,3*($C$8-1)+4) * 100 -> 96.052
H114: 89 | I114: =VLOOKUP($H114,TLNGS_All!$A$5:$V$205,3*($C$8-1)+2) * 100 -> 43.014 | J114: =VLOOKUP($H114,TLNGS_All!$A$5:$V$205,3*($C$8-1)+3) * 100 -> 48.784 | K114: =VLOOKUP($H114,TLNGS_All!$A$5:$V$205,3*($C$8-1)+4) * 100 -> 52.985 | L114: =VLOOKUP($H114,BNT_All!$A$5:$V$205,3*($C$8-1)+2) * 100 -> 94.94 | M114: =VLOOKUP($H114,BNT_All!$A$5:$V$205,3*($C$8-1)+3) * 100 -> 95.63 | N114: =VLOOKUP($H114,BNT_All!$A$5:$V$205,3*($C$8-1)+4) * 100 -> 96.059
H115: 90 | I115: =VLOOKUP($H115,TLNGS_All!$A$5:$V$205,3*($C$8-1)+2) * 100 -> 43.626 | J115: =VLOOKUP($H115,TLNGS_All!$A$5:$V$205,3*($C$8-1)+3) * 100 -> 48.373 | K115: =VLOOKUP($H115,TLNGS_All!$A$5:$V$205,3*($C$8-1)+4) * 100 -> 52.855 | L115: =VLOOKUP($H115,BNT_All!$A$5:$V$205,3*($C$8-1)+2) * 100 -> 95.02 | M115: =VLOOKUP($H115,BNT_All!$A$5:$V$205,3*($C$8-1)+3) * 100 -> 95.585 | N115: =VLOOKUP($H115,BNT_All!$A$5:$V$205,3*($C$8-1)+4) * 100 -> 96.046
H116: 91 | I116: =VLOOKUP($H116,TLNGS_All!$A$5:$V$205,3*($C$8-1)+2) * 100 -> 43.267 | J116: =VLOOKUP($H116,TLNGS_All!$A$5:$V$205,3*($C$8-1)+3) * 100 -> 48.448 | K116: =VLOOKUP($H116,TLNGS_All!$A$5:$V$205,3*($C$8-1)+4) * 100 -> 52.887 | L116: =VLOOKUP($H116,BNT_All!$A$5:$V$205,3*($C$8-1)+2) * 100 -> 94.973 | M116: =VLOOKUP($H116,BNT_All!$A$5:$V$205,3*($C$8-1)+3) * 100 -> 95.594 | N116: =VLOOKUP($H116,BNT_All!$A$5:$V$205,3*($C$8-1)+4) * 100 -> 96.049
H117: 92 | I117: =VLOOKUP($H117,TLNGS_All!$A$5:$V$205,3*($C$8-1)+2) * 100 -> 44.084 | J117: =VLOOKUP($H117,TLNGS_All!$A$5:$V$205,3*($C$8-1)+3) * 100 -> 48.53 | K117: =VLOOKUP($H117,TLNGS_All!$A$5:$V$205,3*($C$8-1)+4) * 100 -> 52.793 | L117: =VLOOKUP($H117,BNT_All!$A$5:$V$205,3*($C$8-1)+2) * 100 -> 95.079 | M117: =VLOOKUP($H117,BNT_All!$A$5:$V$205,3*($C$8-1)+3) * 100 -> 95.603 | N117: =VLOOKUP($H117,BNT_All!$A$5:$V$205,3*($C$8-1)+4) * 100 -> 96.04
H118: 93 | I118: =VLOOKUP($H118,TLNGS_All!$A$5:$V$205,3*($C$8-1)+2) * 100 -> 43.932 | J118: =VLOOKUP($H118,TLNGS_All!$A$5:$V$205,3*($C$8-1)+3) * 100 -> 48.605 | K118: =VLOOKUP($H118,TLNGS_All!$A$5:$V$205,3*($C$8-1)+4) * 100 -> 52.818 | L118: =VLOOKUP($H118,BNT_All!$A$5:$V$205,3*($C$8-1)+2) * 100 -> 95.059 | M118: =VLOOKUP($H118,BNT_All!$A$5:$V$205,3*($C$8-1)+3) * 100 -> 95.611 | N118: =VLOOKUP($H118,BNT_All!$A$5:$V$205,3*($C$8-1)+4) * 100 -> 96.043
H119: 94 | I119: =VLOOKUP($H119,TLNGS_All!$A$5:$V$205,3*($C$8-1)+2) * 100 -> 44.365 | J119: =VLOOKUP($H119,TLNGS_All!$A$5:$V$205,3*($C$8-1)+3) * 100 -> 48.664 | K119: =VLOOKUP($H119,TLNGS_All!$A$5:$V$205,3*($C$8-1)+4) * 100 -> 52.943 | L119: =VLOOKUP($H119,BNT_All!$A$5:$V$205,3*($C$8-1)+2) * 100 -> 95.114 | M119: =VLOOKUP($H119,BNT_All!$A$5:$V$205,3*($C$8-1)+3) * 100 -> 95.617 | N119: =VLOOKUP($H119,BNT_All!$A$5:$V$205,3*($C$8-1)+4) * 100 -> 96.055
H120: 95 | I120: =VLOOKUP($H120,TLNGS_All!$A$5:$V$205,3*($C$8-1)+2) * 100 -> 44.204 | J120: =VLOOKUP($H120,TLNGS_All!$A$5:$V$205,3*($C$8-1)+3) * 100 -> 48.58 | K120: =VLOOKUP($H120,TLNGS_All!$A$5:$V$205,3*($C$8-1)+4) * 100 -> 52.591 | L120: =VLOOKUP($H120,BNT_All!$A$5:$V$205,3*($C$8-1)+2) * 100 -> 95.094 | M120: =VLOOKUP($H120,BNT_All!$A$5:$V$205,3*($C$8-1)+3) * 100 -> 95.608 | N120: =VLOOKUP($H120,BNT_All!$A$5:$V$205,3*($C$8-1)+4) * 100 -> 96.021
H121: 96 | I121: =VLOOKUP($H121,TLNGS_All!$A$5:$V$205,3*($C$8-1)+2) * 100 -> 43.443 | J121: =VLOOKUP($H121,TLNGS_All!$A$5:$V$205,3*($C$8-1)+3) * 100 -> 48.592 | K121: =VLOOKUP($H121,TLNGS_All!$A$5:$V$205,3*($C$8-1)+4) * 100 -> 52.982 | L121: =VLOOKUP($H121,BNT_All!$A$5:$V$205,3*($C$8-1)+2) * 100 -> 94.996 | M121: =VLOOKUP($H121,BNT_All!$A$5:$V$205,3*($C$8-1)+3) * 100 -> 95.609 | N121: =VLOOKUP($H121,BNT_All!$A$5:$V$205,3*($C$8-1)+4) * 100 -> 96.058
H122: 97 | I122: =VLOOKUP($H122,TLNGS_All!$A$5:$V$205,3*($C$8-1)+2) * 100 -> 43.337 | J122: =VLOOKUP($H122,TLNGS_All!$A$5:$V$205,3*($C$8-1)+3) * 100 -> 48.845 | K122: =VLOOKUP($H122,TLNGS_All!$A$5:$V$205,3*($C$8-1)+4) * 100 -> 52.87 | L122: =VLOOKUP($H122,BNT_All!$A$5:$V$205,3*($C$8-1)+2) * 100 -> 94.982 | M122: =VLOOKUP($H122,BNT_All!$A$5:$V$205,3*($C$8-1)+3) * 100 -> 95.637 | N122: =VLOOKUP($H122,BNT_All!$A$5:$V$205,3*($C$8-1)+4) * 100 -> 96.048
H123: 98 | I123: =VLOOKUP($H123,TLNGS_All!$A$5:$V$205,3*($C$8-1)+2) * 100 -> 43.75 | J123: =VLOOKUP($H123,TLNGS_All!$A$5:$V$205,3*($C$8-1)+3) * 100 -> 48.884 | K123: =VLOOKUP($H123,TLNGS_All!$A$5:$V$205,3*($C$8-1)+4) * 100 -> 53.073 | L123: =VLOOKUP($H123,BNT_All!$A$5:$V$205,3*($C$8-1)+2) * 100 -> 95.036 | M123: =VLOOKUP($H123,BNT_All!$A$5:$V$205,3*($C$8-1)+3) * 100 -> 95.641 | N123: =VLOOKUP($H123,BNT_All!$A$5:$V$205,3*($C$8-1)+4) * 100 -> 96.067
H124: 99 | I124: =VLOOKUP($H124,TLNGS_All!$A$5:$V$205,3*($C$8-1)+2) * 100 -> 44.267 | J124: =VLOOKUP($H124,TLNGS_All!$A$5:$V$205,3*($C$8-1)+3) * 100 -> 48.835 | K124: =VLOOKUP($H124,TLNGS_All!$A$5:$V$205,3*($C$8-1)+4) * 100 -> 53.337 | L124: =VLOOKUP($H124,BNT_All!$A$5:$V$205,3*($C$8-1)+2) * 100 -> 95.102 | M124: =VLOOKUP($H124,BNT_All!$A$5:$V$205,3*($C$8-1)+3) * 100 -> 95.636 | N124: =VLOOKUP($H124,BNT_All!$A$5:$V$205,3*($C$8-1)+4) * 100 -> 96.092
H125: 100 | I125: =VLOOKUP($H125,TLNGS_All!$A$5:$V$205,3*($C$8-1)+2) * 100 -> 43.216 | J125: =VLOOKUP($H125,TLNGS_All!$A$5:$V$205,3*($C$8-1)+3) * 100 -> 48.578 | K125: =VLOOKUP($H125,TLNGS_All!$A$5:$V$205,3*($C$8-1)+4) * 100 -> 52.982 | L125: =VLOOKUP($H125,BNT_All!$A$5:$V$205,3*($C$8-1)+2) * 100 -> 94.966 | M125: =VLOOKUP($H125,BNT_All!$A$5:$V$205,3*($C$8-1)+3) * 100 -> 95.608 | N125: =VLOOKUP($H125,BNT_All!$A$5:$V$205,3*($C$8-1)+4) * 100 -> 96.059
H126: 101 | I126: =VLOOKUP($H126,TLNGS_All!$A$5:$V$205,3*($C$8-1)+2) * 100 -> 43.809 | J126: =VLOOKUP($H126,TLNGS_All!$A$5:$V$205,3*($C$8-1)+3) * 100 -> 48.659 | K126: =VLOOKUP($H126,TLNGS_All!$A$5:$V$205,3*($C$8-1)+4) * 100 -> 52.906 | L126: =VLOOKUP($H126,BNT_All!$A$5:$V$205,3*($C$8-1)+2) * 100 -> 95.043 | M126: =VLOOKUP($H126,BNT_All!$A$5:$V$205,3*($C$8-1)+3) * 100 -> 95.617 | N126: =VLOOKUP($H126,BNT_All!$A$5:$V$205,3*($C$8-1)+4) * 100 -> 96.051
H127: 102 | I127: =VLOOKUP($H127,TLNGS_All!$A$5:$V$205,3*($C$8-1)+2) * 100 -> 43.914 | J127: =VLOOKUP($H127,TLNGS_All!$A$5:$V$205,3*($C$8-1)+3) * 100 -> 48.969 | K127: =VLOOKUP($H127,TLNGS_All!$A$5:$V$205,3*($C$8-1)+4) * 100 -> 53.127 | L127: =VLOOKUP($H127,BNT_All!$A$5:$V$205,3*($C$8-1)+2) * 100 -> 95.057 | M127: =VLOOKUP($H127,BNT_All!$A$5:$V$205,3*($C$8-1)+3) * 100 -> 95.65 | N127: =VLOOKUP($H127,BNT_All!$A$5:$V$205,3*($C$8-1)+4) * 100 -> 96.072
H128: 103 | I128: =VLOOKUP($H128,TLNGS_All!$A$5:$V$205,3*($C$8-1)+2) * 100 -> 43.491 | J128: =VLOOKUP($H128,TLNGS_All!$A$5:$V$205,3*($C$8-1)+3) * 100 -> 48.931 | K128: =VLOOKUP($H128,TLNGS_All!$A$5:$V$205,3*($C$8-1)+4) * 100 -> 53.146 | L128: =VLOOKUP($H128,BNT_All!$A$5:$V$205,3*($C$8-1)+2) * 100 -> 95.002 | M128: =VLOOKUP($H128,BNT_All!$A$5:$V$205,3*($C$8-1)+3) * 100 -> 95.646 | N128: =VLOOKUP($H128,BNT_All!$A$5:$V$205,3*($C$8-1)+4) * 100 -> 96.074
H129: 104 | I129: =VLOOKUP($H129,TLNGS_All!$A$5:$V$205,3*($C$8-1)+2) * 100 -> 43.42 | J129: =VLOOKUP($H129,TLNGS_All!$A$5:$V$205,3*($C$8-1)+3) * 100 -> 48.834 | K129: =VLOOKUP($H129,TLNGS_All!$A$5:$V$205,3*($C$8-1)+4) * 100 -> 53.244 | L129: =VLOOKUP($H129,BNT_All!$A$5:$V$205,3*($C$8-1)+2) * 100 -> 94.993 | M129: =VLOOKUP($H129,BNT_All!$A$5:$V$205,3*($C$8-1)+3) * 100 -> 95.636 | N129: =VLOOKUP($H129,BNT_All!$A$5:$V$205,3*($C$8-1)+4) * 100 -> 96.084
H130: 105 | I130: =VLOOKUP($H130,TLNGS_All!$A$5:$V$205,3*($C$8-1)+2) * 100 -> 43.32 | J130: =VLOOKUP($H130,TLNGS_All!$A$5:$V$205,3*($C$8-1)+3) * 100 -> 48.587 | K130: =VLOOKUP($H130,TLNGS_All!$A$5:$V$205,3*($C$8-1)+4) * 100 -> 52.683 | L130: =VLOOKUP($H130,BNT_All!$A$5:$V$205,3*($C$8-1)+2) * 100 -> 94.98 | M130: =VLOOKUP($H130,BNT_All!$A$5:$V$205,3*($C$8-1)+3) * 100 -> 95.609 | N130: =VLOOKUP($H130,BNT_All!$A$5:$V$205,3*($C$8-1)+4) * 100 -> 96.03
H131: 106 | I131: =VLOOKUP($H131,TLNGS_All!$A$5:$V$205,3*($C$8-1)+2) * 100 -> 43.433 | J131: =VLOOKUP($H131,TLNGS_All!$A$5:$V$205,3*($C$8-1)+3) * 100 -> 48.555 | K131: =VLOOKUP($H131,TLNGS_All!$A$5:$V$205,3*($C$8-1)+4) * 100 -> 52.732 | L131: =VLOOKUP($H131,BNT_All!$A$5:$V$205,3*($C$8-1)+2) * 100 -> 94.995 | M131: =VLOOKUP($H131,BNT_All!$A$5:$V$205,3*($C$8-1)+3) * 100 -> 95.605 | N131: =VLOOKUP($H131,BNT_All!$A$5:$V$205,3*($C$8-1)+4) * 100 -> 96.034
H132: 107 | I132: =VLOOKUP($H132,TLNGS_All!$A$5:$V$205,3*($C$8-1)+2) * 100 -> 43.853 | J132: =VLOOKUP($H132,TLNGS_All!$A$5:$V$205,3*($C$8-1)+3) * 100 -> 48.854 | K132: =VLOOKUP($H132,TLNGS_All!$A$5:$V$205,3*($C$8-1)+4) * 100 -> 52.613 | L132: =VLOOKUP($H132,BNT_All!$A$5:$V$205,3*($C$8-1)+2) * 100 -> 95.049 | M132: =VLOOKUP($H132,BNT_All!$A$5:$V$205,3*($C$8-1)+3) * 100 -> 95.638 | N132: =VLOOKUP($H132,BNT_All!$A$5:$V$205,3*($C$8-1)+4) * 100 -> 96.023
H133: 108 | I133: =VLOOKUP($H133,TLNGS_All!$A$5:$V$205,3*($C$8-1)+2) * 100 -> 43.878 | J133: =VLOOKUP($H133,TLNGS_All!$A$5:$V$205,3*($C$8-1)+3) * 100 -> 48.898 | K133: =VLOOKUP($H133,TLNGS_All!$A$5:$V$205,3*($C$8-1)+4) * 100 -> 52.916 | L133: =VLOOKUP($H133,BNT_All!$A$5:$V$205,3*($C$8-1)+2) * 100 -> 95.052 | M133: =VLOOKUP($H133,BNT_All!$A$5:$V$205,3*($C$8-1)+3) * 100 -> 95.643 | N133: =VLOOKUP($H133,BNT_All!$A$5:$V$205,3*($C$8-1)+4) * 100 -> 96.052
H134: 109 | I134: =VLOOKUP($H134,TLNGS_All!$A$5:$V$205,3*($C$8-1)+2) * 100 -> 43.093 | J134: =VLOOKUP($H134,TLNGS_All!$A$5:$V$205,3*($C$8-1)+3) * 100 -> 48.43 | K134: =VLOOKUP($H134,TLNGS_All!$A$5:$V$205,3*($C$8-1)+4) * 100 -> 52.63 | L134: =VLOOKUP($H134,BNT_All!$A$5:$V$205,3*($C$8-1)+2) * 100 -> 94.95 | M134: =VLOOKUP($H134,BNT_All!$A$5:$V$205,3*($C$8-1)+3) * 100 -> 95.592 | N134: =VLOOKUP($H134,BNT_All!$A$5:$V$205,3*($C$8-1)+4) * 100 -> 96.025
H135: 110 | I135: =VLOOKUP($H135,TLNGS_All!$A$5:$V$205,3*($C$8-1)+2) * 100 -> 42.864 | J135: =VLOOKUP($H135,TLNGS_All!$A$5:$V$205,3*($C$8-1)+3) * 100 -> 48.36 | K135: =VLOOKUP($H135,TLNGS_All!$A$5:$V$205,3*($C$8-1)+4) * 100 -> 53.106 | L135: =VLOOKUP($H135,BNT_All!$A$5:$V$205,3*($C$8-1)+2) * 100 -> 94.92 | M135: =VLOOKUP($H135,BNT_All!$A$5:$V$205,3*($C$8-1)+3) * 100 -> 95.584 | N135: =VLOOKUP($H135,BNT_All!$A$5:$V$205,3*($C$8-1)+4) * 100 -> 96.07
H136: 111 | I136: =VLOOKUP($H136,TLNGS_All!$A$5:$V$205,3*($C$8-1)+2) * 100 -> 43.576 | J136: =VLOOKUP($H136,TLNGS_All!$A$5:$V$205,3*($C$8-1)+3) * 100 -> 48.607 | K136: =VLOOKUP($H136,TLNGS_All!$A$5:$V$205,3*($C$8-1)+4) * 100 -> 52.732 | L136: =VLOOKUP($H136,BNT_All!$A$5:$V$205,3*($C$8-1)+2) * 100 -> 95.013 | M136: =VLOOKUP($H136,BNT_All!$A$5:$V$205,3*($C$8-1)+3) * 100 -> 95.611 | N136: =VLOOKUP($H136,BNT_All!$A$5:$V$205,3*($C$8-1)+4) * 100 -> 96.034
H137: 112 | I137: =VLOOKUP($H137,TLNGS_All!$A$5:$V$205,3*($C$8-1)+2) * 100 -> 43.594 | J137: =VLOOKUP($H137,TLNGS_All!$A$5:$V$205,3*($C$8-1)+3) * 100 -> 48.562 | K137: =VLOOKUP($H137,TLNGS_All!$A$5:$V$205,3*($C$8-1)+4) * 100 -> 52.519 | L137: =VLOOKUP($H137,BNT_All!$A$5:$V$205,3*($C$8-1)+2) * 100 -> 95.016 | M137: =VLOOKUP($H137,BNT_All!$A$5:$V$205,3*($C$8-1)+3) * 100 -> 95.606 | N137: =VLOOKUP($H137,BNT_All!$A$5:$V$205,3*($C$8-1)+4) * 100 -> 96.014
H138: 113 | I138: =VLOOKUP($H138,TLNGS_All!$A$5:$V$205,3*($C$8-1)+2) * 100 -> 43.087 | J138: =VLOOKUP($H138,TLNGS_All!$A$5:$V$205,3*($C$8-1)+3) * 100 -> 48.374 | K138: =VLOOKUP($H138,TLNGS_All!$A$5:$V$205,3*($C$8-1)+4) * 100 -> 52.879 | L138: =VLOOKUP($H138,BNT_All!$A$5:$V$205,3*($C$8-1)+2) * 100 -> 94.949 | M138: =VLOOKUP($H138,BNT_All!$A$5:$V$205,3*($C$8-1)+3) * 100 -> 95.586 | N138: =VLOOKUP($H138,BNT_All!$A$5:$V$205,3*($C$8-1)+4) * 100 -> 96.049
H139: 114 | I139: =VLOOKUP($H139,TLNGS_All!$A$5:$V$205,3*($C$8-1)+2) * 100 -> 43.404 | J139: =VLOOKUP($H139,TLNGS_All!$A$5:$V$205,3*($C$8-1)+3) * 100 -> 48.478 | K139: =VLOOKUP($H139,TLNGS_All!$A$5:$V$205,3*($C$8-1)+4) * 100 -> 52.888 | L139: =VLOOKUP($H139,BNT_All!$A$5:$V$205,3*($C$8-1)+2) * 100 -> 94.991 | M139: =VLOOKUP($H139,BNT_All!$A$5:$V$205,3*($C$8-1)+3) * 100 -> 95.597 | N139: =VLOOKUP($H139,BNT_All!$A$5:$V$205,3*($C$8-1)+4) * 100 -> 96.049
H140: 115 | I140: =VLOOKUP($H140,TLNGS_All!$A$5:$V$205,3*($C$8-1)+2) * 100 -> 43.316 | J140: =VLOOKUP($H140,TLNGS_All!$A$5:$V$205,3*($C$8-1)+3) * 100 -> 48.585 | K140: =VLOOKUP($H140,TLNGS_All!$A$5:$V$205,3*($C$8-1)+4) * 100 -> 53.028 | L140: =VLOOKUP($H140,BNT_All!$A$5:$V$205,3*($C$8-1)+2) * 100 -> 94.98 | M140: =VLOOKUP($H140,BNT_All!$A$5:$V$205,3*($C$8-1)+3) * 100 -> 95.609 | N140: =VLOOKUP($H140,BNT_All!$A$5:$V$205,3*($C$8-1)+4) * 100 -> 96.063
H141: 116 | I141: =VLOOKUP($H141,TLNGS_All!$A$5:$V$205,3*($C$8-1)+2) * 100 -> 43.354 | J141: =VLOOKUP($H141,TLNGS_All!$A$5:$V$205,3*($C$8-1)+3) * 100 -> 48.389 | K141: =VLOOKUP($H141,TLNGS_All!$A$5:$V$205,3*($C$8-1)+4) * 100 -> 52.687 | L141: =VLOOKUP($H141,BNT_All!$A$5:$V$205,3*($C$8-1)+2) * 100 -> 94.985 | M141: =VLOOKUP($H141,BNT_All!$A$5:$V$205,3*($C$8-1)+3) * 100 -> 95.587 | N141: =VLOOKUP($H141,BNT_All!$A$5:$V$205,3*($C$8-1)+4) * 100 -> 96.03
H142: 117 | I142: =VLOOKUP($H142,TLNGS_All!$A$5:$V$205,3*($C$8-1)+2) * 100 -> 43.211 | J142: =VLOOKUP($H142,TLNGS_All!$A$5:$V$205,3*($C$8-1)+3) * 100 -> 48.963 | K142: =VLOOKUP($H142,TLNGS_All!$A$5:$V$205,3*($C$8-1)+4) * 100 -> 53.154 | L142: =VLOOKUP($H142,BNT_All!$A$5:$V$205,3*($C$8-1)+2) * 100 -> 94.966 | M142: =VLOOKUP($H142,BNT_All!$A$5:$V$205,3*($C$8-1)+3) * 100 -> 95.65 | N142: =VLOOKUP($H142,BNT_All!$A$5:$V$205,3*($C$8-1)+4) * 100 -> 96.075
H143: 118 | I143: =VLOOKUP($H143,TLNGS_All!$A$5:$V$205,3*($C$8-1)+2) * 100 -> 43.672 | J143: =VLOOKUP($H143,TLNGS_All!$A$5:$V$205,3*($C$8-1)+3) * 100 -> 49.042 | K143: =VLOOKUP($H143,TLNGS_All!$A$5:$V$205,3*($C$8-1)+4) * 100 -> 53.447 | L143: =VLOOKUP($H143,BNT_All!$A$5:$V$205,3*($C$8-1)+2) * 100 -> 95.026 | M143: =VLOOKUP($H143,BNT_All!$A$5:$V$205,3*($C$8-1)+3) * 100 -> 95.658 | N143: =VLOOKUP($H143,BNT_All!$A$5:$V$205,3*($C$8-1)+4) * 100 -> 96.103
H144: 119 | I144: =VLOOKUP($H144,TLNGS_All!$A$5:$V$205,3*($C$8-1)+2) * 100 -> 44.2 | J144: =VLOOKUP($H144,TLNGS_All!$A$5:$V$205,3*($C$8-1)+3) * 100 -> 49.014 | K144: =VLOOKUP($H144,TLNGS_All!$A$5:$V$205,3*($C$8-1)+4) * 100 -> 53.075 | L144: =VLOOKUP($H144,BNT_All!$A$5:$V$205,3*($C$8-1)+2) * 100 -> 95.093 | M144: =VLOOKUP($H144,BNT_All!$A$5:$V$205,3*($C$8-1)+3) * 100 -> 95.655 | N144: =VLOOKUP($H144,BNT_All!$A$5:$V$205,3*($C$8-1)+4) * 100 -> 96.067
H145: 120 | I145: =VLOOKUP($H145,TLNGS_All!$A$5:$V$205,3*($C$8-1)+2) * 100 -> 43.987 | J145: =VLOOKUP($H145,TLNGS_All!$A$5:$V$205,3*($C$8-1)+3) * 100 -> 48.94 | K145: =VLOOKUP($H145,TLNGS_All!$A$5:$V$205,3*($C$8-1)+4) * 100 -> 52.616 | L145: =VLOOKUP($H145,BNT_All!$A$5:$V$205,3*($C$8-1)+2) * 100 -> 95.066 | M145: =VLOOKUP($H145,BNT_All!$A$5:$V$205,3*($C$8-1)+3) * 100 -> 95.647 | N145: =VLOOKUP($H145,BNT_All!$A$5:$V$205,3*($C$8-1)+4) * 100 -> 96.023
H146: 121 | I146: =VLOOKUP($H146,TLNGS_All!$A$5:$V$205,3*($C$8-1)+2) * 100 -> 43.388 | J146: =VLOOKUP($H146,TLNGS_All!$A$5:$V$205,3*($C$8-1)+3) * 100 -> 48.581 | K146: =VLOOKUP($H146,TLNGS_All!$A$5:$V$205,3*($C$8-1)+4) * 100 -> 52.752 | L146: =VLOOKUP($H146,BNT_All!$A$5:$V$205,3*($C$8-1)+2) * 100 -> 94.989 | M146: =VLOOKUP($H146,BNT_All!$A$5:$V$205,3*($C$8-1)+3) * 100 -> 95.608 | N146: =VLOOKUP($H146,BNT_All!$A$5:$V$205,3*($C$8-1)+4) * 100 -> 96.036
H147: 122 | I147: =VLOOKUP($H147,TLNGS_All!$A$5:$V$205,3*($C$8-1)+2) * 100 -> 43.507 | J147: =VLOOKUP($H147,TLNGS_All!$A$5:$V$205,3*($C$8-1)+3) * 100 -> 48.926 | K147: =VLOOKUP($H147,TLNGS_All!$A$5:$V$205,3*($C$8-1)+4) * 100 -> 52.731 | L147: =VLOOKUP($H147,BNT_All!$A$5:$V$205,3*($C$8-1)+2) * 100 -> 95.004 | M147: =VLOOKUP($H147,BNT_All!$A$5:$V$205,3*($C$8-1)+3) * 100 -> 95.646 | N147: =VLOOKUP($H147,BNT_All!$A$5:$V$205,3*($C$8-1)+4) * 100 -> 96.034
H148: 123 | I148: =VLOOKUP($H148,TLNGS_All!$A$5:$V$205,3*($C$8-1)+2) * 100 -> 43.442 | J148: =VLOOKUP($H148,TLNGS_All!$A$5:$V$205,3*($C$8-1)+3) * 100 -> 48.99 | K148: =VLOOKUP($H148,TLNGS_All!$A$5:$V$205,3*($C$8-1)+4) * 100 -> 52.892 | L148: =VLOOKUP($H148,BNT_All!$A$5:$V$205,3*($C$8-1)+2) * 100 -> 94.996 | M148: =VLOOKUP($H148,BNT_All!$A$5:$V$205,3*($C$8-1)+3) * 100 -> 95.653 | N148: =VLOOKUP($H148,BNT_All!$A$5:$V$205,3*($C$8-1)+4) * 100 -> 96.05
H149: 124 | I149: =VLOOKUP($H149,TLNGS_All!$A$5:$V$205,3*($C$8-1)+2) * 100 -> 43.227 | J149: =VLOOKUP($H149,TLNGS_All!$A$5:$V$205,3*($C$8-1)+3) * 100 -> 48.546 | K149: =VLOOKUP($H149,TLNGS_All!$A$5:$V$205,3*($C$8-1)+4) * 100 -> 52.392 | L149: =VLOOKUP($H149,BNT_All!$A$5:$V$205,3*($C$8-1)+2) * 100 -> 94.968 | M149: =VLOOKUP($H149,BNT_All!$A$5:$V$205,3*($C$8-1)+3) * 100 -> 95.604 | N149: =VLOOKUP($H149,BNT_All!$A$5:$V$205,3*($C$8-1)+4) * 100 -> 96.001
H150: 125 | I150: =VLOOKUP($H150,TLNGS_All!$A$5:$V$205,3*($C$8-1)+2) * 100 -> 43.646 | J150: =VLOOKUP($H150,TLNGS_All!$A$5:$V$205,3*($C$8-1)+3) * 100 -> 48.611 | K150: =VLOOKUP($H150,TLNGS_All!$A$5:$V$205,3*($C$8-1)+4) * 100 -> 52.799 | L150: =VLOOKUP($H150,BNT_All!$A$5:$V$205,3*($C$8-1)+2) * 100 -> 95.022 | M150: =VLOOKUP($H150,BNT_All!$A$5:$V$205,3*($C$8-1)+3) * 100 -> 95.612 | N150: =VLOOKUP($H150,BNT_All!$A$5:$V$205,3*($C$8-1)+4) * 100 -> 96.041
H151: 126 | I151: =VLOOKUP($H151,TLNGS_All!$A$5:$V$205,3*($C$8-1)+2) * 100 -> 43.703 | J151: =VLOOKUP($H151,TLNGS_All!$A$5:$V$205,3*($C$8-1)+3) * 100 -> 48.72 | K151: =VLOOKUP($H151,TLNGS_All!$A$5:$V$205,3*($C$8-1)+4) * 100 -> 52.666 | L151: =VLOOKUP($H151,BNT_All!$A$5:$V$205,3*($C$8-1)+2) * 100 -> 95.03 | M151: =VLOOKUP($H151,BNT_All!$A$5:$V$205,3*($C$8-1)+3) * 100 -> 95.623 | N151: =VLOOKUP($H151,BNT_All!$A$5:$V$205,3*($C$8-1)+4) * 100 -> 96.028
H152: 127 | I152: =VLOOKUP($H152,TLNGS_All!$A$5:$V$205,3*($C$8-1)+2) * 100 -> 43.633 | J152: =VLOOKUP($H152,TLNGS_All!$A$5:$V$205,3*($C$8-1)+3) * 100 -> 48.766 | K152: =VLOOKUP($H152,TLNGS_All!$A$5:$V$205,3*($C$8-1)+4) * 100 -> 52.788 | L152: =VLOOKUP($H152,BNT_All!$A$5:$V$205,3*($C$8-1)+2) * 100 -> 95.021 | M152: =VLOOKUP($H152,BNT_All!$A$5:$V$205,3*($C$8-1)+3) * 100 -> 95.628 | N152: =VLOOKUP($H152,BNT_All!$A$5:$V$205,3*($C$8-1)+4) * 100 -> 96.04
H153: 128 | I153: =VLOOKUP($H153,TLNGS_All!$A$5:$V$205,3*($C$8-1)+2) * 100 -> 43.799 | J153: =VLOOKUP($H153,TLNGS_All!$A$5:$V$205,3*($C$8-1)+3) * 100 -> 48.454 | K153: =VLOOKUP($H153,TLNGS_All!$A$5:$V$205,3*($C$8-1)+4) * 100 -> 53.003 | L153: =VLOOKUP($H153,BNT_All!$A$5:$V$205,3*($C$8-1)+2) * 100 -> 95.042 | M153: =VLOOKUP($H153,BNT_All!$A$5:$V$205,3*($C$8-1)+3) * 100 -> 95.594 | N153: =VLOOKUP($H153,BNT_All!$A$5:$V$205,3*($C$8-1)+4) * 100 -> 96.06
H154: 129 | I154: =VLOOKUP($H154,TLNGS_All!$A$5:$V$205,3*($C$8-1)+2) * 100 -> 43.595 | J154: =VLOOKUP($H154,TLNGS_All!$A$5:$V$205,3*($C$8-1)+3) * 100 -> 48.769 | K154: =VLOOKUP($H154,TLNGS_All!$A$5:$V$205,3*($C$8-1)+4) * 100 -> 52.988 | L154: =VLOOKUP($H154,BNT_All!$A$5:$V$205,3*($C$8-1)+2) * 100 -> 95.016 | M154: =VLOOKUP($H154,BNT_All!$A$5:$V$205,3*($C$8-1)+3) * 100 -> 95.629 | N154: =VLOOKUP($H154,BNT_All!$A$5:$V$205,3*($C$8-1)+4) * 100 -> 96.059
H155: 130 | I155: =VLOOKUP($H155,TLNGS_All!$A$5:$V$205,3*($C$8-1)+2) * 100 -> 43.469 | J155: =VLOOKUP($H155,TLNGS_All!$A$5:$V$205,3*($C$8-1)+3) * 100 -> 48.993 | K155: =VLOOKUP($H155,TLNGS_All!$A$5:$V$205,3*($C$8-1)+4) * 100 -> 52.86 | L155: =VLOOKUP($H155,BNT_All!$A$5:$V$205,3*($C$8-1)+2) * 100 -> 95 | M155: =VLOOKUP($H155,BNT_All!$A$5:$V$205,3*($C$8-1)+3) * 100 -> 95.653 | N155: =VLOOKUP($H155,BNT_All!$A$5:$V$205,3*($C$8-1)+4) * 100 -> 96.047
H156: 131 | I156: =VLOOKUP($H156,TLNGS_All!$A$5:$V$205,3*($C$8-1)+2) * 100 -> 44.117 | J156: =VLOOKUP($H156,TLNGS_All!$A$5:$V$205,3*($C$8-1)+3) * 100 -> 48.554 | K156: =VLOOKUP($H156,TLNGS_All!$A$5:$V$205,3*($C$8-1)+4) * 100 -> 52.847 | L156: =VLOOKUP($H156,BNT_All!$A$5:$V$205,3*($C$8-1)+2) * 100 -> 95.083 | M156: =VLOOKUP($H156,BNT_All!$A$5:$V$205,3*($C$8-1)+3) * 100 -> 95.605 | N156: =VLOOKUP($H156,BNT_All!$A$5:$V$205,3*($C$8-1)+4) * 100 -> 96.046
H157: 132 | I157: =VLOOKUP($H157,TLNGS_All!$A$5:$V$205,3*($C$8-1)+2) * 100 -> 43.954 | J157: =VLOOKUP($H157,TLNGS_All!$A$5:$V$205,3*($C$8-1)+3) * 100 -> 48.595 | K157: =VLOOKUP($H157,TLNGS_All!$A$5:$V$205,3*($C$8-1)+4) * 100 -> 52.449 | L157: =VLOOKUP($H157,BNT_All!$A$5:$V$205,3*($C$8-1)+2) * 100 -> 95.062 | M157: =VLOOKUP($H157,BNT_All!$A$5:$V$205,3*($C$8-1)+3) * 100 -> 95.61 | N157: =VLOOKUP($H157,BNT_All!$A$5:$V$205,3*($C$8-1)+4) * 100 -> 96.007
H158: 133 | I158: =VLOOKUP($H158,TLNGS_All!$A$5:$V$205,3*($C$8-1)+2) * 100 -> 43.507 | J158: =VLOOKUP($H158,TLNGS_All!$A$5:$V$205,3*($C$8-1)+3) * 100 -> 48.666 | K158: =VLOOKUP($H158,TLNGS_All!$A$5:$V$205,3*($C$8-1)+4) * 100 -> 52.562 | L158: =VLOOKUP($H158,BNT_All!$A$5:$V$205,3*($C$8-1)+2) * 100 -> 95.005 | M158: =VLOOKUP($H158,BNT_All!$A$5:$V$205,3*($C$8-1)+3) * 100 -> 95.617 | N158: =VLOOKUP($H158,BNT_All!$A$5:$V$205,3*($C$8-1)+4) * 100 -> 96.018
H159: 134 | I159: =VLOOKUP($H159,TLNGS_All!$A$5:$V$205,3*($C$8-1)+2) * 100 -> 43.212 | J159: =VLOOKUP($H159,TLNGS_All!$A$5:$V$205,3*($C$8-1)+3) * 100 -> 48.809 | K159: =VLOOKUP($H159,TLNGS_All!$A$5:$V$205,3*($C$8-1)+4) * 100 -> 52.623 | L159: =VLOOKUP($H159,BNT_All!$A$5:$V$205,3*($C$8-1)+2) * 100 -> 94.966 | M159: =VLOOKUP($H159,BNT_All!$A$5:$V$205,3*($C$8-1)+3) * 100 -> 95.633 | N159: =VLOOKUP($H159,BNT_All!$A$5:$V$205,3*($C$8-1)+4) * 100 -> 96.024
H160: 135 | I160: =VLOOKUP($H160,TLNGS_All!$A$5:$V$205,3*($C$8-1)+2) * 100 -> 43.195 | J160: =VLOOKUP($H160,TLNGS_All!$A$5:$V$205,3*($C$8-1)+3) * 100 -> 48.527 | K160: =VLOOKUP($H160,TLNGS_All!$A$5:$V$205,3*($C$8-1)+4) * 100 -> 52.955 | L160: =VLOOKUP($H160,BNT_All!$A$5:$V$205,3*($C$8-1)+2) * 100 -> 94.964 | M160: =VLOOKUP($H160,BNT_All!$A$5:$V$205,3*($C$8-1)+3) * 100 -> 95.602 | N160: =VLOOKUP($H160,BNT_All!$A$5:$V$205,3*($C$8-1)+4) * 100 -> 96.056
H161: 136 | I161: =VLOOKUP($H161,TLNGS_All!$A$5:$V$205,3*($C$8-1)+2) * 100 -> 43.767 | J161: =VLOOKUP($H161,TLNGS_All!$A$5:$V$205,3*($C$8-1)+3) * 100 -> 48.53 | K161: =VLOOKUP($H161,TLNGS_All!$A$5:$V$205,3*($C$8-1)+4) * 100 -> 52.989 | L161: =VLOOKUP($H161,BNT_All!$A$5:$V$205,3*($C$8-1)+2) * 100 -> 95.038 | M161: =VLOOKUP($H161,BNT_All!$A$5:$V$205,3*($C$8-1)+3) * 100 -> 95.603 | N161: =VLOOKUP($H161,BNT_All!$A$5:$V$205,3*($C$8-1)+4) * 100 -> 96.059
H162: 137 | I162: =VLOOKUP($H162,TLNGS_All!$A$5:$V$205,3*($C$8-1)+2) * 100 -> 43.092 | J162: =VLOOKUP($H162,TLNGS_All!$A$5:$V$205,3*($C$8-1)+3) * 100 -> 48.769 | K162: =VLOOKUP($H162,TLNGS_All!$A$5:$V$205,3*($C$8-1)+4) * 100 -> 52.772 | L162: =VLOOKUP($H162,BNT_All!$A$5:$V$205,3*($C$8-1)+2) * 100 -> 94.95 | M162: =VLOOKUP($H162,BNT_All!$A$5:$V$205,3*($C$8-1)+3) * 100 -> 95.629 | N162: =VLOOKUP($H162,BNT_All!$A$5:$V$205,3*($C$8-1)+4) * 100 -> 96.038
H163: 138 | I163: =VLOOKUP($H163,TLNGS_All!$A$5:$V$205,3*($C$8-1)+2) * 100 -> 42.996 | J163: =VLOOKUP($H163,TLNGS_All!$A$5:$V$205,3*($C$8-1)+3) * 100 -> 48.668 | K163: =VLOOKUP($H163,TLNGS_All!$A$5:$V$205,3*($C$8-1)+4) * 100 -> 52.796 | L163: =VLOOKUP($H163,BNT_All!$A$5:$V$205,3*($C$8-1)+2) * 100 -> 94.938 | M163: =VLOOKUP($H163,BNT_All!$A$5:$V$205,3*($C$8-1)+3) * 100 -> 95.618 | N163: =VLOOKUP($H163,BNT_All!$A$5:$V$205,3*($C$8-1)+4) * 100 -> 96.041
H164: 139 | I164: =VLOOKUP($H164,TLNGS_All!$A$5:$V$205,3*($C$8-1)+2) * 100 -> 43.169 | J164: =VLOOKUP($H164,TLNGS_All!$A$5:$V$205,3*($C$8-1)+3) * 100 -> 48.642 | K164: =VLOOKUP($H164,TLNGS_All!$A$5:$V$205,3*($C$8-1)+4) * 100 -> 52.336 | L164: =VLOOKUP($H164,BNT_All!$A$5:$V$205,3*($C$8-1)+2) * 100 -> 94.96 | M164: =VLOOKUP($H164,BNT_All!$A$5:$V$205,3*($C$8-1)+3) * 100 -> 95.615 | N164: =VLOOKUP($H164,BNT_All!$A$5:$V$205,3*($C$8-1)+4) * 100 -> 95.996
H165: 140 | I165: =VLOOKUP($H165,TLNGS_All!$A$5:$V$205,3*($C$8-1)+2) * 100 -> 43.779 | J165: =VLOOKUP($H165,TLNGS_All!$A$5:$V$205,3*($C$8-1)+3) * 100 -> 48.73 | K165: =VLOOKUP($H165,TLNGS_All!$A$5:$V$205,3*($C$8-1)+4) * 100 -> 52.71 | L165: =VLOOKUP($H165,BNT_All!$A$5:$V$205,3*($C$8-1)+2) * 100 -> 95.04 | M165: =VLOOKUP($H165,BNT_All!$A$5:$V$205,3*($C$8-1)+3) * 100 -> 95.624 | N165: =VLOOKUP($H165,BNT_All!$A$5:$V$205,3*($C$8-1)+4) * 100 -> 96.032
H166: 141 | I166: =VLOOKUP($H166,TLNGS_All!$A$5:$V$205,3*($C$8-1)+2) * 100 -> 43.504 | J166: =VLOOKUP($H166,TLNGS_All!$A$5:$V$205,3*($C$8-1)+3) * 100 -> 48.893 | K166: =VLOOKUP($H166,TLNGS_All!$A$5:$V$205,3*($C$8-1)+4) * 100 -> 53.065 | L166: =VLOOKUP($H166,BNT_All!$A$5:$V$205,3*($C$8-1)+2) * 100 -> 95.004 | M166: =VLOOKUP($H166,BNT_All!$A$5:$V$205,3*($C$8-1)+3) * 100 -> 95.642 | N166: =VLOOKUP($H166,BNT_All!$A$5:$V$205,3*($C$8-1)+4) * 100 -> 96.066
H167: 142 | I167: =VLOOKUP($H167,TLNGS_All!$A$5:$V$205,3*($C$8-1)+2) * 100 -> 43.799 | J167: =VLOOKUP($H167,TLNGS_All!$A$5:$V$205,3*($C$8-1)+3) * 100 -> 48.658 | K167: =VLOOKUP($H167,TLNGS_All!$A$5:$V$205,3*($C$8-1)+4) * 100 -> 52.645 | L167: =VLOOKUP($H167,BNT_All!$A$5:$V$205,3*($C$8-1)+2) * 100 -> 95.042 | M167: =VLOOKUP($H167,BNT_All!$A$5:$V$205,3*($C$8-1)+3) * 100 -> 95.617 | N167: =VLOOKUP($H167,BNT_All!$A$5:$V$205,3*($C$8-1)+4) * 100 -> 96.026
H168: 143 | I168: =VLOOKUP($H168,TLNGS_All!$A$5:$V$205,3*($C$8-1)+2) * 100 -> 43.767 | J168: =VLOOKUP($H168,TLNGS_All!$A$5:$V$205,3*($C$8-1)+3) * 100 -> 48.743 | K168: =VLOOKUP($H168,TLNGS_All!$A$5:$V$205,3*($C$8-1)+4) * 100 -> 52.976 | L168: =VLOOKUP($H168,BNT_All!$A$5:$V$205,3*($C$8-1)+2) * 100 -> 95.038 | M168: =VLOOKUP($H168,BNT_All!$A$5:$V$205,3*($C$8-1)+3) * 100 -> 95.626 | N168: =VLOOKUP($H168,BNT_All!$A$5:$V$205,3*($C$8-1)+4) * 100 -> 96.058
H169: 144 | I169: =VLOOKUP($H169,TLNGS_All!$A$5:$V$205,3*($C$8-1)+2) * 100 -> 43.33 | J169: =VLOOKUP($H169,TLNGS_All!$A$5:$V$205,3*($C$8-1)+3) * 100 -> 48.895 | K169: =VLOOKUP($H169,TLNGS_All!$A$5:$V$205,3*($C$8-1)+4) * 100 -> 52.876 | L169: =VLOOKUP($H169,BNT_All!$A$5:$V$205,3*($C$8-1)+2) * 100 -> 94.981 | M169: =VLOOKUP($H169,BNT_All!$A$5:$V$205,3*($C$8-1)+3) * 100 -> 95.642 | N169: =VLOOKUP($H169,BNT_All!$A$5:$V$205,3*($C$8-1)+4) * 100 -> 96.048
H170: 145 | I170: =VLOOKUP($H170,TLNGS_All!$A$5:$V$205,3*($C$8-1)+2) * 100 -> 43.74 | J170: =VLOOKUP($H170,TLNGS_All!$A$5:$V$205,3*($C$8-1)+3) * 100 -> 48.746 | K170: =VLOOKUP($H170,TLNGS_All!$A$5:$V$205,3*($C$8-1)+4) * 100 -> 52.427 | L170: =VLOOKUP($H170,BNT_All!$A$5:$V$205,3*($C$8-1)+2) * 100 -> 95.035 | M170: =VLOOKUP($H170,BNT_All!$A$5:$V$205,3*($C$8-1)+3) * 100 -> 95.626 | N170: =VLOOKUP($H170,BNT_All!$A$5:$V$205,3*($C$8-1)+4) * 100 -> 96.005
H171: 146 | I171: =VLOOKUP($H171,TLNGS_All!$A$5:$V$205,3*($C$8-1)+2) * 100 -> 43.668 | J171: =VLOOKUP($H171,TLNGS_All!$A$5:$V$205,3*($C$8-1)+3) * 100 -> 48.851 | K171: =VLOOKUP($H171,TLNGS_All!$A$5:$V$205,3*($C$8-1)+4) * 100 -> 52.664 | L171: =VLOOKUP($H171,BNT_All!$A$5:$V$205,3*($C$8-1)+2) * 100 -> 95.025 | M171: =VLOOKUP($H171,BNT_All!$A$5:$V$205,3*($C$8-1)+3) * 100 -> 95.638 | N171: =VLOOKUP($H171,BNT_All!$A$5:$V$205,3*($C$8-1)+4) * 100 -> 96.028
H172: 147 | I172: =VLOOKUP($H172,TLNGS_All!$A$5:$V$205,3*($C$8-1)+2) * 100 -> 43.43 | J172: =VLOOKUP($H172,TLNGS_All!$A$5:$V$205,3*($C$8-1)+3) * 100 -> 48.556 | K172: =VLOOKUP($H172,TLNGS_All!$A$5:$V$205,3*($C$8-1)+4) * 100 -> 52.724 | L172: =VLOOKUP($H172,BNT_All!$A$5:$V$205,3*($C$8-1)+2) * 100 -> 94.995 | M172: =VLOOKUP($H172,BNT_All!$A$5:$V$205,3*($C$8-1)+3) * 100 -> 95.605 | N172: =VLOOKUP($H172,BNT_All!$A$5:$V$205,3*($C$8-1)+4) * 100 -> 96.034
H173: 148 | I173: =VLOOKUP($H173,TLNGS_All!$A$5:$V$205,3*($C$8-1)+2) * 100 -> 43.166 | J173: =VLOOKUP($H173,TLNGS_All!$A$5:$V$205,3*($C$8-1)+3) * 100 -> 48.717 | K173: =VLOOKUP($H173,TLNGS_All!$A$5:$V$205,3*($C$8-1)+4) * 100 -> 53.305 | L173: =VLOOKUP($H173,BNT_All!$A$5:$V$205,3*($C$8-1)+2) * 100 -> 94.96 | M173: =VLOOKUP($H173,BNT_All!$A$5:$V$205,3*($C$8-1)+3) * 100 -> 95.623 | N173: =VLOOKUP($H173,BNT_All!$A$5:$V$205,3*($C$8-1)+4) * 100 -> 96.089
H174: 149 | I174: =VLOOKUP($H174,TLNGS_All!$A$5:$V$205,3*($C$8-1)+2) * 100 -> 43.126 | J174: =VLOOKUP($H174,TLNGS_All!$A$5:$V$205,3*($C$8-1)+3) * 100 -> 48.584 | K174: =VLOOKUP($H174,TLNGS_All!$A$5:$V$205,3*($C$8-1)+4) * 100 -> 52.853 | L174: =VLOOKUP($H174,BNT_All!$A$5:$V$205,3*($C$8-1)+2) * 100 -> 94.955 | M174: =VLOOKUP($H174,BNT_All!$A$5:$V$205,3*($C$8-1)+3) * 100 -> 95.609 | N174: =VLOOKUP($H174,BNT_All!$A$5:$V$205,3*($C$8-1)+4) * 100 -> 96.046
H175: 150 | I175: =VLOOKUP($H175,TLNGS_All!$A$5:$V$205,3*($C$8-1)+2) * 100 -> 43.206 | J175: =VLOOKUP($H175,TLNGS_All!$A$5:$V$205,3*($C$8-1)+3) * 100 -> 48.648 | K175: =VLOOKUP($H175,TLNGS_All!$A$5:$V$205,3*($C$8-1)+4) * 100 -> 52.916 | L175: =VLOOKUP($H175,BNT_All!$A$5:$V$205,3*($C$8-1)+2) * 100 -> 94.965 | M175: =VLOOKUP($H175,BNT_All!$A$5:$V$205,3*($C$8-1)+3) * 100 -> 95.616 | N175: =VLOOKUP($H175,BNT_All!$A$5:$V$205,3*($C$8-1)+4) * 100 -> 96.052
H176: 151 | I176: =VLOOKUP($H176,TLNGS_All!$A$5:$V$205,3*($C$8-1)+2) * 100 -> 43.612 | J176: =VLOOKUP($H176,TLNGS_All!$A$5:$V$205,3*($C$8-1)+3) * 100 -> 48.763 | K176: =VLOOKUP($H176,TLNGS_All!$A$5:$V$205,3*($C$8-1)+4) * 100 -> 52.928 | L176: =VLOOKUP($H176,BNT_All!$A$5:$V$205,3*($C$8-1)+2) * 100 -> 95.018 | M176: =VLOOKUP($H176,BNT_All!$A$5:$V$205,3*($C$8-1)+3) * 100 -> 95.628 | N176: =VLOOKUP($H176,BNT_All!$A$5:$V$205,3*($C$8-1)+4) * 100 -> 96.053
H177: 152 | I177: =VLOOKUP($H177,TLNGS_All!$A$5:$V$205,3*($C$8-1)+2) * 100 -> 43.44 | J177: =VLOOKUP($H177,TLNGS_All!$A$5:$V$205,3*($C$8-1)+3) * 100 -> 48.814 | K177: =VLOOKUP($H177,TLNGS_All!$A$5:$V$205,3*($C$8-1)+4) * 100 -> 53.201 | L177: =VLOOKUP($H177,BNT_All!$A$5:$V$205,3*($C$8-1)+2) * 100 -> 94.996 | M177: =VLOOKUP($H177,BNT_All!$A$5:$V$205,3*($C$8-1)+3) * 100 -> 95.634 | N177: =VLOOKUP($H177,BNT_All!$A$5:$V$205,3*($C$8-1)+4) * 100 -> 96.079
H178: 153 | I178: =VLOOKUP($H178,TLNGS_All!$A$5:$V$205,3*($C$8-1)+2) * 100 -> 43.024 | J178: =VLOOKUP($H178,TLNGS_All!$A$5:$V$205,3*($C$8-1)+3) * 100 -> 48.642 | K178: =VLOOKUP($H178,TLNGS_All!$A$5:$V$205,3*($C$8-1)+4) * 100 -> 52.851 | L178: =VLOOKUP($H178,BNT_All!$A$5:$V$205,3*($C$8-1)+2) * 100 -> 94.941 | M178: =VLOOKUP($H178,BNT_All!$A$5:$V$205,3*($C$8-1)+3) * 100 -> 95.615 | N178: =VLOOKUP($H178,BNT_All!$A$5:$V$205,3*($C$8-1)+4) * 100 -> 96.046
H179: 154 | I179: =VLOOKUP($H179,TLNGS_All!$A$5:$V$205,3*($C$8-1)+2) * 100 -> 43.106 | J179: =VLOOKUP($H179,TLNGS_All!$A$5:$V$205,3*($C$8-1)+3) * 100 -> 48.461 | K179: =VLOOKUP($H179,TLNGS_All!$A$5:$V$205,3*($C$8-1)+4) * 100 -> 52.661 | L179: =VLOOKUP($H179,BNT_All!$A$5:$V$205,3*($C$8-1)+2) * 100 -> 94.952 | M179: =VLOOKUP($H179,BNT_All!$A$5:$V$205,3*($C$8-1)+3) * 100 -> 95.595 | N179: =VLOOKUP($H179,BNT_All!$A$5:$V$205,3*($C$8-1)+4) * 100 -> 96.028
H180: 155 | I180: =VLOOKUP($H180,TLNGS_All!$A$5:$V$205,3*($C$8-1)+2) * 100 -> 43.789 | J180: =VLOOKUP($H180,TLNGS_All!$A$5:$V$205,3*($C$8-1)+3) * 100 -> 48.889 | K180: =VLOOKUP($H180,TLNGS_All!$A$5:$V$205,3*($C$8-1)+4) * 100 -> 52.522 | L180: =VLOOKUP($H180,BNT_All!$A$5:$V$205,3*($C$8-1)+2) * 100 -> 95.041 | M180: =VLOOKUP($H180,BNT_All!$A$5:$V$205,3*($C$8-1)+3) * 100 -> 95.642 | N180: =VLOOKUP($H180,BNT_All!$A$5:$V$205,3*($C$8-1)+4) * 100 -> 96.014
H181: 156 | I181: =VLOOKUP($H181,TLNGS_All!$A$5:$V$205,3*($C$8-1)+2) * 100 -> 43.397 | J181: =VLOOKUP($H181,TLNGS_All!$A$5:$V$205,3*($C$8-1)+3) * 100 -> 48.949 | K181: =VLOOKUP($H181,TLNGS_All!$A$5:$V$205,3*($C$8-1)+4) * 100 -> 52.944 | L181: =VLOOKUP($H181,BNT_All!$A$5:$V$205,3*($C$8-1)+2) * 100 -> 94.99 | M181: =VLOOKUP($H181,BNT_All!$A$5:$V$205,3*($C$8-1)+3) * 100 -> 95.648 | N181: =VLOOKUP($H181,BNT_All!$A$5:$V$205,3*($C$8-1)+4) * 100 -> 96.055
H182: 157 | I182: =VLOOKUP($H182,TLNGS_All!$A$5:$V$205,3*($C$8-1)+2) * 100 -> 43.189 | J182: =VLOOKUP($H182,TLNGS_All!$A$5:$V$205,3*($C$8-1)+3) * 100 -> 48.668 | K182: =VLOOKUP($H182,TLNGS_All!$A$5:$V$205,3*($C$8-1)+4) * 100 -> 52.95 | L182: =VLOOKUP($H182,BNT_All!$A$5:$V$205,3*($C$8-1)+2) * 100 -> 94.963 | M182: =VLOOKUP($H182,BNT_All!$A$5:$V$205,3*($C$8-1)+3) * 100 -> 95.618 | N182: =VLOOKUP($H182,BNT_All!$A$5:$V$205,3*($C$8-1)+4) * 100 -> 96.055
H183: 158 | I183: =VLOOKUP($H183,TLNGS_All!$A$5:$V$205,3*($C$8-1)+2) * 100 -> 42.868 | J183: =VLOOKUP($H183,TLNGS_All!$A$5:$V$205,3*($C$8-1)+3) * 100 -> 48.724 | K183: =VLOOKUP($H183,TLNGS_All!$A$5:$V$205,3*($C$8-1)+4) * 100 -> 53.134 | L183: =VLOOKUP($H183,BNT_All!$A$5:$V$205,3*($C$8-1)+2) * 100 -> 94.92 | M183: =VLOOKUP($H183,BNT_All!$A$5:$V$205,3*($C$8-1)+3) * 100 -> 95.624 | N183: =VLOOKUP($H183,BNT_All!$A$5:$V$205,3*($C$8-1)+4) * 100 -> 96.073
H184: 159 | I184: =VLOOKUP($H184,TLNGS_All!$A$5:$V$205,3*($C$8-1)+2) * 100 -> 43.078 | J184: =VLOOKUP($H184,TLNGS_All!$A$5:$V$205,3*($C$8-1)+3) * 100 -> 48.449 | K184: =VLOOKUP($H184,TLNGS_All!$A$5:$V$205,3*($C$8-1)+4) * 100 -> 52.725 | L184: =VLOOKUP($H184,BNT_All!$A$5:$V$205,3*($C$8-1)+2) * 100 -> 94.948 | M184: =VLOOKUP($H184,BNT_All!$A$5:$V$205,3*($C$8-1)+3) * 100 -> 95.594 | N184: =VLOOKUP($H184,BNT_All!$A$5:$V$205,3*($C$8-1)+4) * 100 -> 96.034
H185: 160 | I185: =VLOOKUP($H185,TLNGS_All!$A$5:$V$205,3*($C$8-1)+2) * 100 -> 43.428 | J185: =VLOOKUP($H185,TLNGS_All!$A$5:$V$205,3*($C$8-1)+3) * 100 -> 48.58 | K185: =VLOOKUP($H185,TLNGS_All!$A$5:$V$205,3*($C$8-1)+4) * 100 -> 52.778 | L185: =VLOOKUP($H185,BNT_All!$A$5:$V$205,3*($C$8-1)+2) * 100 -> 94.994 | M185: =VLOOKUP($H185,BNT_All!$A$5:$V$205,3*($C$8-1)+3) * 100 -> 95.608 | N185: =VLOOKUP($H185,BNT_All!$A$5:$V$205,3*($C$8-1)+4) * 100 -> 96.039
H186: 161 | I186: =VLOOKUP($H186,TLNGS_All!$A$5:$V$205,3*($C$8-1)+2) * 100 -> 43.738 | J186: =VLOOKUP($H186,TLNGS_All!$A$5:$V$205,3*($C$8-1)+3) * 100 -> 48.658 | K186: =VLOOKUP($H186,TLNGS_All!$A$5:$V$205,3*($C$8-1)+4) * 100 -> 52.718 | L186: =VLOOKUP($H186,BNT_All!$A$5:$V$205,3*($C$8-1)+2) * 100 -> 95.034 | M186: =VLOOKUP($H186,BNT_All!$A$5:$V$205,3*($C$8-1)+3) * 100 -> 95.617 | N186: =VLOOKUP($H186,BNT_All!$A$5:$V$205,3*($C$8-1)+4) * 100 -> 96.033
H187: 162 | I187: =VLOOKUP($H187,TLNGS_All!$A$5:$V$205,3*($C$8-1)+2) * 100 -> 44.006 | J187: =VLOOKUP($H187,TLNGS_All!$A$5:$V$205,3*($C$8-1)+3) * 100 -> 48.805 | K187: =VLOOKUP($H187,TLNGS_All!$A$5:$V$205,3*($C$8-1)+4) * 100 -> 52.688 | L187: =VLOOKUP($H187,BNT_All!$A$5:$V$205,3*($C$8-1)+2) * 100 -> 95.069 | M187: =VLOOKUP($H187,BNT_All!$A$5:$V$205,3*($C$8-1)+3) * 100 -> 95.633 | N187: =VLOOKUP($H187,BNT_All!$A$5:$V$205,3*($C$8-1)+4) * 100 -> 96.03
H188: 163 | I188: =VLOOKUP($H188,TLNGS_All!$A$5:$V$205,3*($C$8-1)+2) * 100 -> 43.001 | J188: =VLOOKUP($H188,TLNGS_All!$A$5:$V$205,3*($C$8-1)+3) * 100 -> 48.881 | K188: =VLOOKUP($H188,TLNGS_All!$A$5:$V$205,3*($C$8-1)+4) * 100 -> 52.94 | L188: =VLOOKUP($H188,BNT_All!$A$5:$V$205,3*($C$8-1)+2) * 100 -> 94.938 | M188: =VLOOKUP($H188,BNT_All!$A$5:$V$205,3*($C$8-1)+3) * 100 -> 95.641 | N188: =VLOOKUP($H188,BNT_All!$A$5:$V$205,3*($C$8-1)+4) * 100 -> 96.054
H189: 164 | I189: =VLOOKUP($H189,TLNGS_All!$A$5:$V$205,3*($C$8-1)+2) * 100 -> 43.981 | J189: =VLOOKUP($H189,TLNGS_All!$A$5:$V$205,3*($C$8-1)+3) * 100 -> 48.634 | K189: =VLOOKUP($H189,TLNGS_All!$A$5:$V$205,3*($C$8-1)+4) * 100 -> 52.96 | L189: =VLOOKUP($H189,BNT_All!$A$5:$V$205,3*($C$8-1)+2) * 100 -> 95.066 | M189: =VLOOKUP($H189,BNT_All!$A$5:$V$205,3*($C$8-1)+3) * 100 -> 95.614 | N189: =VLOOKUP($H189,BNT_All!$A$5:$V$205,3*($C$8-1)+4) * 100 -> 96.056
H190: 165 | I190: =VLOOKUP($H190,TLNGS_All!$A$5:$V$205,3*($C$8-1)+2) * 100 -> 43.728 | J190: =VLOOKUP($H190,TLNGS_All!$A$5:$V$205,3*($C$8-1)+3) * 100 -> 48.621 | K190: =VLOOKUP($H190,TLNGS_All!$A$5:$V$205,3*($C$8-1)+4) * 100 -> 52.983 | L190: =VLOOKUP($H190,BNT_All!$A$5:$V$205,3*($C$8-1)+2) * 100 -> 95.033 | M190: =VLOOKUP($H190,BNT_All!$A$5:$V$205,3*($C$8-1)+3) * 100 -> 95.613 | N190: =VLOOKUP($H190,BNT_All!$A$5:$V$205,3*($C$8-1)+4) * 100 -> 96.059
H191: 166 | I191: =VLOOKUP($H191,TLNGS_All!$A$5:$V$205,3*($C$8-1)+2) * 100 -> 44.367 | J191: =VLOOKUP($H191,TLNGS_All!$A$5:$V$205,3*($C$8-1)+3) * 100 -> 48.81 | K191: =VLOOKUP($H191,TLNGS_All!$A$5:$V$205,3*($C$8-1)+4) * 100 -> 53.05 | L191: =VLOOKUP($H191,BNT_All!$A$5:$V$205,3*($C$8-1)+2) * 100 -> 95.115 | M191: =VLOOKUP($H191,BNT_All!$A$5:$V$205,3*($C$8-1)+3) * 100 -> 95.633 | N191: =VLOOKUP($H191,BNT_All!$A$5:$V$205,3*($C$8-1)+4) * 100 -> 96.065
H192: 167 | I192: =VLOOKUP($H192,TLNGS_All!$A$5:$V$205,3*($C$8-1)+2) * 100 -> 43.735 | J192: =VLOOKUP($H192,TLNGS_All!$A$5:$V$205,3*($C$8-1)+3) * 100 -> 48.877 | K192: =VLOOKUP($H192,TLNGS_All!$A$5:$V$205,3*($C$8-1)+4) * 100 -> 52.669 | L192: =VLOOKUP($H192,BNT_All!$A$5:$V$205,3*($C$8-1)+2) * 100 -> 95.034 | M192: =VLOOKUP($H192,BNT_All!$A$5:$V$205,3*($C$8-1)+3) * 100 -> 95.64 | N192: =VLOOKUP($H192,BNT_All!$A$5:$V$205,3*($C$8-1)+4) * 100 -> 96.028
H193: 168 | I193: =VLOOKUP($H193,TLNGS_All!$A$5:$V$205,3*($C$8-1)+2) * 100 -> 43.752 | J193: =VLOOKUP($H193,TLNGS_All!$A$5:$V$205,3*($C$8-1)+3) * 100 -> 48.527 | K193: =VLOOKUP($H193,TLNGS_All!$A$5:$V$205,3*($C$8-1)+4) * 100 -> 52.81 | L193: =VLOOKUP($H193,BNT_All!$A$5:$V$205,3*($C$8-1)+2) * 100 -> 95.036 | M193: =VLOOKUP($H193,BNT_All!$A$5:$V$205,3*($C$8-1)+3) * 100 -> 95.602 | N193: =VLOOKUP($H193,BNT_All!$A$5:$V$205,3*($C$8-1)+4) * 100 -> 96.042
H194: 169 | I194: =VLOOKUP($H194,TLNGS_All!$A$5:$V$205,3*($C$8-1)+2) * 100 -> 43.516 | J194: =VLOOKUP($H194,TLNGS_All!$A$5:$V$205,3*($C$8-1)+3) * 100 -> 48.877 | K194: =VLOOKUP($H194,TLNGS_All!$A$5:$V$205,3*($C$8-1)+4) * 100 -> 52.565 | L194: =VLOOKUP($H194,BNT_All!$A$5:$V$205,3*($C$8-1)+2) * 100 -> 95.006 | M194: =VLOOKUP($H194,BNT_All!$A$5:$V$205,3*($C$8-1)+3) * 100 -> 95.64 | N194: =VLOOKUP($H194,BNT_All!$A$5:$V$205,3*($C$8-1)+4) * 100 -> 96.018
H195: 170 | I195: =VLOOKUP($H195,TLNGS_All!$A$5:$V$205,3*($C$8-1)+2) * 100 -> 42.854 | J195: =VLOOKUP($H195,TLNGS_All!$A$5:$V$205,3*($C$8-1)+3) * 100 -> 48.586 | K195: =VLOOKUP($H195,TLNGS_All!$A$5:$V$205,3*($C$8-1)+4) * 100 -> 53.153 | L195: =VLOOKUP($H195,BNT_All!$A$5:$V$205,3*($C$8-1)+2) * 100 -> 94.919 | M195: =VLOOKUP($H195,BNT_All!$A$5:$V$205,3*($C$8-1)+3) * 100 -> 95.609 | N195: =VLOOKUP($H195,BNT_All!$A$5:$V$205,3*($C$8-1)+4) * 100 -> 96.075
H196: 171 | I196: =VLOOKUP($H196,TLNGS_All!$A$5:$V$205,3*($C$8-1)+2) * 100 -> 42.473 | J196: =VLOOKUP($H196,TLNGS_All!$A$5:$V$205,3*($C$8-1)+3) * 100 -> 48.489 | K196: =VLOOKUP($H196,TLNGS_All!$A$5:$V$205,3*($C$8-1)+4) * 100 -> 52.751 | L196: =VLOOKUP($H196,BNT_All!$A$5:$V$205,3*($C$8-1)+2) * 100 -> 94.867 | M196: =VLOOKUP($H196,BNT_All!$A$5:$V$205,3*($C$8-1)+3) * 100 -> 95.598 | N196: =VLOOKUP($H196,BNT_All!$A$5:$V$205,3*($C$8-1)+4) * 100 -> 96.036
H197: 172 | I197: =VLOOKUP($H197,TLNGS_All!$A$5:$V$205,3*($C$8-1)+2) * 100 -> 43.721 | J197: =VLOOKUP($H197,TLNGS_All!$A$5:$V$205,3*($C$8-1)+3) * 100 -> 48.641 | K197: =VLOOKUP($H197,TLNGS_All!$A$5:$V$205,3*($C$8-1)+4) * 100 -> 53.056 | L197: =VLOOKUP($H197,BNT_All!$A$5:$V$205,3*($C$8-1)+2) * 100 -> 95.032 | M197: =VLOOKUP($H197,BNT_All!$A$5:$V$205,3*($C$8-1)+3) * 100 -> 95.615 | N197: =VLOOKUP($H197,BNT_All!$A$5:$V$205,3*($C$8-1)+4) * 100 -> 96.066
H198: 173 | I198: =VLOOKUP($H198,TLNGS_All!$A$5:$V$205,3*($C$8-1)+2) * 100 -> 43.795 | J198: =VLOOKUP($H198,TLNGS_All!$A$5:$V$205,3*($C$8-1)+3) * 100 -> 48.789 | K198: =VLOOKUP($H198,TLNGS_All!$A$5:$V$205,3*($C$8-1)+4) * 100 -> 53.017 | L198: =VLOOKUP($H198,BNT_All!$A$5:$V$205,3*($C$8-1)+2) * 100 -> 95.042 | M198: =VLOOKUP($H198,BNT_All!$A$5:$V$205,3*($C$8-1)+3) * 100 -> 95.631 | N198: =VLOOKUP($H198,BNT_All!$A$5:$V$205,3*($C$8-1)+4) * 100 -> 96.062
H199: 174 | I199: =VLOOKUP($H199,TLNGS_All!$A$5:$V$205,3*($C$8-1)+2) * 100 -> 42.864 | J199: =VLOOKUP($H199,TLNGS_All!$A$5:$V$205,3*($C$8-1)+3) * 100 -> 48.229 | K199: =VLOOKUP($H199,TLNGS_All!$A$5:$V$205,3*($C$8-1)+4) * 100 -> 52.385 | L199: =VLOOKUP($H199,BNT_All!$A$5:$V$205,3*($C$8-1)+2) * 100 -> 94.92 | M199: =VLOOKUP($H199,BNT_All!$A$5:$V$205,3*($C$8-1)+3) * 100 -> 95.57 | N199: =VLOOKUP($H199,BNT_All!$A$5:$V$205,3*($C$8-1)+4) * 100 -> 96.001
H200: 175 | I200: =VLOOKUP($H200,TLNGS_All!$A$5:$V$205,3*($C$8-1)+2) * 100 -> 43.301 | J200: =VLOOKUP($H200,TLNGS_All!$A$5:$V$205,3*($C$8-1)+3) * 100 -> 48.679 | K200: =VLOOKUP($H200,TLNGS_All!$A$5:$V$205,3*($C$8-1)+4) * 100 -> 52.715 | L200: =VLOOKUP($H200,BNT_All!$A$5:$V$205,3*($C$8-1)+2) * 100 -> 94.978 | M200: =VLOOKUP($H200,BNT_All!$A$5:$V$205,3*($C$8-1)+3) * 100 -> 95.619 | N200: =VLOOKUP($H200,BNT_All!$A$5:$V$205,3*($C$8-1)+4) * 100 -> 96.033
H201: 176 | I201: =VLOOKUP($H201,TLNGS_All!$A$5:$V$205,3*($C$8-1)+2) * 100 -> 43.565 | J201: =VLOOKUP($H201,TLNGS_All!$A$5:$V$205,3*($C$8-1)+3) * 100 -> 48.757 | K201: =VLOOKUP($H201,TLNGS_All!$A$5:$V$205,3*($C$8-1)+4) * 100 -> 52.772 | L201: =VLOOKUP($H201,BNT_All!$A$5:$V$205,3*($C$8-1)+2) * 100 -> 95.012 | M201: =VLOOKUP($H201,BNT_All!$A$5:$V$205,3*($C$8-1)+3) * 100 -> 95.627 | N201: =VLOOKUP($H201,BNT_All!$A$5:$V$205,3*($C$8-1)+4) * 100 -> 96.038
H202: 177 | I202: =VLOOKUP($H202,TLNGS_All!$A$5:$V$205,3*($C$8-1)+2) * 100 -> 43.438 | J202: =VLOOKUP($H202,TLNGS_All!$A$5:$V$205,3*($C$8-1)+3) * 100 -> 48.812 | K202: =VLOOKUP($H202,TLNGS_All!$A$5:$V$205,3*($C$8-1)+4) * 100 -> 52.45 | L202: =VLOOKUP($H202,BNT_All!$A$5:$V$205,3*($C$8-1)+2) * 100 -> 94.996 | M202: =VLOOKUP($H202,BNT_All!$A$5:$V$205,3*($C$8-1)+3) * 100 -> 95.633 | N202: =VLOOKUP($H202,BNT_All!$A$5:$V$205,3*($C$8-1)+4) * 100 -> 96.007
H203: 178 | I203: =VLOOKUP($H203,TLNGS_All!$A$5:$V$205,3*($C$8-1)+2) * 100 -> 44.024 | J203: =VLOOKUP($H203,TLNGS_All!$A$5:$V$205,3*($C$8-1)+3) * 100 -> 48.658 | K203: =VLOOKUP($H203,TLNGS_All!$A$5:$V$205,3*($C$8-1)+4) * 100 -> 52.664 | L203: =VLOOKUP($H203,BNT_All!$A$5:$V$205,3*($C$8-1)+2) * 100 -> 95.071 | M203: =VLOOKUP($H203,BNT_All!$A$5:$V$205,3*($C$8-1)+3) * 100 -> 95.617 | N203: =VLOOKUP($H203,BNT_All!$A$5:$V$205,3*($C$8-1)+4) * 100 -> 96.028
H204: 179 | I204: =VLOOKUP($H204,TLNGS_All!$A$5:$V$205,3*($C$8-1)+2) * 100 -> 43.708 | J204: =VLOOKUP($H204,TLNGS_All!$A$5:$V$205,3*($C$8-1)+3) * 100 -> 48.591 | K204: =VLOOKUP($H204,TLNGS_All!$A$5:$V$205,3*($C$8-1)+4) * 100 -> 52.734 | L204: =VLOOKUP($H204,BNT_All!$A$5:$V$205,3*($C$8-1)+2) * 100 -> 95.03 | M204: =VLOOKUP($H204,BNT_All!$A$5:$V$205,3*($C$8-1)+3) * 100 -> 95.609 | N204: =VLOOKUP($H204,BNT_All!$A$5:$V$205,3*($C$8-1)+4) * 100 -> 96.035
H205: 180 | I205: =VLOOKUP($H205,TLNGS_All!$A$5:$V$205,3*($C$8-1)+2) * 100 -> 43.593 | J205: =VLOOKUP($H205,TLNGS_All!$A$5:$V$205,3*($C$8-1)+3) * 100 -> 48.62 | K205: =VLOOKUP($H205,TLNGS_All!$A$5:$V$205,3*($C$8-1)+4) * 100 -> 52.951 | L205: =VLOOKUP($H205,BNT_All!$A$5:$V$205,3*($C$8-1)+2) * 100 -> 95.016 | M205: =VLOOKUP($H205,BNT_All!$A$5:$V$205,3*($C$8-1)+3) * 100 -> 95.612 | N205: =VLOOKUP($H205,BNT_All!$A$5:$V$205,3*($C$8-1)+4) * 100 -> 96.055
H206: 181 | I206: =VLOOKUP($H206,TLNGS_All!$A$5:$V$205,3*($C$8-1)+2) * 100 -> 43.267 | J206: =VLOOKUP($H206,TLNGS_All!$A$5:$V$205,3*($C$8-1)+3) * 100 -> 48.648 | K206: =VLOOKUP($H206,TLNGS_All!$A$5:$V$205,3*($C$8-1)+4) * 100 -> 52.518 | L206: =VLOOKUP($H206,BNT_All!$A$5:$V$205,3*($C$8-1)+2) * 100 -> 94.973 | M206: =VLOOKUP($H206,BNT_All!$A$5:$V$205,3*($C$8-1)+3) * 100 -> 95.616 | N206: =VLOOKUP($H206,BNT_All!$A$5:$V$205,3*($C$8-1)+4) * 100 -> 96.014
H207: 182 | I207: =VLOOKUP($H207,TLNGS_All!$A$5:$V$205,3*($C$8-1)+2) * 100 -> 43.102 | J207: =VLOOKUP($H207,TLNGS_All!$A$5:$V$205,3*($C$8-1)+3) * 100 -> 48.673 | K207: =VLOOKUP($H207,TLNGS_All!$A$5:$V$205,3*($C$8-1)+4) * 100 -> 52.67 | L207: =VLOOKUP($H207,BNT_All!$A$5:$V$205,3*($C$8-1)+2) * 100 -> 94.951 | M207: =VLOOKUP($H207,BNT_All!$A$5:$V$205,3*($C$8-1)+3) * 100 -> 95.618 | N207: =VLOOKUP($H207,BNT_All!$A$5:$V$205,3*($C$8-1)+4) * 100 -> 96.028
... 17 more rows

Sheet TLNGS_All
B1: Values shown for constituent selected on PlotControl tab
B2: North Beach | E2: North Dam | H2: East Beach | K2: East Dam | N2: South Beach | Q2: South Dam | T2: Closure Beach
B3: Annual Project Results | E3: Annual Project Results | H3: Annual Project Results | K3: Annual Project Results | N3: Annual Project Results | Q3: Annual Project Results | T3: Annual Project Results
A4: Time | B4: P10 | C4: P50 | D4: P90 | E4: P10 | F4: P50 | G4: P90 | H4: P10 | I4: P50 | J4: P90 | K4: P10 | L4: P50 | M4: P90 | N4: P10 | O4: P50 | P4: P90 | Q4: P10 | R4: P50 | S4: P90 | T4: P10 | U4: P50 | V4: P90
A5: 0 | B5: =IF(PlotControl!$B$4 = "Annual Max",MAX(OFFSET(North!$C$10,12*$A5,0,12,1)),AVERAGE(OFFSET(North!$C$10,12*$A5,0,12,1))) -> 0.45 | C5: =IF(PlotControl!$B$4 = "Annual Max",MAX(OFFSET(North!$D$10,12*$A5,0,12,1)),AVERAGE(OFFSET(North!$D$10,12*$A5,0,12,1))) -> 0.45256 | D5: =IF(PlotControl!$B$4 = "Annual Max",MAX(OFFSET(North!$E$10,12*$A5,0,12,1)),AVERAGE(OFFSET(North!$E$10,12*$A5,0,12,1))) -> 0.45659 | E5: =IF(PlotControl!$B$4 = "Annual Max",MAX(OFFSET(North!$K$10,12*$A5,0,12,1)),AVERAGE(OFFSET(North!$K$10,12*$A5,0,12,1))) -> 0.48 | F5: =IF(PlotControl!$B$4 = "Annual Max",MAX(OFFSET(North!$L$10,12*$A5,0,12,1)),AVERAGE(OFFSET(North!$L$10,12*$A5,0,12,1))) -> 0.48407 | G5: =IF(PlotControl!$B$4 = "Annual Max",MAX(OFFSET(North!$M$10,12*$A5,0,12,1)),AVERAGE(OFFSET(North!$M$10,12*$A5,0,12,1))) -> 0.52414
A6: 1 | B6: =IF(PlotControl!$B$4 = "Annual Max",MAX(OFFSET(North!$C$10,12*$A6,0,12,1)),AVERAGE(OFFSET(North!$C$10,12*$A6,0,12,1))) -> 0.45379 | C6: =IF(PlotControl!$B$4 = "Annual Max",MAX(OFFSET(North!$D$10,12*$A6,0,12,1)),AVERAGE(OFFSET(North!$D$10,12*$A6,0,12,1))) -> 0.45913 | D6: =IF(PlotControl!$B$4 = "Annual Max",MAX(OFFSET(North!$E$10,12*$A6,0,12,1)),AVERAGE(OFFSET(North!$E$10,12*$A6,0,12,1))) -> 0.46375 | E6: =IF(PlotControl!$B$4 = "Annual Max",MAX(OFFSET(North!$K$10,12*$A6,0,12,1)),AVERAGE(OFFSET(North!$K$10,12*$A6,0,12,1))) -> 0.43503 | F6: =IF(PlotControl!$B$4 = "Annual Max",MAX(OFFSET(North!$L$10,12*$A6,0,12,1)),AVERAGE(OFFSET(North!$L$10,12*$A6,0,12,1))) -> 0.48456 | G6: =IF(PlotControl!$B$4 = "Annual Max",MAX(OFFSET(North!$M$10,12*$A6,0,12,1)),AVERAGE(OFFSET(North!$M$10,12*$A6,0,12,1))) -> 0.52816
A7: 2 | B7: =IF(PlotControl!$B$4 = "Annual Max",MAX(OFFSET(North!$C$10,12*$A7,0,12,1)),AVERAGE(OFFSET(North!$C$10,12*$A7,0,12,1))) -> 0.45641 | C7: =IF(PlotControl!$B$4 = "Annual Max",MAX(OFFSET(North!$D$10,12*$A7,0,12,1)),AVERAGE(OFFSET(North!$D$10,12*$A7,0,12,1))) -> 0.4619 | D7: =IF(PlotControl!$B$4 = "Annual Max",MAX(OFFSET(North!$E$10,12*$A7,0,12,1)),AVERAGE(OFFSET(North!$E$10,12*$A7,0,12,1))) -> 0.46659 | E7: =IF(PlotControl!$B$4 = "Annual Max",MAX(OFFSET(North!$K$10,12*$A7,0,12,1)),AVERAGE(OFFSET(North!$K$10,12*$A7,0,12,1))) -> 0.43276 | F7: =IF(PlotControl!$B$4 = "Annual Max",MAX(OFFSET(North!$L$10,12*$A7,0,12,1)),AVERAGE(OFFSET(North!$L$10,12*$A7,0,12,1))) -> 0.48488 | G7: =IF(PlotControl!$B$4 = "Annual Max",MAX(OFFSET(North!$M$10,12*$A7,0,12,1)),AVERAGE(OFFSET(North!$M$10,12*$A7,0,12,1))) -> 0.53298
A8: 3 | B8: =IF(PlotControl!$B$4 = "Annual Max",MAX(OFFSET(North!$C$10,12*$A8,0,12,1)),AVERAGE(OFFSET(North!$C$10,12*$A8,0,12,1))) -> 0.45815 | C8: =IF(PlotControl!$B$4 = "Annual Max",MAX(OFFSET(North!$D$10,12*$A8,0,12,1)),AVERAGE(OFFSET(North!$D$10,12*$A8,0,12,1))) -> 0.46369 | D8: =IF(PlotControl!$B$4 = "Annual Max",MAX(OFFSET(North!$E$10,12*$A8,0,12,1)),AVERAGE(OFFSET(North!$E$10,12*$A8,0,12,1))) -> 0.46878 | E8: =IF(PlotControl!$B$4 = "Annual Max",MAX(OFFSET(North!$K$10,12*$A8,0,12,1)),AVERAGE(OFFSET(North!$K$10,12*$A8,0,12,1))) -> 0.43063 | F8: =IF(PlotControl!$B$4 = "Annual Max",MAX(OFFSET(North!$L$10,12*$A8,0,12,1)),AVERAGE(OFFSET(North!$L$10,12*$A8,0,12,1))) -> 0.48359 | G8: =IF(PlotControl!$B$4 = "Annual Max",MAX(OFFSET(North!$M$10,12*$A8,0,12,1)),AVERAGE(OFFSET(North!$M$10,12*$A8,0,12,1))) -> 0.52569
A9: 4 | B9: =IF(PlotControl!$B$4 = "Annual Max",MAX(OFFSET(North!$C$10,12*$A9,0,12,1)),AVERAGE(OFFSET(North!$C$10,12*$A9,0,12,1))) -> 0.46054 | C9: =IF(PlotControl!$B$4 = "Annual Max",MAX(OFFSET(North!$D$10,12*$A9,0,12,1)),AVERAGE(OFFSET(North!$D$10,12*$A9,0,12,1))) -> 0.4664 | D9: =IF(PlotControl!$B$4 = "Annual Max",MAX(OFFSET(North!$E$10,12*$A9,0,12,1)),AVERAGE(OFFSET(North!$E$10,12*$A9,0,12,1))) -> 0.47088 | E9: =IF(PlotControl!$B$4 = "Annual Max",MAX(OFFSET(North!$K$10,12*$A9,0,12,1)),AVERAGE(OFFSET(North!$K$10,12*$A9,0,12,1))) -> 0.43738 | F9: =IF(PlotControl!$B$4 = "Annual Max",MAX(OFFSET(North!$L$10,12*$A9,0,12,1)),AVERAGE(OFFSET(North!$L$10,12*$A9,0,12,1))) -> 0.48615 | G9: =IF(PlotControl!$B$4 = "Annual Max",MAX(OFFSET(North!$M$10,12*$A9,0,12,1)),AVERAGE(OFFSET(North!$M$10,12*$A9,0,12,1))) -> 0.5285
A10: 5 | B10: =IF(PlotControl!$B$4 = "Annual Max",MAX(OFFSET(North!$C$10,12*$A10,0,12,1)),AVERAGE(OFFSET(North!$C$10,12*$A10,0,12,1))) -> 0.46181 | C10: =IF(PlotControl!$B$4 = "Annual Max",MAX(OFFSET(North!$D$10,12*$A10,0,12,1)),AVERAGE(OFFSET(North!$D$10,12*$A10,0,12,1))) -> 0.46805 | D10: =IF(PlotControl!$B$4 = "Annual Max",MAX(OFFSET(North!$E$10,12*$A10,0,12,1)),AVERAGE(OFFSET(North!$E$10,12*$A10,0,12,1))) -> 0.47254 | E10: =IF(PlotControl!$B$4 = "Annual Max",MAX(OFFSET(North!$K$10,12*$A10,0,12,1)),AVERAGE(OFFSET(North!$K$10,12*$A10,0,12,1))) -> 0.44048 | F10: =IF(PlotControl!$B$4 = "Annual Max",MAX(OFFSET(North!$L$10,12*$A10,0,12,1)),AVERAGE(OFFSET(North!$L$10,12*$A10,0,12,1))) -> 0.48849 | G10: =IF(PlotControl!$B$4 = "Annual Max",MAX(OFFSET(North!$M$10,12*$A10,0,12,1)),AVERAGE(OFFSET(North!$M$10,12*$A10,0,12,1))) -> 0.52964
A11: 6 | B11: =IF(PlotControl!$B$4 = "Annual Max",MAX(OFFSET(North!$C$10,12*$A11,0,12,1)),AVERAGE(OFFSET(North!$C$10,12*$A11,0,12,1))) -> 0.46422 | C11: =IF(PlotControl!$B$4 = "Annual Max",MAX(OFFSET(North!$D$10,12*$A11,0,12,1)),AVERAGE(OFFSET(North!$D$10,12*$A11,0,12,1))) -> 0.46938 | D11: =IF(PlotControl!$B$4 = "Annual Max",MAX(OFFSET(North!$E$10,12*$A11,0,12,1)),AVERAGE(OFFSET(North!$E$10,12*$A11,0,12,1))) -> 0.47426 | E11: =IF(PlotControl!$B$4 = "Annual Max",MAX(OFFSET(North!$K$10,12*$A11,0,12,1)),AVERAGE(OFFSET(North!$K$10,12*$A11,0,12,1))) -> 0.43607 | F11: =IF(PlotControl!$B$4 = "Annual Max",MAX(OFFSET(North!$L$10,12*$A11,0,12,1)),AVERAGE(OFFSET(North!$L$10,12*$A11,0,12,1))) -> 0.48555 | G11: =IF(PlotControl!$B$4 = "Annual Max",MAX(OFFSET(North!$M$10,12*$A11,0,12,1)),AVERAGE(OFFSET(North!$M$10,12*$A11,0,12,1))) -> 0.53021
A12: 7 | B12: =IF(PlotControl!$B$4 = "Annual Max",MAX(OFFSET(North!$C$10,12*$A12,0,12,1)),AVERAGE(OFFSET(North!$C$10,12*$A12,0,12,1))) -> 0.46618 | C12: =IF(PlotControl!$B$4 = "Annual Max",MAX(OFFSET(North!$D$10,12*$A12,0,12,1)),AVERAGE(OFFSET(North!$D$10,12*$A12,0,12,1))) -> 0.4709 | D12: =IF(PlotControl!$B$4 = "Annual Max",MAX(OFFSET(North!$E$10,12*$A12,0,12,1)),AVERAGE(OFFSET(North!$E$10,12*$A12,0,12,1))) -> 0.4751 | E12: =IF(PlotControl!$B$4 = "Annual Max",MAX(OFFSET(North!$K$10,12*$A12,0,12,1)),AVERAGE(OFFSET(North!$K$10,12*$A12,0,12,1))) -> 0.43599 | F12: =IF(PlotControl!$B$4 = "Annual Max",MAX(OFFSET(North!$L$10,12*$A12,0,12,1)),AVERAGE(OFFSET(North!$L$10,12*$A12,0,12,1))) -> 0.48419 | G12: =IF(PlotControl!$B$4 = "Annual Max",MAX(OFFSET(North!$M$10,12*$A12,0,12,1)),AVERAGE(OFFSET(North!$M$10,12*$A12,0,12,1))) -> 0.52713 | H12: =IF(PlotControl!$B$4 = "Annual Max",MAX(OFFSET(East!$C$10,12*$A12,0,12,1)),AVERAGE(OFFSET(East!$C$10,12*$A12,0,12,1))) -> 0.2398 | I12: =IF(PlotControl!$B$4 = "Annual Max",MAX(OFFSET(East!$D$10,12*$A12,0,12,1)),AVERAGE(OFFSET(East!$D$10,12*$A12,0,12,1))) -> 0.24943 | J12: =IF(PlotControl!$B$4 = "Annual Max",MAX(OFFSET(East!$E$10,12*$A12,0,12,1)),AVERAGE(OFFSET(East!$E$10,12*$A12,0,12,1))) -> 0.25908 | K12: =IF(PlotControl!$B$4 = "Annual Max",MAX(OFFSET(East!$K$10,12*$A12,0,12,1)),AVERAGE(OFFSET(East!$K$10,12*$A12,0,12,1))) -> 0.48 | L12: =IF(PlotControl!$B$4 = "Annual Max",MAX(OFFSET(East!$L$10,12*$A12,0,12,1)),AVERAGE(OFFSET(East!$L$10,12*$A12,0,12,1))) -> 0.4846 | M12: =IF(PlotControl!$B$4 = "Annual Max",MAX(OFFSET(East!$M$10,12*$A12,0,12,1)),AVERAGE(OFFSET(East!$M$10,12*$A12,0,12,1))) -> 0.52609 | N12: =IF(PlotControl!$B$4 = "Annual Max",MAX(OFFSET(South!$C$10,12*$A12,0,12,1)),AVERAGE(OFFSET(South!$C$10,12*$A12,0,12,1))) -> 0.29692 | O12: =IF(PlotControl!$B$4 = "Annual Max",MAX(OFFSET(South!$D$10,12*$A12,0,12,1)),AVERAGE(OFFSET(South!$D$10,12*$A12,0,12,1))) -> 0.30359 | P12: =IF(PlotControl!$B$4 = "Annual Max",MAX(OFFSET(South!$E$10,12*$A12,0,12,1)),AVERAGE(OFFSET(South!$E$10,12*$A12,0,12,1))) -> 0.30997 | Q12: =IF(PlotControl!$B$4 = "Annual Max",MAX(OFFSET(South!$K$10,12*$A12,0,12,1)),AVERAGE(OFFSET(South!$K$10,12*$A12,0,12,1))) -> 0.48 | R12: =IF(PlotControl!$B$4 = "Annual Max",MAX(OFFSET(South!$L$10,12*$A12,0,12,1)),AVERAGE(OFFSET(South!$L$10,12*$A12,0,12,1))) -> 0.4846 | S12: =IF(PlotControl!$B$4 = "Annual Max",MAX(OFFSET(South!$M$10,12*$A12,0,12,1)),AVERAGE(OFFSET(South!$M$10,12*$A12,0,12,1))) -> 0.52609
A13: 8 | B13: =IF(PlotControl!$B$4 = "Annual Max",MAX(OFFSET(North!$C$10,12*$A13,0,12,1)),AVERAGE(OFFSET(North!$C$10,12*$A13,0,12,1))) -> 0.37576 | C13: =IF(PlotControl!$B$4 = "Annual Max",MAX(OFFSET(North!$D$10,12*$A13,0,12,1)),AVERAGE(OFFSET(North!$D$10,12*$A13,0,12,1))) -> 0.38679 | D13: =IF(PlotControl!$B$4 = "Annual Max",MAX(OFFSET(North!$E$10,12*$A13,0,12,1)),AVERAGE(OFFSET(North!$E$10,12*$A13,0,12,1))) -> 0.39558 | E13: =IF(PlotControl!$B$4 = "Annual Max",MAX(OFFSET(North!$K$10,12*$A13,0,12,1)),AVERAGE(OFFSET(North!$K$10,12*$A13,0,12,1))) -> 0.43743 | F13: =IF(PlotControl!$B$4 = "Annual Max",MAX(OFFSET(North!$L$10,12*$A13,0,12,1)),AVERAGE(OFFSET(North!$L$10,12*$A13,0,12,1))) -> 0.4856 | G13: =IF(PlotControl!$B$4 = "Annual Max",MAX(OFFSET(North!$M$10,12*$A13,0,12,1)),AVERAGE(OFFSET(North!$M$10,12*$A13,0,12,1))) -> 0.53028 | H13: =IF(PlotControl!$B$4 = "Annual Max",MAX(OFFSET(East!$C$10,12*$A13,0,12,1)),AVERAGE(OFFSET(East!$C$10,12*$A13,0,12,1))) -> 0.23764 | I13: =IF(PlotControl!$B$4 = "Annual Max",MAX(OFFSET(East!$D$10,12*$A13,0,12,1)),AVERAGE(OFFSET(East!$D$10,12*$A13,0,12,1))) -> 0.25886 | J13: =IF(PlotControl!$B$4 = "Annual Max",MAX(OFFSET(East!$E$10,12*$A13,0,12,1)),AVERAGE(OFFSET(East!$E$10,12*$A13,0,12,1))) -> 0.28895 | K13: =IF(PlotControl!$B$4 = "Annual Max",MAX(OFFSET(East!$K$10,12*$A13,0,12,1)),AVERAGE(OFFSET(East!$K$10,12*$A13,0,12,1))) -> 0.43743 | L13: =IF(PlotControl!$B$4 = "Annual Max",MAX(OFFSET(East!$L$10,12*$A13,0,12,1)),AVERAGE(OFFSET(East!$L$10,12*$A13,0,12,1))) -> 0.4856 | M13: =IF(PlotControl!$B$4 = "Annual Max",MAX(OFFSET(East!$M$10,12*$A13,0,12,1)),AVERAGE(OFFSET(East!$M$10,12*$A13,0,12,1))) -> 0.53028 | N13: =IF(PlotControl!$B$4 = "Annual Max",MAX(OFFSET(South!$C$10,12*$A13,0,12,1)),AVERAGE(OFFSET(South!$C$10,12*$A13,0,12,1))) -> 0.32123 | O13: =IF(PlotControl!$B$4 = "Annual Max",MAX(OFFSET(South!$D$10,12*$A13,0,12,1)),AVERAGE(OFFSET(South!$D$10,12*$A13,0,12,1))) -> 0.33512 | P13: =IF(PlotControl!$B$4 = "Annual Max",MAX(OFFSET(South!$E$10,12*$A13,0,12,1)),AVERAGE(OFFSET(South!$E$10,12*$A13,0,12,1))) -> 0.34794 | Q13: =IF(PlotControl!$B$4 = "Annual Max",MAX(OFFSET(South!$K$10,12*$A13,0,12,1)),AVERAGE(OFFSET(South!$K$10,12*$A13,0,12,1))) -> 0.43743 | R13: =IF(PlotControl!$B$4 = "Annual Max",MAX(OFFSET(South!$L$10,12*$A13,0,12,1)),AVERAGE(OFFSET(South!$L$10,12*$A13,0,12,1))) -> 0.4856 | S13: =IF(PlotControl!$B$4 = "Annual Max",MAX(OFFSET(South!$M$10,12*$A13,0,12,1)),AVERAGE(OFFSET(South!$M$10,12*$A13,0,12,1))) -> 0.53028
A14: 9 | B14: =IF(PlotControl!$B$4 = "Annual Max",MAX(OFFSET(North!$C$10,12*$A14,0,12,1)),AVERAGE(OFFSET(North!$C$10,12*$A14,0,12,1))) -> 0.34608 | C14: =IF(PlotControl!$B$4 = "Annual Max",MAX(OFFSET(North!$D$10,12*$A14,0,12,1)),AVERAGE(OFFSET(North!$D$10,12*$A14,0,12,1))) -> 0.35984 | D14: =IF(PlotControl!$B$4 = "Annual Max",MAX(OFFSET(North!$E$10,12*$A14,0,12,1)),AVERAGE(OFFSET(North!$E$10,12*$A14,0,12,1))) -> 0.37143 | E14: =IF(PlotControl!$B$4 = "Annual Max",MAX(OFFSET(North!$K$10,12*$A14,0,12,1)),AVERAGE(OFFSET(North!$K$10,12*$A14,0,12,1))) -> 0.43832 | F14: =IF(PlotControl!$B$4 = "Annual Max",MAX(OFFSET(North!$L$10,12*$A14,0,12,1)),AVERAGE(OFFSET(North!$L$10,12*$A14,0,12,1))) -> 0.48707 | G14: =IF(PlotControl!$B$4 = "Annual Max",MAX(OFFSET(North!$M$10,12*$A14,0,12,1)),AVERAGE(OFFSET(North!$M$10,12*$A14,0,12,1))) -> 0.52686 | H14: =IF(PlotControl!$B$4 = "Annual Max",MAX(OFFSET(East!$C$10,12*$A14,0,12,1)),AVERAGE(OFFSET(East!$C$10,12*$A14,0,12,1))) -> 0.24499 | I14: =IF(PlotControl!$B$4 = "Annual Max",MAX(OFFSET(East!$D$10,12*$A14,0,12,1)),AVERAGE(OFFSET(East!$D$10,12*$A14,0,12,1))) -> 0.26463 | J14: =IF(PlotControl!$B$4 = "Annual Max",MAX(OFFSET(East!$E$10,12*$A14,0,12,1)),AVERAGE(OFFSET(East!$E$10,12*$A14,0,12,1))) -> 0.29577 | K14: =IF(PlotControl!$B$4 = "Annual Max",MAX(OFFSET(East!$K$10,12*$A14,0,12,1)),AVERAGE(OFFSET(East!$K$10,12*$A14,0,12,1))) -> 0.43832 | L14: =IF(PlotControl!$B$4 = "Annual Max",MAX(OFFSET(East!$L$10,12*$A14,0,12,1)),AVERAGE(OFFSET(East!$L$10,12*$A14,0,12,1))) -> 0.48707 | M14: =IF(PlotControl!$B$4 = "Annual Max",MAX(OFFSET(East!$M$10,12*$A14,0,12,1)),AVERAGE(OFFSET(East!$M$10,12*$A14,0,12,1))) -> 0.52686 | N14: =IF(PlotControl!$B$4 = "Annual Max",MAX(OFFSET(South!$C$10,12*$A14,0,12,1)),AVERAGE(OFFSET(South!$C$10,12*$A14,0,12,1))) -> 0.33205 | O14: =IF(PlotControl!$B$4 = "Annual Max",MAX(OFFSET(South!$D$10,12*$A14,0,12,1)),AVERAGE(OFFSET(South!$D$10,12*$A14,0,12,1))) -> 0.34602 | P14: =IF(PlotControl!$B$4 = "Annual Max",MAX(OFFSET(South!$E$10,12*$A14,0,12,1)),AVERAGE(OFFSET(South!$E$10,12*$A14,0,12,1))) -> 0.35994 | Q14: =IF(PlotControl!$B$4 = "Annual Max",MAX(OFFSET(South!$K$10,12*$A14,0,12,1)),AVERAGE(OFFSET(South!$K$10,12*$A14,0,12,1))) -> 0.43832 | R14: =IF(PlotControl!$B$4 = "Annual Max",MAX(OFFSET(South!$L$10,12*$A14,0,12,1)),AVERAGE(OFFSET(South!$L$10,12*$A14,0,12,1))) -> 0.48707 | S14: =IF(PlotControl!$B$4 = "Annual Max",MAX(OFFSET(South!$M$10,12*$A14,0,12,1)),AVERAGE(OFFSET(South!$M$10,12*$A14,0,12,1))) -> 0.52686
A15: 10 | B15: =IF(PlotControl!$B$4 = "Annual Max",MAX(OFFSET(North!$C$10,12*$A15,0,12,1)),AVERAGE(OFFSET(North!$C$10,12*$A15,0,12,1))) -> 0.33556 | C15: =IF(PlotControl!$B$4 = "Annual Max",MAX(OFFSET(North!$D$10,12*$A15,0,12,1)),AVERAGE(OFFSET(North!$D$10,12*$A15,0,12,1))) -> 0.35053 | D15: =IF(PlotControl!$B$4 = "Annual Max",MAX(OFFSET(North!$E$10,12*$A15,0,12,1)),AVERAGE(OFFSET(North!$E$10,12*$A15,0,12,1))) -> 0.36159 | E15: =IF(PlotControl!$B$4 = "Annual Max",MAX(OFFSET(North!$K$10,12*$A15,0,12,1)),AVERAGE(OFFSET(North!$K$10,12*$A15,0,12,1))) -> 0.43542 | F15: =IF(PlotControl!$B$4 = "Annual Max",MAX(OFFSET(North!$L$10,12*$A15,0,12,1)),AVERAGE(OFFSET(North!$L$10,12*$A15,0,12,1))) -> 0.48887 | G15: =IF(PlotControl!$B$4 = "Annual Max",MAX(OFFSET(North!$M$10,12*$A15,0,12,1)),AVERAGE(OFFSET(North!$M$10,12*$A15,0,12,1))) -> 0.52876 | H15: =IF(PlotControl!$B$4 = "Annual Max",MAX(OFFSET(East!$C$10,12*$A15,0,12,1)),AVERAGE(OFFSET(East!$C$10,12*$A15,0,12,1))) -> 0.25082 | I15: =IF(PlotControl!$B$4 = "Annual Max",MAX(OFFSET(East!$D$10,12*$A15,0,12,1)),AVERAGE(OFFSET(East!$D$10,12*$A15,0,12,1))) -> 0.26956 | J15: =IF(PlotControl!$B$4 = "Annual Max",MAX(OFFSET(East!$E$10,12*$A15,0,12,1)),AVERAGE(OFFSET(East!$E$10,12*$A15,0,12,1))) -> 0.29996 | K15: =IF(PlotControl!$B$4 = "Annual Max",MAX(OFFSET(East!$K$10,12*$A15,0,12,1)),AVERAGE(OFFSET(East!$K$10,12*$A15,0,12,1))) -> 0.43542 | L15: =IF(PlotControl!$B$4 = "Annual Max",MAX(OFFSET(East!$L$10,12*$A15,0,12,1)),AVERAGE(OFFSET(East!$L$10,12*$A15,0,12,1))) -> 0.48887 | M15: =IF(PlotControl!$B$4 = "Annual Max",MAX(OFFSET(East!$M$10,12*$A15,0,12,1)),AVERAGE(OFFSET(East!$M$10,12*$A15,0,12,1))) -> 0.52876 | N15: =IF(PlotControl!$B$4 = "Annual Max",MAX(OFFSET(South!$C$10,12*$A15,0,12,1)),AVERAGE(OFFSET(South!$C$10,12*$A15,0,12,1))) -> 0.34161 | O15: =IF(PlotControl!$B$4 = "Annual Max",MAX(OFFSET(South!$D$10,12*$A15,0,12,1)),AVERAGE(OFFSET(South!$D$10,12*$A15,0,12,1))) -> 0.35442 | P15: =IF(PlotControl!$B$4 = "Annual Max",MAX(OFFSET(South!$E$10,12*$A15,0,12,1)),AVERAGE(OFFSET(South!$E$10,12*$A15,0,12,1))) -> 0.36735 | Q15: =IF(PlotControl!$B$4 = "Annual Max",MAX(OFFSET(South!$K$10,12*$A15,0,12,1)),AVERAGE(OFFSET(South!$K$10,12*$A15,0,12,1))) -> 0.43542 | R15: =IF(PlotControl!$B$4 = "Annual Max",MAX(OFFSET(South!$L$10,12*$A15,0,12,1)),AVERAGE(OFFSET(South!$L$10,12*$A15,0,12,1))) -> 0.48887 | S15: =IF(PlotControl!$B$4 = "Annual Max",MAX(OFFSET(South!$M$10,12*$A15,0,12,1)),AVERAGE(OFFSET(South!$M$10,12*$A15,0,12,1))) -> 0.52876
A16: 11 | B16: =IF(PlotControl!$B$4 = "Annual Max",MAX(OFFSET(North!$C$10,12*$A16,0,12,1)),AVERAGE(OFFSET(North!$C$10,12*$A16,0,12,1))) -> 0.33015 | C16: =IF(PlotControl!$B$4 = "Annual Max",MAX(OFFSET(North!$D$10,12*$A16,0,12,1)),AVERAGE(OFFSET(North!$D$10,12*$A16,0,12,1))) -> 0.34687 | D16: =IF(PlotControl!$B$4 = "Annual Max",MAX(OFFSET(North!$E$10,12*$A16,0,12,1)),AVERAGE(OFFSET(North!$E$10,12*$A16,0,12,1))) -> 0.35805 | E16: =IF(PlotControl!$B$4 = "Annual Max",MAX(OFFSET(North!$K$10,12*$A16,0,12,1)),AVERAGE(OFFSET(North!$K$10,12*$A16,0,12,1))) -> 0.43236 | F16: =IF(PlotControl!$B$4 = "Annual Max",MAX(OFFSET(North!$L$10,12*$A16,0,12,1)),AVERAGE(OFFSET(North!$L$10,12*$A16,0,12,1))) -> 0.48442 | G16: =IF(PlotControl!$B$4 = "Annual Max",MAX(OFFSET(North!$M$10,12*$A16,0,12,1)),AVERAGE(OFFSET(North!$M$10,12*$A16,0,12,1))) -> 0.52736 | H16: =IF(PlotControl!$B$4 = "Annual Max",MAX(OFFSET(East!$C$10,12*$A16,0,12,1)),AVERAGE(OFFSET(East!$C$10,12*$A16,0,12,1))) -> 0.25225 | I16: =IF(PlotControl!$B$4 = "Annual Max",MAX(OFFSET(East!$D$10,12*$A16,0,12,1)),AVERAGE(OFFSET(East!$D$10,12*$A16,0,12,1))) -> 0.27168 | J16: =IF(PlotControl!$B$4 = "Annual Max",MAX(OFFSET(East!$E$10,12*$A16,0,12,1)),AVERAGE(OFFSET(East!$E$10,12*$A16,0,12,1))) -> 0.30439 | K16: =IF(PlotControl!$B$4 = "Annual Max",MAX(OFFSET(East!$K$10,12*$A16,0,12,1)),AVERAGE(OFFSET(East!$K$10,12*$A16,0,12,1))) -> 0.43236 | L16: =IF(PlotControl!$B$4 = "Annual Max",MAX(OFFSET(East!$L$10,12*$A16,0,12,1)),AVERAGE(OFFSET(East!$L$10,12*$A16,0,12,1))) -> 0.48442 | M16: =IF(PlotControl!$B$4 = "Annual Max",MAX(OFFSET(East!$M$10,12*$A16,0,12,1)),AVERAGE(OFFSET(East!$M$10,12*$A16,0,12,1))) -> 0.52736 | N16: =IF(PlotControl!$B$4 = "Annual Max",MAX(OFFSET(South!$C$10,12*$A16,0,12,1)),AVERAGE(OFFSET(South!$C$10,12*$A16,0,12,1))) -> 0.34339 | O16: =IF(PlotControl!$B$4 = "Annual Max",MAX(OFFSET(South!$D$10,12*$A16,0,12,1)),AVERAGE(OFFSET(South!$D$10,12*$A16,0,12,1))) -> 0.35703 | P16: =IF(PlotControl!$B$4 = "Annual Max",MAX(OFFSET(South!$E$10,12*$A16,0,12,1)),AVERAGE(OFFSET(South!$E$10,12*$A16,0,12,1))) -> 0.37013 | Q16: =IF(PlotControl!$B$4 = "Annual Max",MAX(OFFSET(South!$K$10,12*$A16,0,12,1)),AVERAGE(OFFSET(South!$K$10,12*$A16,0,12,1))) -> 0.43236 | R16: =IF(PlotControl!$B$4 = "Annual Max",MAX(OFFSET(South!$L$10,12*$A16,0,12,1)),AVERAGE(OFFSET(South!$L$10,12*$A16,0,12,1))) -> 0.48442 | S16: =IF(PlotControl!$B$4 = "Annual Max",MAX(OFFSET(South!$M$10,12*$A16,0,12,1)),AVERAGE(OFFSET(South!$M$10,12*$A16,0,12,1))) -> 0.52736
A17: 12 | B17: =IF(PlotControl!$B$4 = "Annual Max",MAX(OFFSET(North!$C$10,12*$A17,0,12,1)),AVERAGE(OFFSET(North!$C$10,12*$A17,0,12,1))) -> 0.32897 | C17: =IF(PlotControl!$B$4 = "Annual Max",MAX(OFFSET(North!$D$10,12*$A17,0,12,1)),AVERAGE(OFFSET(North!$D$10,12*$A17,0,12,1))) -> 0.34605 | D17: =IF(PlotControl!$B$4 = "Annual Max",MAX(OFFSET(North!$E$10,12*$A17,0,12,1)),AVERAGE(OFFSET(North!$E$10,12*$A17,0,12,1))) -> 0.35601 | E17: =IF(PlotControl!$B$4 = "Annual Max",MAX(OFFSET(North!$K$10,12*$A17,0,12,1)),AVERAGE(OFFSET(North!$K$10,12*$A17,0,12,1))) -> 0.4359 | F17: =IF(PlotControl!$B$4 = "Annual Max",MAX(OFFSET(North!$L$10,12*$A17,0,12,1)),AVERAGE(OFFSET(North!$L$10,12*$A17,0,12,1))) -> 0.48524 | G17: =IF(PlotControl!$B$4 = "Annual Max",MAX(OFFSET(North!$M$10,12*$A17,0,12,1)),AVERAGE(OFFSET(North!$M$10,12*$A17,0,12,1))) -> 0.52514 | H17: =IF(PlotControl!$B$4 = "Annual Max",MAX(OFFSET(East!$C$10,12*$A17,0,12,1)),AVERAGE(OFFSET(East!$C$10,12*$A17,0,12,1))) -> 0.257 | I17: =IF(PlotControl!$B$4 = "Annual Max",MAX(OFFSET(East!$D$10,12*$A17,0,12,1)),AVERAGE(OFFSET(East!$D$10,12*$A17,0,12,1))) -> 0.2747 | J17: =IF(PlotControl!$B$4 = "Annual Max",MAX(OFFSET(East!$E$10,12*$A17,0,12,1)),AVERAGE(OFFSET(East!$E$10,12*$A17,0,12,1))) -> 0.30577 | K17: =IF(PlotControl!$B$4 = "Annual Max",MAX(OFFSET(East!$K$10,12*$A17,0,12,1)),AVERAGE(OFFSET(East!$K$10,12*$A17,0,12,1))) -> 0.4359 | L17: =IF(PlotControl!$B$4 = "Annual Max",MAX(OFFSET(East!$L$10,12*$A17,0,12,1)),AVERAGE(OFFSET(East!$L$10,12*$A17,0,12,1))) -> 0.48524 | M17: =IF(PlotControl!$B$4 = "Annual Max",MAX(OFFSET(East!$M$10,12*$A17,0,12,1)),AVERAGE(OFFSET(East!$M$10,12*$A17,0,12,1))) -> 0.52514 | N17: =IF(PlotControl!$B$4 = "Annual Max",MAX(OFFSET(South!$C$10,12*$A17,0,12,1)),AVERAGE(OFFSET(South!$C$10,12*$A17,0,12,1))) -> 0.34354 | O17: =IF(PlotControl!$B$4 = "Annual Max",MAX(OFFSET(South!$D$10,12*$A17,0,12,1)),AVERAGE(OFFSET(South!$D$10,12*$A17,0,12,1))) -> 0.35704 | P17: =IF(PlotControl!$B$4 = "Annual Max",MAX(OFFSET(South!$E$10,12*$A17,0,12,1)),AVERAGE(OFFSET(South!$E$10,12*$A17,0,12,1))) -> 0.36932 | Q17: =IF(PlotControl!$B$4 = "Annual Max",MAX(OFFSET(South!$K$10,12*$A17,0,12,1)),AVERAGE(OFFSET(South!$K$10,12*$A17,0,12,1))) -> 0.4359 | R17: =IF(PlotControl!$B$4 = "Annual Max",MAX(OFFSET(South!$L$10,12*$A17,0,12,1)),AVERAGE(OFFSET(South!$L$10,12*$A17,0,12,1))) -> 0.48524 | S17: =IF(PlotControl!$B$4 = "Annual Max",MAX(OFFSET(South!$M$10,12*$A17,0,12,1)),AVERAGE(OFFSET(South!$M$10,12*$A17,0,12,1))) -> 0.52514
A18: 13 | B18: =IF(PlotControl!$B$4 = "Annual Max",MAX(OFFSET(North!$C$10,12*$A18,0,12,1)),AVERAGE(OFFSET(North!$C$10,12*$A18,0,12,1))) -> 0.32865 | C18: =IF(PlotControl!$B$4 = "Annual Max",MAX(OFFSET(North!$D$10,12*$A18,0,12,1)),AVERAGE(OFFSET(North!$D$10,12*$A18,0,12,1))) -> 0.34589 | D18: =IF(PlotControl!$B$4 = "Annual Max",MAX(OFFSET(North!$E$10,12*$A18,0,12,1)),AVERAGE(OFFSET(North!$E$10,12*$A18,0,12,1))) -> 0.35622 | E18: =IF(PlotControl!$B$4 = "Annual Max",MAX(OFFSET(North!$K$10,12*$A18,0,12,1)),AVERAGE(OFFSET(North!$K$10,12*$A18,0,12,1))) -> 0.43833 | F18: =IF(PlotControl!$B$4 = "Annual Max",MAX(OFFSET(North!$L$10,12*$A18,0,12,1)),AVERAGE(OFFSET(North!$L$10,12*$A18,0,12,1))) -> 0.48707 | G18: =IF(PlotControl!$B$4 = "Annual Max",MAX(OFFSET(North!$M$10,12*$A18,0,12,1)),AVERAGE(OFFSET(North!$M$10,12*$A18,0,12,1))) -> 0.52951 | H18: =IF(PlotControl!$B$4 = "Annual Max",MAX(OFFSET(East!$C$10,12*$A18,0,12,1)),AVERAGE(OFFSET(East!$C$10,12*$A18,0,12,1))) -> 0.2587 | I18: =IF(PlotControl!$B$4 = "Annual Max",MAX(OFFSET(East!$D$10,12*$A18,0,12,1)),AVERAGE(OFFSET(East!$D$10,12*$A18,0,12,1))) -> 0.27916 | J18: =IF(PlotControl!$B$4 = "Annual Max",MAX(OFFSET(East!$E$10,12*$A18,0,12,1)),AVERAGE(OFFSET(East!$E$10,12*$A18,0,12,1))) -> 0.30666 | K18: =IF(PlotControl!$B$4 = "Annual Max",MAX(OFFSET(East!$K$10,12*$A18,0,12,1)),AVERAGE(OFFSET(East!$K$10,12*$A18,0,12,1))) -> 0.43833 | L18: =IF(PlotControl!$B$4 = "Annual Max",MAX(OFFSET(East!$L$10,12*$A18,0,12,1)),AVERAGE(OFFSET(East!$L$10,12*$A18,0,12,1))) -> 0.48707 | M18: =IF(PlotControl!$B$4 = "Annual Max",MAX(OFFSET(East!$M$10,12*$A18,0,12,1)),AVERAGE(OFFSET(East!$M$10,12*$A18,0,12,1))) -> 0.52951 | N18: =IF(PlotControl!$B$4 = "Annual Max",MAX(OFFSET(South!$C$10,12*$A18,0,12,1)),AVERAGE(OFFSET(South!$C$10,12*$A18,0,12,1))) -> 0.34233 | O18: =IF(PlotControl!$B$4 = "Annual Max",MAX(OFFSET(South!$D$10,12*$A18,0,12,1)),AVERAGE(OFFSET(South!$D$10,12*$A18,0,12,1))) -> 0.3567 | P18: =IF(PlotControl!$B$4 = "Annual Max",MAX(OFFSET(South!$E$10,12*$A18,0,12,1)),AVERAGE(OFFSET(South!$E$10,12*$A18,0,12,1))) -> 0.3695 | Q18: =IF(PlotControl!$B$4 = "Annual Max",MAX(OFFSET(South!$K$10,12*$A18,0,12,1)),AVERAGE(OFFSET(South!$K$10,12*$A18,0,12,1))) -> 0.43833 | R18: =IF(PlotControl!$B$4 = "Annual Max",MAX(OFFSET(South!$L$10,12*$A18,0,12,1)),AVERAGE(OFFSET(South!$L$10,12*$A18,0,12,1))) -> 0.48707 | S18: =IF(PlotControl!$B$4 = "Annual Max",MAX(OFFSET(South!$M$10,12*$A18,0,12,1)),AVERAGE(OFFSET(South!$M$10,12*$A18,0,12,1))) -> 0.52951
A19: 14 | B19: =IF(PlotControl!$B$4 = "Annual Max",MAX(OFFSET(North!$C$10,12*$A19,0,12,1)),AVERAGE(OFFSET(North!$C$10,12*$A19,0,12,1))) -> 0.32755 | C19: =IF(PlotControl!$B$4 = "Annual Max",MAX(OFFSET(North!$D$10,12*$A19,0,12,1)),AVERAGE(OFFSET(North!$D$10,12*$A19,0,12,1))) -> 0.34602 | D19: =IF(PlotControl!$B$4 = "Annual Max",MAX(OFFSET(North!$E$10,12*$A19,0,12,1)),AVERAGE(OFFSET(North!$E$10,12*$A19,0,12,1))) -> 0.35549 | E19: =IF(PlotControl!$B$4 = "Annual Max",MAX(OFFSET(North!$K$10,12*$A19,0,12,1)),AVERAGE(OFFSET(North!$K$10,12*$A19,0,12,1))) -> 0.43494 | F19: =IF(PlotControl!$B$4 = "Annual Max",MAX(OFFSET(North!$L$10,12*$A19,0,12,1)),AVERAGE(OFFSET(North!$L$10,12*$A19,0,12,1))) -> 0.48775 | G19: =IF(PlotControl!$B$4 = "Annual Max",MAX(OFFSET(North!$M$10,12*$A19,0,12,1)),AVERAGE(OFFSET(North!$M$10,12*$A19,0,12,1))) -> 0.52675 | H19: =IF(PlotControl!$B$4 = "Annual Max",MAX(OFFSET(East!$C$10,12*$A19,0,12,1)),AVERAGE(OFFSET(East!$C$10,12*$A19,0,12,1))) -> 0.25654 | I19: =IF(PlotControl!$B$4 = "Annual Max",MAX(OFFSET(East!$D$10,12*$A19,0,12,1)),AVERAGE(OFFSET(East!$D$10,12*$A19,0,12,1))) -> 0.28413 | J19: =IF(PlotControl!$B$4 = "Annual Max",MAX(OFFSET(East!$E$10,12*$A19,0,12,1)),AVERAGE(OFFSET(East!$E$10,12*$A19,0,12,1))) -> 0.30756 | K19: =IF(PlotControl!$B$4 = "Annual Max",MAX(OFFSET(East!$K$10,12*$A19,0,12,1)),AVERAGE(OFFSET(East!$K$10,12*$A19,0,12,1))) -> 0.43494 | L19: =IF(PlotControl!$B$4 = "Annual Max",MAX(OFFSET(East!$L$10,12*$A19,0,12,1)),AVERAGE(OFFSET(East!$L$10,12*$A19,0,12,1))) -> 0.48775 | M19: =IF(PlotControl!$B$4 = "Annual Max",MAX(OFFSET(East!$M$10,12*$A19,0,12,1)),AVERAGE(OFFSET(East!$M$10,12*$A19,0,12,1))) -> 0.52675 | N19: =IF(PlotControl!$B$4 = "Annual Max",MAX(OFFSET(South!$C$10,12*$A19,0,12,1)),AVERAGE(OFFSET(South!$C$10,12*$A19,0,12,1))) -> 0.3425 | O19: =IF(PlotControl!$B$4 = "Annual Max",MAX(OFFSET(South!$D$10,12*$A19,0,12,1)),AVERAGE(OFFSET(South!$D$10,12*$A19,0,12,1))) -> 0.35519 | P19: =IF(PlotControl!$B$4 = "Annual Max",MAX(OFFSET(South!$E$10,12*$A19,0,12,1)),AVERAGE(OFFSET(South!$E$10,12*$A19,0,12,1))) -> 0.3693 | Q19: =IF(PlotControl!$B$4 = "Annual Max",MAX(OFFSET(South!$K$10,12*$A19,0,12,1)),AVERAGE(OFFSET(South!$K$10,12*$A19,0,12,1))) -> 0.43494 | R19: =IF(PlotControl!$B$4 = "Annual Max",MAX(OFFSET(South!$L$10,12*$A19,0,12,1)),AVERAGE(OFFSET(South!$L$10,12*$A19,0,12,1))) -> 0.48775 | S19: =IF(PlotControl!$B$4 = "Annual Max",MAX(OFFSET(South!$M$10,12*$A19,0,12,1)),AVERAGE(OFFSET(South!$M$10,12*$A19,0,12,1))) -> 0.52675
A20: 15 | B20: =IF(PlotControl!$B$4 = "Annual Max",MAX(OFFSET(North!$C$10,12*$A20,0,12,1)),AVERAGE(OFFSET(North!$C$10,12*$A20,0,12,1))) -> 0.32916 | C20: =IF(PlotControl!$B$4 = "Annual Max",MAX(OFFSET(North!$D$10,12*$A20,0,12,1)),AVERAGE(OFFSET(North!$D$10,12*$A20,0,12,1))) -> 0.34547 | D20: =IF(PlotControl!$B$4 = "Annual Max",MAX(OFFSET(North!$E$10,12*$A20,0,12,1)),AVERAGE(OFFSET(North!$E$10,12*$A20,0,12,1))) -> 0.35479 | E20: =IF(PlotControl!$B$4 = "Annual Max",MAX(OFFSET(North!$K$10,12*$A20,0,12,1)),AVERAGE(OFFSET(North!$K$10,12*$A20,0,12,1))) -> 0.43412 | F20: =IF(PlotControl!$B$4 = "Annual Max",MAX(OFFSET(North!$L$10,12*$A20,0,12,1)),AVERAGE(OFFSET(North!$L$10,12*$A20,0,12,1))) -> 0.48547 | G20: =IF(PlotControl!$B$4 = "Annual Max",MAX(OFFSET(North!$M$10,12*$A20,0,12,1)),AVERAGE(OFFSET(North!$M$10,12*$A20,0,12,1))) -> 0.53111 | H20: =IF(PlotControl!$B$4 = "Annual Max",MAX(OFFSET(East!$C$10,12*$A20,0,12,1)),AVERAGE(OFFSET(East!$C$10,12*$A20,0,12,1))) -> 0.25833 | I20: =IF(PlotControl!$B$4 = "Annual Max",MAX(OFFSET(East!$D$10,12*$A20,0,12,1)),AVERAGE(OFFSET(East!$D$10,12*$A20,0,12,1))) -> 0.28682 | J20: =IF(PlotControl!$B$4 = "Annual Max",MAX(OFFSET(East!$E$10,12*$A20,0,12,1)),AVERAGE(OFFSET(East!$E$10,12*$A20,0,12,1))) -> 0.30556 | K20: =IF(PlotControl!$B$4 = "Annual Max",MAX(OFFSET(East!$K$10,12*$A20,0,12,1)),AVERAGE(OFFSET(East!$K$10,12*$A20,0,12,1))) -> 0.43412 | L20: =IF(PlotControl!$B$4 = "Annual Max",MAX(OFFSET(East!$L$10,12*$A20,0,12,1)),AVERAGE(OFFSET(East!$L$10,12*$A20,0,12,1))) -> 0.48547 | M20: =IF(PlotControl!$B$4 = "Annual Max",MAX(OFFSET(East!$M$10,12*$A20,0,12,1)),AVERAGE(OFFSET(East!$M$10,12*$A20,0,12,1))) -> 0.53111 | N20: =IF(PlotControl!$B$4 = "Annual Max",MAX(OFFSET(South!$C$10,12*$A20,0,12,1)),AVERAGE(OFFSET(South!$C$10,12*$A20,0,12,1))) -> 0.34249 | O20: =IF(PlotControl!$B$4 = "Annual Max",MAX(OFFSET(South!$D$10,12*$A20,0,12,1)),AVERAGE(OFFSET(South!$D$10,12*$A20,0,12,1))) -> 0.35386 | P20: =IF(PlotControl!$B$4 = "Annual Max",MAX(OFFSET(South!$E$10,12*$A20,0,12,1)),AVERAGE(OFFSET(South!$E$10,12*$A20,0,12,1))) -> 0.36881 | Q20: =IF(PlotControl!$B$4 = "Annual Max",MAX(OFFSET(South!$K$10,12*$A20,0,12,1)),AVERAGE(OFFSET(South!$K$10,12*$A20,0,12,1))) -> 0.43412 | R20: =IF(PlotControl!$B$4 = "Annual Max",MAX(OFFSET(South!$L$10,12*$A20,0,12,1)),AVERAGE(OFFSET(South!$L$10,12*$A20,0,12,1))) -> 0.48547 | S20: =IF(PlotControl!$B$4 = "Annual Max",MAX(OFFSET(South!$M$10,12*$A20,0,12,1)),AVERAGE(OFFSET(South!$M$10,12*$A20,0,12,1))) -> 0.53111
A21: 16 | B21: =IF(PlotControl!$B$4 = "Annual Max",MAX(OFFSET(North!$C$10,12*$A21,0,12,1)),AVERAGE(OFFSET(North!$C$10,12*$A21,0,12,1))) -> 0.32761 | C21: =IF(PlotControl!$B$4 = "Annual Max",MAX(OFFSET(North!$D$10,12*$A21,0,12,1)),AVERAGE(OFFSET(North!$D$10,12*$A21,0,12,1))) -> 0.3444 | D21: =IF(PlotControl!$B$4 = "Annual Max",MAX(OFFSET(North!$E$10,12*$A21,0,12,1)),AVERAGE(OFFSET(North!$E$10,12*$A21,0,12,1))) -> 0.35373 | E21: =IF(PlotControl!$B$4 = "Annual Max",MAX(OFFSET(North!$K$10,12*$A21,0,12,1)),AVERAGE(OFFSET(North!$K$10,12*$A21,0,12,1))) -> 0.44357 | F21: =IF(PlotControl!$B$4 = "Annual Max",MAX(OFFSET(North!$L$10,12*$A21,0,12,1)),AVERAGE(OFFSET(North!$L$10,12*$A21,0,12,1))) -> 0.48893 | G21: =IF(PlotControl!$B$4 = "Annual Max",MAX(OFFSET(North!$M$10,12*$A21,0,12,1)),AVERAGE(OFFSET(North!$M$10,12*$A21,0,12,1))) -> 0.52681 | H21: =IF(PlotControl!$B$4 = "Annual Max",MAX(OFFSET(East!$C$10,12*$A21,0,12,1)),AVERAGE(OFFSET(East!$C$10,12*$A21,0,12,1))) -> 0.25868 | I21: =IF(PlotControl!$B$4 = "Annual Max",MAX(OFFSET(East!$D$10,12*$A21,0,12,1)),AVERAGE(OFFSET(East!$D$10,12*$A21,0,12,1))) -> 0.28811 | J21: =IF(PlotControl!$B$4 = "Annual Max",MAX(OFFSET(East!$E$10,12*$A21,0,12,1)),AVERAGE(OFFSET(East!$E$10,12*$A21,0,12,1))) -> 0.30321 | K21: =IF(PlotControl!$B$4 = "Annual Max",MAX(OFFSET(East!$K$10,12*$A21,0,12,1)),AVERAGE(OFFSET(East!$K$10,12*$A21,0,12,1))) -> 0.44357 | L21: =IF(PlotControl!$B$4 = "Annual Max",MAX(OFFSET(East!$L$10,12*$A21,0,12,1)),AVERAGE(OFFSET(East!$L$10,12*$A21,0,12,1))) -> 0.48893 | M21: =IF(PlotControl!$B$4 = "Annual Max",MAX(OFFSET(East!$M$10,12*$A21,0,12,1)),AVERAGE(OFFSET(East!$M$10,12*$A21,0,12,1))) -> 0.52681 | N21: =IF(PlotControl!$B$4 = "Annual Max",MAX(OFFSET(South!$C$10,12*$A21,0,12,1)),AVERAGE(OFFSET(South!$C$10,12*$A21,0,12,1))) -> 0.34123 | O21: =IF(PlotControl!$B$4 = "Annual Max",MAX(OFFSET(South!$D$10,12*$A21,0,12,1)),AVERAGE(OFFSET(South!$D$10,12*$A21,0,12,1))) -> 0.35268 | P21: =IF(PlotControl!$B$4 = "Annual Max",MAX(OFFSET(South!$E$10,12*$A21,0,12,1)),AVERAGE(OFFSET(South!$E$10,12*$A21,0,12,1))) -> 0.36636 | Q21: =IF(PlotControl!$B$4 = "Annual Max",MAX(OFFSET(South!$K$10,12*$A21,0,12,1)),AVERAGE(OFFSET(South!$K$10,12*$A21,0,12,1))) -> 0.44357 | R21: =IF(PlotControl!$B$4 = "Annual Max",MAX(OFFSET(South!$L$10,12*$A21,0,12,1)),AVERAGE(OFFSET(South!$L$10,12*$A21,0,12,1))) -> 0.48893 | S21: =IF(PlotControl!$B$4 = "Annual Max",MAX(OFFSET(South!$M$10,12*$A21,0,12,1)),AVERAGE(OFFSET(South!$M$10,12*$A21,0,12,1))) -> 0.52681
A22: 17 | B22: =IF(PlotControl!$B$4 = "Annual Max",MAX(OFFSET(North!$C$10,12*$A22,0,12,1)),AVERAGE(OFFSET(North!$C$10,12*$A22,0,12,1))) -> 0.32641 | C22: =IF(PlotControl!$B$4 = "Annual Max",MAX(OFFSET(North!$D$10,12*$A22,0,12,1)),AVERAGE(OFFSET(North!$D$10,12*$A22,0,12,1))) -> 0.34174 | D22: =IF(PlotControl!$B$4 = "Annual Max",MAX(OFFSET(North!$E$10,12*$A22,0,12,1)),AVERAGE(OFFSET(North!$E$10,12*$A22,0,12,1))) -> 0.3527 | E22: =IF(PlotControl!$B$4 = "Annual Max",MAX(OFFSET(North!$K$10,12*$A22,0,12,1)),AVERAGE(OFFSET(North!$K$10,12*$A22,0,12,1))) -> 0.44174 | F22: =IF(PlotControl!$B$4 = "Annual Max",MAX(OFFSET(North!$L$10,12*$A22,0,12,1)),AVERAGE(OFFSET(North!$L$10,12*$A22,0,12,1))) -> 0.48964 | G22: =IF(PlotControl!$B$4 = "Annual Max",MAX(OFFSET(North!$M$10,12*$A22,0,12,1)),AVERAGE(OFFSET(North!$M$10,12*$A22,0,12,1))) -> 0.53151 | H22: =IF(PlotControl!$B$4 = "Annual Max",MAX(OFFSET(East!$C$10,12*$A22,0,12,1)),AVERAGE(OFFSET(East!$C$10,12*$A22,0,12,1))) -> 0.26033 | I22: =IF(PlotControl!$B$4 = "Annual Max",MAX(OFFSET(East!$D$10,12*$A22,0,12,1)),AVERAGE(OFFSET(East!$D$10,12*$A22,0,12,1))) -> 0.28929 | J22: =IF(PlotControl!$B$4 = "Annual Max",MAX(OFFSET(East!$E$10,12*$A22,0,12,1)),AVERAGE(OFFSET(East!$E$10,12*$A22,0,12,1))) -> 0.30342 | K22: =IF(PlotControl!$B$4 = "Annual Max",MAX(OFFSET(East!$K$10,12*$A22,0,12,1)),AVERAGE(OFFSET(East!$K$10,12*$A22,0,12,1))) -> 0.44174 | L22: =IF(PlotControl!$B$4 = "Annual Max",MAX(OFFSET(East!$L$10,12*$A22,0,12,1)),AVERAGE(OFFSET(East!$L$10,12*$A22,0,12,1))) -> 0.48964 | M22: =IF(PlotControl!$B$4 = "Annual Max",MAX(OFFSET(East!$M$10,12*$A22,0,12,1)),AVERAGE(OFFSET(East!$M$10,12*$A22,0,12,1))) -> 0.53151 | N22: =IF(PlotControl!$B$4 = "Annual Max",MAX(OFFSET(South!$C$10,12*$A22,0,12,1)),AVERAGE(OFFSET(South!$C$10,12*$A22,0,12,1))) -> 0.33998 | O22: =IF(PlotControl!$B$4 = "Annual Max",MAX(OFFSET(South!$D$10,12*$A22,0,12,1)),AVERAGE(OFFSET(South!$D$10,12*$A22,0,12,1))) -> 0.35092 | P22: =IF(PlotControl!$B$4 = "Annual Max",MAX(OFFSET(South!$E$10,12*$A22,0,12,1)),AVERAGE(OFFSET(South!$E$10,12*$A22,0,12,1))) -> 0.36428 | Q22: =IF(PlotControl!$B$4 = "Annual Max",MAX(OFFSET(South!$K$10,12*$A22,0,12,1)),AVERAGE(OFFSET(South!$K$10,12*$A22,0,12,1))) -> 0.44174 | R22: =IF(PlotControl!$B$4 = "Annual Max",MAX(OFFSET(South!$L$10,12*$A22,0,12,1)),AVERAGE(OFFSET(South!$L$10,12*$A22,0,12,1))) -> 0.48964 | S22: =IF(PlotControl!$B$4 = "Annual Max",MAX(OFFSET(South!$M$10,12*$A22,0,12,1)),AVERAGE(OFFSET(South!$M$10,12*$A22,0,12,1))) -> 0.53151
A23: 18 | B23: =IF(PlotControl!$B$4 = "Annual Max",MAX(OFFSET(North!$C$10,12*$A23,0,12,1)),AVERAGE(OFFSET(North!$C$10,12*$A23,0,12,1))) -> 0.30328 | C23: =IF(PlotControl!$B$4 = "Annual Max",MAX(OFFSET(North!$D$10,12*$A23,0,12,1)),AVERAGE(OFFSET(North!$D$10,12*$A23,0,12,1))) -> 0.32326 | D23: =IF(PlotControl!$B$4 = "Annual Max",MAX(OFFSET(North!$E$10,12*$A23,0,12,1)),AVERAGE(OFFSET(North!$E$10,12*$A23,0,12,1))) -> 0.33466 | E23: =IF(PlotControl!$B$4 = "Annual Max",MAX(OFFSET(North!$K$10,12*$A23,0,12,1)),AVERAGE(OFFSET(North!$K$10,12*$A23,0,12,1))) -> 0.43345 | F23: =IF(PlotControl!$B$4 = "Annual Max",MAX(OFFSET(North!$L$10,12*$A23,0,12,1)),AVERAGE(OFFSET(North!$L$10,12*$A23,0,12,1))) -> 0.48715 | G23: =IF(PlotControl!$B$4 = "Annual Max",MAX(OFFSET(North!$M$10,12*$A23,0,12,1)),AVERAGE(OFFSET(North!$M$10,12*$A23,0,12,1))) -> 0.52557 | H23: =IF(PlotControl!$B$4 = "Annual Max",MAX(OFFSET(East!$C$10,12*$A23,0,12,1)),AVERAGE(OFFSET(East!$C$10,12*$A23,0,12,1))) -> 0.26247 | I23: =IF(PlotControl!$B$4 = "Annual Max",MAX(OFFSET(East!$D$10,12*$A23,0,12,1)),AVERAGE(OFFSET(East!$D$10,12*$A23,0,12,1))) -> 0.28161 | J23: =IF(PlotControl!$B$4 = "Annual Max",MAX(OFFSET(East!$E$10,12*$A23,0,12,1)),AVERAGE(OFFSET(East!$E$10,12*$A23,0,12,1))) -> 0.29576 | K23: =IF(PlotControl!$B$4 = "Annual Max",MAX(OFFSET(East!$K$10,12*$A23,0,12,1)),AVERAGE(OFFSET(East!$K$10,12*$A23,0,12,1))) -> 0.43345 | L23: =IF(PlotControl!$B$4 = "Annual Max",MAX(OFFSET(East!$L$10,12*$A23,0,12,1)),AVERAGE(OFFSET(East!$L$10,12*$A23,0,12,1))) -> 0.48715 | M23: =IF(PlotControl!$B$4 = "Annual Max",MAX(OFFSET(East!$M$10,12*$A23,0,12,1)),AVERAGE(OFFSET(East!$M$10,12*$A23,0,12,1))) -> 0.52557 | N23: =IF(PlotControl!$B$4 = "Annual Max",MAX(OFFSET(South!$C$10,12*$A23,0,12,1)),AVERAGE(OFFSET(South!$C$10,12*$A23,0,12,1))) -> 0.34014 | O23: =IF(PlotControl!$B$4 = "Annual Max",MAX(OFFSET(South!$D$10,12*$A23,0,12,1)),AVERAGE(OFFSET(South!$D$10,12*$A23,0,12,1))) -> 0.34997 | P23: =IF(PlotControl!$B$4 = "Annual Max",MAX(OFFSET(South!$E$10,12*$A23,0,12,1)),AVERAGE(OFFSET(South!$E$10,12*$A23,0,12,1))) -> 0.36213 | Q23: =IF(PlotControl!$B$4 = "Annual Max",MAX(OFFSET(South!$K$10,12*$A23,0,12,1)),AVERAGE(OFFSET(South!$K$10,12*$A23,0,12,1))) -> 0.43345 | R23: =IF(PlotControl!$B$4 = "Annual Max",MAX(OFFSET(South!$L$10,12*$A23,0,12,1)),AVERAGE(OFFSET(South!$L$10,12*$A23,0,12,1))) -> 0.48715 | S23: =IF(PlotControl!$B$4 = "Annual Max",MAX(OFFSET(South!$M$10,12*$A23,0,12,1)),AVERAGE(OFFSET(South!$M$10,12*$A23,0,12,1))) -> 0.52557 | T23: =IF(PlotControl!$B$4 = "Annual Max",MAX(OFFSET(Closure!$C$10,12*$A23,0,12,1)),AVERAGE(OFFSET(Closure!$C$10,12*$A23,0,12,1))) -> 0.25448 | U23: =IF(PlotControl!$B$4 = "Annual Max",MAX(OFFSET(Closure!$D$10,12*$A23,0,12,1)),AVERAGE(OFFSET(Closure!$D$10,12*$A23,0,12,1))) -> 0.26658 | V23: =IF(PlotControl!$B$4 = "Annual Max",MAX(OFFSET(Closure!$E$10,12*$A23,0,12,1)),AVERAGE(OFFSET(Closure!$E$10,12*$A23,0,12,1))) -> 0.27588
A24: 19 | B24: =IF(PlotControl!$B$4 = "Annual Max",MAX(OFFSET(North!$C$10,12*$A24,0,12,1)),AVERAGE(OFFSET(North!$C$10,12*$A24,0,12,1))) -> 0.28177 | C24: =IF(PlotControl!$B$4 = "Annual Max",MAX(OFFSET(North!$D$10,12*$A24,0,12,1)),AVERAGE(OFFSET(North!$D$10,12*$A24,0,12,1))) -> 0.29163 | D24: =IF(PlotControl!$B$4 = "Annual Max",MAX(OFFSET(North!$E$10,12*$A24,0,12,1)),AVERAGE(OFFSET(North!$E$10,12*$A24,0,12,1))) -> 0.31217 | E24: =IF(PlotControl!$B$4 = "Annual Max",MAX(OFFSET(North!$K$10,12*$A24,0,12,1)),AVERAGE(OFFSET(North!$K$10,12*$A24,0,12,1))) -> 0.43276 | F24: =IF(PlotControl!$B$4 = "Annual Max",MAX(OFFSET(North!$L$10,12*$A24,0,12,1)),AVERAGE(OFFSET(North!$L$10,12*$A24,0,12,1))) -> 0.48715 | G24: =IF(PlotControl!$B$4 = "Annual Max",MAX(OFFSET(North!$M$10,12*$A24,0,12,1)),AVERAGE(OFFSET(North!$M$10,12*$A24,0,12,1))) -> 0.52777 | H24: =IF(PlotControl!$B$4 = "Annual Max",MAX(OFFSET(East!$C$10,12*$A24,0,12,1)),AVERAGE(OFFSET(East!$C$10,12*$A24,0,12,1))) -> 0.24704 | I24: =IF(PlotControl!$B$4 = "Annual Max",MAX(OFFSET(East!$D$10,12*$A24,0,12,1)),AVERAGE(OFFSET(East!$D$10,12*$A24,0,12,1))) -> 0.26077 | J24: =IF(PlotControl!$B$4 = "Annual Max",MAX(OFFSET(East!$E$10,12*$A24,0,12,1)),AVERAGE(OFFSET(East!$E$10,12*$A24,0,12,1))) -> 0.28406 | K24: =IF(PlotControl!$B$4 = "Annual Max",MAX(OFFSET(East!$K$10,12*$A24,0,12,1)),AVERAGE(OFFSET(East!$K$10,12*$A24,0,12,1))) -> 0.43276 | L24: =IF(PlotControl!$B$4 = "Annual Max",MAX(OFFSET(East!$L$10,12*$A24,0,12,1)),AVERAGE(OFFSET(East!$L$10,12*$A24,0,12,1))) -> 0.48715 | M24: =IF(PlotControl!$B$4 = "Annual Max",MAX(OFFSET(East!$M$10,12*$A24,0,12,1)),AVERAGE(OFFSET(East!$M$10,12*$A24,0,12,1))) -> 0.52777 | N24: =IF(PlotControl!$B$4 = "Annual Max",MAX(OFFSET(South!$C$10,12*$A24,0,12,1)),AVERAGE(OFFSET(South!$C$10,12*$A24,0,12,1))) -> 0.28991 | O24: =IF(PlotControl!$B$4 = "Annual Max",MAX(OFFSET(South!$D$10,12*$A24,0,12,1)),AVERAGE(OFFSET(South!$D$10,12*$A24,0,12,1))) -> 0.30232 | P24: =IF(PlotControl!$B$4 = "Annual Max",MAX(OFFSET(South!$E$10,12*$A24,0,12,1)),AVERAGE(OFFSET(South!$E$10,12*$A24,0,12,1))) -> 0.3186 | Q24: =IF(PlotControl!$B$4 = "Annual Max",MAX(OFFSET(South!$K$10,12*$A24,0,12,1)),AVERAGE(OFFSET(South!$K$10,12*$A24,0,12,1))) -> 0.43276 | R24: =IF(PlotControl!$B$4 = "Annual Max",MAX(OFFSET(South!$L$10,12*$A24,0,12,1)),AVERAGE(OFFSET(South!$L$10,12*$A24,0,12,1))) -> 0.48715 | S24: =IF(PlotControl!$B$4 = "Annual Max",MAX(OFFSET(South!$M$10,12*$A24,0,12,1)),AVERAGE(OFFSET(South!$M$10,12*$A24,0,12,1))) -> 0.52777 | T24: =IF(PlotControl!$B$4 = "Annual Max",MAX(OFFSET(Closure!$C$10,12*$A24,0,12,1)),AVERAGE(OFFSET(Closure!$C$10,12*$A24,0,12,1))) -> 0.27957 | U24: =IF(PlotControl!$B$4 = "Annual Max",MAX(OFFSET(Closure!$D$10,12*$A24,0,12,1)),AVERAGE(OFFSET(Closure!$D$10,12*$A24,0,12,1))) -> 0.29125 | V24: =IF(PlotControl!$B$4 = "Annual Max",MAX(OFFSET(Closure!$E$10,12*$A24,0,12,1)),AVERAGE(OFFSET(Closure!$E$10,12*$A24,0,12,1))) -> 0.30316
A25: 20 | B25: =IF(PlotControl!$B$4 = "Annual Max",MAX(OFFSET(North!$C$10,12*$A25,0,12,1)),AVERAGE(OFFSET(North!$C$10,12*$A25,0,12,1))) -> 0.22443 | C25: =IF(PlotControl!$B$4 = "Annual Max",MAX(OFFSET(North!$D$10,12*$A25,0,12,1)),AVERAGE(OFFSET(North!$D$10,12*$A25,0,12,1))) -> 0.23862 | D25: =IF(PlotControl!$B$4 = "Annual Max",MAX(OFFSET(North!$E$10,12*$A25,0,12,1)),AVERAGE(OFFSET(North!$E$10,12*$A25,0,12,1))) -> 0.2496 | E25: =IF(PlotControl!$B$4 = "Annual Max",MAX(OFFSET(North!$K$10,12*$A25,0,12,1)),AVERAGE(OFFSET(North!$K$10,12*$A25,0,12,1))) -> 0.43048 | F25: =IF(PlotControl!$B$4 = "Annual Max",MAX(OFFSET(North!$L$10,12*$A25,0,12,1)),AVERAGE(OFFSET(North!$L$10,12*$A25,0,12,1))) -> 0.48635 | G25: =IF(PlotControl!$B$4 = "Annual Max",MAX(OFFSET(North!$M$10,12*$A25,0,12,1)),AVERAGE(OFFSET(North!$M$10,12*$A25,0,12,1))) -> 0.52984 | H25: =IF(PlotControl!$B$4 = "Annual Max",MAX(OFFSET(East!$C$10,12*$A25,0,12,1)),AVERAGE(OFFSET(East!$C$10,12*$A25,0,12,1))) -> 0.22794 | I25: =IF(PlotControl!$B$4 = "Annual Max",MAX(OFFSET(East!$D$10,12*$A25,0,12,1)),AVERAGE(OFFSET(East!$D$10,12*$A25,0,12,1))) -> 0.24354 | J25: =IF(PlotControl!$B$4 = "Annual Max",MAX(OFFSET(East!$E$10,12*$A25,0,12,1)),AVERAGE(OFFSET(East!$E$10,12*$A25,0,12,1))) -> 0.2643 | K25: =IF(PlotControl!$B$4 = "Annual Max",MAX(OFFSET(East!$K$10,12*$A25,0,12,1)),AVERAGE(OFFSET(East!$K$10,12*$A25,0,12,1))) -> 0.43048 | L25: =IF(PlotControl!$B$4 = "Annual Max",MAX(OFFSET(East!$L$10,12*$A25,0,12,1)),AVERAGE(OFFSET(East!$L$10,12*$A25,0,12,1))) -> 0.48635 | M25: =IF(PlotControl!$B$4 = "Annual Max",MAX(OFFSET(East!$M$10,12*$A25,0,12,1)),AVERAGE(OFFSET(East!$M$10,12*$A25,0,12,1))) -> 0.52984 | N25: =IF(PlotControl!$B$4 = "Annual Max",MAX(OFFSET(South!$C$10,12*$A25,0,12,1)),AVERAGE(OFFSET(South!$C$10,12*$A25,0,12,1))) -> 0.27443 | O25: =IF(PlotControl!$B$4 = "Annual Max",MAX(OFFSET(South!$D$10,12*$A25,0,12,1)),AVERAGE(OFFSET(South!$D$10,12*$A25,0,12,1))) -> 0.29425 | P25: =IF(PlotControl!$B$4 = "Annual Max",MAX(OFFSET(South!$E$10,12*$A25,0,12,1)),AVERAGE(OFFSET(South!$E$10,12*$A25,0,12,1))) -> 0.31233 | Q25: =IF(PlotControl!$B$4 = "Annual Max",MAX(OFFSET(South!$K$10,12*$A25,0,12,1)),AVERAGE(OFFSET(South!$K$10,12*$A25,0,12,1))) -> 0.43048 | R25: =IF(PlotControl!$B$4 = "Annual Max",MAX(OFFSET(South!$L$10,12*$A25,0,12,1)),AVERAGE(OFFSET(South!$L$10,12*$A25,0,12,1))) -> 0.48635 | S25: =IF(PlotControl!$B$4 = "Annual Max",MAX(OFFSET(South!$M$10,12*$A25,0,12,1)),AVERAGE(OFFSET(South!$M$10,12*$A25,0,12,1))) -> 0.52984 | T25: =IF(PlotControl!$B$4 = "Annual Max",MAX(OFFSET(Closure!$C$10,12*$A25,0,12,1)),AVERAGE(OFFSET(Closure!$C$10,12*$A25,0,12,1))) -> 0.25077 | U25: =IF(PlotControl!$B$4 = "Annual Max",MAX(OFFSET(Closure!$D$10,12*$A25,0,12,1)),AVERAGE(OFFSET(Closure!$D$10,12*$A25,0,12,1))) -> 0.26204 | V25: =IF(PlotControl!$B$4 = "Annual Max",MAX(OFFSET(Closure!$E$10,12*$A25,0,12,1)),AVERAGE(OFFSET(Closure!$E$10,12*$A25,0,12,1))) -> 0.27338
A26: 21 | B26: =IF(PlotControl!$B$4 = "Annual Max",MAX(OFFSET(North!$C$10,12*$A26,0,12,1)),AVERAGE(OFFSET(North!$C$10,12*$A26,0,12,1))) -> 0.17938 | C26: =IF(PlotControl!$B$4 = "Annual Max",MAX(OFFSET(North!$D$10,12*$A26,0,12,1)),AVERAGE(OFFSET(North!$D$10,12*$A26,0,12,1))) -> 0.20212 | D26: =IF(PlotControl!$B$4 = "Annual Max",MAX(OFFSET(North!$E$10,12*$A26,0,12,1)),AVERAGE(OFFSET(North!$E$10,12*$A26,0,12,1))) -> 0.2201 | E26: =IF(PlotControl!$B$4 = "Annual Max",MAX(OFFSET(North!$K$10,12*$A26,0,12,1)),AVERAGE(OFFSET(North!$K$10,12*$A26,0,12,1))) -> 0.43905 | F26: =IF(PlotControl!$B$4 = "Annual Max",MAX(OFFSET(North!$L$10,12*$A26,0,12,1)),AVERAGE(OFFSET(North!$L$10,12*$A26,0,12,1))) -> 0.48669 | G26: =IF(PlotControl!$B$4 = "Annual Max",MAX(OFFSET(North!$M$10,12*$A26,0,12,1)),AVERAGE(OFFSET(North!$M$10,12*$A26,0,12,1))) -> 0.52851 | H26: =IF(PlotControl!$B$4 = "Annual Max",MAX(OFFSET(East!$C$10,12*$A26,0,12,1)),AVERAGE(OFFSET(East!$C$10,12*$A26,0,12,1))) -> 0.18186 | I26: =IF(PlotControl!$B$4 = "Annual Max",MAX(OFFSET(East!$D$10,12*$A26,0,12,1)),AVERAGE(OFFSET(East!$D$10,12*$A26,0,12,1))) -> 0.20495 | J26: =IF(PlotControl!$B$4 = "Annual Max",MAX(OFFSET(East!$E$10,12*$A26,0,12,1)),AVERAGE(OFFSET(East!$E$10,12*$A26,0,12,1))) -> 0.22349 | K26: =IF(PlotControl!$B$4 = "Annual Max",MAX(OFFSET(East!$K$10,12*$A26,0,12,1)),AVERAGE(OFFSET(East!$K$10,12*$A26,0,12,1))) -> 0.43905 | L26: =IF(PlotControl!$B$4 = "Annual Max",MAX(OFFSET(East!$L$10,12*$A26,0,12,1)),AVERAGE(OFFSET(East!$L$10,12*$A26,0,12,1))) -> 0.48669 | M26: =IF(PlotControl!$B$4 = "Annual Max",MAX(OFFSET(East!$M$10,12*$A26,0,12,1)),AVERAGE(OFFSET(East!$M$10,12*$A26,0,12,1))) -> 0.52851 | N26: =IF(PlotControl!$B$4 = "Annual Max",MAX(OFFSET(South!$C$10,12*$A26,0,12,1)),AVERAGE(OFFSET(South!$C$10,12*$A26,0,12,1))) -> 0.19587 | O26: =IF(PlotControl!$B$4 = "Annual Max",MAX(OFFSET(South!$D$10,12*$A26,0,12,1)),AVERAGE(OFFSET(South!$D$10,12*$A26,0,12,1))) -> 0.21911 | P26: =IF(PlotControl!$B$4 = "Annual Max",MAX(OFFSET(South!$E$10,12*$A26,0,12,1)),AVERAGE(OFFSET(South!$E$10,12*$A26,0,12,1))) -> 0.23739 | Q26: =IF(PlotControl!$B$4 = "Annual Max",MAX(OFFSET(South!$K$10,12*$A26,0,12,1)),AVERAGE(OFFSET(South!$K$10,12*$A26,0,12,1))) -> 0.43905 | R26: =IF(PlotControl!$B$4 = "Annual Max",MAX(OFFSET(South!$L$10,12*$A26,0,12,1)),AVERAGE(OFFSET(South!$L$10,12*$A26,0,12,1))) -> 0.48669 | S26: =IF(PlotControl!$B$4 = "Annual Max",MAX(OFFSET(South!$M$10,12*$A26,0,12,1)),AVERAGE(OFFSET(South!$M$10,12*$A26,0,12,1))) -> 0.52851 | T26: =IF(PlotControl!$B$4 = "Annual Max",MAX(OFFSET(Closure!$C$10,12*$A26,0,12,1)),AVERAGE(OFFSET(Closure!$C$10,12*$A26,0,12,1))) -> 0.18997 | U26: =IF(PlotControl!$B$4 = "Annual Max",MAX(OFFSET(Closure!$D$10,12*$A26,0,12,1)),AVERAGE(OFFSET(Closure!$D$10,12*$A26,0,12,1))) -> 0.21113 | V26: =IF(PlotControl!$B$4 = "Annual Max",MAX(OFFSET(Closure!$E$10,12*$A26,0,12,1)),AVERAGE(OFFSET(Closure!$E$10,12*$A26,0,12,1))) -> 0.22806
A27: 22 | B27: =IF(PlotControl!$B$4 = "Annual Max",MAX(OFFSET(North!$C$10,12*$A27,0,12,1)),AVERAGE(OFFSET(North!$C$10,12*$A27,0,12,1))) -> 0.16459 | C27: =IF(PlotControl!$B$4 = "Annual Max",MAX(OFFSET(North!$D$10,12*$A27,0,12,1)),AVERAGE(OFFSET(North!$D$10,12*$A27,0,12,1))) -> 0.19114 | D27: =IF(PlotControl!$B$4 = "Annual Max",MAX(OFFSET(North!$E$10,12*$A27,0,12,1)),AVERAGE(OFFSET(North!$E$10,12*$A27,0,12,1))) -> 0.20809 | E27: =IF(PlotControl!$B$4 = "Annual Max",MAX(OFFSET(North!$K$10,12*$A27,0,12,1)),AVERAGE(OFFSET(North!$K$10,12*$A27,0,12,1))) -> 0.43878 | F27: =IF(PlotControl!$B$4 = "Annual Max",MAX(OFFSET(North!$L$10,12*$A27,0,12,1)),AVERAGE(OFFSET(North!$L$10,12*$A27,0,12,1))) -> 0.48853 | G27: =IF(PlotControl!$B$4 = "Annual Max",MAX(OFFSET(North!$M$10,12*$A27,0,12,1)),AVERAGE(OFFSET(North!$M$10,12*$A27,0,12,1))) -> 0.52967 | H27: =IF(PlotControl!$B$4 = "Annual Max",MAX(OFFSET(East!$C$10,12*$A27,0,12,1)),AVERAGE(OFFSET(East!$C$10,12*$A27,0,12,1))) -> 0.16585 | I27: =IF(PlotControl!$B$4 = "Annual Max",MAX(OFFSET(East!$D$10,12*$A27,0,12,1)),AVERAGE(OFFSET(East!$D$10,12*$A27,0,12,1))) -> 0.19215 | J27: =IF(PlotControl!$B$4 = "Annual Max",MAX(OFFSET(East!$E$10,12*$A27,0,12,1)),AVERAGE(OFFSET(East!$E$10,12*$A27,0,12,1))) -> 0.20911 | K27: =IF(PlotControl!$B$4 = "Annual Max",MAX(OFFSET(East!$K$10,12*$A27,0,12,1)),AVERAGE(OFFSET(East!$K$10,12*$A27,0,12,1))) -> 0.43878 | L27: =IF(PlotControl!$B$4 = "Annual Max",MAX(OFFSET(East!$L$10,12*$A27,0,12,1)),AVERAGE(OFFSET(East!$L$10,12*$A27,0,12,1))) -> 0.48853 | M27: =IF(PlotControl!$B$4 = "Annual Max",MAX(OFFSET(East!$M$10,12*$A27,0,12,1)),AVERAGE(OFFSET(East!$M$10,12*$A27,0,12,1))) -> 0.52967 | N27: =IF(PlotControl!$B$4 = "Annual Max",MAX(OFFSET(South!$C$10,12*$A27,0,12,1)),AVERAGE(OFFSET(South!$C$10,12*$A27,0,12,1))) -> 0.17015 | O27: =IF(PlotControl!$B$4 = "Annual Max",MAX(OFFSET(South!$D$10,12*$A27,0,12,1)),AVERAGE(OFFSET(South!$D$10,12*$A27,0,12,1))) -> 0.1969 | P27: =IF(PlotControl!$B$4 = "Annual Max",MAX(OFFSET(South!$E$10,12*$A27,0,12,1)),AVERAGE(OFFSET(South!$E$10,12*$A27,0,12,1))) -> 0.21383 | Q27: =IF(PlotControl!$B$4 = "Annual Max",MAX(OFFSET(South!$K$10,12*$A27,0,12,1)),AVERAGE(OFFSET(South!$K$10,12*$A27,0,12,1))) -> 0.43878 | R27: =IF(PlotControl!$B$4 = "Annual Max",MAX(OFFSET(South!$L$10,12*$A27,0,12,1)),AVERAGE(OFFSET(South!$L$10,12*$A27,0,12,1))) -> 0.48853 | S27: =IF(PlotControl!$B$4 = "Annual Max",MAX(OFFSET(South!$M$10,12*$A27,0,12,1)),AVERAGE(OFFSET(South!$M$10,12*$A27,0,12,1))) -> 0.52967 | T27: =IF(PlotControl!$B$4 = "Annual Max",MAX(OFFSET(Closure!$C$10,12*$A27,0,12,1)),AVERAGE(OFFSET(Closure!$C$10,12*$A27,0,12,1))) -> 0.16779 | U27: =IF(PlotControl!$B$4 = "Annual Max",MAX(OFFSET(Closure!$D$10,12*$A27,0,12,1)),AVERAGE(OFFSET(Closure!$D$10,12*$A27,0,12,1))) -> 0.19444 | V27: =IF(PlotControl!$B$4 = "Annual Max",MAX(OFFSET(Closure!$E$10,12*$A27,0,12,1)),AVERAGE(OFFSET(Closure!$E$10,12*$A27,0,12,1))) -> 0.21135
A28: 23 | B28: =IF(PlotControl!$B$4 = "Annual Max",MAX(OFFSET(North!$C$10,12*$A28,0,12,1)),AVERAGE(OFFSET(North!$C$10,12*$A28,0,12,1))) -> 0.16184 | C28: =IF(PlotControl!$B$4 = "Annual Max",MAX(OFFSET(North!$D$10,12*$A28,0,12,1)),AVERAGE(OFFSET(North!$D$10,12*$A28,0,12,1))) -> 0.18404 | D28: =IF(PlotControl!$B$4 = "Annual Max",MAX(OFFSET(North!$E$10,12*$A28,0,12,1)),AVERAGE(OFFSET(North!$E$10,12*$A28,0,12,1))) -> 0.20472 | E28: =IF(PlotControl!$B$4 = "Annual Max",MAX(OFFSET(North!$K$10,12*$A28,0,12,1)),AVERAGE(OFFSET(North!$K$10,12*$A28,0,12,1))) -> 0.43404 | F28: =IF(PlotControl!$B$4 = "Annual Max",MAX(OFFSET(North!$L$10,12*$A28,0,12,1)),AVERAGE(OFFSET(North!$L$10,12*$A28,0,12,1))) -> 0.48596 | G28: =IF(PlotControl!$B$4 = "Annual Max",MAX(OFFSET(North!$M$10,12*$A28,0,12,1)),AVERAGE(OFFSET(North!$M$10,12*$A28,0,12,1))) -> 0.52788 | H28: =IF(PlotControl!$B$4 = "Annual Max",MAX(OFFSET(East!$C$10,12*$A28,0,12,1)),AVERAGE(OFFSET(East!$C$10,12*$A28,0,12,1))) -> 0.16193 | I28: =IF(PlotControl!$B$4 = "Annual Max",MAX(OFFSET(East!$D$10,12*$A28,0,12,1)),AVERAGE(OFFSET(East!$D$10,12*$A28,0,12,1))) -> 0.1842 | J28: =IF(PlotControl!$B$4 = "Annual Max",MAX(OFFSET(East!$E$10,12*$A28,0,12,1)),AVERAGE(OFFSET(East!$E$10,12*$A28,0,12,1))) -> 0.20493 | K28: =IF(PlotControl!$B$4 = "Annual Max",MAX(OFFSET(East!$K$10,12*$A28,0,12,1)),AVERAGE(OFFSET(East!$K$10,12*$A28,0,12,1))) -> 0.43404 | L28: =IF(PlotControl!$B$4 = "Annual Max",MAX(OFFSET(East!$L$10,12*$A28,0,12,1)),AVERAGE(OFFSET(East!$L$10,12*$A28,0,12,1))) -> 0.48596 | M28: =IF(PlotControl!$B$4 = "Annual Max",MAX(OFFSET(East!$M$10,12*$A28,0,12,1)),AVERAGE(OFFSET(East!$M$10,12*$A28,0,12,1))) -> 0.52788 | N28: =IF(PlotControl!$B$4 = "Annual Max",MAX(OFFSET(South!$C$10,12*$A28,0,12,1)),AVERAGE(OFFSET(South!$C$10,12*$A28,0,12,1))) -> 0.16347 | O28: =IF(PlotControl!$B$4 = "Annual Max",MAX(OFFSET(South!$D$10,12*$A28,0,12,1)),AVERAGE(OFFSET(South!$D$10,12*$A28,0,12,1))) -> 0.18596 | P28: =IF(PlotControl!$B$4 = "Annual Max",MAX(OFFSET(South!$E$10,12*$A28,0,12,1)),AVERAGE(OFFSET(South!$E$10,12*$A28,0,12,1))) -> 0.2071 | Q28: =IF(PlotControl!$B$4 = "Annual Max",MAX(OFFSET(South!$K$10,12*$A28,0,12,1)),AVERAGE(OFFSET(South!$K$10,12*$A28,0,12,1))) -> 0.43404 | R28: =IF(PlotControl!$B$4 = "Annual Max",MAX(OFFSET(South!$L$10,12*$A28,0,12,1)),AVERAGE(OFFSET(South!$L$10,12*$A28,0,12,1))) -> 0.48596 | S28: =IF(PlotControl!$B$4 = "Annual Max",MAX(OFFSET(South!$M$10,12*$A28,0,12,1)),AVERAGE(OFFSET(South!$M$10,12*$A28,0,12,1))) -> 0.52788 | T28: =IF(PlotControl!$B$4 = "Annual Max",MAX(OFFSET(Closure!$C$10,12*$A28,0,12,1)),AVERAGE(OFFSET(Closure!$C$10,12*$A28,0,12,1))) -> 0.16238 | U28: =IF(PlotControl!$B$4 = "Annual Max",MAX(OFFSET(Closure!$D$10,12*$A28,0,12,1)),AVERAGE(OFFSET(Closure!$D$10,12*$A28,0,12,1))) -> 0.18502 | V28: =IF(PlotControl!$B$4 = "Annual Max",MAX(OFFSET(Closure!$E$10,12*$A28,0,12,1)),AVERAGE(OFFSET(Closure!$E$10,12*$A28,0,12,1))) -> 0.20566
A29: 24 | B29: =IF(PlotControl!$B$4 = "Annual Max",MAX(OFFSET(North!$C$10,12*$A29,0,12,1)),AVERAGE(OFFSET(North!$C$10,12*$A29,0,12,1))) -> 0.16247 | C29: =IF(PlotControl!$B$4 = "Annual Max",MAX(OFFSET(North!$D$10,12*$A29,0,12,1)),AVERAGE(OFFSET(North!$D$10,12*$A29,0,12,1))) -> 0.18371 | D29: =IF(PlotControl!$B$4 = "Annual Max",MAX(OFFSET(North!$E$10,12*$A29,0,12,1)),AVERAGE(OFFSET(North!$E$10,12*$A29,0,12,1))) -> 0.2041 | E29: =IF(PlotControl!$B$4 = "Annual Max",MAX(OFFSET(North!$K$10,12*$A29,0,12,1)),AVERAGE(OFFSET(North!$K$10,12*$A29,0,12,1))) -> 0.43136 | F29: =IF(PlotControl!$B$4 = "Annual Max",MAX(OFFSET(North!$L$10,12*$A29,0,12,1)),AVERAGE(OFFSET(North!$L$10,12*$A29,0,12,1))) -> 0.48601 | G29: =IF(PlotControl!$B$4 = "Annual Max",MAX(OFFSET(North!$M$10,12*$A29,0,12,1)),AVERAGE(OFFSET(North!$M$10,12*$A29,0,12,1))) -> 0.52984 | H29: =IF(PlotControl!$B$4 = "Annual Max",MAX(OFFSET(East!$C$10,12*$A29,0,12,1)),AVERAGE(OFFSET(East!$C$10,12*$A29,0,12,1))) -> 0.1626 | I29: =IF(PlotControl!$B$4 = "Annual Max",MAX(OFFSET(East!$D$10,12*$A29,0,12,1)),AVERAGE(OFFSET(East!$D$10,12*$A29,0,12,1))) -> 0.18359 | J29: =IF(PlotControl!$B$4 = "Annual Max",MAX(OFFSET(East!$E$10,12*$A29,0,12,1)),AVERAGE(OFFSET(East!$E$10,12*$A29,0,12,1))) -> 0.20399 | K29: =IF(PlotControl!$B$4 = "Annual Max",MAX(OFFSET(East!$K$10,12*$A29,0,12,1)),AVERAGE(OFFSET(East!$K$10,12*$A29,0,12,1))) -> 0.43136 | L29: =IF(PlotControl!$B$4 = "Annual Max",MAX(OFFSET(East!$L$10,12*$A29,0,12,1)),AVERAGE(OFFSET(East!$L$10,12*$A29,0,12,1))) -> 0.48601 | M29: =IF(PlotControl!$B$4 = "Annual Max",MAX(OFFSET(East!$M$10,12*$A29,0,12,1)),AVERAGE(OFFSET(East!$M$10,12*$A29,0,12,1))) -> 0.52984 | N29: =IF(PlotControl!$B$4 = "Annual Max",MAX(OFFSET(South!$C$10,12*$A29,0,12,1)),AVERAGE(OFFSET(South!$C$10,12*$A29,0,12,1))) -> 0.1631 | O29: =IF(PlotControl!$B$4 = "Annual Max",MAX(OFFSET(South!$D$10,12*$A29,0,12,1)),AVERAGE(OFFSET(South!$D$10,12*$A29,0,12,1))) -> 0.18426 | P29: =IF(PlotControl!$B$4 = "Annual Max",MAX(OFFSET(South!$E$10,12*$A29,0,12,1)),AVERAGE(OFFSET(South!$E$10,12*$A29,0,12,1))) -> 0.20454 | Q29: =IF(PlotControl!$B$4 = "Annual Max",MAX(OFFSET(South!$K$10,12*$A29,0,12,1)),AVERAGE(OFFSET(South!$K$10,12*$A29,0,12,1))) -> 0.43136 | R29: =IF(PlotControl!$B$4 = "Annual Max",MAX(OFFSET(South!$L$10,12*$A29,0,12,1)),AVERAGE(OFFSET(South!$L$10,12*$A29,0,12,1))) -> 0.48601 | S29: =IF(PlotControl!$B$4 = "Annual Max",MAX(OFFSET(South!$M$10,12*$A29,0,12,1)),AVERAGE(OFFSET(South!$M$10,12*$A29,0,12,1))) -> 0.52984 | T29: =IF(PlotControl!$B$4 = "Annual Max",MAX(OFFSET(Closure!$C$10,12*$A29,0,12,1)),AVERAGE(OFFSET(Closure!$C$10,12*$A29,0,12,1))) -> 0.16287 | U29: =IF(PlotControl!$B$4 = "Annual Max",MAX(OFFSET(Closure!$D$10,12*$A29,0,12,1)),AVERAGE(OFFSET(Closure!$D$10,12*$A29,0,12,1))) -> 0.184 | V29: =IF(PlotControl!$B$4 = "Annual Max",MAX(OFFSET(Closure!$E$10,12*$A29,0,12,1)),AVERAGE(OFFSET(Closure!$E$10,12*$A29,0,12,1))) -> 0.20421
A30: 25 | B30: =IF(PlotControl!$B$4 = "Annual Max",MAX(OFFSET(North!$C$10,12*$A30,0,12,1)),AVERAGE(OFFSET(North!$C$10,12*$A30,0,12,1))) -> 0.16354 | C30: =IF(PlotControl!$B$4 = "Annual Max",MAX(OFFSET(North!$D$10,12*$A30,0,12,1)),AVERAGE(OFFSET(North!$D$10,12*$A30,0,12,1))) -> 0.18294 | D30: =IF(PlotControl!$B$4 = "Annual Max",MAX(OFFSET(North!$E$10,12*$A30,0,12,1)),AVERAGE(OFFSET(North!$E$10,12*$A30,0,12,1))) -> 0.20073 | E30: =IF(PlotControl!$B$4 = "Annual Max",MAX(OFFSET(North!$K$10,12*$A30,0,12,1)),AVERAGE(OFFSET(North!$K$10,12*$A30,0,12,1))) -> 0.43327 | F30: =IF(PlotControl!$B$4 = "Annual Max",MAX(OFFSET(North!$L$10,12*$A30,0,12,1)),AVERAGE(OFFSET(North!$L$10,12*$A30,0,12,1))) -> 0.4865 | G30: =IF(PlotControl!$B$4 = "Annual Max",MAX(OFFSET(North!$M$10,12*$A30,0,12,1)),AVERAGE(OFFSET(North!$M$10,12*$A30,0,12,1))) -> 0.52863 | H30: =IF(PlotControl!$B$4 = "Annual Max",MAX(OFFSET(East!$C$10,12*$A30,0,12,1)),AVERAGE(OFFSET(East!$C$10,12*$A30,0,12,1))) -> 0.16365 | I30: =IF(PlotControl!$B$4 = "Annual Max",MAX(OFFSET(East!$D$10,12*$A30,0,12,1)),AVERAGE(OFFSET(East!$D$10,12*$A30,0,12,1))) -> 0.18286 | J30: =IF(PlotControl!$B$4 = "Annual Max",MAX(OFFSET(East!$E$10,12*$A30,0,12,1)),AVERAGE(OFFSET(East!$E$10,12*$A30,0,12,1))) -> 0.20056 | K30: =IF(PlotControl!$B$4 = "Annual Max",MAX(OFFSET(East!$K$10,12*$A30,0,12,1)),AVERAGE(OFFSET(East!$K$10,12*$A30,0,12,1))) -> 0.43327 | L30: =IF(PlotControl!$B$4 = "Annual Max",MAX(OFFSET(East!$L$10,12*$A30,0,12,1)),AVERAGE(OFFSET(East!$L$10,12*$A30,0,12,1))) -> 0.4865 | M30: =IF(PlotControl!$B$4 = "Annual Max",MAX(OFFSET(East!$M$10,12*$A30,0,12,1)),AVERAGE(OFFSET(East!$M$10,12*$A30,0,12,1))) -> 0.52863 | N30: =IF(PlotControl!$B$4 = "Annual Max",MAX(OFFSET(South!$C$10,12*$A30,0,12,1)),AVERAGE(OFFSET(South!$C$10,12*$A30,0,12,1))) -> 0.16389 | O30: =IF(PlotControl!$B$4 = "Annual Max",MAX(OFFSET(South!$D$10,12*$A30,0,12,1)),AVERAGE(OFFSET(South!$D$10,12*$A30,0,12,1))) -> 0.18296 | P30: =IF(PlotControl!$B$4 = "Annual Max",MAX(OFFSET(South!$E$10,12*$A30,0,12,1)),AVERAGE(OFFSET(South!$E$10,12*$A30,0,12,1))) -> 0.20078 | Q30: =IF(PlotControl!$B$4 = "Annual Max",MAX(OFFSET(South!$K$10,12*$A30,0,12,1)),AVERAGE(OFFSET(South!$K$10,12*$A30,0,12,1))) -> 0.43327 | R30: =IF(PlotControl!$B$4 = "Annual Max",MAX(OFFSET(South!$L$10,12*$A30,0,12,1)),AVERAGE(OFFSET(South!$L$10,12*$A30,0,12,1))) -> 0.4865 | S30: =IF(PlotControl!$B$4 = "Annual Max",MAX(OFFSET(South!$M$10,12*$A30,0,12,1)),AVERAGE(OFFSET(South!$M$10,12*$A30,0,12,1))) -> 0.52863 | T30: =IF(PlotControl!$B$4 = "Annual Max",MAX(OFFSET(Closure!$C$10,12*$A30,0,12,1)),AVERAGE(OFFSET(Closure!$C$10,12*$A30,0,12,1))) -> 0.16401 | U30: =IF(PlotControl!$B$4 = "Annual Max",MAX(OFFSET(Closure!$D$10,12*$A30,0,12,1)),AVERAGE(OFFSET(Closure!$D$10,12*$A30,0,12,1))) -> 0.18307 | V30: =IF(PlotControl!$B$4 = "Annual Max",MAX(OFFSET(Closure!$E$10,12*$A30,0,12,1)),AVERAGE(OFFSET(Closure!$E$10,12*$A30,0,12,1))) -> 0.20082
A31: 26 | B31: =IF(PlotControl!$B$4 = "Annual Max",MAX(OFFSET(North!$C$10,12*$A31,0,12,1)),AVERAGE(OFFSET(North!$C$10,12*$A31,0,12,1))) -> 0.16063 | C31: =IF(PlotControl!$B$4 = "Annual Max",MAX(OFFSET(North!$D$10,12*$A31,0,12,1)),AVERAGE(OFFSET(North!$D$10,12*$A31,0,12,1))) -> 0.18334 | D31: =IF(PlotControl!$B$4 = "Annual Max",MAX(OFFSET(North!$E$10,12*$A31,0,12,1)),AVERAGE(OFFSET(North!$E$10,12*$A31,0,12,1))) -> 0.20073 | E31: =IF(PlotControl!$B$4 = "Annual Max",MAX(OFFSET(North!$K$10,12*$A31,0,12,1)),AVERAGE(OFFSET(North!$K$10,12*$A31,0,12,1))) -> 0.43357 | F31: =IF(PlotControl!$B$4 = "Annual Max",MAX(OFFSET(North!$L$10,12*$A31,0,12,1)),AVERAGE(OFFSET(North!$L$10,12*$A31,0,12,1))) -> 0.48637 | G31: =IF(PlotControl!$B$4 = "Annual Max",MAX(OFFSET(North!$M$10,12*$A31,0,12,1)),AVERAGE(OFFSET(North!$M$10,12*$A31,0,12,1))) -> 0.52741 | H31: =IF(PlotControl!$B$4 = "Annual Max",MAX(OFFSET(East!$C$10,12*$A31,0,12,1)),AVERAGE(OFFSET(East!$C$10,12*$A31,0,12,1))) -> 0.16063 | I31: =IF(PlotControl!$B$4 = "Annual Max",MAX(OFFSET(East!$D$10,12*$A31,0,12,1)),AVERAGE(OFFSET(East!$D$10,12*$A31,0,12,1))) -> 0.18327 | J31: =IF(PlotControl!$B$4 = "Annual Max",MAX(OFFSET(East!$E$10,12*$A31,0,12,1)),AVERAGE(OFFSET(East!$E$10,12*$A31,0,12,1))) -> 0.20052 | K31: =IF(PlotControl!$B$4 = "Annual Max",MAX(OFFSET(East!$K$10,12*$A31,0,12,1)),AVERAGE(OFFSET(East!$K$10,12*$A31,0,12,1))) -> 0.43357 | L31: =IF(PlotControl!$B$4 = "Annual Max",MAX(OFFSET(East!$L$10,12*$A31,0,12,1)),AVERAGE(OFFSET(East!$L$10,12*$A31,0,12,1))) -> 0.48637 | M31: =IF(PlotControl!$B$4 = "Annual Max",MAX(OFFSET(East!$M$10,12*$A31,0,12,1)),AVERAGE(OFFSET(East!$M$10,12*$A31,0,12,1))) -> 0.52741 | N31: =IF(PlotControl!$B$4 = "Annual Max",MAX(OFFSET(South!$C$10,12*$A31,0,12,1)),AVERAGE(OFFSET(South!$C$10,12*$A31,0,12,1))) -> 0.16096 | O31: =IF(PlotControl!$B$4 = "Annual Max",MAX(OFFSET(South!$D$10,12*$A31,0,12,1)),AVERAGE(OFFSET(South!$D$10,12*$A31,0,12,1))) -> 0.18335 | P31: =IF(PlotControl!$B$4 = "Annual Max",MAX(OFFSET(South!$E$10,12*$A31,0,12,1)),AVERAGE(OFFSET(South!$E$10,12*$A31,0,12,1))) -> 0.20057 | Q31: =IF(PlotControl!$B$4 = "Annual Max",MAX(OFFSET(South!$K$10,12*$A31,0,12,1)),AVERAGE(OFFSET(South!$K$10,12*$A31,0,12,1))) -> 0.43357 | R31: =IF(PlotControl!$B$4 = "Annual Max",MAX(OFFSET(South!$L$10,12*$A31,0,12,1)),AVERAGE(OFFSET(South!$L$10,12*$A31,0,12,1))) -> 0.48637 | S31: =IF(PlotControl!$B$4 = "Annual Max",MAX(OFFSET(South!$M$10,12*$A31,0,12,1)),AVERAGE(OFFSET(South!$M$10,12*$A31,0,12,1))) -> 0.52741 | T31: =IF(PlotControl!$B$4 = "Annual Max",MAX(OFFSET(Closure!$C$10,12*$A31,0,12,1)),AVERAGE(OFFSET(Closure!$C$10,12*$A31,0,12,1))) -> 0.16063 | U31: =IF(PlotControl!$B$4 = "Annual Max",MAX(OFFSET(Closure!$D$10,12*$A31,0,12,1)),AVERAGE(OFFSET(Closure!$D$10,12*$A31,0,12,1))) -> 0.18343 | V31: =IF(PlotControl!$B$4 = "Annual Max",MAX(OFFSET(Closure!$E$10,12*$A31,0,12,1)),AVERAGE(OFFSET(Closure!$E$10,12*$A31,0,12,1))) -> 0.20059
A32: 27 | B32: =IF(PlotControl!$B$4 = "Annual Max",MAX(OFFSET(North!$C$10,12*$A32,0,12,1)),AVERAGE(OFFSET(North!$C$10,12*$A32,0,12,1))) -> 0.16064 | C32: =IF(PlotControl!$B$4 = "Annual Max",MAX(OFFSET(North!$D$10,12*$A32,0,12,1)),AVERAGE(OFFSET(North!$D$10,12*$A32,0,12,1))) -> 0.18236 | D32: =IF(PlotControl!$B$4 = "Annual Max",MAX(OFFSET(North!$E$10,12*$A32,0,12,1)),AVERAGE(OFFSET(North!$E$10,12*$A32,0,12,1))) -> 0.20076 | E32: =IF(PlotControl!$B$4 = "Annual Max",MAX(OFFSET(North!$K$10,12*$A32,0,12,1)),AVERAGE(OFFSET(North!$K$10,12*$A32,0,12,1))) -> 0.43602 | F32: =IF(PlotControl!$B$4 = "Annual Max",MAX(OFFSET(North!$L$10,12*$A32,0,12,1)),AVERAGE(OFFSET(North!$L$10,12*$A32,0,12,1))) -> 0.4881 | G32: =IF(PlotControl!$B$4 = "Annual Max",MAX(OFFSET(North!$M$10,12*$A32,0,12,1)),AVERAGE(OFFSET(North!$M$10,12*$A32,0,12,1))) -> 0.52777 | H32: =IF(PlotControl!$B$4 = "Annual Max",MAX(OFFSET(East!$C$10,12*$A32,0,12,1)),AVERAGE(OFFSET(East!$C$10,12*$A32,0,12,1))) -> 0.16064 | I32: =IF(PlotControl!$B$4 = "Annual Max",MAX(OFFSET(East!$D$10,12*$A32,0,12,1)),AVERAGE(OFFSET(East!$D$10,12*$A32,0,12,1))) -> 0.18236 | J32: =IF(PlotControl!$B$4 = "Annual Max",MAX(OFFSET(East!$E$10,12*$A32,0,12,1)),AVERAGE(OFFSET(East!$E$10,12*$A32,0,12,1))) -> 0.20076 | K32: =IF(PlotControl!$B$4 = "Annual Max",MAX(OFFSET(East!$K$10,12*$A32,0,12,1)),AVERAGE(OFFSET(East!$K$10,12*$A32,0,12,1))) -> 0.43602 | L32: =IF(PlotControl!$B$4 = "Annual Max",MAX(OFFSET(East!$L$10,12*$A32,0,12,1)),AVERAGE(OFFSET(East!$L$10,12*$A32,0,12,1))) -> 0.4881 | M32: =IF(PlotControl!$B$4 = "Annual Max",MAX(OFFSET(East!$M$10,12*$A32,0,12,1)),AVERAGE(OFFSET(East!$M$10,12*$A32,0,12,1))) -> 0.52777 | N32: =IF(PlotControl!$B$4 = "Annual Max",MAX(OFFSET(South!$C$10,12*$A32,0,12,1)),AVERAGE(OFFSET(South!$C$10,12*$A32,0,12,1))) -> 0.16064 | O32: =IF(PlotControl!$B$4 = "Annual Max",MAX(OFFSET(South!$D$10,12*$A32,0,12,1)),AVERAGE(OFFSET(South!$D$10,12*$A32,0,12,1))) -> 0.18236 | P32: =IF(PlotControl!$B$4 = "Annual Max",MAX(OFFSET(South!$E$10,12*$A32,0,12,1)),AVERAGE(OFFSET(South!$E$10,12*$A32,0,12,1))) -> 0.20076 | Q32: =IF(PlotControl!$B$4 = "Annual Max",MAX(OFFSET(South!$K$10,12*$A32,0,12,1)),AVERAGE(OFFSET(South!$K$10,12*$A32,0,12,1))) -> 0.43602 | R32: =IF(PlotControl!$B$4 = "Annual Max",MAX(OFFSET(South!$L$10,12*$A32,0,12,1)),AVERAGE(OFFSET(South!$L$10,12*$A32,0,12,1))) -> 0.4881 | S32: =IF(PlotControl!$B$4 = "Annual Max",MAX(OFFSET(South!$M$10,12*$A32,0,12,1)),AVERAGE(OFFSET(South!$M$10,12*$A32,0,12,1))) -> 0.52777 | T32: =IF(PlotControl!$B$4 = "Annual Max",MAX(OFFSET(Closure!$C$10,12*$A32,0,12,1)),AVERAGE(OFFSET(Closure!$C$10,12*$A32,0,12,1))) -> 0.16064 | U32: =IF(PlotControl!$B$4 = "Annual Max",MAX(OFFSET(Closure!$D$10,12*$A32,0,12,1)),AVERAGE(OFFSET(Closure!$D$10,12*$A32,0,12,1))) -> 0.18236 | V32: =IF(PlotControl!$B$4 = "Annual Max",MAX(OFFSET(Closure!$E$10,12*$A32,0,12,1)),AVERAGE(OFFSET(Closure!$E$10,12*$A32,0,12,1))) -> 0.20076
A33: 28 | B33: =IF(PlotControl!$B$4 = "Annual Max",MAX(OFFSET(North!$C$10,12*$A33,0,12,1)),AVERAGE(OFFSET(North!$C$10,12*$A33,0,12,1))) -> 0.15992 | C33: =IF(PlotControl!$B$4 = "Annual Max",MAX(OFFSET(North!$D$10,12*$A33,0,12,1)),AVERAGE(OFFSET(North!$D$10,12*$A33,0,12,1))) -> 0.18276 | D33: =IF(PlotControl!$B$4 = "Annual Max",MAX(OFFSET(North!$E$10,12*$A33,0,12,1)),AVERAGE(OFFSET(North!$E$10,12*$A33,0,12,1))) -> 0.20064 | E33: =IF(PlotControl!$B$4 = "Annual Max",MAX(OFFSET(North!$K$10,12*$A33,0,12,1)),AVERAGE(OFFSET(North!$K$10,12*$A33,0,12,1))) -> 0.42985 | F33: =IF(PlotControl!$B$4 = "Annual Max",MAX(OFFSET(North!$L$10,12*$A33,0,12,1)),AVERAGE(OFFSET(North!$L$10,12*$A33,0,12,1))) -> 0.48857 | G33: =IF(PlotControl!$B$4 = "Annual Max",MAX(OFFSET(North!$M$10,12*$A33,0,12,1)),AVERAGE(OFFSET(North!$M$10,12*$A33,0,12,1))) -> 0.52892 | H33: =IF(PlotControl!$B$4 = "Annual Max",MAX(OFFSET(East!$C$10,12*$A33,0,12,1)),AVERAGE(OFFSET(East!$C$10,12*$A33,0,12,1))) -> 0.15992 | I33: =IF(PlotControl!$B$4 = "Annual Max",MAX(OFFSET(East!$D$10,12*$A33,0,12,1)),AVERAGE(OFFSET(East!$D$10,12*$A33,0,12,1))) -> 0.18276 | J33: =IF(PlotControl!$B$4 = "Annual Max",MAX(OFFSET(East!$E$10,12*$A33,0,12,1)),AVERAGE(OFFSET(East!$E$10,12*$A33,0,12,1))) -> 0.20064 | K33: =IF(PlotControl!$B$4 = "Annual Max",MAX(OFFSET(East!$K$10,12*$A33,0,12,1)),AVERAGE(OFFSET(East!$K$10,12*$A33,0,12,1))) -> 0.42985 | L33: =IF(PlotControl!$B$4 = "Annual Max",MAX(OFFSET(East!$L$10,12*$A33,0,12,1)),AVERAGE(OFFSET(East!$L$10,12*$A33,0,12,1))) -> 0.48857 | M33: =IF(PlotControl!$B$4 = "Annual Max",MAX(OFFSET(East!$M$10,12*$A33,0,12,1)),AVERAGE(OFFSET(East!$M$10,12*$A33,0,12,1))) -> 0.52892 | N33: =IF(PlotControl!$B$4 = "Annual Max",MAX(OFFSET(South!$C$10,12*$A33,0,12,1)),AVERAGE(OFFSET(South!$C$10,12*$A33,0,12,1))) -> 0.15992 | O33: =IF(PlotControl!$B$4 = "Annual Max",MAX(OFFSET(South!$D$10,12*$A33,0,12,1)),AVERAGE(OFFSET(South!$D$10,12*$A33,0,12,1))) -> 0.18276 | P33: =IF(PlotControl!$B$4 = "Annual Max",MAX(OFFSET(South!$E$10,12*$A33,0,12,1)),AVERAGE(OFFSET(South!$E$10,12*$A33,0,12,1))) -> 0.20064 | Q33: =IF(PlotControl!$B$4 = "Annual Max",MAX(OFFSET(South!$K$10,12*$A33,0,12,1)),AVERAGE(OFFSET(South!$K$10,12*$A33,0,12,1))) -> 0.42985 | R33: =IF(PlotControl!$B$4 = "Annual Max",MAX(OFFSET(South!$L$10,12*$A33,0,12,1)),AVERAGE(OFFSET(South!$L$10,12*$A33,0,12,1))) -> 0.48857 | S33: =IF(PlotControl!$B$4 = "Annual Max",MAX(OFFSET(South!$M$10,12*$A33,0,12,1)),AVERAGE(OFFSET(South!$M$10,12*$A33,0,12,1))) -> 0.52892 | T33: =IF(PlotControl!$B$4 = "Annual Max",MAX(OFFSET(Closure!$C$10,12*$A33,0,12,1)),AVERAGE(OFFSET(Closure!$C$10,12*$A33,0,12,1))) -> 0.15992 | U33: =IF(PlotControl!$B$4 = "Annual Max",MAX(OFFSET(Closure!$D$10,12*$A33,0,12,1)),AVERAGE(OFFSET(Closure!$D$10,12*$A33,0,12,1))) -> 0.18276 | V33: =IF(PlotControl!$B$4 = "Annual Max",MAX(OFFSET(Closure!$E$10,12*$A33,0,12,1)),AVERAGE(OFFSET(Closure!$E$10,12*$A33,0,12,1))) -> 0.20064
A34: 29 | B34: =IF(PlotControl!$B$4 = "Annual Max",MAX(OFFSET(North!$C$10,12*$A34,0,12,1)),AVERAGE(OFFSET(North!$C$10,12*$A34,0,12,1))) -> 0.16138 | C34: =IF(PlotControl!$B$4 = "Annual Max",MAX(OFFSET(North!$D$10,12*$A34,0,12,1)),AVERAGE(OFFSET(North!$D$10,12*$A34,0,12,1))) -> 0.18191 | D34: =IF(PlotControl!$B$4 = "Annual Max",MAX(OFFSET(North!$E$10,12*$A34,0,12,1)),AVERAGE(OFFSET(North!$E$10,12*$A34,0,12,1))) -> 0.20045 | E34: =IF(PlotControl!$B$4 = "Annual Max",MAX(OFFSET(North!$K$10,12*$A34,0,12,1)),AVERAGE(OFFSET(North!$K$10,12*$A34,0,12,1))) -> 0.43427 | F34: =IF(PlotControl!$B$4 = "Annual Max",MAX(OFFSET(North!$L$10,12*$A34,0,12,1)),AVERAGE(OFFSET(North!$L$10,12*$A34,0,12,1))) -> 0.48896 | G34: =IF(PlotControl!$B$4 = "Annual Max",MAX(OFFSET(North!$M$10,12*$A34,0,12,1)),AVERAGE(OFFSET(North!$M$10,12*$A34,0,12,1))) -> 0.5282 | H34: =IF(PlotControl!$B$4 = "Annual Max",MAX(OFFSET(East!$C$10,12*$A34,0,12,1)),AVERAGE(OFFSET(East!$C$10,12*$A34,0,12,1))) -> 0.16138 | I34: =IF(PlotControl!$B$4 = "Annual Max",MAX(OFFSET(East!$D$10,12*$A34,0,12,1)),AVERAGE(OFFSET(East!$D$10,12*$A34,0,12,1))) -> 0.18191 | J34: =IF(PlotControl!$B$4 = "Annual Max",MAX(OFFSET(East!$E$10,12*$A34,0,12,1)),AVERAGE(OFFSET(East!$E$10,12*$A34,0,12,1))) -> 0.20045 | K34: =IF(PlotControl!$B$4 = "Annual Max",MAX(OFFSET(East!$K$10,12*$A34,0,12,1)),AVERAGE(OFFSET(East!$K$10,12*$A34,0,12,1))) -> 0.43427 | L34: =IF(PlotControl!$B$4 = "Annual Max",MAX(OFFSET(East!$L$10,12*$A34,0,12,1)),AVERAGE(OFFSET(East!$L$10,12*$A34,0,12,1))) -> 0.48896 | M34: =IF(PlotControl!$B$4 = "Annual Max",MAX(OFFSET(East!$M$10,12*$A34,0,12,1)),AVERAGE(OFFSET(East!$M$10,12*$A34,0,12,1))) -> 0.5282 | N34: =IF(PlotControl!$B$4 = "Annual Max",MAX(OFFSET(South!$C$10,12*$A34,0,12,1)),AVERAGE(OFFSET(South!$C$10,12*$A34,0,12,1))) -> 0.16138 | O34: =IF(PlotControl!$B$4 = "Annual Max",MAX(OFFSET(South!$D$10,12*$A34,0,12,1)),AVERAGE(OFFSET(South!$D$10,12*$A34,0,12,1))) -> 0.18191 | P34: =IF(PlotControl!$B$4 = "Annual Max",MAX(OFFSET(South!$E$10,12*$A34,0,12,1)),AVERAGE(OFFSET(South!$E$10,12*$A34,0,12,1))) -> 0.20045 | Q34: =IF(PlotControl!$B$4 = "Annual Max",MAX(OFFSET(South!$K$10,12*$A34,0,12,1)),AVERAGE(OFFSET(South!$K$10,12*$A34,0,12,1))) -> 0.43427 | R34: =IF(PlotControl!$B$4 = "Annual Max",MAX(OFFSET(South!$L$10,12*$A34,0,12,1)),AVERAGE(OFFSET(South!$L$10,12*$A34,0,12,1))) -> 0.48896 | S34: =IF(PlotControl!$B$4 = "Annual Max",MAX(OFFSET(South!$M$10,12*$A34,0,12,1)),AVERAGE(OFFSET(South!$M$10,12*$A34,0,12,1))) -> 0.5282 | T34: =IF(PlotControl!$B$4 = "Annual Max",MAX(OFFSET(Closure!$C$10,12*$A34,0,12,1)),AVERAGE(OFFSET(Closure!$C$10,12*$A34,0,12,1))) -> 0.16138 | U34: =IF(PlotControl!$B$4 = "Annual Max",MAX(OFFSET(Closure!$D$10,12*$A34,0,12,1)),AVERAGE(OFFSET(Closure!$D$10,12*$A34,0,12,1))) -> 0.18191 | V34: =IF(PlotControl!$B$4 = "Annual Max",MAX(OFFSET(Closure!$E$10,12*$A34,0,12,1)),AVERAGE(OFFSET(Closure!$E$10,12*$A34,0,12,1))) -> 0.20045
A35: 30 | B35: =IF(PlotControl!$B$4 = "Annual Max",MAX(OFFSET(North!$C$10,12*$A35,0,12,1)),AVERAGE(OFFSET(North!$C$10,12*$A35,0,12,1))) -> 0.16153 | C35: =IF(PlotControl!$B$4 = "Annual Max",MAX(OFFSET(North!$D$10,12*$A35,0,12,1)),AVERAGE(OFFSET(North!$D$10,12*$A35,0,12,1))) -> 0.18305 | D35: =IF(PlotControl!$B$4 = "Annual Max",MAX(OFFSET(North!$E$10,12*$A35,0,12,1)),AVERAGE(OFFSET(North!$E$10,12*$A35,0,12,1))) -> 0.19994 | E35: =IF(PlotControl!$B$4 = "Annual Max",MAX(OFFSET(North!$K$10,12*$A35,0,12,1)),AVERAGE(OFFSET(North!$K$10,12*$A35,0,12,1))) -> 0.43046 | F35: =IF(PlotControl!$B$4 = "Annual Max",MAX(OFFSET(North!$L$10,12*$A35,0,12,1)),AVERAGE(OFFSET(North!$L$10,12*$A35,0,12,1))) -> 0.48609 | G35: =IF(PlotControl!$B$4 = "Annual Max",MAX(OFFSET(North!$M$10,12*$A35,0,12,1)),AVERAGE(OFFSET(North!$M$10,12*$A35,0,12,1))) -> 0.5283 | H35: =IF(PlotControl!$B$4 = "Annual Max",MAX(OFFSET(East!$C$10,12*$A35,0,12,1)),AVERAGE(OFFSET(East!$C$10,12*$A35,0,12,1))) -> 0.16153 | I35: =IF(PlotControl!$B$4 = "Annual Max",MAX(OFFSET(East!$D$10,12*$A35,0,12,1)),AVERAGE(OFFSET(East!$D$10,12*$A35,0,12,1))) -> 0.18305 | J35: =IF(PlotControl!$B$4 = "Annual Max",MAX(OFFSET(East!$E$10,12*$A35,0,12,1)),AVERAGE(OFFSET(East!$E$10,12*$A35,0,12,1))) -> 0.19994 | K35: =IF(PlotControl!$B$4 = "Annual Max",MAX(OFFSET(East!$K$10,12*$A35,0,12,1)),AVERAGE(OFFSET(East!$K$10,12*$A35,0,12,1))) -> 0.43046 | L35: =IF(PlotControl!$B$4 = "Annual Max",MAX(OFFSET(East!$L$10,12*$A35,0,12,1)),AVERAGE(OFFSET(East!$L$10,12*$A35,0,12,1))) -> 0.48609 | M35: =IF(PlotControl!$B$4 = "Annual Max",MAX(OFFSET(East!$M$10,12*$A35,0,12,1)),AVERAGE(OFFSET(East!$M$10,12*$A35,0,12,1))) -> 0.5283 | N35: =IF(PlotControl!$B$4 = "Annual Max",MAX(OFFSET(South!$C$10,12*$A35,0,12,1)),AVERAGE(OFFSET(South!$C$10,12*$A35,0,12,1))) -> 0.16153 | O35: =IF(PlotControl!$B$4 = "Annual Max",MAX(OFFSET(South!$D$10,12*$A35,0,12,1)),AVERAGE(OFFSET(South!$D$10,12*$A35,0,12,1))) -> 0.18305 | P35: =IF(PlotControl!$B$4 = "Annual Max",MAX(OFFSET(South!$E$10,12*$A35,0,12,1)),AVERAGE(OFFSET(South!$E$10,12*$A35,0,12,1))) -> 0.19994 | Q35: =IF(PlotControl!$B$4 = "Annual Max",MAX(OFFSET(South!$K$10,12*$A35,0,12,1)),AVERAGE(OFFSET(South!$K$10,12*$A35,0,12,1))) -> 0.43046 | R35: =IF(PlotControl!$B$4 = "Annual Max",MAX(OFFSET(South!$L$10,12*$A35,0,12,1)),AVERAGE(OFFSET(South!$L$10,12*$A35,0,12,1))) -> 0.48609 | S35: =IF(PlotControl!$B$4 = "Annual Max",MAX(OFFSET(South!$M$10,12*$A35,0,12,1)),AVERAGE(OFFSET(South!$M$10,12*$A35,0,12,1))) -> 0.5283 | T35: =IF(PlotControl!$B$4 = "Annual Max",MAX(OFFSET(Closure!$C$10,12*$A35,0,12,1)),AVERAGE(OFFSET(Closure!$C$10,12*$A35,0,12,1))) -> 0.16153 | U35: =IF(PlotControl!$B$4 = "Annual Max",MAX(OFFSET(Closure!$D$10,12*$A35,0,12,1)),AVERAGE(OFFSET(Closure!$D$10,12*$A35,0,12,1))) -> 0.18305 | V35: =IF(PlotControl!$B$4 = "Annual Max",MAX(OFFSET(Closure!$E$10,12*$A35,0,12,1)),AVERAGE(OFFSET(Closure!$E$10,12*$A35,0,12,1))) -> 0.19994
A36: 31 | B36: =IF(PlotControl!$B$4 = "Annual Max",MAX(OFFSET(North!$C$10,12*$A36,0,12,1)),AVERAGE(OFFSET(North!$C$10,12*$A36,0,12,1))) -> 0.16116 | C36: =IF(PlotControl!$B$4 = "Annual Max",MAX(OFFSET(North!$D$10,12*$A36,0,12,1)),AVERAGE(OFFSET(North!$D$10,12*$A36,0,12,1))) -> 0.18335 | D36: =IF(PlotControl!$B$4 = "Annual Max",MAX(OFFSET(North!$E$10,12*$A36,0,12,1)),AVERAGE(OFFSET(North!$E$10,12*$A36,0,12,1))) -> 0.20148 | E36: =IF(PlotControl!$B$4 = "Annual Max",MAX(OFFSET(North!$K$10,12*$A36,0,12,1)),AVERAGE(OFFSET(North!$K$10,12*$A36,0,12,1))) -> 0.43987 | F36: =IF(PlotControl!$B$4 = "Annual Max",MAX(OFFSET(North!$L$10,12*$A36,0,12,1)),AVERAGE(OFFSET(North!$L$10,12*$A36,0,12,1))) -> 0.4874 | G36: =IF(PlotControl!$B$4 = "Annual Max",MAX(OFFSET(North!$M$10,12*$A36,0,12,1)),AVERAGE(OFFSET(North!$M$10,12*$A36,0,12,1))) -> 0.52568 | H36: =IF(PlotControl!$B$4 = "Annual Max",MAX(OFFSET(East!$C$10,12*$A36,0,12,1)),AVERAGE(OFFSET(East!$C$10,12*$A36,0,12,1))) -> 0.16116 | I36: =IF(PlotControl!$B$4 = "Annual Max",MAX(OFFSET(East!$D$10,12*$A36,0,12,1)),AVERAGE(OFFSET(East!$D$10,12*$A36,0,12,1))) -> 0.18335 | J36: =IF(PlotControl!$B$4 = "Annual Max",MAX(OFFSET(East!$E$10,12*$A36,0,12,1)),AVERAGE(OFFSET(East!$E$10,12*$A36,0,12,1))) -> 0.20148 | K36: =IF(PlotControl!$B$4 = "Annual Max",MAX(OFFSET(East!$K$10,12*$A36,0,12,1)),AVERAGE(OFFSET(East!$K$10,12*$A36,0,12,1))) -> 0.43987 | L36: =IF(PlotControl!$B$4 = "Annual Max",MAX(OFFSET(East!$L$10,12*$A36,0,12,1)),AVERAGE(OFFSET(East!$L$10,12*$A36,0,12,1))) -> 0.4874 | M36: =IF(PlotControl!$B$4 = "Annual Max",MAX(OFFSET(East!$M$10,12*$A36,0,12,1)),AVERAGE(OFFSET(East!$M$10,12*$A36,0,12,1))) -> 0.52568 | N36: =IF(PlotControl!$B$4 = "Annual Max",MAX(OFFSET(South!$C$10,12*$A36,0,12,1)),AVERAGE(OFFSET(South!$C$10,12*$A36,0,12,1))) -> 0.16116 | O36: =IF(PlotControl!$B$4 = "Annual Max",MAX(OFFSET(South!$D$10,12*$A36,0,12,1)),AVERAGE(OFFSET(South!$D$10,12*$A36,0,12,1))) -> 0.18335 | P36: =IF(PlotControl!$B$4 = "Annual Max",MAX(OFFSET(South!$E$10,12*$A36,0,12,1)),AVERAGE(OFFSET(South!$E$10,12*$A36,0,12,1))) -> 0.20148 | Q36: =IF(PlotControl!$B$4 = "Annual Max",MAX(OFFSET(South!$K$10,12*$A36,0,12,1)),AVERAGE(OFFSET(South!$K$10,12*$A36,0,12,1))) -> 0.43987 | R36: =IF(PlotControl!$B$4 = "Annual Max",MAX(OFFSET(South!$L$10,12*$A36,0,12,1)),AVERAGE(OFFSET(South!$L$10,12*$A36,0,12,1))) -> 0.4874 | S36: =IF(PlotControl!$B$4 = "Annual Max",MAX(OFFSET(South!$M$10,12*$A36,0,12,1)),AVERAGE(OFFSET(South!$M$10,12*$A36,0,12,1))) -> 0.52568 | T36: =IF(PlotControl!$B$4 = "Annual Max",MAX(OFFSET(Closure!$C$10,12*$A36,0,12,1)),AVERAGE(OFFSET(Closure!$C$10,12*$A36,0,12,1))) -> 0.16116 | U36: =IF(PlotControl!$B$4 = "Annual Max",MAX(OFFSET(Closure!$D$10,12*$A36,0,12,1)),AVERAGE(OFFSET(Closure!$D$10,12*$A36,0,12,1))) -> 0.18335 | V36: =IF(PlotControl!$B$4 = "Annual Max",MAX(OFFSET(Closure!$E$10,12*$A36,0,12,1)),AVERAGE(OFFSET(Closure!$E$10,12*$A36,0,12,1))) -> 0.20148
A37: 32 | B37: =IF(PlotControl!$B$4 = "Annual Max",MAX(OFFSET(North!$C$10,12*$A37,0,12,1)),AVERAGE(OFFSET(North!$C$10,12*$A37,0,12,1))) -> 0.16196 | C37: =IF(PlotControl!$B$4 = "Annual Max",MAX(OFFSET(North!$D$10,12*$A37,0,12,1)),AVERAGE(OFFSET(North!$D$10,12*$A37,0,12,1))) -> 0.18249 | D37: =IF(PlotControl!$B$4 = "Annual Max",MAX(OFFSET(North!$E$10,12*$A37,0,12,1)),AVERAGE(OFFSET(North!$E$10,12*$A37,0,12,1))) -> 0.20164 | E37: =IF(PlotControl!$B$4 = "Annual Max",MAX(OFFSET(North!$K$10,12*$A37,0,12,1)),AVERAGE(OFFSET(North!$K$10,12*$A37,0,12,1))) -> 0.43411 | F37: =IF(PlotControl!$B$4 = "Annual Max",MAX(OFFSET(North!$L$10,12*$A37,0,12,1)),AVERAGE(OFFSET(North!$L$10,12*$A37,0,12,1))) -> 0.48284 | G37: =IF(PlotControl!$B$4 = "Annual Max",MAX(OFFSET(North!$M$10,12*$A37,0,12,1)),AVERAGE(OFFSET(North!$M$10,12*$A37,0,12,1))) -> 0.52858 | H37: =IF(PlotControl!$B$4 = "Annual Max",MAX(OFFSET(East!$C$10,12*$A37,0,12,1)),AVERAGE(OFFSET(East!$C$10,12*$A37,0,12,1))) -> 0.16196 | I37: =IF(PlotControl!$B$4 = "Annual Max",MAX(OFFSET(East!$D$10,12*$A37,0,12,1)),AVERAGE(OFFSET(East!$D$10,12*$A37,0,12,1))) -> 0.18249 | J37: =IF(PlotControl!$B$4 = "Annual Max",MAX(OFFSET(East!$E$10,12*$A37,0,12,1)),AVERAGE(OFFSET(East!$E$10,12*$A37,0,12,1))) -> 0.20164 | K37: =IF(PlotControl!$B$4 = "Annual Max",MAX(OFFSET(East!$K$10,12*$A37,0,12,1)),AVERAGE(OFFSET(East!$K$10,12*$A37,0,12,1))) -> 0.43411 | L37: =IF(PlotControl!$B$4 = "Annual Max",MAX(OFFSET(East!$L$10,12*$A37,0,12,1)),AVERAGE(OFFSET(East!$L$10,12*$A37,0,12,1))) -> 0.48284 | M37: =IF(PlotControl!$B$4 = "Annual Max",MAX(OFFSET(East!$M$10,12*$A37,0,12,1)),AVERAGE(OFFSET(East!$M$10,12*$A37,0,12,1))) -> 0.52858 | N37: =IF(PlotControl!$B$4 = "Annual Max",MAX(OFFSET(South!$C$10,12*$A37,0,12,1)),AVERAGE(OFFSET(South!$C$10,12*$A37,0,12,1))) -> 0.16196 | O37: =IF(PlotControl!$B$4 = "Annual Max",MAX(OFFSET(South!$D$10,12*$A37,0,12,1)),AVERAGE(OFFSET(South!$D$10,12*$A37,0,12,1))) -> 0.18249 | P37: =IF(PlotControl!$B$4 = "Annual Max",MAX(OFFSET(South!$E$10,12*$A37,0,12,1)),AVERAGE(OFFSET(South!$E$10,12*$A37,0,12,1))) -> 0.20164 | Q37: =IF(PlotControl!$B$4 = "Annual Max",MAX(OFFSET(South!$K$10,12*$A37,0,12,1)),AVERAGE(OFFSET(South!$K$10,12*$A37,0,12,1))) -> 0.43411 | R37: =IF(PlotControl!$B$4 = "Annual Max",MAX(OFFSET(South!$L$10,12*$A37,0,12,1)),AVERAGE(OFFSET(South!$L$10,12*$A37,0,12,1))) -> 0.48284 | S37: =IF(PlotControl!$B$4 = "Annual Max",MAX(OFFSET(South!$M$10,12*$A37,0,12,1)),AVERAGE(OFFSET(South!$M$10,12*$A37,0,12,1))) -> 0.52858 | T37: =IF(PlotControl!$B$4 = "Annual Max",MAX(OFFSET(Closure!$C$10,12*$A37,0,12,1)),AVERAGE(OFFSET(Closure!$C$10,12*$A37,0,12,1))) -> 0.16196 | U37: =IF(PlotControl!$B$4 = "Annual Max",MAX(OFFSET(Closure!$D$10,12*$A37,0,12,1)),AVERAGE(OFFSET(Closure!$D$10,12*$A37,0,12,1))) -> 0.18249 | V37: =IF(PlotControl!$B$4 = "Annual Max",MAX(OFFSET(Closure!$E$10,12*$A37,0,12,1)),AVERAGE(OFFSET(Closure!$E$10,12*$A37,0,12,1))) -> 0.20164
A38: 33 | B38: =IF(PlotControl!$B$4 = "Annual Max",MAX(OFFSET(North!$C$10,12*$A38,0,12,1)),AVERAGE(OFFSET(North!$C$10,12*$A38,0,12,1))) -> 0.16309 | C38: =IF(PlotControl!$B$4 = "Annual Max",MAX(OFFSET(North!$D$10,12*$A38,0,12,1)),AVERAGE(OFFSET(North!$D$10,12*$A38,0,12,1))) -> 0.18277 | D38: =IF(PlotControl!$B$4 = "Annual Max",MAX(OFFSET(North!$E$10,12*$A38,0,12,1)),AVERAGE(OFFSET(North!$E$10,12*$A38,0,12,1))) -> 0.20112 | E38: =IF(PlotControl!$B$4 = "Annual Max",MAX(OFFSET(North!$K$10,12*$A38,0,12,1)),AVERAGE(OFFSET(North!$K$10,12*$A38,0,12,1))) -> 0.43364 | F38: =IF(PlotControl!$B$4 = "Annual Max",MAX(OFFSET(North!$L$10,12*$A38,0,12,1)),AVERAGE(OFFSET(North!$L$10,12*$A38,0,12,1))) -> 0.48238 | G38: =IF(PlotControl!$B$4 = "Annual Max",MAX(OFFSET(North!$M$10,12*$A38,0,12,1)),AVERAGE(OFFSET(North!$M$10,12*$A38,0,12,1))) -> 0.5271 | H38: =IF(PlotControl!$B$4 = "Annual Max",MAX(OFFSET(East!$C$10,12*$A38,0,12,1)),AVERAGE(OFFSET(East!$C$10,12*$A38,0,12,1))) -> 0.16309 | I38: =IF(PlotControl!$B$4 = "Annual Max",MAX(OFFSET(East!$D$10,12*$A38,0,12,1)),AVERAGE(OFFSET(East!$D$10,12*$A38,0,12,1))) -> 0.18277 | J38: =IF(PlotControl!$B$4 = "Annual Max",MAX(OFFSET(East!$E$10,12*$A38,0,12,1)),AVERAGE(OFFSET(East!$E$10,12*$A38,0,12,1))) -> 0.20112 | K38: =IF(PlotControl!$B$4 = "Annual Max",MAX(OFFSET(East!$K$10,12*$A38,0,12,1)),AVERAGE(OFFSET(East!$K$10,12*$A38,0,12,1))) -> 0.43364 | L38: =IF(PlotControl!$B$4 = "Annual Max",MAX(OFFSET(East!$L$10,12*$A38,0,12,1)),AVERAGE(OFFSET(East!$L$10,12*$A38,0,12,1))) -> 0.48238 | M38: =IF(PlotControl!$B$4 = "Annual Max",MAX(OFFSET(East!$M$10,12*$A38,0,12,1)),AVERAGE(OFFSET(East!$M$10,12*$A38,0,12,1))) -> 0.5271 | N38: =IF(PlotControl!$B$4 = "Annual Max",MAX(OFFSET(South!$C$10,12*$A38,0,12,1)),AVERAGE(OFFSET(South!$C$10,12*$A38,0,12,1))) -> 0.16309 | O38: =IF(PlotControl!$B$4 = "Annual Max",MAX(OFFSET(South!$D$10,12*$A38,0,12,1)),AVERAGE(OFFSET(South!$D$10,12*$A38,0,12,1))) -> 0.18277 | P38: =IF(PlotControl!$B$4 = "Annual Max",MAX(OFFSET(South!$E$10,12*$A38,0,12,1)),AVERAGE(OFFSET(South!$E$10,12*$A38,0,12,1))) -> 0.20112 | Q38: =IF(PlotControl!$B$4 = "Annual Max",MAX(OFFSET(South!$K$10,12*$A38,0,12,1)),AVERAGE(OFFSET(South!$K$10,12*$A38,0,12,1))) -> 0.43364 | R38: =IF(PlotControl!$B$4 = "Annual Max",MAX(OFFSET(South!$L$10,12*$A38,0,12,1)),AVERAGE(OFFSET(South!$L$10,12*$A38,0,12,1))) -> 0.48238 | S38: =IF(PlotControl!$B$4 = "Annual Max",MAX(OFFSET(South!$M$10,12*$A38,0,12,1)),AVERAGE(OFFSET(South!$M$10,12*$A38,0,12,1))) -> 0.5271 | T38: =IF(PlotControl!$B$4 = "Annual Max",MAX(OFFSET(Closure!$C$10,12*$A38,0,12,1)),AVERAGE(OFFSET(Closure!$C$10,12*$A38,0,12,1))) -> 0.16309 | U38: =IF(PlotControl!$B$4 = "Annual Max",MAX(OFFSET(Closure!$D$10,12*$A38,0,12,1)),AVERAGE(OFFSET(Closure!$D$10,12*$A38,0,12,1))) -> 0.18277 | V38: =IF(PlotControl!$B$4 = "Annual Max",MAX(OFFSET(Closure!$E$10,12*$A38,0,12,1)),AVERAGE(OFFSET(Closure!$E$10,12*$A38,0,12,1))) -> 0.20112
A39: 34 | B39: =IF(PlotControl!$B$4 = "Annual Max",MAX(OFFSET(North!$C$10,12*$A39,0,12,1)),AVERAGE(OFFSET(North!$C$10,12*$A39,0,12,1))) -> 0.16137 | C39: =IF(PlotControl!$B$4 = "Annual Max",MAX(OFFSET(North!$D$10,12*$A39,0,12,1)),AVERAGE(OFFSET(North!$D$10,12*$A39,0,12,1))) -> 0.18125 | D39: =IF(PlotControl!$B$4 = "Annual Max",MAX(OFFSET(North!$E$10,12*$A39,0,12,1)),AVERAGE(OFFSET(North!$E$10,12*$A39,0,12,1))) -> 0.20145 | E39: =IF(PlotControl!$B$4 = "Annual Max",MAX(OFFSET(North!$K$10,12*$A39,0,12,1)),AVERAGE(OFFSET(North!$K$10,12*$A39,0,12,1))) -> 0.4333 | F39: =IF(PlotControl!$B$4 = "Annual Max",MAX(OFFSET(North!$L$10,12*$A39,0,12,1)),AVERAGE(OFFSET(North!$L$10,12*$A39,0,12,1))) -> 0.48555 | G39: =IF(PlotControl!$B$4 = "Annual Max",MAX(OFFSET(North!$M$10,12*$A39,0,12,1)),AVERAGE(OFFSET(North!$M$10,12*$A39,0,12,1))) -> 0.52616 | H39: =IF(PlotControl!$B$4 = "Annual Max",MAX(OFFSET(East!$C$10,12*$A39,0,12,1)),AVERAGE(OFFSET(East!$C$10,12*$A39,0,12,1))) -> 0.16137 | I39: =IF(PlotControl!$B$4 = "Annual Max",MAX(OFFSET(East!$D$10,12*$A39,0,12,1)),AVERAGE(OFFSET(East!$D$10,12*$A39,0,12,1))) -> 0.18125 | J39: =IF(PlotControl!$B$4 = "Annual Max",MAX(OFFSET(East!$E$10,12*$A39,0,12,1)),AVERAGE(OFFSET(East!$E$10,12*$A39,0,12,1))) -> 0.20145 | K39: =IF(PlotControl!$B$4 = "Annual Max",MAX(OFFSET(East!$K$10,12*$A39,0,12,1)),AVERAGE(OFFSET(East!$K$10,12*$A39,0,12,1))) -> 0.4333 | L39: =IF(PlotControl!$B$4 = "Annual Max",MAX(OFFSET(East!$L$10,12*$A39,0,12,1)),AVERAGE(OFFSET(East!$L$10,12*$A39,0,12,1))) -> 0.48555 | M39: =IF(PlotControl!$B$4 = "Annual Max",MAX(OFFSET(East!$M$10,12*$A39,0,12,1)),AVERAGE(OFFSET(East!$M$10,12*$A39,0,12,1))) -> 0.52616 | N39: =IF(PlotControl!$B$4 = "Annual Max",MAX(OFFSET(South!$C$10,12*$A39,0,12,1)),AVERAGE(OFFSET(South!$C$10,12*$A39,0,12,1))) -> 0.16137 | O39: =IF(PlotControl!$B$4 = "Annual Max",MAX(OFFSET(South!$D$10,12*$A39,0,12,1)),AVERAGE(OFFSET(South!$D$10,12*$A39,0,12,1))) -> 0.18125 | P39: =IF(PlotControl!$B$4 = "Annual Max",MAX(OFFSET(South!$E$10,12*$A39,0,12,1)),AVERAGE(OFFSET(South!$E$10,12*$A39,0,12,1))) -> 0.20145 | Q39: =IF(PlotControl!$B$4 = "Annual Max",MAX(OFFSET(South!$K$10,12*$A39,0,12,1)),AVERAGE(OFFSET(South!$K$10,12*$A39,0,12,1))) -> 0.4333 | R39: =IF(PlotControl!$B$4 = "Annual Max",MAX(OFFSET(South!$L$10,12*$A39,0,12,1)),AVERAGE(OFFSET(South!$L$10,12*$A39,0,12,1))) -> 0.48555 | S39: =IF(PlotControl!$B$4 = "Annual Max",MAX(OFFSET(South!$M$10,12*$A39,0,12,1)),AVERAGE(OFFSET(South!$M$10,12*$A39,0,12,1))) -> 0.52616 | T39: =IF(PlotControl!$B$4 = "Annual Max",MAX(OFFSET(Closure!$C$10,12*$A39,0,12,1)),AVERAGE(OFFSET(Closure!$C$10,12*$A39,0,12,1))) -> 0.16137 | U39: =IF(PlotControl!$B$4 = "Annual Max",MAX(OFFSET(Closure!$D$10,12*$A39,0,12,1)),AVERAGE(OFFSET(Closure!$D$10,12*$A39,0,12,1))) -> 0.18125 | V39: =IF(PlotControl!$B$4 = "Annual Max",MAX(OFFSET(Closure!$E$10,12*$A39,0,12,1)),AVERAGE(OFFSET(Closure!$E$10,12*$A39,0,12,1))) -> 0.20145
A40: 35 | B40: =IF(PlotControl!$B$4 = "Annual Max",MAX(OFFSET(North!$C$10,12*$A40,0,12,1)),AVERAGE(OFFSET(North!$C$10,12*$A40,0,12,1))) -> 0.15901 | C40: =IF(PlotControl!$B$4 = "Annual Max",MAX(OFFSET(North!$D$10,12*$A40,0,12,1)),AVERAGE(OFFSET(North!$D$10,12*$A40,0,12,1))) -> 0.1813 | D40: =IF(PlotControl!$B$4 = "Annual Max",MAX(OFFSET(North!$E$10,12*$A40,0,12,1)),AVERAGE(OFFSET(North!$E$10,12*$A40,0,12,1))) -> 0.2017 | E40: =IF(PlotControl!$B$4 = "Annual Max",MAX(OFFSET(North!$K$10,12*$A40,0,12,1)),AVERAGE(OFFSET(North!$K$10,12*$A40,0,12,1))) -> 0.43482 | F40: =IF(PlotControl!$B$4 = "Annual Max",MAX(OFFSET(North!$L$10,12*$A40,0,12,1)),AVERAGE(OFFSET(North!$L$10,12*$A40,0,12,1))) -> 0.48748 | G40: =IF(PlotControl!$B$4 = "Annual Max",MAX(OFFSET(North!$M$10,12*$A40,0,12,1)),AVERAGE(OFFSET(North!$M$10,12*$A40,0,12,1))) -> 0.52805 | H40: =IF(PlotControl!$B$4 = "Annual Max",MAX(OFFSET(East!$C$10,12*$A40,0,12,1)),AVERAGE(OFFSET(East!$C$10,12*$A40,0,12,1))) -> 0.15901 | I40: =IF(PlotControl!$B$4 = "Annual Max",MAX(OFFSET(East!$D$10,12*$A40,0,12,1)),AVERAGE(OFFSET(East!$D$10,12*$A40,0,12,1))) -> 0.1813 | J40: =IF(PlotControl!$B$4 = "Annual Max",MAX(OFFSET(East!$E$10,12*$A40,0,12,1)),AVERAGE(OFFSET(East!$E$10,12*$A40,0,12,1))) -> 0.2017 | K40: =IF(PlotControl!$B$4 = "Annual Max",MAX(OFFSET(East!$K$10,12*$A40,0,12,1)),AVERAGE(OFFSET(East!$K$10,12*$A40,0,12,1))) -> 0.43482 | L40: =IF(PlotControl!$B$4 = "Annual Max",MAX(OFFSET(East!$L$10,12*$A40,0,12,1)),AVERAGE(OFFSET(East!$L$10,12*$A40,0,12,1))) -> 0.48748 | M40: =IF(PlotControl!$B$4 = "Annual Max",MAX(OFFSET(East!$M$10,12*$A40,0,12,1)),AVERAGE(OFFSET(East!$M$10,12*$A40,0,12,1))) -> 0.52805 | N40: =IF(PlotControl!$B$4 = "Annual Max",MAX(OFFSET(South!$C$10,12*$A40,0,12,1)),AVERAGE(OFFSET(South!$C$10,12*$A40,0,12,1))) -> 0.15901 | O40: =IF(PlotControl!$B$4 = "Annual Max",MAX(OFFSET(South!$D$10,12*$A40,0,12,1)),AVERAGE(OFFSET(South!$D$10,12*$A40,0,12,1))) -> 0.1813 | P40: =IF(PlotControl!$B$4 = "Annual Max",MAX(OFFSET(South!$E$10,12*$A40,0,12,1)),AVERAGE(OFFSET(South!$E$10,12*$A40,0,12,1))) -> 0.2017 | Q40: =IF(PlotControl!$B$4 = "Annual Max",MAX(OFFSET(South!$K$10,12*$A40,0,12,1)),AVERAGE(OFFSET(South!$K$10,12*$A40,0,12,1))) -> 0.43482 | R40: =IF(PlotControl!$B$4 = "Annual Max",MAX(OFFSET(South!$L$10,12*$A40,0,12,1)),AVERAGE(OFFSET(South!$L$10,12*$A40,0,12,1))) -> 0.48748 | S40: =IF(PlotControl!$B$4 = "Annual Max",MAX(OFFSET(South!$M$10,12*$A40,0,12,1)),AVERAGE(OFFSET(South!$M$10,12*$A40,0,12,1))) -> 0.52805 | T40: =IF(PlotControl!$B$4 = "Annual Max",MAX(OFFSET(Closure!$C$10,12*$A40,0,12,1)),AVERAGE(OFFSET(Closure!$C$10,12*$A40,0,12,1))) -> 0.15901 | U40: =IF(PlotControl!$B$4 = "Annual Max",MAX(OFFSET(Closure!$D$10,12*$A40,0,12,1)),AVERAGE(OFFSET(Closure!$D$10,12*$A40,0,12,1))) -> 0.1813 | V40: =IF(PlotControl!$B$4 = "Annual Max",MAX(OFFSET(Closure!$E$10,12*$A40,0,12,1)),AVERAGE(OFFSET(Closure!$E$10,12*$A40,0,12,1))) -> 0.2017
A41: 36 | B41: =IF(PlotControl!$B$4 = "Annual Max",MAX(OFFSET(North!$C$10,12*$A41,0,12,1)),AVERAGE(OFFSET(North!$C$10,12*$A41,0,12,1))) -> 0.16146 | C41: =IF(PlotControl!$B$4 = "Annual Max",MAX(OFFSET(North!$D$10,12*$A41,0,12,1)),AVERAGE(OFFSET(North!$D$10,12*$A41,0,12,1))) -> 0.18164 | D41: =IF(PlotControl!$B$4 = "Annual Max",MAX(OFFSET(North!$E$10,12*$A41,0,12,1)),AVERAGE(OFFSET(North!$E$10,12*$A41,0,12,1))) -> 0.20117 | E41: =IF(PlotControl!$B$4 = "Annual Max",MAX(OFFSET(North!$K$10,12*$A41,0,12,1)),AVERAGE(OFFSET(North!$K$10,12*$A41,0,12,1))) -> 0.43678 | F41: =IF(PlotControl!$B$4 = "Annual Max",MAX(OFFSET(North!$L$10,12*$A41,0,12,1)),AVERAGE(OFFSET(North!$L$10,12*$A41,0,12,1))) -> 0.48672 | G41: =IF(PlotControl!$B$4 = "Annual Max",MAX(OFFSET(North!$M$10,12*$A41,0,12,1)),AVERAGE(OFFSET(North!$M$10,12*$A41,0,12,1))) -> 0.53173 | H41: =IF(PlotControl!$B$4 = "Annual Max",MAX(OFFSET(East!$C$10,12*$A41,0,12,1)),AVERAGE(OFFSET(East!$C$10,12*$A41,0,12,1))) -> 0.16146 | I41: =IF(PlotControl!$B$4 = "Annual Max",MAX(OFFSET(East!$D$10,12*$A41,0,12,1)),AVERAGE(OFFSET(East!$D$10,12*$A41,0,12,1))) -> 0.18164 | J41: =IF(PlotControl!$B$4 = "Annual Max",MAX(OFFSET(East!$E$10,12*$A41,0,12,1)),AVERAGE(OFFSET(East!$E$10,12*$A41,0,12,1))) -> 0.20117 | K41: =IF(PlotControl!$B$4 = "Annual Max",MAX(OFFSET(East!$K$10,12*$A41,0,12,1)),AVERAGE(OFFSET(East!$K$10,12*$A41,0,12,1))) -> 0.43678 | L41: =IF(PlotControl!$B$4 = "Annual Max",MAX(OFFSET(East!$L$10,12*$A41,0,12,1)),AVERAGE(OFFSET(East!$L$10,12*$A41,0,12,1))) -> 0.48672 | M41: =IF(PlotControl!$B$4 = "Annual Max",MAX(OFFSET(East!$M$10,12*$A41,0,12,1)),AVERAGE(OFFSET(East!$M$10,12*$A41,0,12,1))) -> 0.53173 | N41: =IF(PlotControl!$B$4 = "Annual Max",MAX(OFFSET(South!$C$10,12*$A41,0,12,1)),AVERAGE(OFFSET(South!$C$10,12*$A41,0,12,1))) -> 0.16146 | O41: =IF(PlotControl!$B$4 = "Annual Max",MAX(OFFSET(South!$D$10,12*$A41,0,12,1)),AVERAGE(OFFSET(South!$D$10,12*$A41,0,12,1))) -> 0.18164 | P41: =IF(PlotControl!$B$4 = "Annual Max",MAX(OFFSET(South!$E$10,12*$A41,0,12,1)),AVERAGE(OFFSET(South!$E$10,12*$A41,0,12,1))) -> 0.20117 | Q41: =IF(PlotControl!$B$4 = "Annual Max",MAX(OFFSET(South!$K$10,12*$A41,0,12,1)),AVERAGE(OFFSET(South!$K$10,12*$A41,0,12,1))) -> 0.43678 | R41: =IF(PlotControl!$B$4 = "Annual Max",MAX(OFFSET(South!$L$10,12*$A41,0,12,1)),AVERAGE(OFFSET(South!$L$10,12*$A41,0,12,1))) -> 0.48672 | S41: =IF(PlotControl!$B$4 = "Annual Max",MAX(OFFSET(South!$M$10,12*$A41,0,12,1)),AVERAGE(OFFSET(South!$M$10,12*$A41,0,12,1))) -> 0.53173 | T41: =IF(PlotControl!$B$4 = "Annual Max",MAX(OFFSET(Closure!$C$10,12*$A41,0,12,1)),AVERAGE(OFFSET(Closure!$C$10,12*$A41,0,12,1))) -> 0.16146 | U41: =IF(PlotControl!$B$4 = "Annual Max",MAX(OFFSET(Closure!$D$10,12*$A41,0,12,1)),AVERAGE(OFFSET(Closure!$D$10,12*$A41,0,12,1))) -> 0.18164 | V41: =IF(PlotControl!$B$4 = "Annual Max",MAX(OFFSET(Closure!$E$10,12*$A41,0,12,1)),AVERAGE(OFFSET(Closure!$E$10,12*$A41,0,12,1))) -> 0.20117
A42: 37 | B42: =IF(PlotControl!$B$4 = "Annual Max",MAX(OFFSET(North!$C$10,12*$A42,0,12,1)),AVERAGE(OFFSET(North!$C$10,12*$A42,0,12,1))) -> 0.16245 | C42: =IF(PlotControl!$B$4 = "Annual Max",MAX(OFFSET(North!$D$10,12*$A42,0,12,1)),AVERAGE(OFFSET(North!$D$10,12*$A42,0,12,1))) -> 0.18299 | D42: =IF(PlotControl!$B$4 = "Annual Max",MAX(OFFSET(North!$E$10,12*$A42,0,12,1)),AVERAGE(OFFSET(North!$E$10,12*$A42,0,12,1))) -> 0.2013 | E42: =IF(PlotControl!$B$4 = "Annual Max",MAX(OFFSET(North!$K$10,12*$A42,0,12,1)),AVERAGE(OFFSET(North!$K$10,12*$A42,0,12,1))) -> 0.4403 | F42: =IF(PlotControl!$B$4 = "Annual Max",MAX(OFFSET(North!$L$10,12*$A42,0,12,1)),AVERAGE(OFFSET(North!$L$10,12*$A42,0,12,1))) -> 0.48575 | G42: =IF(PlotControl!$B$4 = "Annual Max",MAX(OFFSET(North!$M$10,12*$A42,0,12,1)),AVERAGE(OFFSET(North!$M$10,12*$A42,0,12,1))) -> 0.53005 | H42: =IF(PlotControl!$B$4 = "Annual Max",MAX(OFFSET(East!$C$10,12*$A42,0,12,1)),AVERAGE(OFFSET(East!$C$10,12*$A42,0,12,1))) -> 0.16245 | I42: =IF(PlotControl!$B$4 = "Annual Max",MAX(OFFSET(East!$D$10,12*$A42,0,12,1)),AVERAGE(OFFSET(East!$D$10,12*$A42,0,12,1))) -> 0.18299 | J42: =IF(PlotControl!$B$4 = "Annual Max",MAX(OFFSET(East!$E$10,12*$A42,0,12,1)),AVERAGE(OFFSET(East!$E$10,12*$A42,0,12,1))) -> 0.2013 | K42: =IF(PlotControl!$B$4 = "Annual Max",MAX(OFFSET(East!$K$10,12*$A42,0,12,1)),AVERAGE(OFFSET(East!$K$10,12*$A42,0,12,1))) -> 0.4403 | L42: =IF(PlotControl!$B$4 = "Annual Max",MAX(OFFSET(East!$L$10,12*$A42,0,12,1)),AVERAGE(OFFSET(East!$L$10,12*$A42,0,12,1))) -> 0.48575 | M42: =IF(PlotControl!$B$4 = "Annual Max",MAX(OFFSET(East!$M$10,12*$A42,0,12,1)),AVERAGE(OFFSET(East!$M$10,12*$A42,0,12,1))) -> 0.53005 | N42: =IF(PlotControl!$B$4 = "Annual Max",MAX(OFFSET(South!$C$10,12*$A42,0,12,1)),AVERAGE(OFFSET(South!$C$10,12*$A42,0,12,1))) -> 0.16245 | O42: =IF(PlotControl!$B$4 = "Annual Max",MAX(OFFSET(South!$D$10,12*$A42,0,12,1)),AVERAGE(OFFSET(South!$D$10,12*$A42,0,12,1))) -> 0.18299 | P42: =IF(PlotControl!$B$4 = "Annual Max",MAX(OFFSET(South!$E$10,12*$A42,0,12,1)),AVERAGE(OFFSET(South!$E$10,12*$A42,0,12,1))) -> 0.2013 | Q42: =IF(PlotControl!$B$4 = "Annual Max",MAX(OFFSET(South!$K$10,12*$A42,0,12,1)),AVERAGE(OFFSET(South!$K$10,12*$A42,0,12,1))) -> 0.4403 | R42: =IF(PlotControl!$B$4 = "Annual Max",MAX(OFFSET(South!$L$10,12*$A42,0,12,1)),AVERAGE(OFFSET(South!$L$10,12*$A42,0,12,1))) -> 0.48575 | S42: =IF(PlotControl!$B$4 = "Annual Max",MAX(OFFSET(South!$M$10,12*$A42,0,12,1)),AVERAGE(OFFSET(South!$M$10,12*$A42,0,12,1))) -> 0.53005 | T42: =IF(PlotControl!$B$4 = "Annual Max",MAX(OFFSET(Closure!$C$10,12*$A42,0,12,1)),AVERAGE(OFFSET(Closure!$C$10,12*$A42,0,12,1))) -> 0.16245 | U42: =IF(PlotControl!$B$4 = "Annual Max",MAX(OFFSET(Closure!$D$10,12*$A42,0,12,1)),AVERAGE(OFFSET(Closure!$D$10,12*$A42,0,12,1))) -> 0.18299 | V42: =IF(PlotControl!$B$4 = "Annual Max",MAX(OFFSET(Closure!$E$10,12*$A42,0,12,1)),AVERAGE(OFFSET(Closure!$E$10,12*$A42,0,12,1))) -> 0.2013
A43: 38 | B43: =IF(PlotControl!$B$4 = "Annual Max",MAX(OFFSET(North!$C$10,12*$A43,0,12,1)),AVERAGE(OFFSET(North!$C$10,12*$A43,0,12,1))) -> 0.16085 | C43: =IF(PlotControl!$B$4 = "Annual Max",MAX(OFFSET(North!$D$10,12*$A43,0,12,1)),AVERAGE(OFFSET(North!$D$10,12*$A43,0,12,1))) -> 0.18286 | D43: =IF(PlotControl!$B$4 = "Annual Max",MAX(OFFSET(North!$E$10,12*$A43,0,12,1)),AVERAGE(OFFSET(North!$E$10,12*$A43,0,12,1))) -> 0.20144 | E43: =IF(PlotControl!$B$4 = "Annual Max",MAX(OFFSET(North!$K$10,12*$A43,0,12,1)),AVERAGE(OFFSET(North!$K$10,12*$A43,0,12,1))) -> 0.44064 | F43: =IF(PlotControl!$B$4 = "Annual Max",MAX(OFFSET(North!$L$10,12*$A43,0,12,1)),AVERAGE(OFFSET(North!$L$10,12*$A43,0,12,1))) -> 0.48525 | G43: =IF(PlotControl!$B$4 = "Annual Max",MAX(OFFSET(North!$M$10,12*$A43,0,12,1)),AVERAGE(OFFSET(North!$M$10,12*$A43,0,12,1))) -> 0.52833 | H43: =IF(PlotControl!$B$4 = "Annual Max",MAX(OFFSET(East!$C$10,12*$A43,0,12,1)),AVERAGE(OFFSET(East!$C$10,12*$A43,0,12,1))) -> 0.16085 | I43: =IF(PlotControl!$B$4 = "Annual Max",MAX(OFFSET(East!$D$10,12*$A43,0,12,1)),AVERAGE(OFFSET(East!$D$10,12*$A43,0,12,1))) -> 0.18286 | J43: =IF(PlotControl!$B$4 = "Annual Max",MAX(OFFSET(East!$E$10,12*$A43,0,12,1)),AVERAGE(OFFSET(East!$E$10,12*$A43,0,12,1))) -> 0.20144 | K43: =IF(PlotControl!$B$4 = "Annual Max",MAX(OFFSET(East!$K$10,12*$A43,0,12,1)),AVERAGE(OFFSET(East!$K$10,12*$A43,0,12,1))) -> 0.44064 | L43: =IF(PlotControl!$B$4 = "Annual Max",MAX(OFFSET(East!$L$10,12*$A43,0,12,1)),AVERAGE(OFFSET(East!$L$10,12*$A43,0,12,1))) -> 0.48525 | M43: =IF(PlotControl!$B$4 = "Annual Max",MAX(OFFSET(East!$M$10,12*$A43,0,12,1)),AVERAGE(OFFSET(East!$M$10,12*$A43,0,12,1))) -> 0.52833 | N43: =IF(PlotControl!$B$4 = "Annual Max",MAX(OFFSET(South!$C$10,12*$A43,0,12,1)),AVERAGE(OFFSET(South!$C$10,12*$A43,0,12,1))) -> 0.16085 | O43: =IF(PlotControl!$B$4 = "Annual Max",MAX(OFFSET(South!$D$10,12*$A43,0,12,1)),AVERAGE(OFFSET(South!$D$10,12*$A43,0,12,1))) -> 0.18286 | P43: =IF(PlotControl!$B$4 = "Annual Max",MAX(OFFSET(South!$E$10,12*$A43,0,12,1)),AVERAGE(OFFSET(South!$E$10,12*$A43,0,12,1))) -> 0.20144 | Q43: =IF(PlotControl!$B$4 = "Annual Max",MAX(OFFSET(South!$K$10,12*$A43,0,12,1)),AVERAGE(OFFSET(South!$K$10,12*$A43,0,12,1))) -> 0.44064 | R43: =IF(PlotControl!$B$4 = "Annual Max",MAX(OFFSET(South!$L$10,12*$A43,0,12,1)),AVERAGE(OFFSET(South!$L$10,12*$A43,0,12,1))) -> 0.48525 | S43: =IF(PlotControl!$B$4 = "Annual Max",MAX(OFFSET(South!$M$10,12*$A43,0,12,1)),AVERAGE(OFFSET(South!$M$10,12*$A43,0,12,1))) -> 0.52833 | T43: =IF(PlotControl!$B$4 = "Annual Max",MAX(OFFSET(Closure!$C$10,12*$A43,0,12,1)),AVERAGE(OFFSET(Closure!$C$10,12*$A43,0,12,1))) -> 0.16085 | U43: =IF(PlotControl!$B$4 = "Annual Max",MAX(OFFSET(Closure!$D$10,12*$A43,0,12,1)),AVERAGE(OFFSET(Closure!$D$10,12*$A43,0,12,1))) -> 0.18286 | V43: =IF(PlotControl!$B$4 = "Annual Max",MAX(OFFSET(Closure!$E$10,12*$A43,0,12,1)),AVERAGE(OFFSET(Closure!$E$10,12*$A43,0,12,1))) -> 0.20144
A44: 39 | B44: =IF(PlotControl!$B$4 = "Annual Max",MAX(OFFSET(North!$C$10,12*$A44,0,12,1)),AVERAGE(OFFSET(North!$C$10,12*$A44,0,12,1))) -> 0.15929 | C44: =IF(PlotControl!$B$4 = "Annual Max",MAX(OFFSET(North!$D$10,12*$A44,0,12,1)),AVERAGE(OFFSET(North!$D$10,12*$A44,0,12,1))) -> 0.18194 | D44: =IF(PlotControl!$B$4 = "Annual Max",MAX(OFFSET(North!$E$10,12*$A44,0,12,1)),AVERAGE(OFFSET(North!$E$10,12*$A44,0,12,1))) -> 0.20187 | E44: =IF(PlotControl!$B$4 = "Annual Max",MAX(OFFSET(North!$K$10,12*$A44,0,12,1)),AVERAGE(OFFSET(North!$K$10,12*$A44,0,12,1))) -> 0.42672 | F44: =IF(PlotControl!$B$4 = "Annual Max",MAX(OFFSET(North!$L$10,12*$A44,0,12,1)),AVERAGE(OFFSET(North!$L$10,12*$A44,0,12,1))) -> 0.48562 | G44: =IF(PlotControl!$B$4 = "Annual Max",MAX(OFFSET(North!$M$10,12*$A44,0,12,1)),AVERAGE(OFFSET(North!$M$10,12*$A44,0,12,1))) -> 0.53083 | H44: =IF(PlotControl!$B$4 = "Annual Max",MAX(OFFSET(East!$C$10,12*$A44,0,12,1)),AVERAGE(OFFSET(East!$C$10,12*$A44,0,12,1))) -> 0.15929 | I44: =IF(PlotControl!$B$4 = "Annual Max",MAX(OFFSET(East!$D$10,12*$A44,0,12,1)),AVERAGE(OFFSET(East!$D$10,12*$A44,0,12,1))) -> 0.18194 | J44: =IF(PlotControl!$B$4 = "Annual Max",MAX(OFFSET(East!$E$10,12*$A44,0,12,1)),AVERAGE(OFFSET(East!$E$10,12*$A44,0,12,1))) -> 0.20187 | K44: =IF(PlotControl!$B$4 = "Annual Max",MAX(OFFSET(East!$K$10,12*$A44,0,12,1)),AVERAGE(OFFSET(East!$K$10,12*$A44,0,12,1))) -> 0.42672 | L44: =IF(PlotControl!$B$4 = "Annual Max",MAX(OFFSET(East!$L$10,12*$A44,0,12,1)),AVERAGE(OFFSET(East!$L$10,12*$A44,0,12,1))) -> 0.48562 | M44: =IF(PlotControl!$B$4 = "Annual Max",MAX(OFFSET(East!$M$10,12*$A44,0,12,1)),AVERAGE(OFFSET(East!$M$10,12*$A44,0,12,1))) -> 0.53083 | N44: =IF(PlotControl!$B$4 = "Annual Max",MAX(OFFSET(South!$C$10,12*$A44,0,12,1)),AVERAGE(OFFSET(South!$C$10,12*$A44,0,12,1))) -> 0.15929 | O44: =IF(PlotControl!$B$4 = "Annual Max",MAX(OFFSET(South!$D$10,12*$A44,0,12,1)),AVERAGE(OFFSET(South!$D$10,12*$A44,0,12,1))) -> 0.18194 | P44: =IF(PlotControl!$B$4 = "Annual Max",MAX(OFFSET(South!$E$10,12*$A44,0,12,1)),AVERAGE(OFFSET(South!$E$10,12*$A44,0,12,1))) -> 0.20187 | Q44: =IF(PlotControl!$B$4 = "Annual Max",MAX(OFFSET(South!$K$10,12*$A44,0,12,1)),AVERAGE(OFFSET(South!$K$10,12*$A44,0,12,1))) -> 0.42672 | R44: =IF(PlotControl!$B$4 = "Annual Max",MAX(OFFSET(South!$L$10,12*$A44,0,12,1)),AVERAGE(OFFSET(South!$L$10,12*$A44,0,12,1))) -> 0.48562 | S44: =IF(PlotControl!$B$4 = "Annual Max",MAX(OFFSET(South!$M$10,12*$A44,0,12,1)),AVERAGE(OFFSET(South!$M$10,12*$A44,0,12,1))) -> 0.53083 | T44: =IF(PlotControl!$B$4 = "Annual Max",MAX(OFFSET(Closure!$C$10,12*$A44,0,12,1)),AVERAGE(OFFSET(Closure!$C$10,12*$A44,0,12,1))) -> 0.15929 | U44: =IF(PlotControl!$B$4 = "Annual Max",MAX(OFFSET(Closure!$D$10,12*$A44,0,12,1)),AVERAGE(OFFSET(Closure!$D$10,12*$A44,0,12,1))) -> 0.18194 | V44: =IF(PlotControl!$B$4 = "Annual Max",MAX(OFFSET(Closure!$E$10,12*$A44,0,12,1)),AVERAGE(OFFSET(Closure!$E$10,12*$A44,0,12,1))) -> 0.20187
A45: 40 | B45: =IF(PlotControl!$B$4 = "Annual Max",MAX(OFFSET(North!$C$10,12*$A45,0,12,1)),AVERAGE(OFFSET(North!$C$10,12*$A45,0,12,1))) -> 0.16195 | C45: =IF(PlotControl!$B$4 = "Annual Max",MAX(OFFSET(North!$D$10,12*$A45,0,12,1)),AVERAGE(OFFSET(North!$D$10,12*$A45,0,12,1))) -> 0.18164 | D45: =IF(PlotControl!$B$4 = "Annual Max",MAX(OFFSET(North!$E$10,12*$A45,0,12,1)),AVERAGE(OFFSET(North!$E$10,12*$A45,0,12,1))) -> 0.20164 | E45: =IF(PlotControl!$B$4 = "Annual Max",MAX(OFFSET(North!$K$10,12*$A45,0,12,1)),AVERAGE(OFFSET(North!$K$10,12*$A45,0,12,1))) -> 0.42763 | F45: =IF(PlotControl!$B$4 = "Annual Max",MAX(OFFSET(North!$L$10,12*$A45,0,12,1)),AVERAGE(OFFSET(North!$L$10,12*$A45,0,12,1))) -> 0.48763 | G45: =IF(PlotControl!$B$4 = "Annual Max",MAX(OFFSET(North!$M$10,12*$A45,0,12,1)),AVERAGE(OFFSET(North!$M$10,12*$A45,0,12,1))) -> 0.52686 | H45: =IF(PlotControl!$B$4 = "Annual Max",MAX(OFFSET(East!$C$10,12*$A45,0,12,1)),AVERAGE(OFFSET(East!$C$10,12*$A45,0,12,1))) -> 0.16195 | I45: =IF(PlotControl!$B$4 = "Annual Max",MAX(OFFSET(East!$D$10,12*$A45,0,12,1)),AVERAGE(OFFSET(East!$D$10,12*$A45,0,12,1))) -> 0.18164 | J45: =IF(PlotControl!$B$4 = "Annual Max",MAX(OFFSET(East!$E$10,12*$A45,0,12,1)),AVERAGE(OFFSET(East!$E$10,12*$A45,0,12,1))) -> 0.20164 | K45: =IF(PlotControl!$B$4 = "Annual Max",MAX(OFFSET(East!$K$10,12*$A45,0,12,1)),AVERAGE(OFFSET(East!$K$10,12*$A45,0,12,1))) -> 0.42763 | L45: =IF(PlotControl!$B$4 = "Annual Max",MAX(OFFSET(East!$L$10,12*$A45,0,12,1)),AVERAGE(OFFSET(East!$L$10,12*$A45,0,12,1))) -> 0.48763 | M45: =IF(PlotControl!$B$4 = "Annual Max",MAX(OFFSET(East!$M$10,12*$A45,0,12,1)),AVERAGE(OFFSET(East!$M$10,12*$A45,0,12,1))) -> 0.52686 | N45: =IF(PlotControl!$B$4 = "Annual Max",MAX(OFFSET(South!$C$10,12*$A45,0,12,1)),AVERAGE(OFFSET(South!$C$10,12*$A45,0,12,1))) -> 0.16195 | O45: =IF(PlotControl!$B$4 = "Annual Max",MAX(OFFSET(South!$D$10,12*$A45,0,12,1)),AVERAGE(OFFSET(South!$D$10,12*$A45,0,12,1))) -> 0.18164 | P45: =IF(PlotControl!$B$4 = "Annual Max",MAX(OFFSET(South!$E$10,12*$A45,0,12,1)),AVERAGE(OFFSET(South!$E$10,12*$A45,0,12,1))) -> 0.20164 | Q45: =IF(PlotControl!$B$4 = "Annual Max",MAX(OFFSET(South!$K$10,12*$A45,0,12,1)),AVERAGE(OFFSET(South!$K$10,12*$A45,0,12,1))) -> 0.42763 | R45: =IF(PlotControl!$B$4 = "Annual Max",MAX(OFFSET(South!$L$10,12*$A45,0,12,1)),AVERAGE(OFFSET(South!$L$10,12*$A45,0,12,1))) -> 0.48763 | S45: =IF(PlotControl!$B$4 = "Annual Max",MAX(OFFSET(South!$M$10,12*$A45,0,12,1)),AVERAGE(OFFSET(South!$M$10,12*$A45,0,12,1))) -> 0.52686 | T45: =IF(PlotControl!$B$4 = "Annual Max",MAX(OFFSET(Closure!$C$10,12*$A45,0,12,1)),AVERAGE(OFFSET(Closure!$C$10,12*$A45,0,12,1))) -> 0.16195 | U45: =IF(PlotControl!$B$4 = "Annual Max",MAX(OFFSET(Closure!$D$10,12*$A45,0,12,1)),AVERAGE(OFFSET(Closure!$D$10,12*$A45,0,12,1))) -> 0.18164 | V45: =IF(PlotControl!$B$4 = "Annual Max",MAX(OFFSET(Closure!$E$10,12*$A45,0,12,1)),AVERAGE(OFFSET(Closure!$E$10,12*$A45,0,12,1))) -> 0.20164
A46: 41 | B46: =IF(PlotControl!$B$4 = "Annual Max",MAX(OFFSET(North!$C$10,12*$A46,0,12,1)),AVERAGE(OFFSET(North!$C$10,12*$A46,0,12,1))) -> 0.16312 | C46: =IF(PlotControl!$B$4 = "Annual Max",MAX(OFFSET(North!$D$10,12*$A46,0,12,1)),AVERAGE(OFFSET(North!$D$10,12*$A46,0,12,1))) -> 0.18224 | D46: =IF(PlotControl!$B$4 = "Annual Max",MAX(OFFSET(North!$E$10,12*$A46,0,12,1)),AVERAGE(OFFSET(North!$E$10,12*$A46,0,12,1))) -> 0.20199 | E46: =IF(PlotControl!$B$4 = "Annual Max",MAX(OFFSET(North!$K$10,12*$A46,0,12,1)),AVERAGE(OFFSET(North!$K$10,12*$A46,0,12,1))) -> 0.43439 | F46: =IF(PlotControl!$B$4 = "Annual Max",MAX(OFFSET(North!$L$10,12*$A46,0,12,1)),AVERAGE(OFFSET(North!$L$10,12*$A46,0,12,1))) -> 0.48986 | G46: =IF(PlotControl!$B$4 = "Annual Max",MAX(OFFSET(North!$M$10,12*$A46,0,12,1)),AVERAGE(OFFSET(North!$M$10,12*$A46,0,12,1))) -> 0.53192 | H46: =IF(PlotControl!$B$4 = "Annual Max",MAX(OFFSET(East!$C$10,12*$A46,0,12,1)),AVERAGE(OFFSET(East!$C$10,12*$A46,0,12,1))) -> 0.16312 | I46: =IF(PlotControl!$B$4 = "Annual Max",MAX(OFFSET(East!$D$10,12*$A46,0,12,1)),AVERAGE(OFFSET(East!$D$10,12*$A46,0,12,1))) -> 0.18224 | J46: =IF(PlotControl!$B$4 = "Annual Max",MAX(OFFSET(East!$E$10,12*$A46,0,12,1)),AVERAGE(OFFSET(East!$E$10,12*$A46,0,12,1))) -> 0.20199 | K46: =IF(PlotControl!$B$4 = "Annual Max",MAX(OFFSET(East!$K$10,12*$A46,0,12,1)),AVERAGE(OFFSET(East!$K$10,12*$A46,0,12,1))) -> 0.43439 | L46: =IF(PlotControl!$B$4 = "Annual Max",MAX(OFFSET(East!$L$10,12*$A46,0,12,1)),AVERAGE(OFFSET(East!$L$10,12*$A46,0,12,1))) -> 0.48986 | M46: =IF(PlotControl!$B$4 = "Annual Max",MAX(OFFSET(East!$M$10,12*$A46,0,12,1)),AVERAGE(OFFSET(East!$M$10,12*$A46,0,12,1))) -> 0.53192 | N46: =IF(PlotControl!$B$4 = "Annual Max",MAX(OFFSET(South!$C$10,12*$A46,0,12,1)),AVERAGE(OFFSET(South!$C$10,12*$A46,0,12,1))) -> 0.16312 | O46: =IF(PlotControl!$B$4 = "Annual Max",MAX(OFFSET(South!$D$10,12*$A46,0,12,1)),AVERAGE(OFFSET(South!$D$10,12*$A46,0,12,1))) -> 0.18224 | P46: =IF(PlotControl!$B$4 = "Annual Max",MAX(OFFSET(South!$E$10,12*$A46,0,12,1)),AVERAGE(OFFSET(South!$E$10,12*$A46,0,12,1))) -> 0.20199 | Q46: =IF(PlotControl!$B$4 = "Annual Max",MAX(OFFSET(South!$K$10,12*$A46,0,12,1)),AVERAGE(OFFSET(South!$K$10,12*$A46,0,12,1))) -> 0.43439 | R46: =IF(PlotControl!$B$4 = "Annual Max",MAX(OFFSET(South!$L$10,12*$A46,0,12,1)),AVERAGE(OFFSET(South!$L$10,12*$A46,0,12,1))) -> 0.48986 | S46: =IF(PlotControl!$B$4 = "Annual Max",MAX(OFFSET(South!$M$10,12*$A46,0,12,1)),AVERAGE(OFFSET(South!$M$10,12*$A46,0,12,1))) -> 0.53192 | T46: =IF(PlotControl!$B$4 = "Annual Max",MAX(OFFSET(Closure!$C$10,12*$A46,0,12,1)),AVERAGE(OFFSET(Closure!$C$10,12*$A46,0,12,1))) -> 0.16312 | U46: =IF(PlotControl!$B$4 = "Annual Max",MAX(OFFSET(Closure!$D$10,12*$A46,0,12,1)),AVERAGE(OFFSET(Closure!$D$10,12*$A46,0,12,1))) -> 0.18224 | V46: =IF(PlotControl!$B$4 = "Annual Max",MAX(OFFSET(Closure!$E$10,12*$A46,0,12,1)),AVERAGE(OFFSET(Closure!$E$10,12*$A46,0,12,1))) -> 0.20199
A47: 42 | B47: =IF(PlotControl!$B$4 = "Annual Max",MAX(OFFSET(North!$C$10,12*$A47,0,12,1)),AVERAGE(OFFSET(North!$C$10,12*$A47,0,12,1))) -> 0.16102 | C47: =IF(PlotControl!$B$4 = "Annual Max",MAX(OFFSET(North!$D$10,12*$A47,0,12,1)),AVERAGE(OFFSET(North!$D$10,12*$A47,0,12,1))) -> 0.18201 | D47: =IF(PlotControl!$B$4 = "Annual Max",MAX(OFFSET(North!$E$10,12*$A47,0,12,1)),AVERAGE(OFFSET(North!$E$10,12*$A47,0,12,1))) -> 0.20186 | E47: =IF(PlotControl!$B$4 = "Annual Max",MAX(OFFSET(North!$K$10,12*$A47,0,12,1)),AVERAGE(OFFSET(North!$K$10,12*$A47,0,12,1))) -> 0.43412 | F47: =IF(PlotControl!$B$4 = "Annual Max",MAX(OFFSET(North!$L$10,12*$A47,0,12,1)),AVERAGE(OFFSET(North!$L$10,12*$A47,0,12,1))) -> 0.4866 | G47: =IF(PlotControl!$B$4 = "Annual Max",MAX(OFFSET(North!$M$10,12*$A47,0,12,1)),AVERAGE(OFFSET(North!$M$10,12*$A47,0,12,1))) -> 0.53078 | H47: =IF(PlotControl!$B$4 = "Annual Max",MAX(OFFSET(East!$C$10,12*$A47,0,12,1)),AVERAGE(OFFSET(East!$C$10,12*$A47,0,12,1))) -> 0.16102 | I47: =IF(PlotControl!$B$4 = "Annual Max",MAX(OFFSET(East!$D$10,12*$A47,0,12,1)),AVERAGE(OFFSET(East!$D$10,12*$A47,0,12,1))) -> 0.18201 | J47: =IF(PlotControl!$B$4 = "Annual Max",MAX(OFFSET(East!$E$10,12*$A47,0,12,1)),AVERAGE(OFFSET(East!$E$10,12*$A47,0,12,1))) -> 0.20186 | K47: =IF(PlotControl!$B$4 = "Annual Max",MAX(OFFSET(East!$K$10,12*$A47,0,12,1)),AVERAGE(OFFSET(East!$K$10,12*$A47,0,12,1))) -> 0.43412 | L47: =IF(PlotControl!$B$4 = "Annual Max",MAX(OFFSET(East!$L$10,12*$A47,0,12,1)),AVERAGE(OFFSET(East!$L$10,12*$A47,0,12,1))) -> 0.4866 | M47: =IF(PlotControl!$B$4 = "Annual Max",MAX(OFFSET(East!$M$10,12*$A47,0,12,1)),AVERAGE(OFFSET(East!$M$10,12*$A47,0,12,1))) -> 0.53078 | N47: =IF(PlotControl!$B$4 = "Annual Max",MAX(OFFSET(South!$C$10,12*$A47,0,12,1)),AVERAGE(OFFSET(South!$C$10,12*$A47,0,12,1))) -> 0.16102 | O47: =IF(PlotControl!$B$4 = "Annual Max",MAX(OFFSET(South!$D$10,12*$A47,0,12,1)),AVERAGE(OFFSET(South!$D$10,12*$A47,0,12,1))) -> 0.18201 | P47: =IF(PlotControl!$B$4 = "Annual Max",MAX(OFFSET(South!$E$10,12*$A47,0,12,1)),AVERAGE(OFFSET(South!$E$10,12*$A47,0,12,1))) -> 0.20186 | Q47: =IF(PlotControl!$B$4 = "Annual Max",MAX(OFFSET(South!$K$10,12*$A47,0,12,1)),AVERAGE(OFFSET(South!$K$10,12*$A47,0,12,1))) -> 0.43412 | R47: =IF(PlotControl!$B$4 = "Annual Max",MAX(OFFSET(South!$L$10,12*$A47,0,12,1)),AVERAGE(OFFSET(South!$L$10,12*$A47,0,12,1))) -> 0.4866 | S47: =IF(PlotControl!$B$4 = "Annual Max",MAX(OFFSET(South!$M$10,12*$A47,0,12,1)),AVERAGE(OFFSET(South!$M$10,12*$A47,0,12,1))) -> 0.53078 | T47: =IF(PlotControl!$B$4 = "Annual Max",MAX(OFFSET(Closure!$C$10,12*$A47,0,12,1)),AVERAGE(OFFSET(Closure!$C$10,12*$A47,0,12,1))) -> 0.16102 | U47: =IF(PlotControl!$B$4 = "Annual Max",MAX(OFFSET(Closure!$D$10,12*$A47,0,12,1)),AVERAGE(OFFSET(Closure!$D$10,12*$A47,0,12,1))) -> 0.18201 | V47: =IF(PlotControl!$B$4 = "Annual Max",MAX(OFFSET(Closure!$E$10,12*$A47,0,12,1)),AVERAGE(OFFSET(Closure!$E$10,12*$A47,0,12,1))) -> 0.20186
A48: 43 | B48: =IF(PlotControl!$B$4 = "Annual Max",MAX(OFFSET(North!$C$10,12*$A48,0,12,1)),AVERAGE(OFFSET(North!$C$10,12*$A48,0,12,1))) -> 0.16266 | C48: =IF(PlotControl!$B$4 = "Annual Max",MAX(OFFSET(North!$D$10,12*$A48,0,12,1)),AVERAGE(OFFSET(North!$D$10,12*$A48,0,12,1))) -> 0.18187 | D48: =IF(PlotControl!$B$4 = "Annual Max",MAX(OFFSET(North!$E$10,12*$A48,0,12,1)),AVERAGE(OFFSET(North!$E$10,12*$A48,0,12,1))) -> 0.20235 | E48: =IF(PlotControl!$B$4 = "Annual Max",MAX(OFFSET(North!$K$10,12*$A48,0,12,1)),AVERAGE(OFFSET(North!$K$10,12*$A48,0,12,1))) -> 0.43458 | F48: =IF(PlotControl!$B$4 = "Annual Max",MAX(OFFSET(North!$L$10,12*$A48,0,12,1)),AVERAGE(OFFSET(North!$L$10,12*$A48,0,12,1))) -> 0.48845 | G48: =IF(PlotControl!$B$4 = "Annual Max",MAX(OFFSET(North!$M$10,12*$A48,0,12,1)),AVERAGE(OFFSET(North!$M$10,12*$A48,0,12,1))) -> 0.5265 | H48: =IF(PlotControl!$B$4 = "Annual Max",MAX(OFFSET(East!$C$10,12*$A48,0,12,1)),AVERAGE(OFFSET(East!$C$10,12*$A48,0,12,1))) -> 0.16266 | I48: =IF(PlotControl!$B$4 = "Annual Max",MAX(OFFSET(East!$D$10,12*$A48,0,12,1)),AVERAGE(OFFSET(East!$D$10,12*$A48,0,12,1))) -> 0.18187 | J48: =IF(PlotControl!$B$4 = "Annual Max",MAX(OFFSET(East!$E$10,12*$A48,0,12,1)),AVERAGE(OFFSET(East!$E$10,12*$A48,0,12,1))) -> 0.20235 | K48: =IF(PlotControl!$B$4 = "Annual Max",MAX(OFFSET(East!$K$10,12*$A48,0,12,1)),AVERAGE(OFFSET(East!$K$10,12*$A48,0,12,1))) -> 0.43458 | L48: =IF(PlotControl!$B$4 = "Annual Max",MAX(OFFSET(East!$L$10,12*$A48,0,12,1)),AVERAGE(OFFSET(East!$L$10,12*$A48,0,12,1))) -> 0.48845 | M48: =IF(PlotControl!$B$4 = "Annual Max",MAX(OFFSET(East!$M$10,12*$A48,0,12,1)),AVERAGE(OFFSET(East!$M$10,12*$A48,0,12,1))) -> 0.5265 | N48: =IF(PlotControl!$B$4 = "Annual Max",MAX(OFFSET(South!$C$10,12*$A48,0,12,1)),AVERAGE(OFFSET(South!$C$10,12*$A48,0,12,1))) -> 0.16266 | O48: =IF(PlotControl!$B$4 = "Annual Max",MAX(OFFSET(South!$D$10,12*$A48,0,12,1)),AVERAGE(OFFSET(South!$D$10,12*$A48,0,12,1))) -> 0.18187 | P48: =IF(PlotControl!$B$4 = "Annual Max",MAX(OFFSET(South!$E$10,12*$A48,0,12,1)),AVERAGE(OFFSET(South!$E$10,12*$A48,0,12,1))) -> 0.20235 | Q48: =IF(PlotControl!$B$4 = "Annual Max",MAX(OFFSET(South!$K$10,12*$A48,0,12,1)),AVERAGE(OFFSET(South!$K$10,12*$A48,0,12,1))) -> 0.43458 | R48: =IF(PlotControl!$B$4 = "Annual Max",MAX(OFFSET(South!$L$10,12*$A48,0,12,1)),AVERAGE(OFFSET(South!$L$10,12*$A48,0,12,1))) -> 0.48845 | S48: =IF(PlotControl!$B$4 = "Annual Max",MAX(OFFSET(South!$M$10,12*$A48,0,12,1)),AVERAGE(OFFSET(South!$M$10,12*$A48,0,12,1))) -> 0.5265 | T48: =IF(PlotControl!$B$4 = "Annual Max",MAX(OFFSET(Closure!$C$10,12*$A48,0,12,1)),AVERAGE(OFFSET(Closure!$C$10,12*$A48,0,12,1))) -> 0.16266 | U48: =IF(PlotControl!$B$4 = "Annual Max",MAX(OFFSET(Closure!$D$10,12*$A48,0,12,1)),AVERAGE(OFFSET(Closure!$D$10,12*$A48,0,12,1))) -> 0.18187 | V48: =IF(PlotControl!$B$4 = "Annual Max",MAX(OFFSET(Closure!$E$10,12*$A48,0,12,1)),AVERAGE(OFFSET(Closure!$E$10,12*$A48,0,12,1))) -> 0.20235
A49: 44 | B49: =IF(PlotControl!$B$4 = "Annual Max",MAX(OFFSET(North!$C$10,12*$A49,0,12,1)),AVERAGE(OFFSET(North!$C$10,12*$A49,0,12,1))) -> 0.16076 | C49: =IF(PlotControl!$B$4 = "Annual Max",MAX(OFFSET(North!$D$10,12*$A49,0,12,1)),AVERAGE(OFFSET(North!$D$10,12*$A49,0,12,1))) -> 0.182 | D49: =IF(PlotControl!$B$4 = "Annual Max",MAX(OFFSET(North!$E$10,12*$A49,0,12,1)),AVERAGE(OFFSET(North!$E$10,12*$A49,0,12,1))) -> 0.20198 | E49: =IF(PlotControl!$B$4 = "Annual Max",MAX(OFFSET(North!$K$10,12*$A49,0,12,1)),AVERAGE(OFFSET(North!$K$10,12*$A49,0,12,1))) -> 0.43872 | F49: =IF(PlotControl!$B$4 = "Annual Max",MAX(OFFSET(North!$L$10,12*$A49,0,12,1)),AVERAGE(OFFSET(North!$L$10,12*$A49,0,12,1))) -> 0.48863 | G49: =IF(PlotControl!$B$4 = "Annual Max",MAX(OFFSET(North!$M$10,12*$A49,0,12,1)),AVERAGE(OFFSET(North!$M$10,12*$A49,0,12,1))) -> 0.52769 | H49: =IF(PlotControl!$B$4 = "Annual Max",MAX(OFFSET(East!$C$10,12*$A49,0,12,1)),AVERAGE(OFFSET(East!$C$10,12*$A49,0,12,1))) -> 0.16076 | I49: =IF(PlotControl!$B$4 = "Annual Max",MAX(OFFSET(East!$D$10,12*$A49,0,12,1)),AVERAGE(OFFSET(East!$D$10,12*$A49,0,12,1))) -> 0.182 | J49: =IF(PlotControl!$B$4 = "Annual Max",MAX(OFFSET(East!$E$10,12*$A49,0,12,1)),AVERAGE(OFFSET(East!$E$10,12*$A49,0,12,1))) -> 0.20198 | K49: =IF(PlotControl!$B$4 = "Annual Max",MAX(OFFSET(East!$K$10,12*$A49,0,12,1)),AVERAGE(OFFSET(East!$K$10,12*$A49,0,12,1))) -> 0.43872 | L49: =IF(PlotControl!$B$4 = "Annual Max",MAX(OFFSET(East!$L$10,12*$A49,0,12,1)),AVERAGE(OFFSET(East!$L$10,12*$A49,0,12,1))) -> 0.48863 | M49: =IF(PlotControl!$B$4 = "Annual Max",MAX(OFFSET(East!$M$10,12*$A49,0,12,1)),AVERAGE(OFFSET(East!$M$10,12*$A49,0,12,1))) -> 0.52769 | N49: =IF(PlotControl!$B$4 = "Annual Max",MAX(OFFSET(South!$C$10,12*$A49,0,12,1)),AVERAGE(OFFSET(South!$C$10,12*$A49,0,12,1))) -> 0.16076 | O49: =IF(PlotControl!$B$4 = "Annual Max",MAX(OFFSET(South!$D$10,12*$A49,0,12,1)),AVERAGE(OFFSET(South!$D$10,12*$A49,0,12,1))) -> 0.182 | P49: =IF(PlotControl!$B$4 = "Annual Max",MAX(OFFSET(South!$E$10,12*$A49,0,12,1)),AVERAGE(OFFSET(South!$E$10,12*$A49,0,12,1))) -> 0.20198 | Q49: =IF(PlotControl!$B$4 = "Annual Max",MAX(OFFSET(South!$K$10,12*$A49,0,12,1)),AVERAGE(OFFSET(South!$K$10,12*$A49,0,12,1))) -> 0.43872 | R49: =IF(PlotControl!$B$4 = "Annual Max",MAX(OFFSET(South!$L$10,12*$A49,0,12,1)),AVERAGE(OFFSET(South!$L$10,12*$A49,0,12,1))) -> 0.48863 | S49: =IF(PlotControl!$B$4 = "Annual Max",MAX(OFFSET(South!$M$10,12*$A49,0,12,1)),AVERAGE(OFFSET(South!$M$10,12*$A49,0,12,1))) -> 0.52769 | T49: =IF(PlotControl!$B$4 = "Annual Max",MAX(OFFSET(Closure!$C$10,12*$A49,0,12,1)),AVERAGE(OFFSET(Closure!$C$10,12*$A49,0,12,1))) -> 0.16076 | U49: =IF(PlotControl!$B$4 = "Annual Max",MAX(OFFSET(Closure!$D$10,12*$A49,0,12,1)),AVERAGE(OFFSET(Closure!$D$10,12*$A49,0,12,1))) -> 0.182 | V49: =IF(PlotControl!$B$4 = "Annual Max",MAX(OFFSET(Closure!$E$10,12*$A49,0,12,1)),AVERAGE(OFFSET(Closure!$E$10,12*$A49,0,12,1))) -> 0.20198
A50: 45 | B50: =IF(PlotControl!$B$4 = "Annual Max",MAX(OFFSET(North!$C$10,12*$A50,0,12,1)),AVERAGE(OFFSET(North!$C$10,12*$A50,0,12,1))) -> 0.16021 | C50: =IF(PlotControl!$B$4 = "Annual Max",MAX(OFFSET(North!$D$10,12*$A50,0,12,1)),AVERAGE(OFFSET(North!$D$10,12*$A50,0,12,1))) -> 0.18243 | D50: =IF(PlotControl!$B$4 = "Annual Max",MAX(OFFSET(North!$E$10,12*$A50,0,12,1)),AVERAGE(OFFSET(North!$E$10,12*$A50,0,12,1))) -> 0.20065 | E50: =IF(PlotControl!$B$4 = "Annual Max",MAX(OFFSET(North!$K$10,12*$A50,0,12,1)),AVERAGE(OFFSET(North!$K$10,12*$A50,0,12,1))) -> 0.43974 | F50: =IF(PlotControl!$B$4 = "Annual Max",MAX(OFFSET(North!$L$10,12*$A50,0,12,1)),AVERAGE(OFFSET(North!$L$10,12*$A50,0,12,1))) -> 0.48681 | G50: =IF(PlotControl!$B$4 = "Annual Max",MAX(OFFSET(North!$M$10,12*$A50,0,12,1)),AVERAGE(OFFSET(North!$M$10,12*$A50,0,12,1))) -> 0.52505 | H50: =IF(PlotControl!$B$4 = "Annual Max",MAX(OFFSET(East!$C$10,12*$A50,0,12,1)),AVERAGE(OFFSET(East!$C$10,12*$A50,0,12,1))) -> 0.16021 | I50: =IF(PlotControl!$B$4 = "Annual Max",MAX(OFFSET(East!$D$10,12*$A50,0,12,1)),AVERAGE(OFFSET(East!$D$10,12*$A50,0,12,1))) -> 0.18243 | J50: =IF(PlotControl!$B$4 = "Annual Max",MAX(OFFSET(East!$E$10,12*$A50,0,12,1)),AVERAGE(OFFSET(East!$E$10,12*$A50,0,12,1))) -> 0.20065 | K50: =IF(PlotControl!$B$4 = "Annual Max",MAX(OFFSET(East!$K$10,12*$A50,0,12,1)),AVERAGE(OFFSET(East!$K$10,12*$A50,0,12,1))) -> 0.43974 | L50: =IF(PlotControl!$B$4 = "Annual Max",MAX(OFFSET(East!$L$10,12*$A50,0,12,1)),AVERAGE(OFFSET(East!$L$10,12*$A50,0,12,1))) -> 0.48681 | M50: =IF(PlotControl!$B$4 = "Annual Max",MAX(OFFSET(East!$M$10,12*$A50,0,12,1)),AVERAGE(OFFSET(East!$M$10,12*$A50,0,12,1))) -> 0.52505 | N50: =IF(PlotControl!$B$4 = "Annual Max",MAX(OFFSET(South!$C$10,12*$A50,0,12,1)),AVERAGE(OFFSET(South!$C$10,12*$A50,0,12,1))) -> 0.16021 | O50: =IF(PlotControl!$B$4 = "Annual Max",MAX(OFFSET(South!$D$10,12*$A50,0,12,1)),AVERAGE(OFFSET(South!$D$10,12*$A50,0,12,1))) -> 0.18243 | P50: =IF(PlotControl!$B$4 = "Annual Max",MAX(OFFSET(South!$E$10,12*$A50,0,12,1)),AVERAGE(OFFSET(South!$E$10,12*$A50,0,12,1))) -> 0.20065 | Q50: =IF(PlotControl!$B$4 = "Annual Max",MAX(OFFSET(South!$K$10,12*$A50,0,12,1)),AVERAGE(OFFSET(South!$K$10,12*$A50,0,12,1))) -> 0.43974 | R50: =IF(PlotControl!$B$4 = "Annual Max",MAX(OFFSET(South!$L$10,12*$A50,0,12,1)),AVERAGE(OFFSET(South!$L$10,12*$A50,0,12,1))) -> 0.48681 | S50: =IF(PlotControl!$B$4 = "Annual Max",MAX(OFFSET(South!$M$10,12*$A50,0,12,1)),AVERAGE(OFFSET(South!$M$10,12*$A50,0,12,1))) -> 0.52505 | T50: =IF(PlotControl!$B$4 = "Annual Max",MAX(OFFSET(Closure!$C$10,12*$A50,0,12,1)),AVERAGE(OFFSET(Closure!$C$10,12*$A50,0,12,1))) -> 0.16021 | U50: =IF(PlotControl!$B$4 = "Annual Max",MAX(OFFSET(Closure!$D$10,12*$A50,0,12,1)),AVERAGE(OFFSET(Closure!$D$10,12*$A50,0,12,1))) -> 0.18243 | V50: =IF(PlotControl!$B$4 = "Annual Max",MAX(OFFSET(Closure!$E$10,12*$A50,0,12,1)),AVERAGE(OFFSET(Closure!$E$10,12*$A50,0,12,1))) -> 0.20065
A51: 46 | B51: =IF(PlotControl!$B$4 = "Annual Max",MAX(OFFSET(North!$C$10,12*$A51,0,12,1)),AVERAGE(OFFSET(North!$C$10,12*$A51,0,12,1))) -> 0.16168 | C51: =IF(PlotControl!$B$4 = "Annual Max",MAX(OFFSET(North!$D$10,12*$A51,0,12,1)),AVERAGE(OFFSET(North!$D$10,12*$A51,0,12,1))) -> 0.18242 | D51: =IF(PlotControl!$B$4 = "Annual Max",MAX(OFFSET(North!$E$10,12*$A51,0,12,1)),AVERAGE(OFFSET(North!$E$10,12*$A51,0,12,1))) -> 0.20113 | E51: =IF(PlotControl!$B$4 = "Annual Max",MAX(OFFSET(North!$K$10,12*$A51,0,12,1)),AVERAGE(OFFSET(North!$K$10,12*$A51,0,12,1))) -> 0.44066 | F51: =IF(PlotControl!$B$4 = "Annual Max",MAX(OFFSET(North!$L$10,12*$A51,0,12,1)),AVERAGE(OFFSET(North!$L$10,12*$A51,0,12,1))) -> 0.48758 | G51: =IF(PlotControl!$B$4 = "Annual Max",MAX(OFFSET(North!$M$10,12*$A51,0,12,1)),AVERAGE(OFFSET(North!$M$10,12*$A51,0,12,1))) -> 0.52888 | H51: =IF(PlotControl!$B$4 = "Annual Max",MAX(OFFSET(East!$C$10,12*$A51,0,12,1)),AVERAGE(OFFSET(East!$C$10,12*$A51,0,12,1))) -> 0.16168 | I51: =IF(PlotControl!$B$4 = "Annual Max",MAX(OFFSET(East!$D$10,12*$A51,0,12,1)),AVERAGE(OFFSET(East!$D$10,12*$A51,0,12,1))) -> 0.18242 | J51: =IF(PlotControl!$B$4 = "Annual Max",MAX(OFFSET(East!$E$10,12*$A51,0,12,1)),AVERAGE(OFFSET(East!$E$10,12*$A51,0,12,1))) -> 0.20113 | K51: =IF(PlotControl!$B$4 = "Annual Max",MAX(OFFSET(East!$K$10,12*$A51,0,12,1)),AVERAGE(OFFSET(East!$K$10,12*$A51,0,12,1))) -> 0.44066 | L51: =IF(PlotControl!$B$4 = "Annual Max",MAX(OFFSET(East!$L$10,12*$A51,0,12,1)),AVERAGE(OFFSET(East!$L$10,12*$A51,0,12,1))) -> 0.48758 | M51: =IF(PlotControl!$B$4 = "Annual Max",MAX(OFFSET(East!$M$10,12*$A51,0,12,1)),AVERAGE(OFFSET(East!$M$10,12*$A51,0,12,1))) -> 0.52888 | N51: =IF(PlotControl!$B$4 = "Annual Max",MAX(OFFSET(South!$C$10,12*$A51,0,12,1)),AVERAGE(OFFSET(South!$C$10,12*$A51,0,12,1))) -> 0.16168 | O51: =IF(PlotControl!$B$4 = "Annual Max",MAX(OFFSET(South!$D$10,12*$A51,0,12,1)),AVERAGE(OFFSET(South!$D$10,12*$A51,0,12,1))) -> 0.18242 | P51: =IF(PlotControl!$B$4 = "Annual Max",MAX(OFFSET(South!$E$10,12*$A51,0,12,1)),AVERAGE(OFFSET(South!$E$10,12*$A51,0,12,1))) -> 0.20113 | Q51: =IF(PlotControl!$B$4 = "Annual Max",MAX(OFFSET(South!$K$10,12*$A51,0,12,1)),AVERAGE(OFFSET(South!$K$10,12*$A51,0,12,1))) -> 0.44066 | R51: =IF(PlotControl!$B$4 = "Annual Max",MAX(OFFSET(South!$L$10,12*$A51,0,12,1)),AVERAGE(OFFSET(South!$L$10,12*$A51,0,12,1))) -> 0.48758 | S51: =IF(PlotControl!$B$4 = "Annual Max",MAX(OFFSET(South!$M$10,12*$A51,0,12,1)),AVERAGE(OFFSET(South!$M$10,12*$A51,0,12,1))) -> 0.52888 | T51: =IF(PlotControl!$B$4 = "Annual Max",MAX(OFFSET(Closure!$C$10,12*$A51,0,12,1)),AVERAGE(OFFSET(Closure!$C$10,12*$A51,0,12,1))) -> 0.16168 | U51: =IF(PlotControl!$B$4 = "Annual Max",MAX(OFFSET(Closure!$D$10,12*$A51,0,12,1)),AVERAGE(OFFSET(Closure!$D$10,12*$A51,0,12,1))) -> 0.18242 | V51: =IF(PlotControl!$B$4 = "Annual Max",MAX(OFFSET(Closure!$E$10,12*$A51,0,12,1)),AVERAGE(OFFSET(Closure!$E$10,12*$A51,0,12,1))) -> 0.20113
A52: 47 | B52: =IF(PlotControl!$B$4 = "Annual Max",MAX(OFFSET(North!$C$10,12*$A52,0,12,1)),AVERAGE(OFFSET(North!$C$10,12*$A52,0,12,1))) -> 0.15967 | C52: =IF(PlotControl!$B$4 = "Annual Max",MAX(OFFSET(North!$D$10,12*$A52,0,12,1)),AVERAGE(OFFSET(North!$D$10,12*$A52,0,12,1))) -> 0.18261 | D52: =IF(PlotControl!$B$4 = "Annual Max",MAX(OFFSET(North!$E$10,12*$A52,0,12,1)),AVERAGE(OFFSET(North!$E$10,12*$A52,0,12,1))) -> 0.1999 | E52: =IF(PlotControl!$B$4 = "Annual Max",MAX(OFFSET(North!$K$10,12*$A52,0,12,1)),AVERAGE(OFFSET(North!$K$10,12*$A52,0,12,1))) -> 0.44003 | F52: =IF(PlotControl!$B$4 = "Annual Max",MAX(OFFSET(North!$L$10,12*$A52,0,12,1)),AVERAGE(OFFSET(North!$L$10,12*$A52,0,12,1))) -> 0.48593 | G52: =IF(PlotControl!$B$4 = "Annual Max",MAX(OFFSET(North!$M$10,12*$A52,0,12,1)),AVERAGE(OFFSET(North!$M$10,12*$A52,0,12,1))) -> 0.533 | H52: =IF(PlotControl!$B$4 = "Annual Max",MAX(OFFSET(East!$C$10,12*$A52,0,12,1)),AVERAGE(OFFSET(East!$C$10,12*$A52,0,12,1))) -> 0.15967 | I52: =IF(PlotControl!$B$4 = "Annual Max",MAX(OFFSET(East!$D$10,12*$A52,0,12,1)),AVERAGE(OFFSET(East!$D$10,12*$A52,0,12,1))) -> 0.18261 | J52: =IF(PlotControl!$B$4 = "Annual Max",MAX(OFFSET(East!$E$10,12*$A52,0,12,1)),AVERAGE(OFFSET(East!$E$10,12*$A52,0,12,1))) -> 0.1999 | K52: =IF(PlotControl!$B$4 = "Annual Max",MAX(OFFSET(East!$K$10,12*$A52,0,12,1)),AVERAGE(OFFSET(East!$K$10,12*$A52,0,12,1))) -> 0.44003 | L52: =IF(PlotControl!$B$4 = "Annual Max",MAX(OFFSET(East!$L$10,12*$A52,0,12,1)),AVERAGE(OFFSET(East!$L$10,12*$A52,0,12,1))) -> 0.48593 | M52: =IF(PlotControl!$B$4 = "Annual Max",MAX(OFFSET(East!$M$10,12*$A52,0,12,1)),AVERAGE(OFFSET(East!$M$10,12*$A52,0,12,1))) -> 0.533 | N52: =IF(PlotControl!$B$4 = "Annual Max",MAX(OFFSET(South!$C$10,12*$A52,0,12,1)),AVERAGE(OFFSET(South!$C$10,12*$A52,0,12,1))) -> 0.15967 | O52: =IF(PlotControl!$B$4 = "Annual Max",MAX(OFFSET(South!$D$10,12*$A52,0,12,1)),AVERAGE(OFFSET(South!$D$10,12*$A52,0,12,1))) -> 0.18261 | P52: =IF(PlotControl!$B$4 = "Annual Max",MAX(OFFSET(South!$E$10,12*$A52,0,12,1)),AVERAGE(OFFSET(South!$E$10,12*$A52,0,12,1))) -> 0.1999 | Q52: =IF(PlotControl!$B$4 = "Annual Max",MAX(OFFSET(South!$K$10,12*$A52,0,12,1)),AVERAGE(OFFSET(South!$K$10,12*$A52,0,12,1))) -> 0.44003 | R52: =IF(PlotControl!$B$4 = "Annual Max",MAX(OFFSET(South!$L$10,12*$A52,0,12,1)),AVERAGE(OFFSET(South!$L$10,12*$A52,0,12,1))) -> 0.48593 | S52: =IF(PlotControl!$B$4 = "Annual Max",MAX(OFFSET(South!$M$10,12*$A52,0,12,1)),AVERAGE(OFFSET(South!$M$10,12*$A52,0,12,1))) -> 0.533 | T52: =IF(PlotControl!$B$4 = "Annual Max",MAX(OFFSET(Closure!$C$10,12*$A52,0,12,1)),AVERAGE(OFFSET(Closure!$C$10,12*$A52,0,12,1))) -> 0.15967 | U52: =IF(PlotControl!$B$4 = "Annual Max",MAX(OFFSET(Closure!$D$10,12*$A52,0,12,1)),AVERAGE(OFFSET(Closure!$D$10,12*$A52,0,12,1))) -> 0.18261 | V52: =IF(PlotControl!$B$4 = "Annual Max",MAX(OFFSET(Closure!$E$10,12*$A52,0,12,1)),AVERAGE(OFFSET(Closure!$E$10,12*$A52,0,12,1))) -> 0.1999
A53: 48 | B53: =IF(PlotControl!$B$4 = "Annual Max",MAX(OFFSET(North!$C$10,12*$A53,0,12,1)),AVERAGE(OFFSET(North!$C$10,12*$A53,0,12,1))) -> 0.16045 | C53: =IF(PlotControl!$B$4 = "Annual Max",MAX(OFFSET(North!$D$10,12*$A53,0,12,1)),AVERAGE(OFFSET(North!$D$10,12*$A53,0,12,1))) -> 0.18198 | D53: =IF(PlotControl!$B$4 = "Annual Max",MAX(OFFSET(North!$E$10,12*$A53,0,12,1)),AVERAGE(OFFSET(North!$E$10,12*$A53,0,12,1))) -> 0.20067 | E53: =IF(PlotControl!$B$4 = "Annual Max",MAX(OFFSET(North!$K$10,12*$A53,0,12,1)),AVERAGE(OFFSET(North!$K$10,12*$A53,0,12,1))) -> 0.43524 | F53: =IF(PlotControl!$B$4 = "Annual Max",MAX(OFFSET(North!$L$10,12*$A53,0,12,1)),AVERAGE(OFFSET(North!$L$10,12*$A53,0,12,1))) -> 0.4872 | G53: =IF(PlotControl!$B$4 = "Annual Max",MAX(OFFSET(North!$M$10,12*$A53,0,12,1)),AVERAGE(OFFSET(North!$M$10,12*$A53,0,12,1))) -> 0.53017 | H53: =IF(PlotControl!$B$4 = "Annual Max",MAX(OFFSET(East!$C$10,12*$A53,0,12,1)),AVERAGE(OFFSET(East!$C$10,12*$A53,0,12,1))) -> 0.16045 | I53: =IF(PlotControl!$B$4 = "Annual Max",MAX(OFFSET(East!$D$10,12*$A53,0,12,1)),AVERAGE(OFFSET(East!$D$10,12*$A53,0,12,1))) -> 0.18198 | J53: =IF(PlotControl!$B$4 = "Annual Max",MAX(OFFSET(East!$E$10,12*$A53,0,12,1)),AVERAGE(OFFSET(East!$E$10,12*$A53,0,12,1))) -> 0.20067 | K53: =IF(PlotControl!$B$4 = "Annual Max",MAX(OFFSET(East!$K$10,12*$A53,0,12,1)),AVERAGE(OFFSET(East!$K$10,12*$A53,0,12,1))) -> 0.43524 | L53: =IF(PlotControl!$B$4 = "Annual Max",MAX(OFFSET(East!$L$10,12*$A53,0,12,1)),AVERAGE(OFFSET(East!$L$10,12*$A53,0,12,1))) -> 0.4872 | M53: =IF(PlotControl!$B$4 = "Annual Max",MAX(OFFSET(East!$M$10,12*$A53,0,12,1)),AVERAGE(OFFSET(East!$M$10,12*$A53,0,12,1))) -> 0.53017 | N53: =IF(PlotControl!$B$4 = "Annual Max",MAX(OFFSET(South!$C$10,12*$A53,0,12,1)),AVERAGE(OFFSET(South!$C$10,12*$A53,0,12,1))) -> 0.16045 | O53: =IF(PlotControl!$B$4 = "Annual Max",MAX(OFFSET(South!$D$10,12*$A53,0,12,1)),AVERAGE(OFFSET(South!$D$10,12*$A53,0,12,1))) -> 0.18198 | P53: =IF(PlotControl!$B$4 = "Annual Max",MAX(OFFSET(South!$E$10,12*$A53,0,12,1)),AVERAGE(OFFSET(South!$E$10,12*$A53,0,12,1))) -> 0.20067 | Q53: =IF(PlotControl!$B$4 = "Annual Max",MAX(OFFSET(South!$K$10,12*$A53,0,12,1)),AVERAGE(OFFSET(South!$K$10,12*$A53,0,12,1))) -> 0.43524 | R53: =IF(PlotControl!$B$4 = "Annual Max",MAX(OFFSET(South!$L$10,12*$A53,0,12,1)),AVERAGE(OFFSET(South!$L$10,12*$A53,0,12,1))) -> 0.4872 | S53: =IF(PlotControl!$B$4 = "Annual Max",MAX(OFFSET(South!$M$10,12*$A53,0,12,1)),AVERAGE(OFFSET(South!$M$10,12*$A53,0,12,1))) -> 0.53017 | T53: =IF(PlotControl!$B$4 = "Annual Max",MAX(OFFSET(Closure!$C$10,12*$A53,0,12,1)),AVERAGE(OFFSET(Closure!$C$10,12*$A53,0,12,1))) -> 0.16045 | U53: =IF(PlotControl!$B$4 = "Annual Max",MAX(OFFSET(Closure!$D$10,12*$A53,0,12,1)),AVERAGE(OFFSET(Closure!$D$10,12*$A53,0,12,1))) -> 0.18198 | V53: =IF(PlotControl!$B$4 = "Annual Max",MAX(OFFSET(Closure!$E$10,12*$A53,0,12,1)),AVERAGE(OFFSET(Closure!$E$10,12*$A53,0,12,1))) -> 0.20067
A54: 49 | B54: =IF(PlotControl!$B$4 = "Annual Max",MAX(OFFSET(North!$C$10,12*$A54,0,12,1)),AVERAGE(OFFSET(North!$C$10,12*$A54,0,12,1))) -> 0.16079 | C54: =IF(PlotControl!$B$4 = "Annual Max",MAX(OFFSET(North!$D$10,12*$A54,0,12,1)),AVERAGE(OFFSET(North!$D$10,12*$A54,0,12,1))) -> 0.18139 | D54: =IF(PlotControl!$B$4 = "Annual Max",MAX(OFFSET(North!$E$10,12*$A54,0,12,1)),AVERAGE(OFFSET(North!$E$10,12*$A54,0,12,1))) -> 0.20026 | E54: =IF(PlotControl!$B$4 = "Annual Max",MAX(OFFSET(North!$K$10,12*$A54,0,12,1)),AVERAGE(OFFSET(North!$K$10,12*$A54,0,12,1))) -> 0.43589 | F54: =IF(PlotControl!$B$4 = "Annual Max",MAX(OFFSET(North!$L$10,12*$A54,0,12,1)),AVERAGE(OFFSET(North!$L$10,12*$A54,0,12,1))) -> 0.48761 | G54: =IF(PlotControl!$B$4 = "Annual Max",MAX(OFFSET(North!$M$10,12*$A54,0,12,1)),AVERAGE(OFFSET(North!$M$10,12*$A54,0,12,1))) -> 0.53253 | H54: =IF(PlotControl!$B$4 = "Annual Max",MAX(OFFSET(East!$C$10,12*$A54,0,12,1)),AVERAGE(OFFSET(East!$C$10,12*$A54,0,12,1))) -> 0.16079 | I54: =IF(PlotControl!$B$4 = "Annual Max",MAX(OFFSET(East!$D$10,12*$A54,0,12,1)),AVERAGE(OFFSET(East!$D$10,12*$A54,0,12,1))) -> 0.18139 | J54: =IF(PlotControl!$B$4 = "Annual Max",MAX(OFFSET(East!$E$10,12*$A54,0,12,1)),AVERAGE(OFFSET(East!$E$10,12*$A54,0,12,1))) -> 0.20026 | K54: =IF(PlotControl!$B$4 = "Annual Max",MAX(OFFSET(East!$K$10,12*$A54,0,12,1)),AVERAGE(OFFSET(East!$K$10,12*$A54,0,12,1))) -> 0.43589 | L54: =IF(PlotControl!$B$4 = "Annual Max",MAX(OFFSET(East!$L$10,12*$A54,0,12,1)),AVERAGE(OFFSET(East!$L$10,12*$A54,0,12,1))) -> 0.48761 | M54: =IF(PlotControl!$B$4 = "Annual Max",MAX(OFFSET(East!$M$10,12*$A54,0,12,1)),AVERAGE(OFFSET(East!$M$10,12*$A54,0,12,1))) -> 0.53253 | N54: =IF(PlotControl!$B$4 = "Annual Max",MAX(OFFSET(South!$C$10,12*$A54,0,12,1)),AVERAGE(OFFSET(South!$C$10,12*$A54,0,12,1))) -> 0.16079 | O54: =IF(PlotControl!$B$4 = "Annual Max",MAX(OFFSET(South!$D$10,12*$A54,0,12,1)),AVERAGE(OFFSET(South!$D$10,12*$A54,0,12,1))) -> 0.18139 | P54: =IF(PlotControl!$B$4 = "Annual Max",MAX(OFFSET(South!$E$10,12*$A54,0,12,1)),AVERAGE(OFFSET(South!$E$10,12*$A54,0,12,1))) -> 0.20026 | Q54: =IF(PlotControl!$B$4 = "Annual Max",MAX(OFFSET(South!$K$10,12*$A54,0,12,1)),AVERAGE(OFFSET(South!$K$10,12*$A54,0,12,1))) -> 0.43589 | R54: =IF(PlotControl!$B$4 = "Annual Max",MAX(OFFSET(South!$L$10,12*$A54,0,12,1)),AVERAGE(OFFSET(South!$L$10,12*$A54,0,12,1))) -> 0.48761 | S54: =IF(PlotControl!$B$4 = "Annual Max",MAX(OFFSET(South!$M$10,12*$A54,0,12,1)),AVERAGE(OFFSET(South!$M$10,12*$A54,0,12,1))) -> 0.53253 | T54: =IF(PlotControl!$B$4 = "Annual Max",MAX(OFFSET(Closure!$C$10,12*$A54,0,12,1)),AVERAGE(OFFSET(Closure!$C$10,12*$A54,0,12,1))) -> 0.16079 | U54: =IF(PlotControl!$B$4 = "Annual Max",MAX(OFFSET(Closure!$D$10,12*$A54,0,12,1)),AVERAGE(OFFSET(Closure!$D$10,12*$A54,0,12,1))) -> 0.18139 | V54: =IF(PlotControl!$B$4 = "Annual Max",MAX(OFFSET(Closure!$E$10,12*$A54,0,12,1)),AVERAGE(OFFSET(Closure!$E$10,12*$A54,0,12,1))) -> 0.20026
A55: 50 | B55: =IF(PlotControl!$B$4 = "Annual Max",MAX(OFFSET(North!$C$10,12*$A55,0,12,1)),AVERAGE(OFFSET(North!$C$10,12*$A55,0,12,1))) -> 0.16229 | C55: =IF(PlotControl!$B$4 = "Annual Max",MAX(OFFSET(North!$D$10,12*$A55,0,12,1)),AVERAGE(OFFSET(North!$D$10,12*$A55,0,12,1))) -> 0.18153 | D55: =IF(PlotControl!$B$4 = "Annual Max",MAX(OFFSET(North!$E$10,12*$A55,0,12,1)),AVERAGE(OFFSET(North!$E$10,12*$A55,0,12,1))) -> 0.20097 | E55: =IF(PlotControl!$B$4 = "Annual Max",MAX(OFFSET(North!$K$10,12*$A55,0,12,1)),AVERAGE(OFFSET(North!$K$10,12*$A55,0,12,1))) -> 0.43515 | F55: =IF(PlotControl!$B$4 = "Annual Max",MAX(OFFSET(North!$L$10,12*$A55,0,12,1)),AVERAGE(OFFSET(North!$L$10,12*$A55,0,12,1))) -> 0.48691 | G55: =IF(PlotControl!$B$4 = "Annual Max",MAX(OFFSET(North!$M$10,12*$A55,0,12,1)),AVERAGE(OFFSET(North!$M$10,12*$A55,0,12,1))) -> 0.53038 | H55: =IF(PlotControl!$B$4 = "Annual Max",MAX(OFFSET(East!$C$10,12*$A55,0,12,1)),AVERAGE(OFFSET(East!$C$10,12*$A55,0,12,1))) -> 0.16229 | I55: =IF(PlotControl!$B$4 = "Annual Max",MAX(OFFSET(East!$D$10,12*$A55,0,12,1)),AVERAGE(OFFSET(East!$D$10,12*$A55,0,12,1))) -> 0.18153 | J55: =IF(PlotControl!$B$4 = "Annual Max",MAX(OFFSET(East!$E$10,12*$A55,0,12,1)),AVERAGE(OFFSET(East!$E$10,12*$A55,0,12,1))) -> 0.20097 | K55: =IF(PlotControl!$B$4 = "Annual Max",MAX(OFFSET(East!$K$10,12*$A55,0,12,1)),AVERAGE(OFFSET(East!$K$10,12*$A55,0,12,1))) -> 0.43515 | L55: =IF(PlotControl!$B$4 = "Annual Max",MAX(OFFSET(East!$L$10,12*$A55,0,12,1)),AVERAGE(OFFSET(East!$L$10,12*$A55,0,12,1))) -> 0.48691 | M55: =IF(PlotControl!$B$4 = "Annual Max",MAX(OFFSET(East!$M$10,12*$A55,0,12,1)),AVERAGE(OFFSET(East!$M$10,12*$A55,0,12,1))) -> 0.53038 | N55: =IF(PlotControl!$B$4 = "Annual Max",MAX(OFFSET(South!$C$10,12*$A55,0,12,1)),AVERAGE(OFFSET(South!$C$10,12*$A55,0,12,1))) -> 0.16229 | O55: =IF(PlotControl!$B$4 = "Annual Max",MAX(OFFSET(South!$D$10,12*$A55,0,12,1)),AVERAGE(OFFSET(South!$D$10,12*$A55,0,12,1))) -> 0.18153 | P55: =IF(PlotControl!$B$4 = "Annual Max",MAX(OFFSET(South!$E$10,12*$A55,0,12,1)),AVERAGE(OFFSET(South!$E$10,12*$A55,0,12,1))) -> 0.20097 | Q55: =IF(PlotControl!$B$4 = "Annual Max",MAX(OFFSET(South!$K$10,12*$A55,0,12,1)),AVERAGE(OFFSET(South!$K$10,12*$A55,0,12,1))) -> 0.43515 | R55: =IF(PlotControl!$B$4 = "Annual Max",MAX(OFFSET(South!$L$10,12*$A55,0,12,1)),AVERAGE(OFFSET(South!$L$10,12*$A55,0,12,1))) -> 0.48691 | S55: =IF(PlotControl!$B$4 = "Annual Max",MAX(OFFSET(South!$M$10,12*$A55,0,12,1)),AVERAGE(OFFSET(South!$M$10,12*$A55,0,12,1))) -> 0.53038 | T55: =IF(PlotControl!$B$4 = "Annual Max",MAX(OFFSET(Closure!$C$10,12*$A55,0,12,1)),AVERAGE(OFFSET(Closure!$C$10,12*$A55,0,12,1))) -> 0.16229 | U55: =IF(PlotControl!$B$4 = "Annual Max",MAX(OFFSET(Closure!$D$10,12*$A55,0,12,1)),AVERAGE(OFFSET(Closure!$D$10,12*$A55,0,12,1))) -> 0.18153 | V55: =IF(PlotControl!$B$4 = "Annual Max",MAX(OFFSET(Closure!$E$10,12*$A55,0,12,1)),AVERAGE(OFFSET(Closure!$E$10,12*$A55,0,12,1))) -> 0.20097
A56: 51 | B56: =IF(PlotControl!$B$4 = "Annual Max",MAX(OFFSET(North!$C$10,12*$A56,0,12,1)),AVERAGE(OFFSET(North!$C$10,12*$A56,0,12,1))) -> 0.16024 | C56: =IF(PlotControl!$B$4 = "Annual Max",MAX(OFFSET(North!$D$10,12*$A56,0,12,1)),AVERAGE(OFFSET(North!$D$10,12*$A56,0,12,1))) -> 0.1819 | D56: =IF(PlotControl!$B$4 = "Annual Max",MAX(OFFSET(North!$E$10,12*$A56,0,12,1)),AVERAGE(OFFSET(North!$E$10,12*$A56,0,12,1))) -> 0.20036 | E56: =IF(PlotControl!$B$4 = "Annual Max",MAX(OFFSET(North!$K$10,12*$A56,0,12,1)),AVERAGE(OFFSET(North!$K$10,12*$A56,0,12,1))) -> 0.43197 | F56: =IF(PlotControl!$B$4 = "Annual Max",MAX(OFFSET(North!$L$10,12*$A56,0,12,1)),AVERAGE(OFFSET(North!$L$10,12*$A56,0,12,1))) -> 0.48653 | G56: =IF(PlotControl!$B$4 = "Annual Max",MAX(OFFSET(North!$M$10,12*$A56,0,12,1)),AVERAGE(OFFSET(North!$M$10,12*$A56,0,12,1))) -> 0.52985 | H56: =IF(PlotControl!$B$4 = "Annual Max",MAX(OFFSET(East!$C$10,12*$A56,0,12,1)),AVERAGE(OFFSET(East!$C$10,12*$A56,0,12,1))) -> 0.16024 | I56: =IF(PlotControl!$B$4 = "Annual Max",MAX(OFFSET(East!$D$10,12*$A56,0,12,1)),AVERAGE(OFFSET(East!$D$10,12*$A56,0,12,1))) -> 0.1819 | J56: =IF(PlotControl!$B$4 = "Annual Max",MAX(OFFSET(East!$E$10,12*$A56,0,12,1)),AVERAGE(OFFSET(East!$E$10,12*$A56,0,12,1))) -> 0.20036 | K56: =IF(PlotControl!$B$4 = "Annual Max",MAX(OFFSET(East!$K$10,12*$A56,0,12,1)),AVERAGE(OFFSET(East!$K$10,12*$A56,0,12,1))) -> 0.43197 | L56: =IF(PlotControl!$B$4 = "Annual Max",MAX(OFFSET(East!$L$10,12*$A56,0,12,1)),AVERAGE(OFFSET(East!$L$10,12*$A56,0,12,1))) -> 0.48653 | M56: =IF(PlotControl!$B$4 = "Annual Max",MAX(OFFSET(East!$M$10,12*$A56,0,12,1)),AVERAGE(OFFSET(East!$M$10,12*$A56,0,12,1))) -> 0.52985 | N56: =IF(PlotControl!$B$4 = "Annual Max",MAX(OFFSET(South!$C$10,12*$A56,0,12,1)),AVERAGE(OFFSET(South!$C$10,12*$A56,0,12,1))) -> 0.16024 | O56: =IF(PlotControl!$B$4 = "Annual Max",MAX(OFFSET(South!$D$10,12*$A56,0,12,1)),AVERAGE(OFFSET(South!$D$10,12*$A56,0,12,1))) -> 0.1819 | P56: =IF(PlotControl!$B$4 = "Annual Max",MAX(OFFSET(South!$E$10,12*$A56,0,12,1)),AVERAGE(OFFSET(South!$E$10,12*$A56,0,12,1))) -> 0.20036 | Q56: =IF(PlotControl!$B$4 = "Annual Max",MAX(OFFSET(South!$K$10,12*$A56,0,12,1)),AVERAGE(OFFSET(South!$K$10,12*$A56,0,12,1))) -> 0.43197 | R56: =IF(PlotControl!$B$4 = "Annual Max",MAX(OFFSET(South!$L$10,12*$A56,0,12,1)),AVERAGE(OFFSET(South!$L$10,12*$A56,0,12,1))) -> 0.48653 | S56: =IF(PlotControl!$B$4 = "Annual Max",MAX(OFFSET(South!$M$10,12*$A56,0,12,1)),AVERAGE(OFFSET(South!$M$10,12*$A56,0,12,1))) -> 0.52985 | T56: =IF(PlotControl!$B$4 = "Annual Max",MAX(OFFSET(Closure!$C$10,12*$A56,0,12,1)),AVERAGE(OFFSET(Closure!$C$10,12*$A56,0,12,1))) -> 0.16024 | U56: =IF(PlotControl!$B$4 = "Annual Max",MAX(OFFSET(Closure!$D$10,12*$A56,0,12,1)),AVERAGE(OFFSET(Closure!$D$10,12*$A56,0,12,1))) -> 0.1819 | V56: =IF(PlotControl!$B$4 = "Annual Max",MAX(OFFSET(Closure!$E$10,12*$A56,0,12,1)),AVERAGE(OFFSET(Closure!$E$10,12*$A56,0,12,1))) -> 0.20036
A57: 52 | B57: =IF(PlotControl!$B$4 = "Annual Max",MAX(OFFSET(North!$C$10,12*$A57,0,12,1)),AVERAGE(OFFSET(North!$C$10,12*$A57,0,12,1))) -> 0.16164 | C57: =IF(PlotControl!$B$4 = "Annual Max",MAX(OFFSET(North!$D$10,12*$A57,0,12,1)),AVERAGE(OFFSET(North!$D$10,12*$A57,0,12,1))) -> 0.18184 | D57: =IF(PlotControl!$B$4 = "Annual Max",MAX(OFFSET(North!$E$10,12*$A57,0,12,1)),AVERAGE(OFFSET(North!$E$10,12*$A57,0,12,1))) -> 0.19945 | E57: =IF(PlotControl!$B$4 = "Annual Max",MAX(OFFSET(North!$K$10,12*$A57,0,12,1)),AVERAGE(OFFSET(North!$K$10,12*$A57,0,12,1))) -> 0.43511 | F57: =IF(PlotControl!$B$4 = "Annual Max",MAX(OFFSET(North!$L$10,12*$A57,0,12,1)),AVERAGE(OFFSET(North!$L$10,12*$A57,0,12,1))) -> 0.48649 | G57: =IF(PlotControl!$B$4 = "Annual Max",MAX(OFFSET(North!$M$10,12*$A57,0,12,1)),AVERAGE(OFFSET(North!$M$10,12*$A57,0,12,1))) -> 0.52488 | H57: =IF(PlotControl!$B$4 = "Annual Max",MAX(OFFSET(East!$C$10,12*$A57,0,12,1)),AVERAGE(OFFSET(East!$C$10,12*$A57,0,12,1))) -> 0.16164 | I57: =IF(PlotControl!$B$4 = "Annual Max",MAX(OFFSET(East!$D$10,12*$A57,0,12,1)),AVERAGE(OFFSET(East!$D$10,12*$A57,0,12,1))) -> 0.18184 | J57: =IF(PlotControl!$B$4 = "Annual Max",MAX(OFFSET(East!$E$10,12*$A57,0,12,1)),AVERAGE(OFFSET(East!$E$10,12*$A57,0,12,1))) -> 0.19945 | K57: =IF(PlotControl!$B$4 = "Annual Max",MAX(OFFSET(East!$K$10,12*$A57,0,12,1)),AVERAGE(OFFSET(East!$K$10,12*$A57,0,12,1))) -> 0.43511 | L57: =IF(PlotControl!$B$4 = "Annual Max",MAX(OFFSET(East!$L$10,12*$A57,0,12,1)),AVERAGE(OFFSET(East!$L$10,12*$A57,0,12,1))) -> 0.48649 | M57: =IF(PlotControl!$B$4 = "Annual Max",MAX(OFFSET(East!$M$10,12*$A57,0,12,1)),AVERAGE(OFFSET(East!$M$10,12*$A57,0,12,1))) -> 0.52488 | N57: =IF(PlotControl!$B$4 = "Annual Max",MAX(OFFSET(South!$C$10,12*$A57,0,12,1)),AVERAGE(OFFSET(South!$C$10,12*$A57,0,12,1))) -> 0.16164 | O57: =IF(PlotControl!$B$4 = "Annual Max",MAX(OFFSET(South!$D$10,12*$A57,0,12,1)),AVERAGE(OFFSET(South!$D$10,12*$A57,0,12,1))) -> 0.18184 | P57: =IF(PlotControl!$B$4 = "Annual Max",MAX(OFFSET(South!$E$10,12*$A57,0,12,1)),AVERAGE(OFFSET(South!$E$10,12*$A57,0,12,1))) -> 0.19945 | Q57: =IF(PlotControl!$B$4 = "Annual Max",MAX(OFFSET(South!$K$10,12*$A57,0,12,1)),AVERAGE(OFFSET(South!$K$10,12*$A57,0,12,1))) -> 0.43511 | R57: =IF(PlotControl!$B$4 = "Annual Max",MAX(OFFSET(South!$L$10,12*$A57,0,12,1)),AVERAGE(OFFSET(South!$L$10,12*$A57,0,12,1))) -> 0.48649 | S57: =IF(PlotControl!$B$4 = "Annual Max",MAX(OFFSET(South!$M$10,12*$A57,0,12,1)),AVERAGE(OFFSET(South!$M$10,12*$A57,0,12,1))) -> 0.52488 | T57: =IF(PlotControl!$B$4 = "Annual Max",MAX(OFFSET(Closure!$C$10,12*$A57,0,12,1)),AVERAGE(OFFSET(Closure!$C$10,12*$A57,0,12,1))) -> 0.16164 | U57: =IF(PlotControl!$B$4 = "Annual Max",MAX(OFFSET(Closure!$D$10,12*$A57,0,12,1)),AVERAGE(OFFSET(Closure!$D$10,12*$A57,0,12,1))) -> 0.18184 | V57: =IF(PlotControl!$B$4 = "Annual Max",MAX(OFFSET(Closure!$E$10,12*$A57,0,12,1)),AVERAGE(OFFSET(Closure!$E$10,12*$A57,0,12,1))) -> 0.19945
A58: 53 | B58: =IF(PlotControl!$B$4 = "Annual Max",MAX(OFFSET(North!$C$10,12*$A58,0,12,1)),AVERAGE(OFFSET(North!$C$10,12*$A58,0,12,1))) -> 0.16263 | C58: =IF(PlotControl!$B$4 = "Annual Max",MAX(OFFSET(North!$D$10,12*$A58,0,12,1)),AVERAGE(OFFSET(North!$D$10,12*$A58,0,12,1))) -> 0.18183 | D58: =IF(PlotControl!$B$4 = "Annual Max",MAX(OFFSET(North!$E$10,12*$A58,0,12,1)),AVERAGE(OFFSET(North!$E$10,12*$A58,0,12,1))) -> 0.20044 | E58: =IF(PlotControl!$B$4 = "Annual Max",MAX(OFFSET(North!$K$10,12*$A58,0,12,1)),AVERAGE(OFFSET(North!$K$10,12*$A58,0,12,1))) -> 0.43976 | F58: =IF(PlotControl!$B$4 = "Annual Max",MAX(OFFSET(North!$L$10,12*$A58,0,12,1)),AVERAGE(OFFSET(North!$L$10,12*$A58,0,12,1))) -> 0.48725 | G58: =IF(PlotControl!$B$4 = "Annual Max",MAX(OFFSET(North!$M$10,12*$A58,0,12,1)),AVERAGE(OFFSET(North!$M$10,12*$A58,0,12,1))) -> 0.52733 | H58: =IF(PlotControl!$B$4 = "Annual Max",MAX(OFFSET(East!$C$10,12*$A58,0,12,1)),AVERAGE(OFFSET(East!$C$10,12*$A58,0,12,1))) -> 0.16263 | I58: =IF(PlotControl!$B$4 = "Annual Max",MAX(OFFSET(East!$D$10,12*$A58,0,12,1)),AVERAGE(OFFSET(East!$D$10,12*$A58,0,12,1))) -> 0.18183 | J58: =IF(PlotControl!$B$4 = "Annual Max",MAX(OFFSET(East!$E$10,12*$A58,0,12,1)),AVERAGE(OFFSET(East!$E$10,12*$A58,0,12,1))) -> 0.20044 | K58: =IF(PlotControl!$B$4 = "Annual Max",MAX(OFFSET(East!$K$10,12*$A58,0,12,1)),AVERAGE(OFFSET(East!$K$10,12*$A58,0,12,1))) -> 0.43976 | L58: =IF(PlotControl!$B$4 = "Annual Max",MAX(OFFSET(East!$L$10,12*$A58,0,12,1)),AVERAGE(OFFSET(East!$L$10,12*$A58,0,12,1))) -> 0.48725 | M58: =IF(PlotControl!$B$4 = "Annual Max",MAX(OFFSET(East!$M$10,12*$A58,0,12,1)),AVERAGE(OFFSET(East!$M$10,12*$A58,0,12,1))) -> 0.52733 | N58: =IF(PlotControl!$B$4 = "Annual Max",MAX(OFFSET(South!$C$10,12*$A58,0,12,1)),AVERAGE(OFFSET(South!$C$10,12*$A58,0,12,1))) -> 0.16263 | O58: =IF(PlotControl!$B$4 = "Annual Max",MAX(OFFSET(South!$D$10,12*$A58,0,12,1)),AVERAGE(OFFSET(South!$D$10,12*$A58,0,12,1))) -> 0.18183 | P58: =IF(PlotControl!$B$4 = "Annual Max",MAX(OFFSET(South!$E$10,12*$A58,0,12,1)),AVERAGE(OFFSET(South!$E$10,12*$A58,0,12,1))) -> 0.20044 | Q58: =IF(PlotControl!$B$4 = "Annual Max",MAX(OFFSET(South!$K$10,12*$A58,0,12,1)),AVERAGE(OFFSET(South!$K$10,12*$A58,0,12,1))) -> 0.43976 | R58: =IF(PlotControl!$B$4 = "Annual Max",MAX(OFFSET(South!$L$10,12*$A58,0,12,1)),AVERAGE(OFFSET(South!$L$10,12*$A58,0,12,1))) -> 0.48725 | S58: =IF(PlotControl!$B$4 = "Annual Max",MAX(OFFSET(South!$M$10,12*$A58,0,12,1)),AVERAGE(OFFSET(South!$M$10,12*$A58,0,12,1))) -> 0.52733 | T58: =IF(PlotControl!$B$4 = "Annual Max",MAX(OFFSET(Closure!$C$10,12*$A58,0,12,1)),AVERAGE(OFFSET(Closure!$C$10,12*$A58,0,12,1))) -> 0.16263 | U58: =IF(PlotControl!$B$4 = "Annual Max",MAX(OFFSET(Closure!$D$10,12*$A58,0,12,1)),AVERAGE(OFFSET(Closure!$D$10,12*$A58,0,12,1))) -> 0.18183 | V58: =IF(PlotControl!$B$4 = "Annual Max",MAX(OFFSET(Closure!$E$10,12*$A58,0,12,1)),AVERAGE(OFFSET(Closure!$E$10,12*$A58,0,12,1))) -> 0.20044
A59: 54 | B59: =IF(PlotControl!$B$4 = "Annual Max",MAX(OFFSET(North!$C$10,12*$A59,0,12,1)),AVERAGE(OFFSET(North!$C$10,12*$A59,0,12,1))) -> 0.15988 | C59: =IF(PlotControl!$B$4 = "Annual Max",MAX(OFFSET(North!$D$10,12*$A59,0,12,1)),AVERAGE(OFFSET(North!$D$10,12*$A59,0,12,1))) -> 0.18178 | D59: =IF(PlotControl!$B$4 = "Annual Max",MAX(OFFSET(North!$E$10,12*$A59,0,12,1)),AVERAGE(OFFSET(North!$E$10,12*$A59,0,12,1))) -> 0.2009 | E59: =IF(PlotControl!$B$4 = "Annual Max",MAX(OFFSET(North!$K$10,12*$A59,0,12,1)),AVERAGE(OFFSET(North!$K$10,12*$A59,0,12,1))) -> 0.43855 | F59: =IF(PlotControl!$B$4 = "Annual Max",MAX(OFFSET(North!$L$10,12*$A59,0,12,1)),AVERAGE(OFFSET(North!$L$10,12*$A59,0,12,1))) -> 0.48828 | G59: =IF(PlotControl!$B$4 = "Annual Max",MAX(OFFSET(North!$M$10,12*$A59,0,12,1)),AVERAGE(OFFSET(North!$M$10,12*$A59,0,12,1))) -> 0.52888 | H59: =IF(PlotControl!$B$4 = "Annual Max",MAX(OFFSET(East!$C$10,12*$A59,0,12,1)),AVERAGE(OFFSET(East!$C$10,12*$A59,0,12,1))) -> 0.15988 | I59: =IF(PlotControl!$B$4 = "Annual Max",MAX(OFFSET(East!$D$10,12*$A59,0,12,1)),AVERAGE(OFFSET(East!$D$10,12*$A59,0,12,1))) -> 0.18178 | J59: =IF(PlotControl!$B$4 = "Annual Max",MAX(OFFSET(East!$E$10,12*$A59,0,12,1)),AVERAGE(OFFSET(East!$E$10,12*$A59,0,12,1))) -> 0.2009 | K59: =IF(PlotControl!$B$4 = "Annual Max",MAX(OFFSET(East!$K$10,12*$A59,0,12,1)),AVERAGE(OFFSET(East!$K$10,12*$A59,0,12,1))) -> 0.43855 | L59: =IF(PlotControl!$B$4 = "Annual Max",MAX(OFFSET(East!$L$10,12*$A59,0,12,1)),AVERAGE(OFFSET(East!$L$10,12*$A59,0,12,1))) -> 0.48828 | M59: =IF(PlotControl!$B$4 = "Annual Max",MAX(OFFSET(East!$M$10,12*$A59,0,12,1)),AVERAGE(OFFSET(East!$M$10,12*$A59,0,12,1))) -> 0.52888 | N59: =IF(PlotControl!$B$4 = "Annual Max",MAX(OFFSET(South!$C$10,12*$A59,0,12,1)),AVERAGE(OFFSET(South!$C$10,12*$A59,0,12,1))) -> 0.15988 | O59: =IF(PlotControl!$B$4 = "Annual Max",MAX(OFFSET(South!$D$10,12*$A59,0,12,1)),AVERAGE(OFFSET(South!$D$10,12*$A59,0,12,1))) -> 0.18178 | P59: =IF(PlotControl!$B$4 = "Annual Max",MAX(OFFSET(South!$E$10,12*$A59,0,12,1)),AVERAGE(OFFSET(South!$E$10,12*$A59,0,12,1))) -> 0.2009 | Q59: =IF(PlotControl!$B$4 = "Annual Max",MAX(OFFSET(South!$K$10,12*$A59,0,12,1)),AVERAGE(OFFSET(South!$K$10,12*$A59,0,12,1))) -> 0.43855 | R59: =IF(PlotControl!$B$4 = "Annual Max",MAX(OFFSET(South!$L$10,12*$A59,0,12,1)),AVERAGE(OFFSET(South!$L$10,12*$A59,0,12,1))) -> 0.48828 | S59: =IF(PlotControl!$B$4 = "Annual Max",MAX(OFFSET(South!$M$10,12*$A59,0,12,1)),AVERAGE(OFFSET(South!$M$10,12*$A59,0,12,1))) -> 0.52888 | T59: =IF(PlotControl!$B$4 = "Annual Max",MAX(OFFSET(Closure!$C$10,12*$A59,0,12,1)),AVERAGE(OFFSET(Closure!$C$10,12*$A59,0,12,1))) -> 0.15988 | U59: =IF(PlotControl!$B$4 = "Annual Max",MAX(OFFSET(Closure!$D$10,12*$A59,0,12,1)),AVERAGE(OFFSET(Closure!$D$10,12*$A59,0,12,1))) -> 0.18178 | V59: =IF(PlotControl!$B$4 = "Annual Max",MAX(OFFSET(Closure!$E$10,12*$A59,0,12,1)),AVERAGE(OFFSET(Closure!$E$10,12*$A59,0,12,1))) -> 0.2009
A60: 55 | B60: =IF(PlotControl!$B$4 = "Annual Max",MAX(OFFSET(North!$C$10,12*$A60,0,12,1)),AVERAGE(OFFSET(North!$C$10,12*$A60,0,12,1))) -> 0.15795 | C60: =IF(PlotControl!$B$4 = "Annual Max",MAX(OFFSET(North!$D$10,12*$A60,0,12,1)),AVERAGE(OFFSET(North!$D$10,12*$A60,0,12,1))) -> 0.18194 | D60: =IF(PlotControl!$B$4 = "Annual Max",MAX(OFFSET(North!$E$10,12*$A60,0,12,1)),AVERAGE(OFFSET(North!$E$10,12*$A60,0,12,1))) -> 0.20084 | E60: =IF(PlotControl!$B$4 = "Annual Max",MAX(OFFSET(North!$K$10,12*$A60,0,12,1)),AVERAGE(OFFSET(North!$K$10,12*$A60,0,12,1))) -> 0.42913 | F60: =IF(PlotControl!$B$4 = "Annual Max",MAX(OFFSET(North!$L$10,12*$A60,0,12,1)),AVERAGE(OFFSET(North!$L$10,12*$A60,0,12,1))) -> 0.48369 | G60: =IF(PlotControl!$B$4 = "Annual Max",MAX(OFFSET(North!$M$10,12*$A60,0,12,1)),AVERAGE(OFFSET(North!$M$10,12*$A60,0,12,1))) -> 0.52707 | H60: =IF(PlotControl!$B$4 = "Annual Max",MAX(OFFSET(East!$C$10,12*$A60,0,12,1)),AVERAGE(OFFSET(East!$C$10,12*$A60,0,12,1))) -> 0.15795 | I60: =IF(PlotControl!$B$4 = "Annual Max",MAX(OFFSET(East!$D$10,12*$A60,0,12,1)),AVERAGE(OFFSET(East!$D$10,12*$A60,0,12,1))) -> 0.18194 | J60: =IF(PlotControl!$B$4 = "Annual Max",MAX(OFFSET(East!$E$10,12*$A60,0,12,1)),AVERAGE(OFFSET(East!$E$10,12*$A60,0,12,1))) -> 0.20084 | K60: =IF(PlotControl!$B$4 = "Annual Max",MAX(OFFSET(East!$K$10,12*$A60,0,12,1)),AVERAGE(OFFSET(East!$K$10,12*$A60,0,12,1))) -> 0.42913 | L60: =IF(PlotControl!$B$4 = "Annual Max",MAX(OFFSET(East!$L$10,12*$A60,0,12,1)),AVERAGE(OFFSET(East!$L$10,12*$A60,0,12,1))) -> 0.48369 | M60: =IF(PlotControl!$B$4 = "Annual Max",MAX(OFFSET(East!$M$10,12*$A60,0,12,1)),AVERAGE(OFFSET(East!$M$10,12*$A60,0,12,1))) -> 0.52707 | N60: =IF(PlotControl!$B$4 = "Annual Max",MAX(OFFSET(South!$C$10,12*$A60,0,12,1)),AVERAGE(OFFSET(South!$C$10,12*$A60,0,12,1))) -> 0.15795 | O60: =IF(PlotControl!$B$4 = "Annual Max",MAX(OFFSET(South!$D$10,12*$A60,0,12,1)),AVERAGE(OFFSET(South!$D$10,12*$A60,0,12,1))) -> 0.18194 | P60: =IF(PlotControl!$B$4 = "Annual Max",MAX(OFFSET(South!$E$10,12*$A60,0,12,1)),AVERAGE(OFFSET(South!$E$10,12*$A60,0,12,1))) -> 0.20084 | Q60: =IF(PlotControl!$B$4 = "Annual Max",MAX(OFFSET(South!$K$10,12*$A60,0,12,1)),AVERAGE(OFFSET(South!$K$10,12*$A60,0,12,1))) -> 0.42913 | R60: =IF(PlotControl!$B$4 = "Annual Max",MAX(OFFSET(South!$L$10,12*$A60,0,12,1)),AVERAGE(OFFSET(South!$L$10,12*$A60,0,12,1))) -> 0.48369 | S60: =IF(PlotControl!$B$4 = "Annual Max",MAX(OFFSET(South!$M$10,12*$A60,0,12,1)),AVERAGE(OFFSET(South!$M$10,12*$A60,0,12,1))) -> 0.52707 | T60: =IF(PlotControl!$B$4 = "Annual Max",MAX(OFFSET(Closure!$C$10,12*$A60,0,12,1)),AVERAGE(OFFSET(Closure!$C$10,12*$A60,0,12,1))) -> 0.15795 | U60: =IF(PlotControl!$B$4 = "Annual Max",MAX(OFFSET(Closure!$D$10,12*$A60,0,12,1)),AVERAGE(OFFSET(Closure!$D$10,12*$A60,0,12,1))) -> 0.18194 | V60: =IF(PlotControl!$B$4 = "Annual Max",MAX(OFFSET(Closure!$E$10,12*$A60,0,12,1)),AVERAGE(OFFSET(Closure!$E$10,12*$A60,0,12,1))) -> 0.20084
A61: 56 | B61: =IF(PlotControl!$B$4 = "Annual Max",MAX(OFFSET(North!$C$10,12*$A61,0,12,1)),AVERAGE(OFFSET(North!$C$10,12*$A61,0,12,1))) -> 0.15782 | C61: =IF(PlotControl!$B$4 = "Annual Max",MAX(OFFSET(North!$D$10,12*$A61,0,12,1)),AVERAGE(OFFSET(North!$D$10,12*$A61,0,12,1))) -> 0.18187 | D61: =IF(PlotControl!$B$4 = "Annual Max",MAX(OFFSET(North!$E$10,12*$A61,0,12,1)),AVERAGE(OFFSET(North!$E$10,12*$A61,0,12,1))) -> 0.20083 | E61: =IF(PlotControl!$B$4 = "Annual Max",MAX(OFFSET(North!$K$10,12*$A61,0,12,1)),AVERAGE(OFFSET(North!$K$10,12*$A61,0,12,1))) -> 0.42893 | F61: =IF(PlotControl!$B$4 = "Annual Max",MAX(OFFSET(North!$L$10,12*$A61,0,12,1)),AVERAGE(OFFSET(North!$L$10,12*$A61,0,12,1))) -> 0.48555 | G61: =IF(PlotControl!$B$4 = "Annual Max",MAX(OFFSET(North!$M$10,12*$A61,0,12,1)),AVERAGE(OFFSET(North!$M$10,12*$A61,0,12,1))) -> 0.5256 | H61: =IF(PlotControl!$B$4 = "Annual Max",MAX(OFFSET(East!$C$10,12*$A61,0,12,1)),AVERAGE(OFFSET(East!$C$10,12*$A61,0,12,1))) -> 0.15782 | I61: =IF(PlotControl!$B$4 = "Annual Max",MAX(OFFSET(East!$D$10,12*$A61,0,12,1)),AVERAGE(OFFSET(East!$D$10,12*$A61,0,12,1))) -> 0.18187 | J61: =IF(PlotControl!$B$4 = "Annual Max",MAX(OFFSET(East!$E$10,12*$A61,0,12,1)),AVERAGE(OFFSET(East!$E$10,12*$A61,0,12,1))) -> 0.20083 | K61: =IF(PlotControl!$B$4 = "Annual Max",MAX(OFFSET(East!$K$10,12*$A61,0,12,1)),AVERAGE(OFFSET(East!$K$10,12*$A61,0,12,1))) -> 0.42893 | L61: =IF(PlotControl!$B$4 = "Annual Max",MAX(OFFSET(East!$L$10,12*$A61,0,12,1)),AVERAGE(OFFSET(East!$L$10,12*$A61,0,12,1))) -> 0.48555 | M61: =IF(PlotControl!$B$4 = "Annual Max",MAX(OFFSET(East!$M$10,12*$A61,0,12,1)),AVERAGE(OFFSET(East!$M$10,12*$A61,0,12,1))) -> 0.5256 | N61: =IF(PlotControl!$B$4 = "Annual Max",MAX(OFFSET(South!$C$10,12*$A61,0,12,1)),AVERAGE(OFFSET(South!$C$10,12*$A61,0,12,1))) -> 0.15782 | O61: =IF(PlotControl!$B$4 = "Annual Max",MAX(OFFSET(South!$D$10,12*$A61,0,12,1)),AVERAGE(OFFSET(South!$D$10,12*$A61,0,12,1))) -> 0.18187 | P61: =IF(PlotControl!$B$4 = "Annual Max",MAX(OFFSET(South!$E$10,12*$A61,0,12,1)),AVERAGE(OFFSET(South!$E$10,12*$A61,0,12,1))) -> 0.20083 | Q61: =IF(PlotControl!$B$4 = "Annual Max",MAX(OFFSET(South!$K$10,12*$A61,0,12,1)),AVERAGE(OFFSET(South!$K$10,12*$A61,0,12,1))) -> 0.42893 | R61: =IF(PlotControl!$B$4 = "Annual Max",MAX(OFFSET(South!$L$10,12*$A61,0,12,1)),AVERAGE(OFFSET(South!$L$10,12*$A61,0,12,1))) -> 0.48555 | S61: =IF(PlotControl!$B$4 = "Annual Max",MAX(OFFSET(South!$M$10,12*$A61,0,12,1)),AVERAGE(OFFSET(South!$M$10,12*$A61,0,12,1))) -> 0.5256 | T61: =IF(PlotControl!$B$4 = "Annual Max",MAX(OFFSET(Closure!$C$10,12*$A61,0,12,1)),AVERAGE(OFFSET(Closure!$C$10,12*$A61,0,12,1))) -> 0.15782 | U61: =IF(PlotControl!$B$4 = "Annual Max",MAX(OFFSET(Closure!$D$10,12*$A61,0,12,1)),AVERAGE(OFFSET(Closure!$D$10,12*$A61,0,12,1))) -> 0.18187 | V61: =IF(PlotControl!$B$4 = "Annual Max",MAX(OFFSET(Closure!$E$10,12*$A61,0,12,1)),AVERAGE(OFFSET(Closure!$E$10,12*$A61,0,12,1))) -> 0.20083
A62: 57 | B62: =IF(PlotControl!$B$4 = "Annual Max",MAX(OFFSET(North!$C$10,12*$A62,0,12,1)),AVERAGE(OFFSET(North!$C$10,12*$A62,0,12,1))) -> 0.15911 | C62: =IF(PlotControl!$B$4 = "Annual Max",MAX(OFFSET(North!$D$10,12*$A62,0,12,1)),AVERAGE(OFFSET(North!$D$10,12*$A62,0,12,1))) -> 0.18128 | D62: =IF(PlotControl!$B$4 = "Annual Max",MAX(OFFSET(North!$E$10,12*$A62,0,12,1)),AVERAGE(OFFSET(North!$E$10,12*$A62,0,12,1))) -> 0.20063 | E62: =IF(PlotControl!$B$4 = "Annual Max",MAX(OFFSET(North!$K$10,12*$A62,0,12,1)),AVERAGE(OFFSET(North!$K$10,12*$A62,0,12,1))) -> 0.43218 | F62: =IF(PlotControl!$B$4 = "Annual Max",MAX(OFFSET(North!$L$10,12*$A62,0,12,1)),AVERAGE(OFFSET(North!$L$10,12*$A62,0,12,1))) -> 0.48699 | G62: =IF(PlotControl!$B$4 = "Annual Max",MAX(OFFSET(North!$M$10,12*$A62,0,12,1)),AVERAGE(OFFSET(North!$M$10,12*$A62,0,12,1))) -> 0.53005 | H62: =IF(PlotControl!$B$4 = "Annual Max",MAX(OFFSET(East!$C$10,12*$A62,0,12,1)),AVERAGE(OFFSET(East!$C$10,12*$A62,0,12,1))) -> 0.15911 | I62: =IF(PlotControl!$B$4 = "Annual Max",MAX(OFFSET(East!$D$10,12*$A62,0,12,1)),AVERAGE(OFFSET(East!$D$10,12*$A62,0,12,1))) -> 0.18128 | J62: =IF(PlotControl!$B$4 = "Annual Max",MAX(OFFSET(East!$E$10,12*$A62,0,12,1)),AVERAGE(OFFSET(East!$E$10,12*$A62,0,12,1))) -> 0.20063 | K62: =IF(PlotControl!$B$4 = "Annual Max",MAX(OFFSET(East!$K$10,12*$A62,0,12,1)),AVERAGE(OFFSET(East!$K$10,12*$A62,0,12,1))) -> 0.43218 | L62: =IF(PlotControl!$B$4 = "Annual Max",MAX(OFFSET(East!$L$10,12*$A62,0,12,1)),AVERAGE(OFFSET(East!$L$10,12*$A62,0,12,1))) -> 0.48699 | M62: =IF(PlotControl!$B$4 = "Annual Max",MAX(OFFSET(East!$M$10,12*$A62,0,12,1)),AVERAGE(OFFSET(East!$M$10,12*$A62,0,12,1))) -> 0.53005 | N62: =IF(PlotControl!$B$4 = "Annual Max",MAX(OFFSET(South!$C$10,12*$A62,0,12,1)),AVERAGE(OFFSET(South!$C$10,12*$A62,0,12,1))) -> 0.15911 | O62: =IF(PlotControl!$B$4 = "Annual Max",MAX(OFFSET(South!$D$10,12*$A62,0,12,1)),AVERAGE(OFFSET(South!$D$10,12*$A62,0,12,1))) -> 0.18128 | P62: =IF(PlotControl!$B$4 = "Annual Max",MAX(OFFSET(South!$E$10,12*$A62,0,12,1)),AVERAGE(OFFSET(South!$E$10,12*$A62,0,12,1))) -> 0.20063 | Q62: =IF(PlotControl!$B$4 = "Annual Max",MAX(OFFSET(South!$K$10,12*$A62,0,12,1)),AVERAGE(OFFSET(South!$K$10,12*$A62,0,12,1))) -> 0.43218 | R62: =IF(PlotControl!$B$4 = "Annual Max",MAX(OFFSET(South!$L$10,12*$A62,0,12,1)),AVERAGE(OFFSET(South!$L$10,12*$A62,0,12,1))) -> 0.48699 | S62: =IF(PlotControl!$B$4 = "Annual Max",MAX(OFFSET(South!$M$10,12*$A62,0,12,1)),AVERAGE(OFFSET(South!$M$10,12*$A62,0,12,1))) -> 0.53005 | T62: =IF(PlotControl!$B$4 = "Annual Max",MAX(OFFSET(Closure!$C$10,12*$A62,0,12,1)),AVERAGE(OFFSET(Closure!$C$10,12*$A62,0,12,1))) -> 0.15911 | U62: =IF(PlotControl!$B$4 = "Annual Max",MAX(OFFSET(Closure!$D$10,12*$A62,0,12,1)),AVERAGE(OFFSET(Closure!$D$10,12*$A62,0,12,1))) -> 0.18128 | V62: =IF(PlotControl!$B$4 = "Annual Max",MAX(OFFSET(Closure!$E$10,12*$A62,0,12,1)),AVERAGE(OFFSET(Closure!$E$10,12*$A62,0,12,1))) -> 0.20063
A63: 58 | B63: =IF(PlotControl!$B$4 = "Annual Max",MAX(OFFSET(North!$C$10,12*$A63,0,12,1)),AVERAGE(OFFSET(North!$C$10,12*$A63,0,12,1))) -> 0.16061 | C63: =IF(PlotControl!$B$4 = "Annual Max",MAX(OFFSET(North!$D$10,12*$A63,0,12,1)),AVERAGE(OFFSET(North!$D$10,12*$A63,0,12,1))) -> 0.18155 | D63: =IF(PlotControl!$B$4 = "Annual Max",MAX(OFFSET(North!$E$10,12*$A63,0,12,1)),AVERAGE(OFFSET(North!$E$10,12*$A63,0,12,1))) -> 0.20131 | E63: =IF(PlotControl!$B$4 = "Annual Max",MAX(OFFSET(North!$K$10,12*$A63,0,12,1)),AVERAGE(OFFSET(North!$K$10,12*$A63,0,12,1))) -> 0.42963 | F63: =IF(PlotControl!$B$4 = "Annual Max",MAX(OFFSET(North!$L$10,12*$A63,0,12,1)),AVERAGE(OFFSET(North!$L$10,12*$A63,0,12,1))) -> 0.48934 | G63: =IF(PlotControl!$B$4 = "Annual Max",MAX(OFFSET(North!$M$10,12*$A63,0,12,1)),AVERAGE(OFFSET(North!$M$10,12*$A63,0,12,1))) -> 0.53049 | H63: =IF(PlotControl!$B$4 = "Annual Max",MAX(OFFSET(East!$C$10,12*$A63,0,12,1)),AVERAGE(OFFSET(East!$C$10,12*$A63,0,12,1))) -> 0.16061 | I63: =IF(PlotControl!$B$4 = "Annual Max",MAX(OFFSET(East!$D$10,12*$A63,0,12,1)),AVERAGE(OFFSET(East!$D$10,12*$A63,0,12,1))) -> 0.18155 | J63: =IF(PlotControl!$B$4 = "Annual Max",MAX(OFFSET(East!$E$10,12*$A63,0,12,1)),AVERAGE(OFFSET(East!$E$10,12*$A63,0,12,1))) -> 0.20131 | K63: =IF(PlotControl!$B$4 = "Annual Max",MAX(OFFSET(East!$K$10,12*$A63,0,12,1)),AVERAGE(OFFSET(East!$K$10,12*$A63,0,12,1))) -> 0.42963 | L63: =IF(PlotControl!$B$4 = "Annual Max",MAX(OFFSET(East!$L$10,12*$A63,0,12,1)),AVERAGE(OFFSET(East!$L$10,12*$A63,0,12,1))) -> 0.48934 | M63: =IF(PlotControl!$B$4 = "Annual Max",MAX(OFFSET(East!$M$10,12*$A63,0,12,1)),AVERAGE(OFFSET(East!$M$10,12*$A63,0,12,1))) -> 0.53049 | N63: =IF(PlotControl!$B$4 = "Annual Max",MAX(OFFSET(South!$C$10,12*$A63,0,12,1)),AVERAGE(OFFSET(South!$C$10,12*$A63,0,12,1))) -> 0.16061 | O63: =IF(PlotControl!$B$4 = "Annual Max",MAX(OFFSET(South!$D$10,12*$A63,0,12,1)),AVERAGE(OFFSET(South!$D$10,12*$A63,0,12,1))) -> 0.18155 | P63: =IF(PlotControl!$B$4 = "Annual Max",MAX(OFFSET(South!$E$10,12*$A63,0,12,1)),AVERAGE(OFFSET(South!$E$10,12*$A63,0,12,1))) -> 0.20131 | Q63: =IF(PlotControl!$B$4 = "Annual Max",MAX(OFFSET(South!$K$10,12*$A63,0,12,1)),AVERAGE(OFFSET(South!$K$10,12*$A63,0,12,1))) -> 0.42963 | R63: =IF(PlotControl!$B$4 = "Annual Max",MAX(OFFSET(South!$L$10,12*$A63,0,12,1)),AVERAGE(OFFSET(South!$L$10,12*$A63,0,12,1))) -> 0.48934 | S63: =IF(PlotControl!$B$4 = "Annual Max",MAX(OFFSET(South!$M$10,12*$A63,0,12,1)),AVERAGE(OFFSET(South!$M$10,12*$A63,0,12,1))) -> 0.53049 | T63: =IF(PlotControl!$B$4 = "Annual Max",MAX(OFFSET(Closure!$C$10,12*$A63,0,12,1)),AVERAGE(OFFSET(Closure!$C$10,12*$A63,0,12,1))) -> 0.16061 | U63: =IF(PlotControl!$B$4 = "Annual Max",MAX(OFFSET(Closure!$D$10,12*$A63,0,12,1)),AVERAGE(OFFSET(Closure!$D$10,12*$A63,0,12,1))) -> 0.18155 | V63: =IF(PlotControl!$B$4 = "Annual Max",MAX(OFFSET(Closure!$E$10,12*$A63,0,12,1)),AVERAGE(OFFSET(Closure!$E$10,12*$A63,0,12,1))) -> 0.20131
A64: 59 | B64: =IF(PlotControl!$B$4 = "Annual Max",MAX(OFFSET(North!$C$10,12*$A64,0,12,1)),AVERAGE(OFFSET(North!$C$10,12*$A64,0,12,1))) -> 0.16025 | C64: =IF(PlotControl!$B$4 = "Annual Max",MAX(OFFSET(North!$D$10,12*$A64,0,12,1)),AVERAGE(OFFSET(North!$D$10,12*$A64,0,12,1))) -> 0.18124 | D64: =IF(PlotControl!$B$4 = "Annual Max",MAX(OFFSET(North!$E$10,12*$A64,0,12,1)),AVERAGE(OFFSET(North!$E$10,12*$A64,0,12,1))) -> 0.20153 | E64: =IF(PlotControl!$B$4 = "Annual Max",MAX(OFFSET(North!$K$10,12*$A64,0,12,1)),AVERAGE(OFFSET(North!$K$10,12*$A64,0,12,1))) -> 0.43 | F64: =IF(PlotControl!$B$4 = "Annual Max",MAX(OFFSET(North!$L$10,12*$A64,0,12,1)),AVERAGE(OFFSET(North!$L$10,12*$A64,0,12,1))) -> 0.48762 | G64: =IF(PlotControl!$B$4 = "Annual Max",MAX(OFFSET(North!$M$10,12*$A64,0,12,1)),AVERAGE(OFFSET(North!$M$10,12*$A64,0,12,1))) -> 0.52869 | H64: =IF(PlotControl!$B$4 = "Annual Max",MAX(OFFSET(East!$C$10,12*$A64,0,12,1)),AVERAGE(OFFSET(East!$C$10,12*$A64,0,12,1))) -> 0.16025 | I64: =IF(PlotControl!$B$4 = "Annual Max",MAX(OFFSET(East!$D$10,12*$A64,0,12,1)),AVERAGE(OFFSET(East!$D$10,12*$A64,0,12,1))) -> 0.18124 | J64: =IF(PlotControl!$B$4 = "Annual Max",MAX(OFFSET(East!$E$10,12*$A64,0,12,1)),AVERAGE(OFFSET(East!$E$10,12*$A64,0,12,1))) -> 0.20153 | K64: =IF(PlotControl!$B$4 = "Annual Max",MAX(OFFSET(East!$K$10,12*$A64,0,12,1)),AVERAGE(OFFSET(East!$K$10,12*$A64,0,12,1))) -> 0.43 | L64: =IF(PlotControl!$B$4 = "Annual Max",MAX(OFFSET(East!$L$10,12*$A64,0,12,1)),AVERAGE(OFFSET(East!$L$10,12*$A64,0,12,1))) -> 0.48762 | M64: =IF(PlotControl!$B$4 = "Annual Max",MAX(OFFSET(East!$M$10,12*$A64,0,12,1)),AVERAGE(OFFSET(East!$M$10,12*$A64,0,12,1))) -> 0.52869 | N64: =IF(PlotControl!$B$4 = "Annual Max",MAX(OFFSET(South!$C$10,12*$A64,0,12,1)),AVERAGE(OFFSET(South!$C$10,12*$A64,0,12,1))) -> 0.16025 | O64: =IF(PlotControl!$B$4 = "Annual Max",MAX(OFFSET(South!$D$10,12*$A64,0,12,1)),AVERAGE(OFFSET(South!$D$10,12*$A64,0,12,1))) -> 0.18124 | P64: =IF(PlotControl!$B$4 = "Annual Max",MAX(OFFSET(South!$E$10,12*$A64,0,12,1)),AVERAGE(OFFSET(South!$E$10,12*$A64,0,12,1))) -> 0.20153 | Q64: =IF(PlotControl!$B$4 = "Annual Max",MAX(OFFSET(South!$K$10,12*$A64,0,12,1)),AVERAGE(OFFSET(South!$K$10,12*$A64,0,12,1))) -> 0.43 | R64: =IF(PlotControl!$B$4 = "Annual Max",MAX(OFFSET(South!$L$10,12*$A64,0,12,1)),AVERAGE(OFFSET(South!$L$10,12*$A64,0,12,1))) -> 0.48762 | S64: =IF(PlotControl!$B$4 = "Annual Max",MAX(OFFSET(South!$M$10,12*$A64,0,12,1)),AVERAGE(OFFSET(South!$M$10,12*$A64,0,12,1))) -> 0.52869 | T64: =IF(PlotControl!$B$4 = "Annual Max",MAX(OFFSET(Closure!$C$10,12*$A64,0,12,1)),AVERAGE(OFFSET(Closure!$C$10,12*$A64,0,12,1))) -> 0.16025 | U64: =IF(PlotControl!$B$4 = "Annual Max",MAX(OFFSET(Closure!$D$10,12*$A64,0,12,1)),AVERAGE(OFFSET(Closure!$D$10,12*$A64,0,12,1))) -> 0.18124 | V64: =IF(PlotControl!$B$4 = "Annual Max",MAX(OFFSET(Closure!$E$10,12*$A64,0,12,1)),AVERAGE(OFFSET(Closure!$E$10,12*$A64,0,12,1))) -> 0.20153
A65: 60 | B65: =IF(PlotControl!$B$4 = "Annual Max",MAX(OFFSET(North!$C$10,12*$A65,0,12,1)),AVERAGE(OFFSET(North!$C$10,12*$A65,0,12,1))) -> 0.16003 | C65: =IF(PlotControl!$B$4 = "Annual Max",MAX(OFFSET(North!$D$10,12*$A65,0,12,1)),AVERAGE(OFFSET(North!$D$10,12*$A65,0,12,1))) -> 0.18116 | D65: =IF(PlotControl!$B$4 = "Annual Max",MAX(OFFSET(North!$E$10,12*$A65,0,12,1)),AVERAGE(OFFSET(North!$E$10,12*$A65,0,12,1))) -> 0.20201 | E65: =IF(PlotControl!$B$4 = "Annual Max",MAX(OFFSET(North!$K$10,12*$A65,0,12,1)),AVERAGE(OFFSET(North!$K$10,12*$A65,0,12,1))) -> 0.4331 | F65: =IF(PlotControl!$B$4 = "Annual Max",MAX(OFFSET(North!$L$10,12*$A65,0,12,1)),AVERAGE(OFFSET(North!$L$10,12*$A65,0,12,1))) -> 0.48682 | G65: =IF(PlotControl!$B$4 = "Annual Max",MAX(OFFSET(North!$M$10,12*$A65,0,12,1)),AVERAGE(OFFSET(North!$M$10,12*$A65,0,12,1))) -> 0.52676 | H65: =IF(PlotControl!$B$4 = "Annual Max",MAX(OFFSET(East!$C$10,12*$A65,0,12,1)),AVERAGE(OFFSET(East!$C$10,12*$A65,0,12,1))) -> 0.16003 | I65: =IF(PlotControl!$B$4 = "Annual Max",MAX(OFFSET(East!$D$10,12*$A65,0,12,1)),AVERAGE(OFFSET(East!$D$10,12*$A65,0,12,1))) -> 0.18116 | J65: =IF(PlotControl!$B$4 = "Annual Max",MAX(OFFSET(East!$E$10,12*$A65,0,12,1)),AVERAGE(OFFSET(East!$E$10,12*$A65,0,12,1))) -> 0.20201 | K65: =IF(PlotControl!$B$4 = "Annual Max",MAX(OFFSET(East!$K$10,12*$A65,0,12,1)),AVERAGE(OFFSET(East!$K$10,12*$A65,0,12,1))) -> 0.4331 | L65: =IF(PlotControl!$B$4 = "Annual Max",MAX(OFFSET(East!$L$10,12*$A65,0,12,1)),AVERAGE(OFFSET(East!$L$10,12*$A65,0,12,1))) -> 0.48682 | M65: =IF(PlotControl!$B$4 = "Annual Max",MAX(OFFSET(East!$M$10,12*$A65,0,12,1)),AVERAGE(OFFSET(East!$M$10,12*$A65,0,12,1))) -> 0.52676 | N65: =IF(PlotControl!$B$4 = "Annual Max",MAX(OFFSET(South!$C$10,12*$A65,0,12,1)),AVERAGE(OFFSET(South!$C$10,12*$A65,0,12,1))) -> 0.16003 | O65: =IF(PlotControl!$B$4 = "Annual Max",MAX(OFFSET(South!$D$10,12*$A65,0,12,1)),AVERAGE(OFFSET(South!$D$10,12*$A65,0,12,1))) -> 0.18116 | P65: =IF(PlotControl!$B$4 = "Annual Max",MAX(OFFSET(South!$E$10,12*$A65,0,12,1)),AVERAGE(OFFSET(South!$E$10,12*$A65,0,12,1))) -> 0.20201 | Q65: =IF(PlotControl!$B$4 = "Annual Max",MAX(OFFSET(South!$K$10,12*$A65,0,12,1)),AVERAGE(OFFSET(South!$K$10,12*$A65,0,12,1))) -> 0.4331 | R65: =IF(PlotControl!$B$4 = "Annual Max",MAX(OFFSET(South!$L$10,12*$A65,0,12,1)),AVERAGE(OFFSET(South!$L$10,12*$A65,0,12,1))) -> 0.48682 | S65: =IF(PlotControl!$B$4 = "Annual Max",MAX(OFFSET(South!$M$10,12*$A65,0,12,1)),AVERAGE(OFFSET(South!$M$10,12*$A65,0,12,1))) -> 0.52676 | T65: =IF(PlotControl!$B$4 = "Annual Max",MAX(OFFSET(Closure!$C$10,12*$A65,0,12,1)),AVERAGE(OFFSET(Closure!$C$10,12*$A65,0,12,1))) -> 0.16003 | U65: =IF(PlotControl!$B$4 = "Annual Max",MAX(OFFSET(Closure!$D$10,12*$A65,0,12,1)),AVERAGE(OFFSET(Closure!$D$10,12*$A65,0,12,1))) -> 0.18116 | V65: =IF(PlotControl!$B$4 = "Annual Max",MAX(OFFSET(Closure!$E$10,12*$A65,0,12,1)),AVERAGE(OFFSET(Closure!$E$10,12*$A65,0,12,1))) -> 0.20201
A66: 61 | B66: =IF(PlotControl!$B$4 = "Annual Max",MAX(OFFSET(North!$C$10,12*$A66,0,12,1)),AVERAGE(OFFSET(North!$C$10,12*$A66,0,12,1))) -> 0.16018 | C66: =IF(PlotControl!$B$4 = "Annual Max",MAX(OFFSET(North!$D$10,12*$A66,0,12,1)),AVERAGE(OFFSET(North!$D$10,12*$A66,0,12,1))) -> 0.18247 | D66: =IF(PlotControl!$B$4 = "Annual Max",MAX(OFFSET(North!$E$10,12*$A66,0,12,1)),AVERAGE(OFFSET(North!$E$10,12*$A66,0,12,1))) -> 0.20176 | E66: =IF(PlotControl!$B$4 = "Annual Max",MAX(OFFSET(North!$K$10,12*$A66,0,12,1)),AVERAGE(OFFSET(North!$K$10,12*$A66,0,12,1))) -> 0.43417 | F66: =IF(PlotControl!$B$4 = "Annual Max",MAX(OFFSET(North!$L$10,12*$A66,0,12,1)),AVERAGE(OFFSET(North!$L$10,12*$A66,0,12,1))) -> 0.48771 | G66: =IF(PlotControl!$B$4 = "Annual Max",MAX(OFFSET(North!$M$10,12*$A66,0,12,1)),AVERAGE(OFFSET(North!$M$10,12*$A66,0,12,1))) -> 0.52661 | H66: =IF(PlotControl!$B$4 = "Annual Max",MAX(OFFSET(East!$C$10,12*$A66,0,12,1)),AVERAGE(OFFSET(East!$C$10,12*$A66,0,12,1))) -> 0.16018 | I66: =IF(PlotControl!$B$4 = "Annual Max",MAX(OFFSET(East!$D$10,12*$A66,0,12,1)),AVERAGE(OFFSET(East!$D$10,12*$A66,0,12,1))) -> 0.18247 | J66: =IF(PlotControl!$B$4 = "Annual Max",MAX(OFFSET(East!$E$10,12*$A66,0,12,1)),AVERAGE(OFFSET(East!$E$10,12*$A66,0,12,1))) -> 0.20176 | K66: =IF(PlotControl!$B$4 = "Annual Max",MAX(OFFSET(East!$K$10,12*$A66,0,12,1)),AVERAGE(OFFSET(East!$K$10,12*$A66,0,12,1))) -> 0.43417 | L66: =IF(PlotControl!$B$4 = "Annual Max",MAX(OFFSET(East!$L$10,12*$A66,0,12,1)),AVERAGE(OFFSET(East!$L$10,12*$A66,0,12,1))) -> 0.48771 | M66: =IF(PlotControl!$B$4 = "Annual Max",MAX(OFFSET(East!$M$10,12*$A66,0,12,1)),AVERAGE(OFFSET(East!$M$10,12*$A66,0,12,1))) -> 0.52661 | N66: =IF(PlotControl!$B$4 = "Annual Max",MAX(OFFSET(South!$C$10,12*$A66,0,12,1)),AVERAGE(OFFSET(South!$C$10,12*$A66,0,12,1))) -> 0.16018 | O66: =IF(PlotControl!$B$4 = "Annual Max",MAX(OFFSET(South!$D$10,12*$A66,0,12,1)),AVERAGE(OFFSET(South!$D$10,12*$A66,0,12,1))) -> 0.18247 | P66: =IF(PlotControl!$B$4 = "Annual Max",MAX(OFFSET(South!$E$10,12*$A66,0,12,1)),AVERAGE(OFFSET(South!$E$10,12*$A66,0,12,1))) -> 0.20176 | Q66: =IF(PlotControl!$B$4 = "Annual Max",MAX(OFFSET(South!$K$10,12*$A66,0,12,1)),AVERAGE(OFFSET(South!$K$10,12*$A66,0,12,1))) -> 0.43417 | R66: =IF(PlotControl!$B$4 = "Annual Max",MAX(OFFSET(South!$L$10,12*$A66,0,12,1)),AVERAGE(OFFSET(South!$L$10,12*$A66,0,12,1))) -> 0.48771 | S66: =IF(PlotControl!$B$4 = "Annual Max",MAX(OFFSET(South!$M$10,12*$A66,0,12,1)),AVERAGE(OFFSET(South!$M$10,12*$A66,0,12,1))) -> 0.52661 | T66: =IF(PlotControl!$B$4 = "Annual Max",MAX(OFFSET(Closure!$C$10,12*$A66,0,12,1)),AVERAGE(OFFSET(Closure!$C$10,12*$A66,0,12,1))) -> 0.16018 | U66: =IF(PlotControl!$B$4 = "Annual Max",MAX(OFFSET(Closure!$D$10,12*$A66,0,12,1)),AVERAGE(OFFSET(Closure!$D$10,12*$A66,0,12,1))) -> 0.18247 | V66: =IF(PlotControl!$B$4 = "Annual Max",MAX(OFFSET(Closure!$E$10,12*$A66,0,12,1)),AVERAGE(OFFSET(Closure!$E$10,12*$A66,0,12,1))) -> 0.20176
A67: 62 | B67: =IF(PlotControl!$B$4 = "Annual Max",MAX(OFFSET(North!$C$10,12*$A67,0,12,1)),AVERAGE(OFFSET(North!$C$10,12*$A67,0,12,1))) -> 0.15981 | C67: =IF(PlotControl!$B$4 = "Annual Max",MAX(OFFSET(North!$D$10,12*$A67,0,12,1)),AVERAGE(OFFSET(North!$D$10,12*$A67,0,12,1))) -> 0.18267 | D67: =IF(PlotControl!$B$4 = "Annual Max",MAX(OFFSET(North!$E$10,12*$A67,0,12,1)),AVERAGE(OFFSET(North!$E$10,12*$A67,0,12,1))) -> 0.20123 | E67: =IF(PlotControl!$B$4 = "Annual Max",MAX(OFFSET(North!$K$10,12*$A67,0,12,1)),AVERAGE(OFFSET(North!$K$10,12*$A67,0,12,1))) -> 0.4403 | F67: =IF(PlotControl!$B$4 = "Annual Max",MAX(OFFSET(North!$L$10,12*$A67,0,12,1)),AVERAGE(OFFSET(North!$L$10,12*$A67,0,12,1))) -> 0.48771 | G67: =IF(PlotControl!$B$4 = "Annual Max",MAX(OFFSET(North!$M$10,12*$A67,0,12,1)),AVERAGE(OFFSET(North!$M$10,12*$A67,0,12,1))) -> 0.52904 | H67: =IF(PlotControl!$B$4 = "Annual Max",MAX(OFFSET(East!$C$10,12*$A67,0,12,1)),AVERAGE(OFFSET(East!$C$10,12*$A67,0,12,1))) -> 0.15981 | I67: =IF(PlotControl!$B$4 = "Annual Max",MAX(OFFSET(East!$D$10,12*$A67,0,12,1)),AVERAGE(OFFSET(East!$D$10,12*$A67,0,12,1))) -> 0.18267 | J67: =IF(PlotControl!$B$4 = "Annual Max",MAX(OFFSET(East!$E$10,12*$A67,0,12,1)),AVERAGE(OFFSET(East!$E$10,12*$A67,0,12,1))) -> 0.20123 | K67: =IF(PlotControl!$B$4 = "Annual Max",MAX(OFFSET(East!$K$10,12*$A67,0,12,1)),AVERAGE(OFFSET(East!$K$10,12*$A67,0,12,1))) -> 0.4403 | L67: =IF(PlotControl!$B$4 = "Annual Max",MAX(OFFSET(East!$L$10,12*$A67,0,12,1)),AVERAGE(OFFSET(East!$L$10,12*$A67,0,12,1))) -> 0.48771 | M67: =IF(PlotControl!$B$4 = "Annual Max",MAX(OFFSET(East!$M$10,12*$A67,0,12,1)),AVERAGE(OFFSET(East!$M$10,12*$A67,0,12,1))) -> 0.52904 | N67: =IF(PlotControl!$B$4 = "Annual Max",MAX(OFFSET(South!$C$10,12*$A67,0,12,1)),AVERAGE(OFFSET(South!$C$10,12*$A67,0,12,1))) -> 0.15981 | O67: =IF(PlotControl!$B$4 = "Annual Max",MAX(OFFSET(South!$D$10,12*$A67,0,12,1)),AVERAGE(OFFSET(South!$D$10,12*$A67,0,12,1))) -> 0.18267 | P67: =IF(PlotControl!$B$4 = "Annual Max",MAX(OFFSET(South!$E$10,12*$A67,0,12,1)),AVERAGE(OFFSET(South!$E$10,12*$A67,0,12,1))) -> 0.20123 | Q67: =IF(PlotControl!$B$4 = "Annual Max",MAX(OFFSET(South!$K$10,12*$A67,0,12,1)),AVERAGE(OFFSET(South!$K$10,12*$A67,0,12,1))) -> 0.4403 | R67: =IF(PlotControl!$B$4 = "Annual Max",MAX(OFFSET(South!$L$10,12*$A67,0,12,1)),AVERAGE(OFFSET(South!$L$10,12*$A67,0,12,1))) -> 0.48771 | S67: =IF(PlotControl!$B$4 = "Annual Max",MAX(OFFSET(South!$M$10,12*$A67,0,12,1)),AVERAGE(OFFSET(South!$M$10,12*$A67,0,12,1))) -> 0.52904 | T67: =IF(PlotControl!$B$4 = "Annual Max",MAX(OFFSET(Closure!$C$10,12*$A67,0,12,1)),AVERAGE(OFFSET(Closure!$C$10,12*$A67,0,12,1))) -> 0.15981 | U67: =IF(PlotControl!$B$4 = "Annual Max",MAX(OFFSET(Closure!$D$10,12*$A67,0,12,1)),AVERAGE(OFFSET(Closure!$D$10,12*$A67,0,12,1))) -> 0.18267 | V67: =IF(PlotControl!$B$4 = "Annual Max",MAX(OFFSET(Closure!$E$10,12*$A67,0,12,1)),AVERAGE(OFFSET(Closure!$E$10,12*$A67,0,12,1))) -> 0.20123
A68: 63 | B68: =IF(PlotControl!$B$4 = "Annual Max",MAX(OFFSET(North!$C$10,12*$A68,0,12,1)),AVERAGE(OFFSET(North!$C$10,12*$A68,0,12,1))) -> 0.15941 | C68: =IF(PlotControl!$B$4 = "Annual Max",MAX(OFFSET(North!$D$10,12*$A68,0,12,1)),AVERAGE(OFFSET(North!$D$10,12*$A68,0,12,1))) -> 0.1818 | D68: =IF(PlotControl!$B$4 = "Annual Max",MAX(OFFSET(North!$E$10,12*$A68,0,12,1)),AVERAGE(OFFSET(North!$E$10,12*$A68,0,12,1))) -> 0.20034 | E68: =IF(PlotControl!$B$4 = "Annual Max",MAX(OFFSET(North!$K$10,12*$A68,0,12,1)),AVERAGE(OFFSET(North!$K$10,12*$A68,0,12,1))) -> 0.43587 | F68: =IF(PlotControl!$B$4 = "Annual Max",MAX(OFFSET(North!$L$10,12*$A68,0,12,1)),AVERAGE(OFFSET(North!$L$10,12*$A68,0,12,1))) -> 0.48902 | G68: =IF(PlotControl!$B$4 = "Annual Max",MAX(OFFSET(North!$M$10,12*$A68,0,12,1)),AVERAGE(OFFSET(North!$M$10,12*$A68,0,12,1))) -> 0.52814 | H68: =IF(PlotControl!$B$4 = "Annual Max",MAX(OFFSET(East!$C$10,12*$A68,0,12,1)),AVERAGE(OFFSET(East!$C$10,12*$A68,0,12,1))) -> 0.15941 | I68: =IF(PlotControl!$B$4 = "Annual Max",MAX(OFFSET(East!$D$10,12*$A68,0,12,1)),AVERAGE(OFFSET(East!$D$10,12*$A68,0,12,1))) -> 0.1818 | J68: =IF(PlotControl!$B$4 = "Annual Max",MAX(OFFSET(East!$E$10,12*$A68,0,12,1)),AVERAGE(OFFSET(East!$E$10,12*$A68,0,12,1))) -> 0.20034 | K68: =IF(PlotControl!$B$4 = "Annual Max",MAX(OFFSET(East!$K$10,12*$A68,0,12,1)),AVERAGE(OFFSET(East!$K$10,12*$A68,0,12,1))) -> 0.43587 | L68: =IF(PlotControl!$B$4 = "Annual Max",MAX(OFFSET(East!$L$10,12*$A68,0,12,1)),AVERAGE(OFFSET(East!$L$10,12*$A68,0,12,1))) -> 0.48902 | M68: =IF(PlotControl!$B$4 = "Annual Max",MAX(OFFSET(East!$M$10,12*$A68,0,12,1)),AVERAGE(OFFSET(East!$M$10,12*$A68,0,12,1))) -> 0.52814 | N68: =IF(PlotControl!$B$4 = "Annual Max",MAX(OFFSET(South!$C$10,12*$A68,0,12,1)),AVERAGE(OFFSET(South!$C$10,12*$A68,0,12,1))) -> 0.15941 | O68: =IF(PlotControl!$B$4 = "Annual Max",MAX(OFFSET(South!$D$10,12*$A68,0,12,1)),AVERAGE(OFFSET(South!$D$10,12*$A68,0,12,1))) -> 0.1818 | P68: =IF(PlotControl!$B$4 = "Annual Max",MAX(OFFSET(South!$E$10,12*$A68,0,12,1)),AVERAGE(OFFSET(South!$E$10,12*$A68,0,12,1))) -> 0.20034 | Q68: =IF(PlotControl!$B$4 = "Annual Max",MAX(OFFSET(South!$K$10,12*$A68,0,12,1)),AVERAGE(OFFSET(South!$K$10,12*$A68,0,12,1))) -> 0.43587 | R68: =IF(PlotControl!$B$4 = "Annual Max",MAX(OFFSET(South!$L$10,12*$A68,0,12,1)),AVERAGE(OFFSET(South!$L$10,12*$A68,0,12,1))) -> 0.48902 | S68: =IF(PlotControl!$B$4 = "Annual Max",MAX(OFFSET(South!$M$10,12*$A68,0,12,1)),AVERAGE(OFFSET(South!$M$10,12*$A68,0,12,1))) -> 0.52814 | T68: =IF(PlotControl!$B$4 = "Annual Max",MAX(OFFSET(Closure!$C$10,12*$A68,0,12,1)),AVERAGE(OFFSET(Closure!$C$10,12*$A68,0,12,1))) -> 0.15941 | U68: =IF(PlotControl!$B$4 = "Annual Max",MAX(OFFSET(Closure!$D$10,12*$A68,0,12,1)),AVERAGE(OFFSET(Closure!$D$10,12*$A68,0,12,1))) -> 0.1818 | V68: =IF(PlotControl!$B$4 = "Annual Max",MAX(OFFSET(Closure!$E$10,12*$A68,0,12,1)),AVERAGE(OFFSET(Closure!$E$10,12*$A68,0,12,1))) -> 0.20034
A69: 64 | B69: =IF(PlotControl!$B$4 = "Annual Max",MAX(OFFSET(North!$C$10,12*$A69,0,12,1)),AVERAGE(OFFSET(North!$C$10,12*$A69,0,12,1))) -> 0.1605 | C69: =IF(PlotControl!$B$4 = "Annual Max",MAX(OFFSET(North!$D$10,12*$A69,0,12,1)),AVERAGE(OFFSET(North!$D$10,12*$A69,0,12,1))) -> 0.1828 | D69: =IF(PlotControl!$B$4 = "Annual Max",MAX(OFFSET(North!$E$10,12*$A69,0,12,1)),AVERAGE(OFFSET(North!$E$10,12*$A69,0,12,1))) -> 0.20016 | E69: =IF(PlotControl!$B$4 = "Annual Max",MAX(OFFSET(North!$K$10,12*$A69,0,12,1)),AVERAGE(OFFSET(North!$K$10,12*$A69,0,12,1))) -> 0.43814 | F69: =IF(PlotControl!$B$4 = "Annual Max",MAX(OFFSET(North!$L$10,12*$A69,0,12,1)),AVERAGE(OFFSET(North!$L$10,12*$A69,0,12,1))) -> 0.48872 | G69: =IF(PlotControl!$B$4 = "Annual Max",MAX(OFFSET(North!$M$10,12*$A69,0,12,1)),AVERAGE(OFFSET(North!$M$10,12*$A69,0,12,1))) -> 0.53057 | H69: =IF(PlotControl!$B$4 = "Annual Max",MAX(OFFSET(East!$C$10,12*$A69,0,12,1)),AVERAGE(OFFSET(East!$C$10,12*$A69,0,12,1))) -> 0.1605 | I69: =IF(PlotControl!$B$4 = "Annual Max",MAX(OFFSET(East!$D$10,12*$A69,0,12,1)),AVERAGE(OFFSET(East!$D$10,12*$A69,0,12,1))) -> 0.1828 | J69: =IF(PlotControl!$B$4 = "Annual Max",MAX(OFFSET(East!$E$10,12*$A69,0,12,1)),AVERAGE(OFFSET(East!$E$10,12*$A69,0,12,1))) -> 0.20016 | K69: =IF(PlotControl!$B$4 = "Annual Max",MAX(OFFSET(East!$K$10,12*$A69,0,12,1)),AVERAGE(OFFSET(East!$K$10,12*$A69,0,12,1))) -> 0.43814 | L69: =IF(PlotControl!$B$4 = "Annual Max",MAX(OFFSET(East!$L$10,12*$A69,0,12,1)),AVERAGE(OFFSET(East!$L$10,12*$A69,0,12,1))) -> 0.48872 | M69: =IF(PlotControl!$B$4 = "Annual Max",MAX(OFFSET(East!$M$10,12*$A69,0,12,1)),AVERAGE(OFFSET(East!$M$10,12*$A69,0,12,1))) -> 0.53057 | N69: =IF(PlotControl!$B$4 = "Annual Max",MAX(OFFSET(South!$C$10,12*$A69,0,12,1)),AVERAGE(OFFSET(South!$C$10,12*$A69,0,12,1))) -> 0.1605 | O69: =IF(PlotControl!$B$4 = "Annual Max",MAX(OFFSET(South!$D$10,12*$A69,0,12,1)),AVERAGE(OFFSET(South!$D$10,12*$A69,0,12,1))) -> 0.1828 | P69: =IF(PlotControl!$B$4 = "Annual Max",MAX(OFFSET(South!$E$10,12*$A69,0,12,1)),AVERAGE(OFFSET(South!$E$10,12*$A69,0,12,1))) -> 0.20016 | Q69: =IF(PlotControl!$B$4 = "Annual Max",MAX(OFFSET(South!$K$10,12*$A69,0,12,1)),AVERAGE(OFFSET(South!$K$10,12*$A69,0,12,1))) -> 0.43814 | R69: =IF(PlotControl!$B$4 = "Annual Max",MAX(OFFSET(South!$L$10,12*$A69,0,12,1)),AVERAGE(OFFSET(South!$L$10,12*$A69,0,12,1))) -> 0.48872 | S69: =IF(PlotControl!$B$4 = "Annual Max",MAX(OFFSET(South!$M$10,12*$A69,0,12,1)),AVERAGE(OFFSET(South!$M$10,12*$A69,0,12,1))) -> 0.53057 | T69: =IF(PlotControl!$B$4 = "Annual Max",MAX(OFFSET(Closure!$C$10,12*$A69,0,12,1)),AVERAGE(OFFSET(Closure!$C$10,12*$A69,0,12,1))) -> 0.1605 | U69: =IF(PlotControl!$B$4 = "Annual Max",MAX(OFFSET(Closure!$D$10,12*$A69,0,12,1)),AVERAGE(OFFSET(Closure!$D$10,12*$A69,0,12,1))) -> 0.1828 | V69: =IF(PlotControl!$B$4 = "Annual Max",MAX(OFFSET(Closure!$E$10,12*$A69,0,12,1)),AVERAGE(OFFSET(Closure!$E$10,12*$A69,0,12,1))) -> 0.20016
A70: 65 | B70: =IF(PlotControl!$B$4 = "Annual Max",MAX(OFFSET(North!$C$10,12*$A70,0,12,1)),AVERAGE(OFFSET(North!$C$10,12*$A70,0,12,1))) -> 0.16097 | C70: =IF(PlotControl!$B$4 = "Annual Max",MAX(OFFSET(North!$D$10,12*$A70,0,12,1)),AVERAGE(OFFSET(North!$D$10,12*$A70,0,12,1))) -> 0.18307 | D70: =IF(PlotControl!$B$4 = "Annual Max",MAX(OFFSET(North!$E$10,12*$A70,0,12,1)),AVERAGE(OFFSET(North!$E$10,12*$A70,0,12,1))) -> 0.20075 | E70: =IF(PlotControl!$B$4 = "Annual Max",MAX(OFFSET(North!$K$10,12*$A70,0,12,1)),AVERAGE(OFFSET(North!$K$10,12*$A70,0,12,1))) -> 0.44308 | F70: =IF(PlotControl!$B$4 = "Annual Max",MAX(OFFSET(North!$L$10,12*$A70,0,12,1)),AVERAGE(OFFSET(North!$L$10,12*$A70,0,12,1))) -> 0.4859 | G70: =IF(PlotControl!$B$4 = "Annual Max",MAX(OFFSET(North!$M$10,12*$A70,0,12,1)),AVERAGE(OFFSET(North!$M$10,12*$A70,0,12,1))) -> 0.53077 | H70: =IF(PlotControl!$B$4 = "Annual Max",MAX(OFFSET(East!$C$10,12*$A70,0,12,1)),AVERAGE(OFFSET(East!$C$10,12*$A70,0,12,1))) -> 0.16097 | I70: =IF(PlotControl!$B$4 = "Annual Max",MAX(OFFSET(East!$D$10,12*$A70,0,12,1)),AVERAGE(OFFSET(East!$D$10,12*$A70,0,12,1))) -> 0.18307 | J70: =IF(PlotControl!$B$4 = "Annual Max",MAX(OFFSET(East!$E$10,12*$A70,0,12,1)),AVERAGE(OFFSET(East!$E$10,12*$A70,0,12,1))) -> 0.20075 | K70: =IF(PlotControl!$B$4 = "Annual Max",MAX(OFFSET(East!$K$10,12*$A70,0,12,1)),AVERAGE(OFFSET(East!$K$10,12*$A70,0,12,1))) -> 0.44308 | L70: =IF(PlotControl!$B$4 = "Annual Max",MAX(OFFSET(East!$L$10,12*$A70,0,12,1)),AVERAGE(OFFSET(East!$L$10,12*$A70,0,12,1))) -> 0.4859 | M70: =IF(PlotControl!$B$4 = "Annual Max",MAX(OFFSET(East!$M$10,12*$A70,0,12,1)),AVERAGE(OFFSET(East!$M$10,12*$A70,0,12,1))) -> 0.53077 | N70: =IF(PlotControl!$B$4 = "Annual Max",MAX(OFFSET(South!$C$10,12*$A70,0,12,1)),AVERAGE(OFFSET(South!$C$10,12*$A70,0,12,1))) -> 0.16097 | O70: =IF(PlotControl!$B$4 = "Annual Max",MAX(OFFSET(South!$D$10,12*$A70,0,12,1)),AVERAGE(OFFSET(South!$D$10,12*$A70,0,12,1))) -> 0.18307 | P70: =IF(PlotControl!$B$4 = "Annual Max",MAX(OFFSET(South!$E$10,12*$A70,0,12,1)),AVERAGE(OFFSET(South!$E$10,12*$A70,0,12,1))) -> 0.20075 | Q70: =IF(PlotControl!$B$4 = "Annual Max",MAX(OFFSET(South!$K$10,12*$A70,0,12,1)),AVERAGE(OFFSET(South!$K$10,12*$A70,0,12,1))) -> 0.44308 | R70: =IF(PlotControl!$B$4 = "Annual Max",MAX(OFFSET(South!$L$10,12*$A70,0,12,1)),AVERAGE(OFFSET(South!$L$10,12*$A70,0,12,1))) -> 0.4859 | S70: =IF(PlotControl!$B$4 = "Annual Max",MAX(OFFSET(South!$M$10,12*$A70,0,12,1)),AVERAGE(OFFSET(South!$M$10,12*$A70,0,12,1))) -> 0.53077 | T70: =IF(PlotControl!$B$4 = "Annual Max",MAX(OFFSET(Closure!$C$10,12*$A70,0,12,1)),AVERAGE(OFFSET(Closure!$C$10,12*$A70,0,12,1))) -> 0.16097 | U70: =IF(PlotControl!$B$4 = "Annual Max",MAX(OFFSET(Closure!$D$10,12*$A70,0,12,1)),AVERAGE(OFFSET(Closure!$D$10,12*$A70,0,12,1))) -> 0.18307 | V70: =IF(PlotControl!$B$4 = "Annual Max",MAX(OFFSET(Closure!$E$10,12*$A70,0,12,1)),AVERAGE(OFFSET(Closure!$E$10,12*$A70,0,12,1))) -> 0.20075
A71: 66 | B71: =IF(PlotControl!$B$4 = "Annual Max",MAX(OFFSET(North!$C$10,12*$A71,0,12,1)),AVERAGE(OFFSET(North!$C$10,12*$A71,0,12,1))) -> 0.16228 | C71: =IF(PlotControl!$B$4 = "Annual Max",MAX(OFFSET(North!$D$10,12*$A71,0,12,1)),AVERAGE(OFFSET(North!$D$10,12*$A71,0,12,1))) -> 0.18196 | D71: =IF(PlotControl!$B$4 = "Annual Max",MAX(OFFSET(North!$E$10,12*$A71,0,12,1)),AVERAGE(OFFSET(North!$E$10,12*$A71,0,12,1))) -> 0.19941 | E71: =IF(PlotControl!$B$4 = "Annual Max",MAX(OFFSET(North!$K$10,12*$A71,0,12,1)),AVERAGE(OFFSET(North!$K$10,12*$A71,0,12,1))) -> 0.43624 | F71: =IF(PlotControl!$B$4 = "Annual Max",MAX(OFFSET(North!$L$10,12*$A71,0,12,1)),AVERAGE(OFFSET(North!$L$10,12*$A71,0,12,1))) -> 0.48542 | G71: =IF(PlotControl!$B$4 = "Annual Max",MAX(OFFSET(North!$M$10,12*$A71,0,12,1)),AVERAGE(OFFSET(North!$M$10,12*$A71,0,12,1))) -> 0.52947 | H71: =IF(PlotControl!$B$4 = "Annual Max",MAX(OFFSET(East!$C$10,12*$A71,0,12,1)),AVERAGE(OFFSET(East!$C$10,12*$A71,0,12,1))) -> 0.16228 | I71: =IF(PlotControl!$B$4 = "Annual Max",MAX(OFFSET(East!$D$10,12*$A71,0,12,1)),AVERAGE(OFFSET(East!$D$10,12*$A71,0,12,1))) -> 0.18196 | J71: =IF(PlotControl!$B$4 = "Annual Max",MAX(OFFSET(East!$E$10,12*$A71,0,12,1)),AVERAGE(OFFSET(East!$E$10,12*$A71,0,12,1))) -> 0.19941 | K71: =IF(PlotControl!$B$4 = "Annual Max",MAX(OFFSET(East!$K$10,12*$A71,0,12,1)),AVERAGE(OFFSET(East!$K$10,12*$A71,0,12,1))) -> 0.43624 | L71: =IF(PlotControl!$B$4 = "Annual Max",MAX(OFFSET(East!$L$10,12*$A71,0,12,1)),AVERAGE(OFFSET(East!$L$10,12*$A71,0,12,1))) -> 0.48542 | M71: =IF(PlotControl!$B$4 = "Annual Max",MAX(OFFSET(East!$M$10,12*$A71,0,12,1)),AVERAGE(OFFSET(East!$M$10,12*$A71,0,12,1))) -> 0.52947 | N71: =IF(PlotControl!$B$4 = "Annual Max",MAX(OFFSET(South!$C$10,12*$A71,0,12,1)),AVERAGE(OFFSET(South!$C$10,12*$A71,0,12,1))) -> 0.16228 | O71: =IF(PlotControl!$B$4 = "Annual Max",MAX(OFFSET(South!$D$10,12*$A71,0,12,1)),AVERAGE(OFFSET(South!$D$10,12*$A71,0,12,1))) -> 0.18196 | P71: =IF(PlotControl!$B$4 = "Annual Max",MAX(OFFSET(South!$E$10,12*$A71,0,12,1)),AVERAGE(OFFSET(South!$E$10,12*$A71,0,12,1))) -> 0.19941 | Q71: =IF(PlotControl!$B$4 = "Annual Max",MAX(OFFSET(South!$K$10,12*$A71,0,12,1)),AVERAGE(OFFSET(South!$K$10,12*$A71,0,12,1))) -> 0.43624 | R71: =IF(PlotControl!$B$4 = "Annual Max",MAX(OFFSET(South!$L$10,12*$A71,0,12,1)),AVERAGE(OFFSET(South!$L$10,12*$A71,0,12,1))) -> 0.48542 | S71: =IF(PlotControl!$B$4 = "Annual Max",MAX(OFFSET(South!$M$10,12*$A71,0,12,1)),AVERAGE(OFFSET(South!$M$10,12*$A71,0,12,1))) -> 0.52947 | T71: =IF(PlotControl!$B$4 = "Annual Max",MAX(OFFSET(Closure!$C$10,12*$A71,0,12,1)),AVERAGE(OFFSET(Closure!$C$10,12*$A71,0,12,1))) -> 0.16228 | U71: =IF(PlotControl!$B$4 = "Annual Max",MAX(OFFSET(Closure!$D$10,12*$A71,0,12,1)),AVERAGE(OFFSET(Closure!$D$10,12*$A71,0,12,1))) -> 0.18196 | V71: =IF(PlotControl!$B$4 = "Annual Max",MAX(OFFSET(Closure!$E$10,12*$A71,0,12,1)),AVERAGE(OFFSET(Closure!$E$10,12*$A71,0,12,1))) -> 0.19941
A72: 67 | B72: =IF(PlotControl!$B$4 = "Annual Max",MAX(OFFSET(North!$C$10,12*$A72,0,12,1)),AVERAGE(OFFSET(North!$C$10,12*$A72,0,12,1))) -> 0.1606 | C72: =IF(PlotControl!$B$4 = "Annual Max",MAX(OFFSET(North!$D$10,12*$A72,0,12,1)),AVERAGE(OFFSET(North!$D$10,12*$A72,0,12,1))) -> 0.1819 | D72: =IF(PlotControl!$B$4 = "Annual Max",MAX(OFFSET(North!$E$10,12*$A72,0,12,1)),AVERAGE(OFFSET(North!$E$10,12*$A72,0,12,1))) -> 0.20058 | E72: =IF(PlotControl!$B$4 = "Annual Max",MAX(OFFSET(North!$K$10,12*$A72,0,12,1)),AVERAGE(OFFSET(North!$K$10,12*$A72,0,12,1))) -> 0.43183 | F72: =IF(PlotControl!$B$4 = "Annual Max",MAX(OFFSET(North!$L$10,12*$A72,0,12,1)),AVERAGE(OFFSET(North!$L$10,12*$A72,0,12,1))) -> 0.48762 | G72: =IF(PlotControl!$B$4 = "Annual Max",MAX(OFFSET(North!$M$10,12*$A72,0,12,1)),AVERAGE(OFFSET(North!$M$10,12*$A72,0,12,1))) -> 0.52772 | H72: =IF(PlotControl!$B$4 = "Annual Max",MAX(OFFSET(East!$C$10,12*$A72,0,12,1)),AVERAGE(OFFSET(East!$C$10,12*$A72,0,12,1))) -> 0.1606 | I72: =IF(PlotControl!$B$4 = "Annual Max",MAX(OFFSET(East!$D$10,12*$A72,0,12,1)),AVERAGE(OFFSET(East!$D$10,12*$A72,0,12,1))) -> 0.1819 | J72: =IF(PlotControl!$B$4 = "Annual Max",MAX(OFFSET(East!$E$10,12*$A72,0,12,1)),AVERAGE(OFFSET(East!$E$10,12*$A72,0,12,1))) -> 0.20058 | K72: =IF(PlotControl!$B$4 = "Annual Max",MAX(OFFSET(East!$K$10,12*$A72,0,12,1)),AVERAGE(OFFSET(East!$K$10,12*$A72,0,12,1))) -> 0.43183 | L72: =IF(PlotControl!$B$4 = "Annual Max",MAX(OFFSET(East!$L$10,12*$A72,0,12,1)),AVERAGE(OFFSET(East!$L$10,12*$A72,0,12,1))) -> 0.48762 | M72: =IF(PlotControl!$B$4 = "Annual Max",MAX(OFFSET(East!$M$10,12*$A72,0,12,1)),AVERAGE(OFFSET(East!$M$10,12*$A72,0,12,1))) -> 0.52772 | N72: =IF(PlotControl!$B$4 = "Annual Max",MAX(OFFSET(South!$C$10,12*$A72,0,12,1)),AVERAGE(OFFSET(South!$C$10,12*$A72,0,12,1))) -> 0.1606 | O72: =IF(PlotControl!$B$4 = "Annual Max",MAX(OFFSET(South!$D$10,12*$A72,0,12,1)),AVERAGE(OFFSET(South!$D$10,12*$A72,0,12,1))) -> 0.1819 | P72: =IF(PlotControl!$B$4 = "Annual Max",MAX(OFFSET(South!$E$10,12*$A72,0,12,1)),AVERAGE(OFFSET(South!$E$10,12*$A72,0,12,1))) -> 0.20058 | Q72: =IF(PlotControl!$B$4 = "Annual Max",MAX(OFFSET(South!$K$10,12*$A72,0,12,1)),AVERAGE(OFFSET(South!$K$10,12*$A72,0,12,1))) -> 0.43183 | R72: =IF(PlotControl!$B$4 = "Annual Max",MAX(OFFSET(South!$L$10,12*$A72,0,12,1)),AVERAGE(OFFSET(South!$L$10,12*$A72,0,12,1))) -> 0.48762 | S72: =IF(PlotControl!$B$4 = "Annual Max",MAX(OFFSET(South!$M$10,12*$A72,0,12,1)),AVERAGE(OFFSET(South!$M$10,12*$A72,0,12,1))) -> 0.52772 | T72: =IF(PlotControl!$B$4 = "Annual Max",MAX(OFFSET(Closure!$C$10,12*$A72,0,12,1)),AVERAGE(OFFSET(Closure!$C$10,12*$A72,0,12,1))) -> 0.1606 | U72: =IF(PlotControl!$B$4 = "Annual Max",MAX(OFFSET(Closure!$D$10,12*$A72,0,12,1)),AVERAGE(OFFSET(Closure!$D$10,12*$A72,0,12,1))) -> 0.1819 | V72: =IF(PlotControl!$B$4 = "Annual Max",MAX(OFFSET(Closure!$E$10,12*$A72,0,12,1)),AVERAGE(OFFSET(Closure!$E$10,12*$A72,0,12,1))) -> 0.20058
A73: 68 | B73: =IF(PlotControl!$B$4 = "Annual Max",MAX(OFFSET(North!$C$10,12*$A73,0,12,1)),AVERAGE(OFFSET(North!$C$10,12*$A73,0,12,1))) -> 0.15833 | C73: =IF(PlotControl!$B$4 = "Annual Max",MAX(OFFSET(North!$D$10,12*$A73,0,12,1)),AVERAGE(OFFSET(North!$D$10,12*$A73,0,12,1))) -> 0.18159 | D73: =IF(PlotControl!$B$4 = "Annual Max",MAX(OFFSET(North!$E$10,12*$A73,0,12,1)),AVERAGE(OFFSET(North!$E$10,12*$A73,0,12,1))) -> 0.20096 | E73: =IF(PlotControl!$B$4 = "Annual Max",MAX(OFFSET(North!$K$10,12*$A73,0,12,1)),AVERAGE(OFFSET(North!$K$10,12*$A73,0,12,1))) -> 0.43501 | F73: =IF(PlotControl!$B$4 = "Annual Max",MAX(OFFSET(North!$L$10,12*$A73,0,12,1)),AVERAGE(OFFSET(North!$L$10,12*$A73,0,12,1))) -> 0.48884 | G73: =IF(PlotControl!$B$4 = "Annual Max",MAX(OFFSET(North!$M$10,12*$A73,0,12,1)),AVERAGE(OFFSET(North!$M$10,12*$A73,0,12,1))) -> 0.52821 | H73: =IF(PlotControl!$B$4 = "Annual Max",MAX(OFFSET(East!$C$10,12*$A73,0,12,1)),AVERAGE(OFFSET(East!$C$10,12*$A73,0,12,1))) -> 0.15833 | I73: =IF(PlotControl!$B$4 = "Annual Max",MAX(OFFSET(East!$D$10,12*$A73,0,12,1)),AVERAGE(OFFSET(East!$D$10,12*$A73,0,12,1))) -> 0.18159 | J73: =IF(PlotControl!$B$4 = "Annual Max",MAX(OFFSET(East!$E$10,12*$A73,0,12,1)),AVERAGE(OFFSET(East!$E$10,12*$A73,0,12,1))) -> 0.20096 | K73: =IF(PlotControl!$B$4 = "Annual Max",MAX(OFFSET(East!$K$10,12*$A73,0,12,1)),AVERAGE(OFFSET(East!$K$10,12*$A73,0,12,1))) -> 0.43501 | L73: =IF(PlotControl!$B$4 = "Annual Max",MAX(OFFSET(East!$L$10,12*$A73,0,12,1)),AVERAGE(OFFSET(East!$L$10,12*$A73,0,12,1))) -> 0.48884 | M73: =IF(PlotControl!$B$4 = "Annual Max",MAX(OFFSET(East!$M$10,12*$A73,0,12,1)),AVERAGE(OFFSET(East!$M$10,12*$A73,0,12,1))) -> 0.52821 | N73: =IF(PlotControl!$B$4 = "Annual Max",MAX(OFFSET(South!$C$10,12*$A73,0,12,1)),AVERAGE(OFFSET(South!$C$10,12*$A73,0,12,1))) -> 0.15833 | O73: =IF(PlotControl!$B$4 = "Annual Max",MAX(OFFSET(South!$D$10,12*$A73,0,12,1)),AVERAGE(OFFSET(South!$D$10,12*$A73,0,12,1))) -> 0.18159 | P73: =IF(PlotControl!$B$4 = "Annual Max",MAX(OFFSET(South!$E$10,12*$A73,0,12,1)),AVERAGE(OFFSET(South!$E$10,12*$A73,0,12,1))) -> 0.20096 | Q73: =IF(PlotControl!$B$4 = "Annual Max",MAX(OFFSET(South!$K$10,12*$A73,0,12,1)),AVERAGE(OFFSET(South!$K$10,12*$A73,0,12,1))) -> 0.43501 | R73: =IF(PlotControl!$B$4 = "Annual Max",MAX(OFFSET(South!$L$10,12*$A73,0,12,1)),AVERAGE(OFFSET(South!$L$10,12*$A73,0,12,1))) -> 0.48884 | S73: =IF(PlotControl!$B$4 = "Annual Max",MAX(OFFSET(South!$M$10,12*$A73,0,12,1)),AVERAGE(OFFSET(South!$M$10,12*$A73,0,12,1))) -> 0.52821 | T73: =IF(PlotControl!$B$4 = "Annual Max",MAX(OFFSET(Closure!$C$10,12*$A73,0,12,1)),AVERAGE(OFFSET(Closure!$C$10,12*$A73,0,12,1))) -> 0.15833 | U73: =IF(PlotControl!$B$4 = "Annual Max",MAX(OFFSET(Closure!$D$10,12*$A73,0,12,1)),AVERAGE(OFFSET(Closure!$D$10,12*$A73,0,12,1))) -> 0.18159 | V73: =IF(PlotControl!$B$4 = "Annual Max",MAX(OFFSET(Closure!$E$10,12*$A73,0,12,1)),AVERAGE(OFFSET(Closure!$E$10,12*$A73,0,12,1))) -> 0.20096
A74: 69 | B74: =IF(PlotControl!$B$4 = "Annual Max",MAX(OFFSET(North!$C$10,12*$A74,0,12,1)),AVERAGE(OFFSET(North!$C$10,12*$A74,0,12,1))) -> 0.16108 | C74: =IF(PlotControl!$B$4 = "Annual Max",MAX(OFFSET(North!$D$10,12*$A74,0,12,1)),AVERAGE(OFFSET(North!$D$10,12*$A74,0,12,1))) -> 0.18159 | D74: =IF(PlotControl!$B$4 = "Annual Max",MAX(OFFSET(North!$E$10,12*$A74,0,12,1)),AVERAGE(OFFSET(North!$E$10,12*$A74,0,12,1))) -> 0.19982 | E74: =IF(PlotControl!$B$4 = "Annual Max",MAX(OFFSET(North!$K$10,12*$A74,0,12,1)),AVERAGE(OFFSET(North!$K$10,12*$A74,0,12,1))) -> 0.43457 | F74: =IF(PlotControl!$B$4 = "Annual Max",MAX(OFFSET(North!$L$10,12*$A74,0,12,1)),AVERAGE(OFFSET(North!$L$10,12*$A74,0,12,1))) -> 0.48784 | G74: =IF(PlotControl!$B$4 = "Annual Max",MAX(OFFSET(North!$M$10,12*$A74,0,12,1)),AVERAGE(OFFSET(North!$M$10,12*$A74,0,12,1))) -> 0.52347 | H74: =IF(PlotControl!$B$4 = "Annual Max",MAX(OFFSET(East!$C$10,12*$A74,0,12,1)),AVERAGE(OFFSET(East!$C$10,12*$A74,0,12,1))) -> 0.16108 | I74: =IF(PlotControl!$B$4 = "Annual Max",MAX(OFFSET(East!$D$10,12*$A74,0,12,1)),AVERAGE(OFFSET(East!$D$10,12*$A74,0,12,1))) -> 0.18159 | J74: =IF(PlotControl!$B$4 = "Annual Max",MAX(OFFSET(East!$E$10,12*$A74,0,12,1)),AVERAGE(OFFSET(East!$E$10,12*$A74,0,12,1))) -> 0.19982 | K74: =IF(PlotControl!$B$4 = "Annual Max",MAX(OFFSET(East!$K$10,12*$A74,0,12,1)),AVERAGE(OFFSET(East!$K$10,12*$A74,0,12,1))) -> 0.43457 | L74: =IF(PlotControl!$B$4 = "Annual Max",MAX(OFFSET(East!$L$10,12*$A74,0,12,1)),AVERAGE(OFFSET(East!$L$10,12*$A74,0,12,1))) -> 0.48784 | M74: =IF(PlotControl!$B$4 = "Annual Max",MAX(OFFSET(East!$M$10,12*$A74,0,12,1)),AVERAGE(OFFSET(East!$M$10,12*$A74,0,12,1))) -> 0.52347 | N74: =IF(PlotControl!$B$4 = "Annual Max",MAX(OFFSET(South!$C$10,12*$A74,0,12,1)),AVERAGE(OFFSET(South!$C$10,12*$A74,0,12,1))) -> 0.16108 | O74: =IF(PlotControl!$B$4 = "Annual Max",MAX(OFFSET(South!$D$10,12*$A74,0,12,1)),AVERAGE(OFFSET(South!$D$10,12*$A74,0,12,1))) -> 0.18159 | P74: =IF(PlotControl!$B$4 = "Annual Max",MAX(OFFSET(South!$E$10,12*$A74,0,12,1)),AVERAGE(OFFSET(South!$E$10,12*$A74,0,12,1))) -> 0.19982 | Q74: =IF(PlotControl!$B$4 = "Annual Max",MAX(OFFSET(South!$K$10,12*$A74,0,12,1)),AVERAGE(OFFSET(South!$K$10,12*$A74,0,12,1))) -> 0.43457 | R74: =IF(PlotControl!$B$4 = "Annual Max",MAX(OFFSET(South!$L$10,12*$A74,0,12,1)),AVERAGE(OFFSET(South!$L$10,12*$A74,0,12,1))) -> 0.48784 | S74: =IF(PlotControl!$B$4 = "Annual Max",MAX(OFFSET(South!$M$10,12*$A74,0,12,1)),AVERAGE(OFFSET(South!$M$10,12*$A74,0,12,1))) -> 0.52347 | T74: =IF(PlotControl!$B$4 = "Annual Max",MAX(OFFSET(Closure!$C$10,12*$A74,0,12,1)),AVERAGE(OFFSET(Closure!$C$10,12*$A74,0,12,1))) -> 0.16108 | U74: =IF(PlotControl!$B$4 = "Annual Max",MAX(OFFSET(Closure!$D$10,12*$A74,0,12,1)),AVERAGE(OFFSET(Closure!$D$10,12*$A74,0,12,1))) -> 0.18159 | V74: =IF(PlotControl!$B$4 = "Annual Max",MAX(OFFSET(Closure!$E$10,12*$A74,0,12,1)),AVERAGE(OFFSET(Closure!$E$10,12*$A74,0,12,1))) -> 0.19982
A75: 70 | B75: =IF(PlotControl!$B$4 = "Annual Max",MAX(OFFSET(North!$C$10,12*$A75,0,12,1)),AVERAGE(OFFSET(North!$C$10,12*$A75,0,12,1))) -> 0.15849 | C75: =IF(PlotControl!$B$4 = "Annual Max",MAX(OFFSET(North!$D$10,12*$A75,0,12,1)),AVERAGE(OFFSET(North!$D$10,12*$A75,0,12,1))) -> 0.18177 | D75: =IF(PlotControl!$B$4 = "Annual Max",MAX(OFFSET(North!$E$10,12*$A75,0,12,1)),AVERAGE(OFFSET(North!$E$10,12*$A75,0,12,1))) -> 0.20017 | E75: =IF(PlotControl!$B$4 = "Annual Max",MAX(OFFSET(North!$K$10,12*$A75,0,12,1)),AVERAGE(OFFSET(North!$K$10,12*$A75,0,12,1))) -> 0.43793 | F75: =IF(PlotControl!$B$4 = "Annual Max",MAX(OFFSET(North!$L$10,12*$A75,0,12,1)),AVERAGE(OFFSET(North!$L$10,12*$A75,0,12,1))) -> 0.48852 | G75: =IF(PlotControl!$B$4 = "Annual Max",MAX(OFFSET(North!$M$10,12*$A75,0,12,1)),AVERAGE(OFFSET(North!$M$10,12*$A75,0,12,1))) -> 0.52903 | H75: =IF(PlotControl!$B$4 = "Annual Max",MAX(OFFSET(East!$C$10,12*$A75,0,12,1)),AVERAGE(OFFSET(East!$C$10,12*$A75,0,12,1))) -> 0.15849 | I75: =IF(PlotControl!$B$4 = "Annual Max",MAX(OFFSET(East!$D$10,12*$A75,0,12,1)),AVERAGE(OFFSET(East!$D$10,12*$A75,0,12,1))) -> 0.18177 | J75: =IF(PlotControl!$B$4 = "Annual Max",MAX(OFFSET(East!$E$10,12*$A75,0,12,1)),AVERAGE(OFFSET(East!$E$10,12*$A75,0,12,1))) -> 0.20017 | K75: =IF(PlotControl!$B$4 = "Annual Max",MAX(OFFSET(East!$K$10,12*$A75,0,12,1)),AVERAGE(OFFSET(East!$K$10,12*$A75,0,12,1))) -> 0.43793 | L75: =IF(PlotControl!$B$4 = "Annual Max",MAX(OFFSET(East!$L$10,12*$A75,0,12,1)),AVERAGE(OFFSET(East!$L$10,12*$A75,0,12,1))) -> 0.48852 | M75: =IF(PlotControl!$B$4 = "Annual Max",MAX(OFFSET(East!$M$10,12*$A75,0,12,1)),AVERAGE(OFFSET(East!$M$10,12*$A75,0,12,1))) -> 0.52903 | N75: =IF(PlotControl!$B$4 = "Annual Max",MAX(OFFSET(South!$C$10,12*$A75,0,12,1)),AVERAGE(OFFSET(South!$C$10,12*$A75,0,12,1))) -> 0.15849 | O75: =IF(PlotControl!$B$4 = "Annual Max",MAX(OFFSET(South!$D$10,12*$A75,0,12,1)),AVERAGE(OFFSET(South!$D$10,12*$A75,0,12,1))) -> 0.18177 | P75: =IF(PlotControl!$B$4 = "Annual Max",MAX(OFFSET(South!$E$10,12*$A75,0,12,1)),AVERAGE(OFFSET(South!$E$10,12*$A75,0,12,1))) -> 0.20017 | Q75: =IF(PlotControl!$B$4 = "Annual Max",MAX(OFFSET(South!$K$10,12*$A75,0,12,1)),AVERAGE(OFFSET(South!$K$10,12*$A75,0,12,1))) -> 0.43793 | R75: =IF(PlotControl!$B$4 = "Annual Max",MAX(OFFSET(South!$L$10,12*$A75,0,12,1)),AVERAGE(OFFSET(South!$L$10,12*$A75,0,12,1))) -> 0.48852 | S75: =IF(PlotControl!$B$4 = "Annual Max",MAX(OFFSET(South!$M$10,12*$A75,0,12,1)),AVERAGE(OFFSET(South!$M$10,12*$A75,0,12,1))) -> 0.52903 | T75: =IF(PlotControl!$B$4 = "Annual Max",MAX(OFFSET(Closure!$C$10,12*$A75,0,12,1)),AVERAGE(OFFSET(Closure!$C$10,12*$A75,0,12,1))) -> 0.15849 | U75: =IF(PlotControl!$B$4 = "Annual Max",MAX(OFFSET(Closure!$D$10,12*$A75,0,12,1)),AVERAGE(OFFSET(Closure!$D$10,12*$A75,0,12,1))) -> 0.18177 | V75: =IF(PlotControl!$B$4 = "Annual Max",MAX(OFFSET(Closure!$E$10,12*$A75,0,12,1)),AVERAGE(OFFSET(Closure!$E$10,12*$A75,0,12,1))) -> 0.20017
A76: 71 | B76: =IF(PlotControl!$B$4 = "Annual Max",MAX(OFFSET(North!$C$10,12*$A76,0,12,1)),AVERAGE(OFFSET(North!$C$10,12*$A76,0,12,1))) -> 0.15978 | C76: =IF(PlotControl!$B$4 = "Annual Max",MAX(OFFSET(North!$D$10,12*$A76,0,12,1)),AVERAGE(OFFSET(North!$D$10,12*$A76,0,12,1))) -> 0.1818 | D76: =IF(PlotControl!$B$4 = "Annual Max",MAX(OFFSET(North!$E$10,12*$A76,0,12,1)),AVERAGE(OFFSET(North!$E$10,12*$A76,0,12,1))) -> 0.20012 | E76: =IF(PlotControl!$B$4 = "Annual Max",MAX(OFFSET(North!$K$10,12*$A76,0,12,1)),AVERAGE(OFFSET(North!$K$10,12*$A76,0,12,1))) -> 0.43846 | F76: =IF(PlotControl!$B$4 = "Annual Max",MAX(OFFSET(North!$L$10,12*$A76,0,12,1)),AVERAGE(OFFSET(North!$L$10,12*$A76,0,12,1))) -> 0.48874 | G76: =IF(PlotControl!$B$4 = "Annual Max",MAX(OFFSET(North!$M$10,12*$A76,0,12,1)),AVERAGE(OFFSET(North!$M$10,12*$A76,0,12,1))) -> 0.52796 | H76: =IF(PlotControl!$B$4 = "Annual Max",MAX(OFFSET(East!$C$10,12*$A76,0,12,1)),AVERAGE(OFFSET(East!$C$10,12*$A76,0,12,1))) -> 0.15978 | I76: =IF(PlotControl!$B$4 = "Annual Max",MAX(OFFSET(East!$D$10,12*$A76,0,12,1)),AVERAGE(OFFSET(East!$D$10,12*$A76,0,12,1))) -> 0.1818 | J76: =IF(PlotControl!$B$4 = "Annual Max",MAX(OFFSET(East!$E$10,12*$A76,0,12,1)),AVERAGE(OFFSET(East!$E$10,12*$A76,0,12,1))) -> 0.20012 | K76: =IF(PlotControl!$B$4 = "Annual Max",MAX(OFFSET(East!$K$10,12*$A76,0,12,1)),AVERAGE(OFFSET(East!$K$10,12*$A76,0,12,1))) -> 0.43846 | L76: =IF(PlotControl!$B$4 = "Annual Max",MAX(OFFSET(East!$L$10,12*$A76,0,12,1)),AVERAGE(OFFSET(East!$L$10,12*$A76,0,12,1))) -> 0.48874 | M76: =IF(PlotControl!$B$4 = "Annual Max",MAX(OFFSET(East!$M$10,12*$A76,0,12,1)),AVERAGE(OFFSET(East!$M$10,12*$A76,0,12,1))) -> 0.52796 | N76: =IF(PlotControl!$B$4 = "Annual Max",MAX(OFFSET(South!$C$10,12*$A76,0,12,1)),AVERAGE(OFFSET(South!$C$10,12*$A76,0,12,1))) -> 0.15978 | O76: =IF(PlotControl!$B$4 = "Annual Max",MAX(OFFSET(South!$D$10,12*$A76,0,12,1)),AVERAGE(OFFSET(South!$D$10,12*$A76,0,12,1))) -> 0.1818 | P76: =IF(PlotControl!$B$4 = "Annual Max",MAX(OFFSET(South!$E$10,12*$A76,0,12,1)),AVERAGE(OFFSET(South!$E$10,12*$A76,0,12,1))) -> 0.20012 | Q76: =IF(PlotControl!$B$4 = "Annual Max",MAX(OFFSET(South!$K$10,12*$A76,0,12,1)),AVERAGE(OFFSET(South!$K$10,12*$A76,0,12,1))) -> 0.43846 | R76: =IF(PlotControl!$B$4 = "Annual Max",MAX(OFFSET(South!$L$10,12*$A76,0,12,1)),AVERAGE(OFFSET(South!$L$10,12*$A76,0,12,1))) -> 0.48874 | S76: =IF(PlotControl!$B$4 = "Annual Max",MAX(OFFSET(South!$M$10,12*$A76,0,12,1)),AVERAGE(OFFSET(South!$M$10,12*$A76,0,12,1))) -> 0.52796 | T76: =IF(PlotControl!$B$4 = "Annual Max",MAX(OFFSET(Closure!$C$10,12*$A76,0,12,1)),AVERAGE(OFFSET(Closure!$C$10,12*$A76,0,12,1))) -> 0.15978 | U76: =IF(PlotControl!$B$4 = "Annual Max",MAX(OFFSET(Closure!$D$10,12*$A76,0,12,1)),AVERAGE(OFFSET(Closure!$D$10,12*$A76,0,12,1))) -> 0.1818 | V76: =IF(PlotControl!$B$4 = "Annual Max",MAX(OFFSET(Closure!$E$10,12*$A76,0,12,1)),AVERAGE(OFFSET(Closure!$E$10,12*$A76,0,12,1))) -> 0.20012
A77: 72 | B77: =IF(PlotControl!$B$4 = "Annual Max",MAX(OFFSET(North!$C$10,12*$A77,0,12,1)),AVERAGE(OFFSET(North!$C$10,12*$A77,0,12,1))) -> 0.16083 | C77: =IF(PlotControl!$B$4 = "Annual Max",MAX(OFFSET(North!$D$10,12*$A77,0,12,1)),AVERAGE(OFFSET(North!$D$10,12*$A77,0,12,1))) -> 0.18165 | D77: =IF(PlotControl!$B$4 = "Annual Max",MAX(OFFSET(North!$E$10,12*$A77,0,12,1)),AVERAGE(OFFSET(North!$E$10,12*$A77,0,12,1))) -> 0.20213 | E77: =IF(PlotControl!$B$4 = "Annual Max",MAX(OFFSET(North!$K$10,12*$A77,0,12,1)),AVERAGE(OFFSET(North!$K$10,12*$A77,0,12,1))) -> 0.432 | F77: =IF(PlotControl!$B$4 = "Annual Max",MAX(OFFSET(North!$L$10,12*$A77,0,12,1)),AVERAGE(OFFSET(North!$L$10,12*$A77,0,12,1))) -> 0.4888 | G77: =IF(PlotControl!$B$4 = "Annual Max",MAX(OFFSET(North!$M$10,12*$A77,0,12,1)),AVERAGE(OFFSET(North!$M$10,12*$A77,0,12,1))) -> 0.52952 | H77: =IF(PlotControl!$B$4 = "Annual Max",MAX(OFFSET(East!$C$10,12*$A77,0,12,1)),AVERAGE(OFFSET(East!$C$10,12*$A77,0,12,1))) -> 0.16083 | I77: =IF(PlotControl!$B$4 = "Annual Max",MAX(OFFSET(East!$D$10,12*$A77,0,12,1)),AVERAGE(OFFSET(East!$D$10,12*$A77,0,12,1))) -> 0.18165 | J77: =IF(PlotControl!$B$4 = "Annual Max",MAX(OFFSET(East!$E$10,12*$A77,0,12,1)),AVERAGE(OFFSET(East!$E$10,12*$A77,0,12,1))) -> 0.20213 | K77: =IF(PlotControl!$B$4 = "Annual Max",MAX(OFFSET(East!$K$10,12*$A77,0,12,1)),AVERAGE(OFFSET(East!$K$10,12*$A77,0,12,1))) -> 0.432 | L77: =IF(PlotControl!$B$4 = "Annual Max",MAX(OFFSET(East!$L$10,12*$A77,0,12,1)),AVERAGE(OFFSET(East!$L$10,12*$A77,0,12,1))) -> 0.4888 | M77: =IF(PlotControl!$B$4 = "Annual Max",MAX(OFFSET(East!$M$10,12*$A77,0,12,1)),AVERAGE(OFFSET(East!$M$10,12*$A77,0,12,1))) -> 0.52952 | N77: =IF(PlotControl!$B$4 = "Annual Max",MAX(OFFSET(South!$C$10,12*$A77,0,12,1)),AVERAGE(OFFSET(South!$C$10,12*$A77,0,12,1))) -> 0.16083 | O77: =IF(PlotControl!$B$4 = "Annual Max",MAX(OFFSET(South!$D$10,12*$A77,0,12,1)),AVERAGE(OFFSET(South!$D$10,12*$A77,0,12,1))) -> 0.18165 | P77: =IF(PlotControl!$B$4 = "Annual Max",MAX(OFFSET(South!$E$10,12*$A77,0,12,1)),AVERAGE(OFFSET(South!$E$10,12*$A77,0,12,1))) -> 0.20213 | Q77: =IF(PlotControl!$B$4 = "Annual Max",MAX(OFFSET(South!$K$10,12*$A77,0,12,1)),AVERAGE(OFFSET(South!$K$10,12*$A77,0,12,1))) -> 0.432 | R77: =IF(PlotControl!$B$4 = "Annual Max",MAX(OFFSET(South!$L$10,12*$A77,0,12,1)),AVERAGE(OFFSET(South!$L$10,12*$A77,0,12,1))) -> 0.4888 | S77: =IF(PlotControl!$B$4 = "Annual Max",MAX(OFFSET(South!$M$10,12*$A77,0,12,1)),AVERAGE(OFFSET(South!$M$10,12*$A77,0,12,1))) -> 0.52952 | T77: =IF(PlotControl!$B$4 = "Annual Max",MAX(OFFSET(Closure!$C$10,12*$A77,0,12,1)),AVERAGE(OFFSET(Closure!$C$10,12*$A77,0,12,1))) -> 0.16083 | U77: =IF(PlotControl!$B$4 = "Annual Max",MAX(OFFSET(Closure!$D$10,12*$A77,0,12,1)),AVERAGE(OFFSET(Closure!$D$10,12*$A77,0,12,1))) -> 0.18165 | V77: =IF(PlotControl!$B$4 = "Annual Max",MAX(OFFSET(Closure!$E$10,12*$A77,0,12,1)),AVERAGE(OFFSET(Closure!$E$10,12*$A77,0,12,1))) -> 0.20213
A78: 73 | B78: =IF(PlotControl!$B$4 = "Annual Max",MAX(OFFSET(North!$C$10,12*$A78,0,12,1)),AVERAGE(OFFSET(North!$C$10,12*$A78,0,12,1))) -> 0.16089 | C78: =IF(PlotControl!$B$4 = "Annual Max",MAX(OFFSET(North!$D$10,12*$A78,0,12,1)),AVERAGE(OFFSET(North!$D$10,12*$A78,0,12,1))) -> 0.18149 | D78: =IF(PlotControl!$B$4 = "Annual Max",MAX(OFFSET(North!$E$10,12*$A78,0,12,1)),AVERAGE(OFFSET(North!$E$10,12*$A78,0,12,1))) -> 0.20226 | E78: =IF(PlotControl!$B$4 = "Annual Max",MAX(OFFSET(North!$K$10,12*$A78,0,12,1)),AVERAGE(OFFSET(North!$K$10,12*$A78,0,12,1))) -> 0.43031 | F78: =IF(PlotControl!$B$4 = "Annual Max",MAX(OFFSET(North!$L$10,12*$A78,0,12,1)),AVERAGE(OFFSET(North!$L$10,12*$A78,0,12,1))) -> 0.48713 | G78: =IF(PlotControl!$B$4 = "Annual Max",MAX(OFFSET(North!$M$10,12*$A78,0,12,1)),AVERAGE(OFFSET(North!$M$10,12*$A78,0,12,1))) -> 0.5269 | H78: =IF(PlotControl!$B$4 = "Annual Max",MAX(OFFSET(East!$C$10,12*$A78,0,12,1)),AVERAGE(OFFSET(East!$C$10,12*$A78,0,12,1))) -> 0.16089 | I78: =IF(PlotControl!$B$4 = "Annual Max",MAX(OFFSET(East!$D$10,12*$A78,0,12,1)),AVERAGE(OFFSET(East!$D$10,12*$A78,0,12,1))) -> 0.18149 | J78: =IF(PlotControl!$B$4 = "Annual Max",MAX(OFFSET(East!$E$10,12*$A78,0,12,1)),AVERAGE(OFFSET(East!$E$10,12*$A78,0,12,1))) -> 0.20226 | K78: =IF(PlotControl!$B$4 = "Annual Max",MAX(OFFSET(East!$K$10,12*$A78,0,12,1)),AVERAGE(OFFSET(East!$K$10,12*$A78,0,12,1))) -> 0.43031 | L78: =IF(PlotControl!$B$4 = "Annual Max",MAX(OFFSET(East!$L$10,12*$A78,0,12,1)),AVERAGE(OFFSET(East!$L$10,12*$A78,0,12,1))) -> 0.48713 | M78: =IF(PlotControl!$B$4 = "Annual Max",MAX(OFFSET(East!$M$10,12*$A78,0,12,1)),AVERAGE(OFFSET(East!$M$10,12*$A78,0,12,1))) -> 0.5269 | N78: =IF(PlotControl!$B$4 = "Annual Max",MAX(OFFSET(South!$C$10,12*$A78,0,12,1)),AVERAGE(OFFSET(South!$C$10,12*$A78,0,12,1))) -> 0.16089 | O78: =IF(PlotControl!$B$4 = "Annual Max",MAX(OFFSET(South!$D$10,12*$A78,0,12,1)),AVERAGE(OFFSET(South!$D$10,12*$A78,0,12,1))) -> 0.18149 | P78: =IF(PlotControl!$B$4 = "Annual Max",MAX(OFFSET(South!$E$10,12*$A78,0,12,1)),AVERAGE(OFFSET(South!$E$10,12*$A78,0,12,1))) -> 0.20226 | Q78: =IF(PlotControl!$B$4 = "Annual Max",MAX(OFFSET(South!$K$10,12*$A78,0,12,1)),AVERAGE(OFFSET(South!$K$10,12*$A78,0,12,1))) -> 0.43031 | R78: =IF(PlotControl!$B$4 = "Annual Max",MAX(OFFSET(South!$L$10,12*$A78,0,12,1)),AVERAGE(OFFSET(South!$L$10,12*$A78,0,12,1))) -> 0.48713 | S78: =IF(PlotControl!$B$4 = "Annual Max",MAX(OFFSET(South!$M$10,12*$A78,0,12,1)),AVERAGE(OFFSET(South!$M$10,12*$A78,0,12,1))) -> 0.5269 | T78: =IF(PlotControl!$B$4 = "Annual Max",MAX(OFFSET(Closure!$C$10,12*$A78,0,12,1)),AVERAGE(OFFSET(Closure!$C$10,12*$A78,0,12,1))) -> 0.16089 | U78: =IF(PlotControl!$B$4 = "Annual Max",MAX(OFFSET(Closure!$D$10,12*$A78,0,12,1)),AVERAGE(OFFSET(Closure!$D$10,12*$A78,0,12,1))) -> 0.18149 | V78: =IF(PlotControl!$B$4 = "Annual Max",MAX(OFFSET(Closure!$E$10,12*$A78,0,12,1)),AVERAGE(OFFSET(Closure!$E$10,12*$A78,0,12,1))) -> 0.20226
A79: 74 | B79: =IF(PlotControl!$B$4 = "Annual Max",MAX(OFFSET(North!$C$10,12*$A79,0,12,1)),AVERAGE(OFFSET(North!$C$10,12*$A79,0,12,1))) -> 0.1628 | C79: =IF(PlotControl!$B$4 = "Annual Max",MAX(OFFSET(North!$D$10,12*$A79,0,12,1)),AVERAGE(OFFSET(North!$D$10,12*$A79,0,12,1))) -> 0.18183 | D79: =IF(PlotControl!$B$4 = "Annual Max",MAX(OFFSET(North!$E$10,12*$A79,0,12,1)),AVERAGE(OFFSET(North!$E$10,12*$A79,0,12,1))) -> 0.20014 | E79: =IF(PlotControl!$B$4 = "Annual Max",MAX(OFFSET(North!$K$10,12*$A79,0,12,1)),AVERAGE(OFFSET(North!$K$10,12*$A79,0,12,1))) -> 0.43447 | F79: =IF(PlotControl!$B$4 = "Annual Max",MAX(OFFSET(North!$L$10,12*$A79,0,12,1)),AVERAGE(OFFSET(North!$L$10,12*$A79,0,12,1))) -> 0.4869 | G79: =IF(PlotControl!$B$4 = "Annual Max",MAX(OFFSET(North!$M$10,12*$A79,0,12,1)),AVERAGE(OFFSET(North!$M$10,12*$A79,0,12,1))) -> 0.52652 | H79: =IF(PlotControl!$B$4 = "Annual Max",MAX(OFFSET(East!$C$10,12*$A79,0,12,1)),AVERAGE(OFFSET(East!$C$10,12*$A79,0,12,1))) -> 0.1628 | I79: =IF(PlotControl!$B$4 = "Annual Max",MAX(OFFSET(East!$D$10,12*$A79,0,12,1)),AVERAGE(OFFSET(East!$D$10,12*$A79,0,12,1))) -> 0.18183 | J79: =IF(PlotControl!$B$4 = "Annual Max",MAX(OFFSET(East!$E$10,12*$A79,0,12,1)),AVERAGE(OFFSET(East!$E$10,12*$A79,0,12,1))) -> 0.20014 | K79: =IF(PlotControl!$B$4 = "Annual Max",MAX(OFFSET(East!$K$10,12*$A79,0,12,1)),AVERAGE(OFFSET(East!$K$10,12*$A79,0,12,1))) -> 0.43447 | L79: =IF(PlotControl!$B$4 = "Annual Max",MAX(OFFSET(East!$L$10,12*$A79,0,12,1)),AVERAGE(OFFSET(East!$L$10,12*$A79,0,12,1))) -> 0.4869 | M79: =IF(PlotControl!$B$4 = "Annual Max",MAX(OFFSET(East!$M$10,12*$A79,0,12,1)),AVERAGE(OFFSET(East!$M$10,12*$A79,0,12,1))) -> 0.52652 | N79: =IF(PlotControl!$B$4 = "Annual Max",MAX(OFFSET(South!$C$10,12*$A79,0,12,1)),AVERAGE(OFFSET(South!$C$10,12*$A79,0,12,1))) -> 0.1628 | O79: =IF(PlotControl!$B$4 = "Annual Max",MAX(OFFSET(South!$D$10,12*$A79,0,12,1)),AVERAGE(OFFSET(South!$D$10,12*$A79,0,12,1))) -> 0.18183 | P79: =IF(PlotControl!$B$4 = "Annual Max",MAX(OFFSET(South!$E$10,12*$A79,0,12,1)),AVERAGE(OFFSET(South!$E$10,12*$A79,0,12,1))) -> 0.20014 | Q79: =IF(PlotControl!$B$4 = "Annual Max",MAX(OFFSET(South!$K$10,12*$A79,0,12,1)),AVERAGE(OFFSET(South!$K$10,12*$A79,0,12,1))) -> 0.43447 | R79: =IF(PlotControl!$B$4 = "Annual Max",MAX(OFFSET(South!$L$10,12*$A79,0,12,1)),AVERAGE(OFFSET(South!$L$10,12*$A79,0,12,1))) -> 0.4869 | S79: =IF(PlotControl!$B$4 = "Annual Max",MAX(OFFSET(South!$M$10,12*$A79,0,12,1)),AVERAGE(OFFSET(South!$M$10,12*$A79,0,12,1))) -> 0.52652 | T79: =IF(PlotControl!$B$4 = "Annual Max",MAX(OFFSET(Closure!$C$10,12*$A79,0,12,1)),AVERAGE(OFFSET(Closure!$C$10,12*$A79,0,12,1))) -> 0.1628 | U79: =IF(PlotControl!$B$4 = "Annual Max",MAX(OFFSET(Closure!$D$10,12*$A79,0,12,1)),AVERAGE(OFFSET(Closure!$D$10,12*$A79,0,12,1))) -> 0.18183 | V79: =IF(PlotControl!$B$4 = "Annual Max",MAX(OFFSET(Closure!$E$10,12*$A79,0,12,1)),AVERAGE(OFFSET(Closure!$E$10,12*$A79,0,12,1))) -> 0.20014
A80: 75 | B80: =IF(PlotControl!$B$4 = "Annual Max",MAX(OFFSET(North!$C$10,12*$A80,0,12,1)),AVERAGE(OFFSET(North!$C$10,12*$A80,0,12,1))) -> 0.16408 | C80: =IF(PlotControl!$B$4 = "Annual Max",MAX(OFFSET(North!$D$10,12*$A80,0,12,1)),AVERAGE(OFFSET(North!$D$10,12*$A80,0,12,1))) -> 0.18311 | D80: =IF(PlotControl!$B$4 = "Annual Max",MAX(OFFSET(North!$E$10,12*$A80,0,12,1)),AVERAGE(OFFSET(North!$E$10,12*$A80,0,12,1))) -> 0.20083 | E80: =IF(PlotControl!$B$4 = "Annual Max",MAX(OFFSET(North!$K$10,12*$A80,0,12,1)),AVERAGE(OFFSET(North!$K$10,12*$A80,0,12,1))) -> 0.4408 | F80: =IF(PlotControl!$B$4 = "Annual Max",MAX(OFFSET(North!$L$10,12*$A80,0,12,1)),AVERAGE(OFFSET(North!$L$10,12*$A80,0,12,1))) -> 0.48716 | G80: =IF(PlotControl!$B$4 = "Annual Max",MAX(OFFSET(North!$M$10,12*$A80,0,12,1)),AVERAGE(OFFSET(North!$M$10,12*$A80,0,12,1))) -> 0.52872 | H80: =IF(PlotControl!$B$4 = "Annual Max",MAX(OFFSET(East!$C$10,12*$A80,0,12,1)),AVERAGE(OFFSET(East!$C$10,12*$A80,0,12,1))) -> 0.16408 | I80: =IF(PlotControl!$B$4 = "Annual Max",MAX(OFFSET(East!$D$10,12*$A80,0,12,1)),AVERAGE(OFFSET(East!$D$10,12*$A80,0,12,1))) -> 0.18311 | J80: =IF(PlotControl!$B$4 = "Annual Max",MAX(OFFSET(East!$E$10,12*$A80,0,12,1)),AVERAGE(OFFSET(East!$E$10,12*$A80,0,12,1))) -> 0.20083 | K80: =IF(PlotControl!$B$4 = "Annual Max",MAX(OFFSET(East!$K$10,12*$A80,0,12,1)),AVERAGE(OFFSET(East!$K$10,12*$A80,0,12,1))) -> 0.4408 | L80: =IF(PlotControl!$B$4 = "Annual Max",MAX(OFFSET(East!$L$10,12*$A80,0,12,1)),AVERAGE(OFFSET(East!$L$10,12*$A80,0,12,1))) -> 0.48716 | M80: =IF(PlotControl!$B$4 = "Annual Max",MAX(OFFSET(East!$M$10,12*$A80,0,12,1)),AVERAGE(OFFSET(East!$M$10,12*$A80,0,12,1))) -> 0.52872 | N80: =IF(PlotControl!$B$4 = "Annual Max",MAX(OFFSET(South!$C$10,12*$A80,0,12,1)),AVERAGE(OFFSET(South!$C$10,12*$A80,0,12,1))) -> 0.16408 | O80: =IF(PlotControl!$B$4 = "Annual Max",MAX(OFFSET(South!$D$10,12*$A80,0,12,1)),AVERAGE(OFFSET(South!$D$10,12*$A80,0,12,1))) -> 0.18311 | P80: =IF(PlotControl!$B$4 = "Annual Max",MAX(OFFSET(South!$E$10,12*$A80,0,12,1)),AVERAGE(OFFSET(South!$E$10,12*$A80,0,12,1))) -> 0.20083 | Q80: =IF(PlotControl!$B$4 = "Annual Max",MAX(OFFSET(South!$K$10,12*$A80,0,12,1)),AVERAGE(OFFSET(South!$K$10,12*$A80,0,12,1))) -> 0.4408 | R80: =IF(PlotControl!$B$4 = "Annual Max",MAX(OFFSET(South!$L$10,12*$A80,0,12,1)),AVERAGE(OFFSET(South!$L$10,12*$A80,0,12,1))) -> 0.48716 | S80: =IF(PlotControl!$B$4 = "Annual Max",MAX(OFFSET(South!$M$10,12*$A80,0,12,1)),AVERAGE(OFFSET(South!$M$10,12*$A80,0,12,1))) -> 0.52872 | T80: =IF(PlotControl!$B$4 = "Annual Max",MAX(OFFSET(Closure!$C$10,12*$A80,0,12,1)),AVERAGE(OFFSET(Closure!$C$10,12*$A80,0,12,1))) -> 0.16408 | U80: =IF(PlotControl!$B$4 = "Annual Max",MAX(OFFSET(Closure!$D$10,12*$A80,0,12,1)),AVERAGE(OFFSET(Closure!$D$10,12*$A80,0,12,1))) -> 0.18311 | V80: =IF(PlotControl!$B$4 = "Annual Max",MAX(OFFSET(Closure!$E$10,12*$A80,0,12,1)),AVERAGE(OFFSET(Closure!$E$10,12*$A80,0,12,1))) -> 0.20083
A81: 76 | B81: =IF(PlotControl!$B$4 = "Annual Max",MAX(OFFSET(North!$C$10,12*$A81,0,12,1)),AVERAGE(OFFSET(North!$C$10,12*$A81,0,12,1))) -> 0.16306 | C81: =IF(PlotControl!$B$4 = "Annual Max",MAX(OFFSET(North!$D$10,12*$A81,0,12,1)),AVERAGE(OFFSET(North!$D$10,12*$A81,0,12,1))) -> 0.18352 | D81: =IF(PlotControl!$B$4 = "Annual Max",MAX(OFFSET(North!$E$10,12*$A81,0,12,1)),AVERAGE(OFFSET(North!$E$10,12*$A81,0,12,1))) -> 0.20157 | E81: =IF(PlotControl!$B$4 = "Annual Max",MAX(OFFSET(North!$K$10,12*$A81,0,12,1)),AVERAGE(OFFSET(North!$K$10,12*$A81,0,12,1))) -> 0.44301 | F81: =IF(PlotControl!$B$4 = "Annual Max",MAX(OFFSET(North!$L$10,12*$A81,0,12,1)),AVERAGE(OFFSET(North!$L$10,12*$A81,0,12,1))) -> 0.48761 | G81: =IF(PlotControl!$B$4 = "Annual Max",MAX(OFFSET(North!$M$10,12*$A81,0,12,1)),AVERAGE(OFFSET(North!$M$10,12*$A81,0,12,1))) -> 0.52774 | H81: =IF(PlotControl!$B$4 = "Annual Max",MAX(OFFSET(East!$C$10,12*$A81,0,12,1)),AVERAGE(OFFSET(East!$C$10,12*$A81,0,12,1))) -> 0.16306 | I81: =IF(PlotControl!$B$4 = "Annual Max",MAX(OFFSET(East!$D$10,12*$A81,0,12,1)),AVERAGE(OFFSET(East!$D$10,12*$A81,0,12,1))) -> 0.18352 | J81: =IF(PlotControl!$B$4 = "Annual Max",MAX(OFFSET(East!$E$10,12*$A81,0,12,1)),AVERAGE(OFFSET(East!$E$10,12*$A81,0,12,1))) -> 0.20157 | K81: =IF(PlotControl!$B$4 = "Annual Max",MAX(OFFSET(East!$K$10,12*$A81,0,12,1)),AVERAGE(OFFSET(East!$K$10,12*$A81,0,12,1))) -> 0.44301 | L81: =IF(PlotControl!$B$4 = "Annual Max",MAX(OFFSET(East!$L$10,12*$A81,0,12,1)),AVERAGE(OFFSET(East!$L$10,12*$A81,0,12,1))) -> 0.48761 | M81: =IF(PlotControl!$B$4 = "Annual Max",MAX(OFFSET(East!$M$10,12*$A81,0,12,1)),AVERAGE(OFFSET(East!$M$10,12*$A81,0,12,1))) -> 0.52774 | N81: =IF(PlotControl!$B$4 = "Annual Max",MAX(OFFSET(South!$C$10,12*$A81,0,12,1)),AVERAGE(OFFSET(South!$C$10,12*$A81,0,12,1))) -> 0.16306 | O81: =IF(PlotControl!$B$4 = "Annual Max",MAX(OFFSET(South!$D$10,12*$A81,0,12,1)),AVERAGE(OFFSET(South!$D$10,12*$A81,0,12,1))) -> 0.18352 | P81: =IF(PlotControl!$B$4 = "Annual Max",MAX(OFFSET(South!$E$10,12*$A81,0,12,1)),AVERAGE(OFFSET(South!$E$10,12*$A81,0,12,1))) -> 0.20157 | Q81: =IF(PlotControl!$B$4 = "Annual Max",MAX(OFFSET(South!$K$10,12*$A81,0,12,1)),AVERAGE(OFFSET(South!$K$10,12*$A81,0,12,1))) -> 0.44301 | R81: =IF(PlotControl!$B$4 = "Annual Max",MAX(OFFSET(South!$L$10,12*$A81,0,12,1)),AVERAGE(OFFSET(South!$L$10,12*$A81,0,12,1))) -> 0.48761 | S81: =IF(PlotControl!$B$4 = "Annual Max",MAX(OFFSET(South!$M$10,12*$A81,0,12,1)),AVERAGE(OFFSET(South!$M$10,12*$A81,0,12,1))) -> 0.52774 | T81: =IF(PlotControl!$B$4 = "Annual Max",MAX(OFFSET(Closure!$C$10,12*$A81,0,12,1)),AVERAGE(OFFSET(Closure!$C$10,12*$A81,0,12,1))) -> 0.16306 | U81: =IF(PlotControl!$B$4 = "Annual Max",MAX(OFFSET(Closure!$D$10,12*$A81,0,12,1)),AVERAGE(OFFSET(Closure!$D$10,12*$A81,0,12,1))) -> 0.18352 | V81: =IF(PlotControl!$B$4 = "Annual Max",MAX(OFFSET(Closure!$E$10,12*$A81,0,12,1)),AVERAGE(OFFSET(Closure!$E$10,12*$A81,0,12,1))) -> 0.20157
A82: 77 | B82: =IF(PlotControl!$B$4 = "Annual Max",MAX(OFFSET(North!$C$10,12*$A82,0,12,1)),AVERAGE(OFFSET(North!$C$10,12*$A82,0,12,1))) -> 0.15931 | C82: =IF(PlotControl!$B$4 = "Annual Max",MAX(OFFSET(North!$D$10,12*$A82,0,12,1)),AVERAGE(OFFSET(North!$D$10,12*$A82,0,12,1))) -> 0.18097 | D82: =IF(PlotControl!$B$4 = "Annual Max",MAX(OFFSET(North!$E$10,12*$A82,0,12,1)),AVERAGE(OFFSET(North!$E$10,12*$A82,0,12,1))) -> 0.20186 | E82: =IF(PlotControl!$B$4 = "Annual Max",MAX(OFFSET(North!$K$10,12*$A82,0,12,1)),AVERAGE(OFFSET(North!$K$10,12*$A82,0,12,1))) -> 0.43371 | F82: =IF(PlotControl!$B$4 = "Annual Max",MAX(OFFSET(North!$L$10,12*$A82,0,12,1)),AVERAGE(OFFSET(North!$L$10,12*$A82,0,12,1))) -> 0.48654 | G82: =IF(PlotControl!$B$4 = "Annual Max",MAX(OFFSET(North!$M$10,12*$A82,0,12,1)),AVERAGE(OFFSET(North!$M$10,12*$A82,0,12,1))) -> 0.52884 | H82: =IF(PlotControl!$B$4 = "Annual Max",MAX(OFFSET(East!$C$10,12*$A82,0,12,1)),AVERAGE(OFFSET(East!$C$10,12*$A82,0,12,1))) -> 0.15931 | I82: =IF(PlotControl!$B$4 = "Annual Max",MAX(OFFSET(East!$D$10,12*$A82,0,12,1)),AVERAGE(OFFSET(East!$D$10,12*$A82,0,12,1))) -> 0.18097 | J82: =IF(PlotControl!$B$4 = "Annual Max",MAX(OFFSET(East!$E$10,12*$A82,0,12,1)),AVERAGE(OFFSET(East!$E$10,12*$A82,0,12,1))) -> 0.20186 | K82: =IF(PlotControl!$B$4 = "Annual Max",MAX(OFFSET(East!$K$10,12*$A82,0,12,1)),AVERAGE(OFFSET(East!$K$10,12*$A82,0,12,1))) -> 0.43371 | L82: =IF(PlotControl!$B$4 = "Annual Max",MAX(OFFSET(East!$L$10,12*$A82,0,12,1)),AVERAGE(OFFSET(East!$L$10,12*$A82,0,12,1))) -> 0.48654 | M82: =IF(PlotControl!$B$4 = "Annual Max",MAX(OFFSET(East!$M$10,12*$A82,0,12,1)),AVERAGE(OFFSET(East!$M$10,12*$A82,0,12,1))) -> 0.52884 | N82: =IF(PlotControl!$B$4 = "Annual Max",MAX(OFFSET(South!$C$10,12*$A82,0,12,1)),AVERAGE(OFFSET(South!$C$10,12*$A82,0,12,1))) -> 0.15931 | O82: =IF(PlotControl!$B$4 = "Annual Max",MAX(OFFSET(South!$D$10,12*$A82,0,12,1)),AVERAGE(OFFSET(South!$D$10,12*$A82,0,12,1))) -> 0.18097 | P82: =IF(PlotControl!$B$4 = "Annual Max",MAX(OFFSET(South!$E$10,12*$A82,0,12,1)),AVERAGE(OFFSET(South!$E$10,12*$A82,0,12,1))) -> 0.20186 | Q82: =IF(PlotControl!$B$4 = "Annual Max",MAX(OFFSET(South!$K$10,12*$A82,0,12,1)),AVERAGE(OFFSET(South!$K$10,12*$A82,0,12,1))) -> 0.43371 | R82: =IF(PlotControl!$B$4 = "Annual Max",MAX(OFFSET(South!$L$10,12*$A82,0,12,1)),AVERAGE(OFFSET(South!$L$10,12*$A82,0,12,1))) -> 0.48654 | S82: =IF(PlotControl!$B$4 = "Annual Max",MAX(OFFSET(South!$M$10,12*$A82,0,12,1)),AVERAGE(OFFSET(South!$M$10,12*$A82,0,12,1))) -> 0.52884 | T82: =IF(PlotControl!$B$4 = "Annual Max",MAX(OFFSET(Closure!$C$10,12*$A82,0,12,1)),AVERAGE(OFFSET(Closure!$C$10,12*$A82,0,12,1))) -> 0.15931 | U82: =IF(PlotControl!$B$4 = "Annual Max",MAX(OFFSET(Closure!$D$10,12*$A82,0,12,1)),AVERAGE(OFFSET(Closure!$D$10,12*$A82,0,12,1))) -> 0.18097 | V82: =IF(PlotControl!$B$4 = "Annual Max",MAX(OFFSET(Closure!$E$10,12*$A82,0,12,1)),AVERAGE(OFFSET(Closure!$E$10,12*$A82,0,12,1))) -> 0.20186
A83: 78 | B83: =IF(PlotControl!$B$4 = "Annual Max",MAX(OFFSET(North!$C$10,12*$A83,0,12,1)),AVERAGE(OFFSET(North!$C$10,12*$A83,0,12,1))) -> 0.15869 | C83: =IF(PlotControl!$B$4 = "Annual Max",MAX(OFFSET(North!$D$10,12*$A83,0,12,1)),AVERAGE(OFFSET(North!$D$10,12*$A83,0,12,1))) -> 0.18093 | D83: =IF(PlotControl!$B$4 = "Annual Max",MAX(OFFSET(North!$E$10,12*$A83,0,12,1)),AVERAGE(OFFSET(North!$E$10,12*$A83,0,12,1))) -> 0.19994 | E83: =IF(PlotControl!$B$4 = "Annual Max",MAX(OFFSET(North!$K$10,12*$A83,0,12,1)),AVERAGE(OFFSET(North!$K$10,12*$A83,0,12,1))) -> 0.4328 | F83: =IF(PlotControl!$B$4 = "Annual Max",MAX(OFFSET(North!$L$10,12*$A83,0,12,1)),AVERAGE(OFFSET(North!$L$10,12*$A83,0,12,1))) -> 0.48545 | G83: =IF(PlotControl!$B$4 = "Annual Max",MAX(OFFSET(North!$M$10,12*$A83,0,12,1)),AVERAGE(OFFSET(North!$M$10,12*$A83,0,12,1))) -> 0.52794 | H83: =IF(PlotControl!$B$4 = "Annual Max",MAX(OFFSET(East!$C$10,12*$A83,0,12,1)),AVERAGE(OFFSET(East!$C$10,12*$A83,0,12,1))) -> 0.15869 | I83: =IF(PlotControl!$B$4 = "Annual Max",MAX(OFFSET(East!$D$10,12*$A83,0,12,1)),AVERAGE(OFFSET(East!$D$10,12*$A83,0,12,1))) -> 0.18093 | J83: =IF(PlotControl!$B$4 = "Annual Max",MAX(OFFSET(East!$E$10,12*$A83,0,12,1)),AVERAGE(OFFSET(East!$E$10,12*$A83,0,12,1))) -> 0.19994 | K83: =IF(PlotControl!$B$4 = "Annual Max",MAX(OFFSET(East!$K$10,12*$A83,0,12,1)),AVERAGE(OFFSET(East!$K$10,12*$A83,0,12,1))) -> 0.4328 | L83: =IF(PlotControl!$B$4 = "Annual Max",MAX(OFFSET(East!$L$10,12*$A83,0,12,1)),AVERAGE(OFFSET(East!$L$10,12*$A83,0,12,1))) -> 0.48545 | M83: =IF(PlotControl!$B$4 = "Annual Max",MAX(OFFSET(East!$M$10,12*$A83,0,12,1)),AVERAGE(OFFSET(East!$M$10,12*$A83,0,12,1))) -> 0.52794 | N83: =IF(PlotControl!$B$4 = "Annual Max",MAX(OFFSET(South!$C$10,12*$A83,0,12,1)),AVERAGE(OFFSET(South!$C$10,12*$A83,0,12,1))) -> 0.15869 | O83: =IF(PlotControl!$B$4 = "Annual Max",MAX(OFFSET(South!$D$10,12*$A83,0,12,1)),AVERAGE(OFFSET(South!$D$10,12*$A83,0,12,1))) -> 0.18093 | P83: =IF(PlotControl!$B$4 = "Annual Max",MAX(OFFSET(South!$E$10,12*$A83,0,12,1)),AVERAGE(OFFSET(South!$E$10,12*$A83,0,12,1))) -> 0.19994 | Q83: =IF(PlotControl!$B$4 = "Annual Max",MAX(OFFSET(South!$K$10,12*$A83,0,12,1)),AVERAGE(OFFSET(South!$K$10,12*$A83,0,12,1))) -> 0.4328 | R83: =IF(PlotControl!$B$4 = "Annual Max",MAX(OFFSET(South!$L$10,12*$A83,0,12,1)),AVERAGE(OFFSET(South!$L$10,12*$A83,0,12,1))) -> 0.48545 | S83: =IF(PlotControl!$B$4 = "Annual Max",MAX(OFFSET(South!$M$10,12*$A83,0,12,1)),AVERAGE(OFFSET(South!$M$10,12*$A83,0,12,1))) -> 0.52794 | T83: =IF(PlotControl!$B$4 = "Annual Max",MAX(OFFSET(Closure!$C$10,12*$A83,0,12,1)),AVERAGE(OFFSET(Closure!$C$10,12*$A83,0,12,1))) -> 0.15869 | U83: =IF(PlotControl!$B$4 = "Annual Max",MAX(OFFSET(Closure!$D$10,12*$A83,0,12,1)),AVERAGE(OFFSET(Closure!$D$10,12*$A83,0,12,1))) -> 0.18093 | V83: =IF(PlotControl!$B$4 = "Annual Max",MAX(OFFSET(Closure!$E$10,12*$A83,0,12,1)),AVERAGE(OFFSET(Closure!$E$10,12*$A83,0,12,1))) -> 0.19994
A84: 79 | B84: =IF(PlotControl!$B$4 = "Annual Max",MAX(OFFSET(North!$C$10,12*$A84,0,12,1)),AVERAGE(OFFSET(North!$C$10,12*$A84,0,12,1))) -> 0.15864 | C84: =IF(PlotControl!$B$4 = "Annual Max",MAX(OFFSET(North!$D$10,12*$A84,0,12,1)),AVERAGE(OFFSET(North!$D$10,12*$A84,0,12,1))) -> 0.18129 | D84: =IF(PlotControl!$B$4 = "Annual Max",MAX(OFFSET(North!$E$10,12*$A84,0,12,1)),AVERAGE(OFFSET(North!$E$10,12*$A84,0,12,1))) -> 0.20026 | E84: =IF(PlotControl!$B$4 = "Annual Max",MAX(OFFSET(North!$K$10,12*$A84,0,12,1)),AVERAGE(OFFSET(North!$K$10,12*$A84,0,12,1))) -> 0.44135 | F84: =IF(PlotControl!$B$4 = "Annual Max",MAX(OFFSET(North!$L$10,12*$A84,0,12,1)),AVERAGE(OFFSET(North!$L$10,12*$A84,0,12,1))) -> 0.48636 | G84: =IF(PlotControl!$B$4 = "Annual Max",MAX(OFFSET(North!$M$10,12*$A84,0,12,1)),AVERAGE(OFFSET(North!$M$10,12*$A84,0,12,1))) -> 0.52645 | H84: =IF(PlotControl!$B$4 = "Annual Max",MAX(OFFSET(East!$C$10,12*$A84,0,12,1)),AVERAGE(OFFSET(East!$C$10,12*$A84,0,12,1))) -> 0.15864 | I84: =IF(PlotControl!$B$4 = "Annual Max",MAX(OFFSET(East!$D$10,12*$A84,0,12,1)),AVERAGE(OFFSET(East!$D$10,12*$A84,0,12,1))) -> 0.18129 | J84: =IF(PlotControl!$B$4 = "Annual Max",MAX(OFFSET(East!$E$10,12*$A84,0,12,1)),AVERAGE(OFFSET(East!$E$10,12*$A84,0,12,1))) -> 0.20026 | K84: =IF(PlotControl!$B$4 = "Annual Max",MAX(OFFSET(East!$K$10,12*$A84,0,12,1)),AVERAGE(OFFSET(East!$K$10,12*$A84,0,12,1))) -> 0.44135 | L84: =IF(PlotControl!$B$4 = "Annual Max",MAX(OFFSET(East!$L$10,12*$A84,0,12,1)),AVERAGE(OFFSET(East!$L$10,12*$A84,0,12,1))) -> 0.48636 | M84: =IF(PlotControl!$B$4 = "Annual Max",MAX(OFFSET(East!$M$10,12*$A84,0,12,1)),AVERAGE(OFFSET(East!$M$10,12*$A84,0,12,1))) -> 0.52645 | N84: =IF(PlotControl!$B$4 = "Annual Max",MAX(OFFSET(South!$C$10,12*$A84,0,12,1)),AVERAGE(OFFSET(South!$C$10,12*$A84,0,12,1))) -> 0.15864 | O84: =IF(PlotControl!$B$4 = "Annual Max",MAX(OFFSET(South!$D$10,12*$A84,0,12,1)),AVERAGE(OFFSET(South!$D$10,12*$A84,0,12,1))) -> 0.18129 | P84: =IF(PlotControl!$B$4 = "Annual Max",MAX(OFFSET(South!$E$10,12*$A84,0,12,1)),AVERAGE(OFFSET(South!$E$10,12*$A84,0,12,1))) -> 0.20026 | Q84: =IF(PlotControl!$B$4 = "Annual Max",MAX(OFFSET(South!$K$10,12*$A84,0,12,1)),AVERAGE(OFFSET(South!$K$10,12*$A84,0,12,1))) -> 0.44135 | R84: =IF(PlotControl!$B$4 = "Annual Max",MAX(OFFSET(South!$L$10,12*$A84,0,12,1)),AVERAGE(OFFSET(South!$L$10,12*$A84,0,12,1))) -> 0.48636 | S84: =IF(PlotControl!$B$4 = "Annual Max",MAX(OFFSET(South!$M$10,12*$A84,0,12,1)),AVERAGE(OFFSET(South!$M$10,12*$A84,0,12,1))) -> 0.52645 | T84: =IF(PlotControl!$B$4 = "Annual Max",MAX(OFFSET(Closure!$C$10,12*$A84,0,12,1)),AVERAGE(OFFSET(Closure!$C$10,12*$A84,0,12,1))) -> 0.15864 | U84: =IF(PlotControl!$B$4 = "Annual Max",MAX(OFFSET(Closure!$D$10,12*$A84,0,12,1)),AVERAGE(OFFSET(Closure!$D$10,12*$A84,0,12,1))) -> 0.18129 | V84: =IF(PlotControl!$B$4 = "Annual Max",MAX(OFFSET(Closure!$E$10,12*$A84,0,12,1)),AVERAGE(OFFSET(Closure!$E$10,12*$A84,0,12,1))) -> 0.20026
